{"text_format":"1","workbook":"xlsx","n_sheets":17,"sheets":["Übersicht","MA 1-10","MA 11-20","MA 21-30","MA 31-40","MA 41-50","MA 51-60","MA 61-70","MA 71-80","MA 81-90","MA 91-100","MA 101-110","MA 111-120","MA 121-130","MA 131-140","MA 141-150","Hintergrunddaten"],"not_rendered":{"charts":0,"images":2,"macros":1,"external_links":0,"defined_names":1,"comments":0,"pivot_tables":0},"unopened":[],"bounds":{"document_bytes":16777216,"sheet_cells":100000,"rows_first":2000,"rows_last":500,"rows_between":2000,"halvings":0,"cell_chars":16384,"cell_head_chars":4096},"cells_cut":0,"cells_raw":0,"read":"whole","date_system":"1900"}

{"sheet":"Übersicht","index":0,"n_rows":156,"n_cols":12,"rows_kept":156,"cut":false,"hidden":false,"merged":[]}
[]
["Einrichtung: "]
["Fortbildungsaufzeichnung für die Jahre von: "]
[null,null,"bis: "]
[]
["MA-Nr","Name","Berufsgruppe",{"$f":"IF(D3=0,\"Stunden Jahr 1\",(\"Stunden\"&D3))","v":"Stunden Jahr 1"},{"$f":"IF(D3=0,\"Stunden Jahr 2\",(\"Stunden\"&D3+1))","v":"Stunden Jahr 2"},{"$f":"IF(D3=0,\"Stunden Jahr 3\",(\"Stunden\"&D3+2))","v":"Stunden Jahr 3"},{"$f":"IF(D3=0,\"Stunden Jahr 4\",(\"Stunden\"&D3+3))","v":"Stunden Jahr 4"},"Stunden\nGesamt","Soll-stunden","Differenz","% erreicht","Ø erreicht gesamt"]
["MA 001",{"$f":"'MA 1-10'!$B$2","v":0},{"$f":"IF(Hintergrunddaten!$C$2=1,\"\",IF(Hintergrunddaten!$C$2=2,\"Medizin\",IF(Hintergrunddaten!$C$2=3,\"Pflege\",IF(Hintergrunddaten!$C$2=4,\"Hebammen\",\"nicht klinisches Personal\"))))","v":""},{"$f":"'MA 1-10'!$F$14","v":0},{"$f":"'MA 1-10'!$G$14","v":0},{"$f":"'MA 1-10'!$H$14","v":0},{"$f":"'MA 1-10'!$I$14","v":0},{"$f":"'MA 1-10'!$J$14","v":0},{"$f":"'MA 1-10'!$K$14","v":0},{"$f":"'MA 1-10'!$L$14","v":0},{"$f":"'MA 1-10'!$M$14","v":"0%"},{"$f":"IF(H148=0,\"0%\",(SUM(K7:K106)/COUNTIF(H7:H106,\">0\")))","v":"0%"}]
["MA 002",{"$f":"'MA 1-10'!$B$16","v":0},{"$f":"IF(Hintergrunddaten!$C$9=1,\"\",IF(Hintergrunddaten!$C$9=2,\"Medizin\",IF(Hintergrunddaten!$C$9=3,\"Pflege\",IF(Hintergrunddaten!$C$9=4,\"Hebammen\",\"nicht klinisches Personal\"))))","v":""},{"$f":"'MA 1-10'!$F$28","v":0},{"$f":"'MA 1-10'!$G$28","v":0},{"$f":"'MA 1-10'!$H$28","v":0},{"$f":"'MA 1-10'!$I$28","v":0},{"$f":"'MA 1-10'!$J$28","v":0},{"$f":"'MA 1-10'!$K$28","v":0},{"$f":"'MA 1-10'!$L$28","v":0},{"$f":"'MA 1-10'!$M$28","v":"0%"}]
["MA 003",{"$f":"'MA 1-10'!$B$30","v":0},{"$f":"IF(Hintergrunddaten!$C$16=1,\"\",IF(Hintergrunddaten!$C$16=2,\"Medizin\",IF(Hintergrunddaten!$C$16=3,\"Pflege\",IF(Hintergrunddaten!$C$16=4,\"Hebammen\",\"nicht klinisches Personal\"))))","v":""},{"$f":"'MA 1-10'!$F$42","v":0},{"$f":"'MA 1-10'!$G$42","v":0},{"$f":"'MA 1-10'!$H$42","v":0},{"$f":"'MA 1-10'!$I$42","v":0},{"$f":"'MA 1-10'!$J$42","v":0},{"$f":"'MA 1-10'!$K$42","v":0},{"$f":"'MA 1-10'!$L$42","v":0},{"$f":"'MA 1-10'!$M$42","v":"0%"}]
["MA 004",{"$f":"'MA 1-10'!$B$44","v":0},{"$f":"IF(Hintergrunddaten!$C$23=1,\"\",IF(Hintergrunddaten!$C$23=2,\"Medizin\",IF(Hintergrunddaten!$C$23=3,\"Pflege\",IF(Hintergrunddaten!$C$23=4,\"Hebammen\",\"nicht klinisches Personal\"))))","v":""},{"$f":"'MA 1-10'!$F$56","v":0},{"$f":"'MA 1-10'!$G$56","v":0},{"$f":"'MA 1-10'!$H$56","v":0},{"$f":"'MA 1-10'!$I$56","v":0},{"$f":"'MA 1-10'!$J$56","v":0},{"$f":"'MA 1-10'!$K$56","v":0},{"$f":"'MA 1-10'!$L$56","v":0},{"$f":"'MA 1-10'!$M$56","v":"0%"}]
["MA 005",{"$f":"'MA 1-10'!$B$58","v":0},{"$f":"IF(Hintergrunddaten!$C$30=1,\"\",IF(Hintergrunddaten!$C$30=2,\"Medizin\",IF(Hintergrunddaten!$C$30=3,\"Pflege\",IF(Hintergrunddaten!$C$30=4,\"Hebammen\",\"nicht klinisches Personal\"))))","v":""},{"$f":"'MA 1-10'!$F$70","v":0},{"$f":"'MA 1-10'!$G$70","v":0},{"$f":"'MA 1-10'!$H$70","v":0},{"$f":"'MA 1-10'!$I$70","v":0},{"$f":"'MA 1-10'!$J$70","v":0},{"$f":"'MA 1-10'!$K$70","v":0},{"$f":"'MA 1-10'!$L$70","v":0},{"$f":"'MA 1-10'!$M$70","v":"0%"}]
["MA 006",{"$f":"'MA 1-10'!$B$72","v":0},{"$f":"IF(Hintergrunddaten!$C$37=1,\"\",IF(Hintergrunddaten!$C$37=2,\"Medizin\",IF(Hintergrunddaten!$C$37=3,\"Pflege\",IF(Hintergrunddaten!$C$37=4,\"Hebammen\",\"nicht klinisches Personal\"))))","v":""},{"$f":"'MA 1-10'!$F$84","v":0},{"$f":"'MA 1-10'!$G$84","v":0},{"$f":"'MA 1-10'!$H$84","v":0},{"$f":"'MA 1-10'!$I$84","v":0},{"$f":"'MA 1-10'!$J$84","v":0},{"$f":"'MA 1-10'!$K$84","v":0},{"$f":"'MA 1-10'!$L$84","v":0},{"$f":"'MA 1-10'!$M$84","v":"0%"}]
["MA 007",{"$f":"'MA 1-10'!$B$86","v":0},{"$f":"IF(Hintergrunddaten!$C$44=1,\"\",IF(Hintergrunddaten!$C$44=2,\"Medizin\",IF(Hintergrunddaten!$C$44=3,\"Pflege\",IF(Hintergrunddaten!$C$44=4,\"Hebammen\",\"nicht klinisches Personal\"))))","v":""},{"$f":"'MA 1-10'!$F$98","v":0},{"$f":"'MA 1-10'!$G$98","v":0},{"$f":"'MA 1-10'!$H$98","v":0},{"$f":"'MA 1-10'!$I$98","v":0},{"$f":"'MA 1-10'!$J$98","v":0},{"$f":"'MA 1-10'!$K$98","v":0},{"$f":"'MA 1-10'!$L$98","v":0},{"$f":"'MA 1-10'!$M$98","v":"0%"}]
["MA 008",{"$f":"'MA 1-10'!$B$100","v":0},{"$f":"IF(Hintergrunddaten!$C$51=1,\"\",IF(Hintergrunddaten!$C$51=2,\"Medizin\",IF(Hintergrunddaten!$C$51=3,\"Pflege\",IF(Hintergrunddaten!$C$51=4,\"Hebammen\",\"nicht klinisches Personal\"))))","v":""},{"$f":"'MA 1-10'!$F$112","v":0},{"$f":"'MA 1-10'!$G$112","v":0},{"$f":"'MA 1-10'!$H$112","v":0},{"$f":"'MA 1-10'!$I$112","v":0},{"$f":"'MA 1-10'!$J$112","v":0},{"$f":"'MA 1-10'!$K$112","v":0},{"$f":"'MA 1-10'!$L$112","v":0},{"$f":"'MA 1-10'!$M$112","v":"0%"}]
["MA 009",{"$f":"'MA 1-10'!$B$114","v":0},{"$f":"IF(Hintergrunddaten!$C$58=1,\"\",IF(Hintergrunddaten!$C$58=2,\"Medizin\",IF(Hintergrunddaten!$C$58=3,\"Pflege\",IF(Hintergrunddaten!$C$58=4,\"Hebammen\",\"nicht klinisches Personal\"))))","v":""},{"$f":"'MA 1-10'!$F$126","v":0},{"$f":"'MA 1-10'!$G$126","v":0},{"$f":"'MA 1-10'!$H$126","v":0},{"$f":"'MA 1-10'!$I$126","v":0},{"$f":"'MA 1-10'!$J$126","v":0},{"$f":"'MA 1-10'!$K$126","v":0},{"$f":"'MA 1-10'!$L$126","v":0},{"$f":"'MA 1-10'!$M$126","v":"0%"}]
["MA 010",{"$f":"'MA 1-10'!$B$128","v":0},{"$f":"IF(Hintergrunddaten!$C$65=1,\"\",IF(Hintergrunddaten!$C$65=2,\"Medizin\",IF(Hintergrunddaten!$C$65=3,\"Pflege\",IF(Hintergrunddaten!$C$65=4,\"Hebammen\",\"nicht klinisches Personal\"))))","v":""},{"$f":"'MA 1-10'!$F$140","v":0},{"$f":"'MA 1-10'!$G$140","v":0},{"$f":"'MA 1-10'!$H$140","v":0},{"$f":"'MA 1-10'!$I$140","v":0},{"$f":"'MA 1-10'!$J$140","v":0},{"$f":"'MA 1-10'!$K$140","v":0},{"$f":"'MA 1-10'!$L$140","v":0},{"$f":"'MA 1-10'!$M$140","v":"0%"}]
["MA 011",{"$f":"'MA 11-20'!$B$2","v":0},{"$f":"IF(Hintergrunddaten!$G$2=1,\"\",IF(Hintergrunddaten!$G$2=2,\"Medizin\",IF(Hintergrunddaten!$G$2=3,\"Pflege\",IF(Hintergrunddaten!$G$2=4,\"Hebammen\",\"nicht klinisches Personal\"))))","v":""},{"$f":"'MA 11-20'!$F$14","v":0},{"$f":"'MA 11-20'!$G$14","v":0},{"$f":"'MA 11-20'!$H$14","v":0},{"$f":"'MA 11-20'!$I$14","v":0},{"$f":"'MA 11-20'!$J$14","v":0},{"$f":"'MA 11-20'!$K$14","v":0},{"$f":"'MA 11-20'!$L$14","v":0},{"$f":"'MA 11-20'!$M$14","v":"0%"}]
["MA 012",{"$f":"'MA 11-20'!$B$16","v":0},{"$f":"IF(Hintergrunddaten!$G$9=1,\"\",IF(Hintergrunddaten!$G$9=2,\"Medizin\",IF(Hintergrunddaten!$G$9=3,\"Pflege\",IF(Hintergrunddaten!$G$9=4,\"Hebammen\",\"nicht klinisches Personal\"))))","v":""},{"$f":"'MA 11-20'!$F$28","v":0},{"$f":"'MA 11-20'!$G$28","v":0},{"$f":"'MA 11-20'!$H$28","v":0},{"$f":"'MA 11-20'!$I$28","v":0},{"$f":"'MA 11-20'!$J$28","v":0},{"$f":"'MA 11-20'!$K$28","v":0},{"$f":"'MA 11-20'!$L$28","v":0},{"$f":"'MA 11-20'!$M$28","v":"0%"}]
["MA 013",{"$f":"'MA 11-20'!$B$30","v":0},{"$f":"IF(Hintergrunddaten!$G$16=1,\"\",IF(Hintergrunddaten!$G$16=2,\"Medizin\",IF(Hintergrunddaten!$G$16=3,\"Pflege\",IF(Hintergrunddaten!$G$16=4,\"Hebammen\",\"nicht klinisches Personal\"))))","v":""},{"$f":"'MA 11-20'!$F$42","v":0},{"$f":"'MA 11-20'!$G$42","v":0},{"$f":"'MA 11-20'!$H$42","v":0},{"$f":"'MA 11-20'!$I$42","v":0},{"$f":"'MA 11-20'!$J$42","v":0},{"$f":"'MA 11-20'!$K$42","v":0},{"$f":"'MA 11-20'!$L$42","v":0},{"$f":"'MA 11-20'!$M$42","v":"0%"}]
["MA 014",{"$f":"'MA 11-20'!$B$44","v":0},{"$f":"IF(Hintergrunddaten!$G$23=1,\"\",IF(Hintergrunddaten!$G$23=2,\"Medizin\",IF(Hintergrunddaten!$G$23=3,\"Pflege\",IF(Hintergrunddaten!$G$23=4,\"Hebammen\",\"nicht klinisches Personal\"))))","v":""},{"$f":"'MA 11-20'!$F$56","v":0},{"$f":"'MA 11-20'!$G$56","v":0},{"$f":"'MA 11-20'!$H$56","v":0},{"$f":"'MA 11-20'!$I$56","v":0},{"$f":"'MA 11-20'!$J$56","v":0},{"$f":"'MA 11-20'!$K$56","v":0},{"$f":"'MA 11-20'!$L$56","v":0},{"$f":"'MA 11-20'!$M$56","v":"0%"}]
["MA 015",{"$f":"'MA 11-20'!$B$58","v":0},{"$f":"IF(Hintergrunddaten!$G$30=1,\"\",IF(Hintergrunddaten!$G$30=2,\"Medizin\",IF(Hintergrunddaten!$G$30=3,\"Pflege\",IF(Hintergrunddaten!$G$30=4,\"Hebammen\",\"nicht klinisches Personal\"))))","v":""},{"$f":"'MA 11-20'!$F$70","v":0},{"$f":"'MA 11-20'!$G$70","v":0},{"$f":"'MA 11-20'!$H$70","v":0},{"$f":"'MA 11-20'!$I$70","v":0},{"$f":"'MA 11-20'!$J$70","v":0},{"$f":"'MA 11-20'!$K$70","v":0},{"$f":"'MA 11-20'!$L$70","v":0},{"$f":"'MA 11-20'!$M$70","v":"0%"}]
["MA 016",{"$f":"'MA 11-20'!$B$72","v":0},{"$f":"IF(Hintergrunddaten!$G$37=1,\"\",IF(Hintergrunddaten!$G$37=2,\"Medizin\",IF(Hintergrunddaten!$G$37=3,\"Pflege\",IF(Hintergrunddaten!$G$37=4,\"Hebammen\",\"nicht klinisches Personal\"))))","v":""},{"$f":"'MA 11-20'!$F$84","v":0},{"$f":"'MA 11-20'!$G$84","v":0},{"$f":"'MA 11-20'!$H$84","v":0},{"$f":"'MA 11-20'!$I$84","v":0},{"$f":"'MA 11-20'!$J$84","v":0},{"$f":"'MA 11-20'!$K$84","v":0},{"$f":"'MA 11-20'!$L$84","v":0},{"$f":"'MA 11-20'!$M84","v":"0%"}]
["MA 017",{"$f":"'MA 11-20'!$B$86","v":0},{"$f":"IF(Hintergrunddaten!$G$44=1,\"\",IF(Hintergrunddaten!$G$44=2,\"Medizin\",IF(Hintergrunddaten!$G$44=3,\"Pflege\",IF(Hintergrunddaten!$G$44=4,\"Hebammen\",\"nicht klinisches Personal\"))))","v":""},{"$f":"'MA 11-20'!$F$98","v":0},{"$f":"'MA 11-20'!$G$98","v":0},{"$f":"'MA 11-20'!$H$98","v":0},{"$f":"'MA 11-20'!$I$98","v":0},{"$f":"'MA 11-20'!$J$98","v":0},{"$f":"'MA 11-20'!$K$98","v":0},{"$f":"'MA 11-20'!$L$98","v":0},{"$f":"'MA 11-20'!$M$98","v":"0%"}]
["MA 018",{"$f":"'MA 11-20'!$B$100","v":0},{"$f":"IF(Hintergrunddaten!$G$51=1,\"\",IF(Hintergrunddaten!$G$51=2,\"Medizin\",IF(Hintergrunddaten!$G$51=3,\"Pflege\",IF(Hintergrunddaten!$G$51=4,\"Hebammen\",\"nicht klinisches Personal\"))))","v":""},{"$f":"'MA 11-20'!$F$112","v":0},{"$f":"'MA 11-20'!$G$112","v":0},{"$f":"'MA 11-20'!$H$112","v":0},{"$f":"'MA 11-20'!$I$112","v":0},{"$f":"'MA 11-20'!$J$112","v":0},{"$f":"'MA 11-20'!$K$112","v":0},{"$f":"'MA 11-20'!$L$112","v":0},{"$f":"'MA 11-20'!$M$112","v":"0%"}]
["MA 019",{"$f":"'MA 11-20'!$B$114","v":0},{"$f":"IF(Hintergrunddaten!$G$58=1,\"\",IF(Hintergrunddaten!$G$58=2,\"Medizin\",IF(Hintergrunddaten!$G$58=3,\"Pflege\",IF(Hintergrunddaten!$G$58=4,\"Hebammen\",\"nicht klinisches Personal\"))))","v":""},{"$f":"'MA 11-20'!$F$126","v":0},{"$f":"'MA 11-20'!$G$126","v":0},{"$f":"'MA 11-20'!$H$126","v":0},{"$f":"'MA 11-20'!$I$126","v":0},{"$f":"'MA 11-20'!$J$126","v":0},{"$f":"'MA 11-20'!$K$126","v":0},{"$f":"'MA 11-20'!$L$126","v":0},{"$f":"'MA 11-20'!$M$126","v":"0%"}]
["MA 020",{"$f":"'MA 11-20'!$B$128","v":0},{"$f":"IF(Hintergrunddaten!$G$65=1,\"\",IF(Hintergrunddaten!$G$65=2,\"Medizin\",IF(Hintergrunddaten!$G$65=3,\"Pflege\",IF(Hintergrunddaten!$G$65=4,\"Hebammen\",\"nicht klinisches Personal\"))))","v":""},{"$f":"'MA 11-20'!$F$140","v":0},{"$f":"'MA 11-20'!$G$140","v":0},{"$f":"'MA 11-20'!$H$140","v":0},{"$f":"'MA 11-20'!$I$140","v":0},{"$f":"'MA 11-20'!$J$140","v":0},{"$f":"'MA 11-20'!$K$140","v":0},{"$f":"'MA 11-20'!$L$140","v":0},{"$f":"'MA 11-20'!$M$140","v":"0%"}]
["MA 021",{"$f":"'MA 21-30'!$B$2","v":0},{"$f":"IF(Hintergrunddaten!$K$2=1,\"\",IF(Hintergrunddaten!$K$2=2,\"Medizin\",IF(Hintergrunddaten!$K$2=3,\"Pflege\",IF(Hintergrunddaten!$K$2=4,\"Hebammen\",\"nicht klinisches Personal\"))))","v":""},{"$f":"'MA 21-30'!$F$14","v":0},{"$f":"'MA 21-30'!$G$14","v":0},{"$f":"'MA 21-30'!$H$14","v":0},{"$f":"'MA 21-30'!$I$14","v":0},{"$f":"'MA 21-30'!$J$14","v":0},{"$f":"'MA 21-30'!$K$14","v":0},{"$f":"'MA 21-30'!$L$14","v":0},{"$f":"'MA 21-30'!$M$14","v":"0%"}]
["MA 022",{"$f":"'MA 21-30'!$B$16","v":0},{"$f":"IF(Hintergrunddaten!$K$9=1,\"\",IF(Hintergrunddaten!$K$9=2,\"Medizin\",IF(Hintergrunddaten!$K$9=3,\"Pflege\",IF(Hintergrunddaten!$K$9=4,\"Hebammen\",\"nicht klinisches Personal\"))))","v":""},{"$f":"'MA 21-30'!$F$28","v":0},{"$f":"'MA 21-30'!$G$28","v":0},{"$f":"'MA 21-30'!$H$28","v":0},{"$f":"'MA 21-30'!$I$28","v":0},{"$f":"'MA 21-30'!$J$28","v":0},{"$f":"'MA 21-30'!$K$28","v":0},{"$f":"'MA 21-30'!$L$28","v":0},{"$f":"'MA 21-30'!$M$28","v":"0%"}]
["MA 023",{"$f":"'MA 21-30'!$B$30","v":0},{"$f":"IF(Hintergrunddaten!$K$16=1,\"\",IF(Hintergrunddaten!$K$16=2,\"Medizin\",IF(Hintergrunddaten!$K$16=3,\"Pflege\",IF(Hintergrunddaten!$K$16=4,\"Hebammen\",\"nicht klinisches Personal\"))))","v":""},{"$f":"'MA 21-30'!$F$42","v":0},{"$f":"'MA 21-30'!$G$42","v":0},{"$f":"'MA 21-30'!$H$42","v":0},{"$f":"'MA 21-30'!$I$42","v":0},{"$f":"'MA 21-30'!$J$42","v":0},{"$f":"'MA 21-30'!$K$42","v":0},{"$f":"'MA 21-30'!$L$42","v":0},{"$f":"'MA 21-30'!$M$42","v":"0%"}]
["MA 024",{"$f":"'MA 21-30'!$B$44","v":0},{"$f":"IF(Hintergrunddaten!$K$23=1,\"\",IF(Hintergrunddaten!$K$23=2,\"Medizin\",IF(Hintergrunddaten!$K$23=3,\"Pflege\",IF(Hintergrunddaten!$K$23=4,\"Hebammen\",\"nicht klinisches Personal\"))))","v":""},{"$f":"'MA 21-30'!$F$56","v":0},{"$f":"'MA 21-30'!$G$56","v":0},{"$f":"'MA 21-30'!$H$56","v":0},{"$f":"'MA 21-30'!$I$56","v":0},{"$f":"'MA 21-30'!$J$56","v":0},{"$f":"'MA 21-30'!$K$56","v":0},{"$f":"'MA 21-30'!$L$56","v":0},{"$f":"'MA 21-30'!$M$56","v":"0%"}]
["MA 025",{"$f":"'MA 21-30'!$B$58","v":0},{"$f":"IF(Hintergrunddaten!$K$30=1,\"\",IF(Hintergrunddaten!$K$30=2,\"Medizin\",IF(Hintergrunddaten!$K$30=3,\"Pflege\",IF(Hintergrunddaten!$K$30=4,\"Hebammen\",\"nicht klinisches Personal\"))))","v":""},{"$f":"'MA 21-30'!$F$70","v":0},{"$f":"'MA 21-30'!$G$70","v":0},{"$f":"'MA 21-30'!$H$70","v":0},{"$f":"'MA 21-30'!$I$70","v":0},{"$f":"'MA 21-30'!$J$70","v":0},{"$f":"'MA 21-30'!$K$70","v":0},{"$f":"'MA 21-30'!$L$70","v":0},{"$f":"'MA 21-30'!$M$70","v":"0%"}]
["MA 026",{"$f":"'MA 21-30'!$B$72","v":0},{"$f":"IF(Hintergrunddaten!$K$37=1,\"\",IF(Hintergrunddaten!$K$37=2,\"Medizin\",IF(Hintergrunddaten!$K$37=3,\"Pflege\",IF(Hintergrunddaten!$K$37=4,\"Hebammen\",\"nicht klinisches Personal\"))))","v":""},{"$f":"'MA 21-30'!$F$84","v":0},{"$f":"'MA 21-30'!$G$84","v":0},{"$f":"'MA 21-30'!$H$84","v":0},{"$f":"'MA 21-30'!$I$84","v":0},{"$f":"'MA 21-30'!$J$84","v":0},{"$f":"'MA 21-30'!$K$84","v":0},{"$f":"'MA 21-30'!$L$84","v":0},{"$f":"'MA 21-30'!$M$84","v":"0%"}]
["MA 027",{"$f":"'MA 21-30'!$B$86","v":0},{"$f":"IF(Hintergrunddaten!$K$44=1,\"\",IF(Hintergrunddaten!$K$44=2,\"Medizin\",IF(Hintergrunddaten!$K$44=3,\"Pflege\",IF(Hintergrunddaten!$K$44=4,\"Hebammen\",\"nicht klinisches Personal\"))))","v":""},{"$f":"'MA 21-30'!$F$98","v":0},{"$f":"'MA 21-30'!$G$98","v":0},{"$f":"'MA 21-30'!$H$98","v":0},{"$f":"'MA 21-30'!$I$98","v":0},{"$f":"'MA 21-30'!$J$98","v":0},{"$f":"'MA 21-30'!$K$98","v":0},{"$f":"'MA 21-30'!$L$98","v":0},{"$f":"'MA 21-30'!$M$98","v":"0%"}]
["MA 028",{"$f":"'MA 21-30'!$B$100","v":0},{"$f":"IF(Hintergrunddaten!$K$51=1,\"\",IF(Hintergrunddaten!$K$51=2,\"Medizin\",IF(Hintergrunddaten!$K$51=3,\"Pflege\",IF(Hintergrunddaten!$K$51=4,\"Hebammen\",\"nicht klinisches Personal\"))))","v":""},{"$f":"'MA 21-30'!$F$112","v":0},{"$f":"'MA 21-30'!$G$112","v":0},{"$f":"'MA 21-30'!$H$112","v":0},{"$f":"'MA 21-30'!$I$112","v":0},{"$f":"'MA 21-30'!$J$112","v":0},{"$f":"'MA 21-30'!$K$112","v":0},{"$f":"'MA 21-30'!$L$112","v":0},{"$f":"'MA 21-30'!$M$112","v":"0%"}]
["MA 029",{"$f":"'MA 21-30'!$B$114","v":0},{"$f":"IF(Hintergrunddaten!$K$58=1,\"\",IF(Hintergrunddaten!$K$58=2,\"Medizin\",IF(Hintergrunddaten!$K$58=3,\"Pflege\",IF(Hintergrunddaten!$K$58=4,\"Hebammen\",\"nicht klinisches Personal\"))))","v":""},{"$f":"'MA 21-30'!$F$126","v":0},{"$f":"'MA 21-30'!$G$126","v":0},{"$f":"'MA 21-30'!$H$126","v":0},{"$f":"'MA 21-30'!$I$126","v":0},{"$f":"'MA 21-30'!$J$126","v":0},{"$f":"'MA 21-30'!$K$126","v":0},{"$f":"'MA 21-30'!$L$126","v":0},{"$f":"'MA 21-30'!$M$126","v":"0%"}]
["MA 030",{"$f":"'MA 21-30'!$B$128","v":0},{"$f":"IF(Hintergrunddaten!$K$65=1,\"\",IF(Hintergrunddaten!$K$65=2,\"Medizin\",IF(Hintergrunddaten!$K$65=3,\"Pflege\",IF(Hintergrunddaten!$K$65=4,\"Hebammen\",\"nicht klinisches Personal\"))))","v":""},{"$f":"'MA 21-30'!$F$140","v":0},{"$f":"'MA 21-30'!$G$140","v":0},{"$f":"'MA 21-30'!$H$140","v":0},{"$f":"'MA 21-30'!$I$140","v":0},{"$f":"'MA 21-30'!$J$140","v":0},{"$f":"'MA 21-30'!$K$140","v":0},{"$f":"'MA 21-30'!$L$140","v":0},{"$f":"'MA 21-30'!$M$140","v":"0%"}]
["MA 031",{"$f":"'MA 31-40'!$B$2","v":0},{"$f":"IF(Hintergrunddaten!$O$2=1,\"\",IF(Hintergrunddaten!$O$2=2,\"Medizin\",IF(Hintergrunddaten!$O$2=3,\"Pflege\",IF(Hintergrunddaten!$O$2=4,\"Hebammen\",\"nicht klinisches Personal\"))))","v":""},{"$f":"'MA 31-40'!$F$14","v":0},{"$f":"'MA 31-40'!$G$14","v":0},{"$f":"'MA 31-40'!$H$14","v":0},{"$f":"'MA 31-40'!$I$14","v":0},{"$f":"'MA 31-40'!$J$14","v":0},{"$f":"'MA 31-40'!$K$14","v":0},{"$f":"'MA 31-40'!$L$14","v":0},{"$f":"'MA 31-40'!$M$14","v":"0%"}]
["MA 032",{"$f":"'MA 31-40'!$B$16","v":0},{"$f":"IF(Hintergrunddaten!$O$9=1,\"\",IF(Hintergrunddaten!$O$9=2,\"Medizin\",IF(Hintergrunddaten!$O$9=3,\"Pflege\",IF(Hintergrunddaten!$O$9=4,\"Hebammen\",\"nicht klinisches Personal\"))))","v":""},{"$f":"'MA 31-40'!$F$28","v":0},{"$f":"'MA 31-40'!$G$28","v":0},{"$f":"'MA 31-40'!$H$28","v":0},{"$f":"'MA 31-40'!$I$28","v":0},{"$f":"'MA 31-40'!$J$28","v":0},{"$f":"'MA 31-40'!$K$28","v":0},{"$f":"'MA 31-40'!$L$28","v":0},{"$f":"'MA 31-40'!$M$28","v":"0%"}]
["MA 033",{"$f":"'MA 31-40'!$B$30","v":0},{"$f":"IF(Hintergrunddaten!$O$16=1,\"\",IF(Hintergrunddaten!$O$16=2,\"Medizin\",IF(Hintergrunddaten!$O$16=3,\"Pflege\",IF(Hintergrunddaten!$O$16=4,\"Hebammen\",\"nicht klinisches Personal\"))))","v":""},{"$f":"'MA 31-40'!$F$42","v":0},{"$f":"'MA 31-40'!$G$42","v":0},{"$f":"'MA 31-40'!$H$42","v":0},{"$f":"'MA 31-40'!$I$42","v":0},{"$f":"'MA 31-40'!$J$42","v":0},{"$f":"'MA 31-40'!$K$42","v":0},{"$f":"'MA 31-40'!$L$42","v":0},{"$f":"'MA 31-40'!$M$42","v":"0%"}]
["MA 034",{"$f":"'MA 31-40'!$B$44","v":0},{"$f":"IF(Hintergrunddaten!$O$23=1,\"\",IF(Hintergrunddaten!$O$23=2,\"Medizin\",IF(Hintergrunddaten!$O$23=3,\"Pflege\",IF(Hintergrunddaten!$O$23=4,\"Hebammen\",\"nicht klinisches Personal\"))))","v":""},{"$f":"'MA 31-40'!$F$56","v":0},{"$f":"'MA 31-40'!$G$56","v":0},{"$f":"'MA 31-40'!$H$56","v":0},{"$f":"'MA 31-40'!$I$56","v":0},{"$f":"'MA 31-40'!$J$56","v":0},{"$f":"'MA 31-40'!$K$56","v":0},{"$f":"'MA 31-40'!$L$56","v":0},{"$f":"'MA 31-40'!$M$56","v":"0%"}]
["MA 035",{"$f":"'MA 31-40'!$B$58","v":0},{"$f":"IF(Hintergrunddaten!$O$30=1,\"\",IF(Hintergrunddaten!$O$30=2,\"Medizin\",IF(Hintergrunddaten!$O$30=3,\"Pflege\",IF(Hintergrunddaten!$O$30=4,\"Hebammen\",\"nicht klinisches Personal\"))))","v":""},{"$f":"'MA 31-40'!$F$70","v":0},{"$f":"'MA 31-40'!$G$70","v":0},{"$f":"'MA 31-40'!$H$70","v":0},{"$f":"'MA 31-40'!$I$70","v":0},{"$f":"'MA 31-40'!$J$70","v":0},{"$f":"'MA 31-40'!$K$70","v":0},{"$f":"'MA 31-40'!$L$70","v":0},{"$f":"'MA 31-40'!$M$70","v":"0%"}]
["MA 036",{"$f":"'MA 31-40'!$B$72","v":0},{"$f":"IF(Hintergrunddaten!$O$37=1,\"\",IF(Hintergrunddaten!$O$37=2,\"Medizin\",IF(Hintergrunddaten!$O$37=3,\"Pflege\",IF(Hintergrunddaten!$O$37=4,\"Hebammen\",\"nicht klinisches Personal\"))))","v":""},{"$f":"'MA 31-40'!$F$84","v":0},{"$f":"'MA 31-40'!$G$84","v":0},{"$f":"'MA 31-40'!$H$84","v":0},{"$f":"'MA 31-40'!$I$84","v":0},{"$f":"'MA 31-40'!$J$84","v":0},{"$f":"'MA 31-40'!$K$84","v":0},{"$f":"'MA 31-40'!$L$84","v":0},{"$f":"'MA 31-40'!$M$84","v":"0%"}]
["MA 037",{"$f":"'MA 31-40'!$B$86","v":0},{"$f":"IF(Hintergrunddaten!$O$44=1,\"\",IF(Hintergrunddaten!$O$44=2,\"Medizin\",IF(Hintergrunddaten!$O$44=3,\"Pflege\",IF(Hintergrunddaten!$O$44=4,\"Hebammen\",\"nicht klinisches Personal\"))))","v":""},{"$f":"'MA 31-40'!$F$98","v":0},{"$f":"'MA 31-40'!$G$98","v":0},{"$f":"'MA 31-40'!$H$98","v":0},{"$f":"'MA 31-40'!$I$98","v":0},{"$f":"'MA 31-40'!$J$98","v":0},{"$f":"'MA 31-40'!$K$98","v":0},{"$f":"'MA 31-40'!$L$98","v":0},{"$f":"'MA 31-40'!$M$98","v":"0%"}]
["MA 038",{"$f":"'MA 31-40'!$B$100","v":0},{"$f":"IF(Hintergrunddaten!$O$51=1,\"\",IF(Hintergrunddaten!$O$51=2,\"Medizin\",IF(Hintergrunddaten!$O$51=3,\"Pflege\",IF(Hintergrunddaten!$O$51=4,\"Hebammen\",\"nicht klinisches Personal\"))))","v":""},{"$f":"'MA 31-40'!$F$112","v":0},{"$f":"'MA 31-40'!$G$112","v":0},{"$f":"'MA 31-40'!$H$112","v":0},{"$f":"'MA 31-40'!$I$112","v":0},{"$f":"'MA 31-40'!$J$112","v":0},{"$f":"'MA 31-40'!$K$112","v":0},{"$f":"'MA 31-40'!$L$112","v":0},{"$f":"'MA 31-40'!$M$112","v":"0%"}]
["MA 039",{"$f":"'MA 31-40'!$B$114","v":0},{"$f":"IF(Hintergrunddaten!$O$58=1,\"\",IF(Hintergrunddaten!$O$58=2,\"Medizin\",IF(Hintergrunddaten!$O$58=3,\"Pflege\",IF(Hintergrunddaten!$O$58=4,\"Hebammen\",\"nicht klinisches Personal\"))))","v":""},{"$f":"'MA 31-40'!$F$126","v":0},{"$f":"'MA 31-40'!$G$126","v":0},{"$f":"'MA 31-40'!$H$126","v":0},{"$f":"'MA 31-40'!$I$126","v":0},{"$f":"'MA 31-40'!$J$126","v":0},{"$f":"'MA 31-40'!$K$126","v":0},{"$f":"'MA 31-40'!$L$126","v":0},{"$f":"'MA 31-40'!$M$126","v":"0%"}]
["MA 040",{"$f":"'MA 31-40'!$B$128","v":0},{"$f":"IF(Hintergrunddaten!$O$65=1,\"\",IF(Hintergrunddaten!$O$65=2,\"Medizin\",IF(Hintergrunddaten!$O$65=3,\"Pflege\",IF(Hintergrunddaten!$O$65=4,\"Hebammen\",\"nicht klinisches Personal\"))))","v":""},{"$f":"'MA 31-40'!$F$140","v":0},{"$f":"'MA 31-40'!$G$140","v":0},{"$f":"'MA 31-40'!$H$140","v":0},{"$f":"'MA 31-40'!$I$140","v":0},{"$f":"'MA 31-40'!$J$140","v":0},{"$f":"'MA 31-40'!$K$140","v":0},{"$f":"'MA 31-40'!$L$140","v":0},{"$f":"'MA 31-40'!$M$140","v":"0%"}]
["MA 041",{"$f":"'MA 41-50'!$B$2","v":0},{"$f":"IF(Hintergrunddaten!$S$2=1,\"\",IF(Hintergrunddaten!$S$2=2,\"Medizin\",IF(Hintergrunddaten!$S$2=3,\"Pflege\",IF(Hintergrunddaten!$S$2=4,\"Hebammen\",\"nicht klinisches Personal\"))))","v":""},{"$f":"'MA 41-50'!$F$14","v":0},{"$f":"'MA 41-50'!$G$14","v":0},{"$f":"'MA 41-50'!$H$14","v":0},{"$f":"'MA 41-50'!$I$14","v":0},{"$f":"'MA 41-50'!$J$14","v":0},{"$f":"'MA 41-50'!$K$14","v":0},{"$f":"'MA 41-50'!$L$14","v":0},{"$f":"'MA 41-50'!$M$14","v":"0%"}]
["MA 042",{"$f":"'MA 41-50'!$B$16","v":0},{"$f":"IF(Hintergrunddaten!$S$9=1,\"\",IF(Hintergrunddaten!$S$9=2,\"Medizin\",IF(Hintergrunddaten!$S$9=3,\"Pflege\",IF(Hintergrunddaten!$S$9=4,\"Hebammen\",\"nicht klinisches Personal\"))))","v":""},{"$f":"'MA 41-50'!$F$28","v":0},{"$f":"'MA 41-50'!$G$28","v":0},{"$f":"'MA 41-50'!$H$28","v":0},{"$f":"'MA 41-50'!$I$28","v":0},{"$f":"'MA 41-50'!$J$28","v":0},{"$f":"'MA 41-50'!$K$28","v":0},{"$f":"'MA 41-50'!$L$28","v":0},{"$f":"'MA 41-50'!$M$28","v":"0%"}]
["MA 043",{"$f":"'MA 41-50'!$B$30","v":0},{"$f":"IF(Hintergrunddaten!$S$16=1,\"\",IF(Hintergrunddaten!$S$16=2,\"Medizin\",IF(Hintergrunddaten!$S$16=3,\"Pflege\",IF(Hintergrunddaten!$S$16=4,\"Hebammen\",\"nicht klinisches Personal\"))))","v":""},{"$f":"'MA 41-50'!$F$42","v":0},{"$f":"'MA 41-50'!$G$42","v":0},{"$f":"'MA 41-50'!$H$42","v":0},{"$f":"'MA 41-50'!$I$42","v":0},{"$f":"'MA 41-50'!$J$42","v":0},{"$f":"'MA 41-50'!$K$42","v":0},{"$f":"'MA 41-50'!$L$42","v":0},{"$f":"'MA 41-50'!$M$42","v":"0%"}]
["MA 044",{"$f":"'MA 41-50'!$B$44","v":0},{"$f":"IF(Hintergrunddaten!$S$23=1,\"\",IF(Hintergrunddaten!$S$23=2,\"Medizin\",IF(Hintergrunddaten!$S$23=3,\"Pflege\",IF(Hintergrunddaten!$S$23=4,\"Hebammen\",\"nicht klinisches Personal\"))))","v":""},{"$f":"'MA 41-50'!$F$56","v":0},{"$f":"'MA 41-50'!$G$56","v":0},{"$f":"'MA 41-50'!$H$56","v":0},{"$f":"'MA 41-50'!$I$56","v":0},{"$f":"'MA 41-50'!$J$56","v":0},{"$f":"'MA 41-50'!$K$56","v":0},{"$f":"'MA 41-50'!$L$56","v":0},{"$f":"'MA 41-50'!$M$56","v":"0%"}]
["MA 045",{"$f":"'MA 41-50'!$B$58","v":0},{"$f":"IF(Hintergrunddaten!$S$30=1,\"\",IF(Hintergrunddaten!$S$30=2,\"Medizin\",IF(Hintergrunddaten!$S$30=3,\"Pflege\",IF(Hintergrunddaten!$S$30=4,\"Hebammen\",\"nicht klinisches Personal\"))))","v":""},{"$f":"'MA 41-50'!$F$70","v":0},{"$f":"'MA 41-50'!$G$70","v":0},{"$f":"'MA 41-50'!$H$70","v":0},{"$f":"'MA 41-50'!$I$70","v":0},{"$f":"'MA 41-50'!$J$70","v":0},{"$f":"'MA 41-50'!$K$70","v":0},{"$f":"'MA 41-50'!$L$70","v":0},{"$f":"'MA 41-50'!$M$70","v":"0%"}]
["MA 046",{"$f":"'MA 41-50'!$B$72","v":0},{"$f":"IF(Hintergrunddaten!$S$37=1,\"\",IF(Hintergrunddaten!$S$37=2,\"Medizin\",IF(Hintergrunddaten!$S$37=3,\"Pflege\",IF(Hintergrunddaten!$S$37=4,\"Hebammen\",\"nicht klinisches Personal\"))))","v":""},{"$f":"'MA 41-50'!$F$84","v":0},{"$f":"'MA 41-50'!$G$84","v":0},{"$f":"'MA 41-50'!$H$84","v":0},{"$f":"'MA 41-50'!$I$84","v":0},{"$f":"'MA 41-50'!$J$84","v":0},{"$f":"'MA 41-50'!$K$84","v":0},{"$f":"'MA 41-50'!$L$84","v":0},{"$f":"'MA 41-50'!$M$84","v":"0%"}]
["MA 047",{"$f":"'MA 41-50'!$B$86","v":0},{"$f":"IF(Hintergrunddaten!$S$44=1,\"\",IF(Hintergrunddaten!$S$44=2,\"Medizin\",IF(Hintergrunddaten!$S$44=3,\"Pflege\",IF(Hintergrunddaten!$S$44=4,\"Hebammen\",\"nicht klinisches Personal\"))))","v":""},{"$f":"'MA 41-50'!$F$98","v":0},{"$f":"'MA 41-50'!$G$98","v":0},{"$f":"'MA 41-50'!$H$98","v":0},{"$f":"'MA 41-50'!$I$98","v":0},{"$f":"'MA 41-50'!$J$98","v":0},{"$f":"'MA 41-50'!$K$98","v":0},{"$f":"'MA 41-50'!$L$98","v":0},{"$f":"'MA 41-50'!$M$98","v":"0%"}]
["MA 048",{"$f":"'MA 41-50'!$B$100","v":0},{"$f":"IF(Hintergrunddaten!$S$51=1,\"\",IF(Hintergrunddaten!$S$51=2,\"Medizin\",IF(Hintergrunddaten!$S$51=3,\"Pflege\",IF(Hintergrunddaten!$S$51=4,\"Hebammen\",\"nicht klinisches Personal\"))))","v":""},{"$f":"'MA 41-50'!$F$112","v":0},{"$f":"'MA 41-50'!$G$112","v":0},{"$f":"'MA 41-50'!$H$112","v":0},{"$f":"'MA 41-50'!$I$112","v":0},{"$f":"'MA 41-50'!$J$112","v":0},{"$f":"'MA 41-50'!$K$112","v":0},{"$f":"'MA 41-50'!$L$112","v":0},{"$f":"'MA 41-50'!$M$112","v":"0%"}]
["MA 049",{"$f":"'MA 41-50'!$B$114","v":0},{"$f":"IF(Hintergrunddaten!$S$58=1,\"\",IF(Hintergrunddaten!$S$58=2,\"Medizin\",IF(Hintergrunddaten!$S$58=3,\"Pflege\",IF(Hintergrunddaten!$S$58=4,\"Hebammen\",\"nicht klinisches Personal\"))))","v":""},{"$f":"'MA 41-50'!$F$126","v":0},{"$f":"'MA 41-50'!$G$126","v":0},{"$f":"'MA 41-50'!$H$126","v":0},{"$f":"'MA 41-50'!$I$126","v":0},{"$f":"'MA 41-50'!$J$126","v":0},{"$f":"'MA 41-50'!$K$126","v":0},{"$f":"'MA 41-50'!$L$126","v":0},{"$f":"'MA 41-50'!$M$126","v":"0%"}]
["MA 050",{"$f":"'MA 41-50'!$B$128","v":0},{"$f":"IF(Hintergrunddaten!$S$65=1,\"\",IF(Hintergrunddaten!$S$65=2,\"Medizin\",IF(Hintergrunddaten!$S$65=3,\"Pflege\",IF(Hintergrunddaten!$S$65=4,\"Hebammen\",\"nicht klinisches Personal\"))))","v":""},{"$f":"'MA 41-50'!$F$140","v":0},{"$f":"'MA 41-50'!$G$140","v":0},{"$f":"'MA 41-50'!$H$140","v":0},{"$f":"'MA 41-50'!$I$140","v":0},{"$f":"'MA 41-50'!$J$140","v":0},{"$f":"'MA 41-50'!$K$140","v":0},{"$f":"'MA 41-50'!$L$140","v":0},{"$f":"'MA 41-50'!$M$140","v":"0%"}]
["MA 051",{"$f":"'MA 51-60'!$B$2","v":0},{"$f":"IF(Hintergrunddaten!$W$2=1,\"\",IF(Hintergrunddaten!$W$2=2,\"Medizin\",IF(Hintergrunddaten!$W$2=3,\"Pflege\",IF(Hintergrunddaten!$W$2=4,\"Hebammen\",\"nicht klinisches Personal\"))))","v":""},{"$f":"'MA 51-60'!$F$14","v":0},{"$f":"'MA 51-60'!$G$14","v":0},{"$f":"'MA 51-60'!$H$14","v":0},{"$f":"'MA 51-60'!$I$14","v":0},{"$f":"'MA 51-60'!$J$14","v":0},{"$f":"'MA 51-60'!$K$14","v":0},{"$f":"'MA 51-60'!$L$14","v":0},{"$f":"'MA 51-60'!$M$14","v":"0%"}]
["MA 052",{"$f":"'MA 51-60'!$B$16","v":0},{"$f":"IF(Hintergrunddaten!$W$9=1,\"\",IF(Hintergrunddaten!$W$9=2,\"Medizin\",IF(Hintergrunddaten!$W$9=3,\"Pflege\",IF(Hintergrunddaten!$W$9=4,\"Hebammen\",\"nicht klinisches Personal\"))))","v":""},{"$f":"'MA 51-60'!$F$28","v":0},{"$f":"'MA 51-60'!$G$28","v":0},{"$f":"'MA 51-60'!$H$28","v":0},{"$f":"'MA 51-60'!$I$28","v":0},{"$f":"'MA 51-60'!$J$28","v":0},{"$f":"'MA 51-60'!$K$28","v":0},{"$f":"'MA 51-60'!$L$28","v":0},{"$f":"'MA 51-60'!$M$28","v":"0%"}]
["MA 053",{"$f":"'MA 51-60'!$B$30","v":0},{"$f":"IF(Hintergrunddaten!$W$16=1,\"\",IF(Hintergrunddaten!$W$16=2,\"Medizin\",IF(Hintergrunddaten!$W$16=3,\"Pflege\",IF(Hintergrunddaten!$W$16=4,\"Hebammen\",\"nicht klinisches Personal\"))))","v":""},{"$f":"'MA 51-60'!$F$42","v":0},{"$f":"'MA 51-60'!$G$42","v":0},{"$f":"'MA 51-60'!$H$42","v":0},{"$f":"'MA 51-60'!$I$42","v":0},{"$f":"'MA 51-60'!$J$42","v":0},{"$f":"'MA 51-60'!$K$42","v":0},{"$f":"'MA 51-60'!$L$42","v":0},{"$f":"'MA 51-60'!$M$42","v":"0%"}]
["MA 054",{"$f":"'MA 51-60'!$B$44","v":0},{"$f":"IF(Hintergrunddaten!$W$23=1,\"\",IF(Hintergrunddaten!$W$23=2,\"Medizin\",IF(Hintergrunddaten!$W$23=3,\"Pflege\",IF(Hintergrunddaten!$W$23=4,\"Hebammen\",\"nicht klinisches Personal\"))))","v":""},{"$f":"'MA 51-60'!$F$56","v":0},{"$f":"'MA 51-60'!$G$56","v":0},{"$f":"'MA 51-60'!$H$56","v":0},{"$f":"'MA 51-60'!$I$56","v":0},{"$f":"'MA 51-60'!$J$56","v":0},{"$f":"'MA 51-60'!$K$56","v":0},{"$f":"'MA 51-60'!$L$56","v":0},{"$f":"'MA 51-60'!$M$56","v":"0%"}]
["MA 055",{"$f":"'MA 51-60'!$B$58","v":0},{"$f":"IF(Hintergrunddaten!$W$30=1,\"\",IF(Hintergrunddaten!$W$30=2,\"Medizin\",IF(Hintergrunddaten!$W$30=3,\"Pflege\",IF(Hintergrunddaten!$W$30=4,\"Hebammen\",\"nicht klinisches Personal\"))))","v":""},{"$f":"'MA 51-60'!$F$70","v":0},{"$f":"'MA 51-60'!$G$70","v":0},{"$f":"'MA 51-60'!$H$70","v":0},{"$f":"'MA 51-60'!$I$70","v":0},{"$f":"'MA 51-60'!$J$70","v":0},{"$f":"'MA 51-60'!$K$70","v":0},{"$f":"'MA 51-60'!$L$70","v":0},{"$f":"'MA 51-60'!$M$70","v":"0%"}]
["MA 056",{"$f":"'MA 51-60'!$B$72","v":0},{"$f":"IF(Hintergrunddaten!$W$37=1,\"\",IF(Hintergrunddaten!$W$37=2,\"Medizin\",IF(Hintergrunddaten!$W$37=3,\"Pflege\",IF(Hintergrunddaten!$W$37=4,\"Hebammen\",\"nicht klinisches Personal\"))))","v":""},{"$f":"'MA 51-60'!$F$84","v":0},{"$f":"'MA 51-60'!$G$84","v":0},{"$f":"'MA 51-60'!$H$84","v":0},{"$f":"'MA 51-60'!$I$84","v":0},{"$f":"'MA 51-60'!$J$84","v":0},{"$f":"'MA 51-60'!$K$84","v":0},{"$f":"'MA 51-60'!$L$84","v":0},{"$f":"'MA 51-60'!$M$84","v":"0%"}]
["MA 057",{"$f":"'MA 51-60'!$B$86","v":0},{"$f":"IF(Hintergrunddaten!$W$44=1,\"\",IF(Hintergrunddaten!$W$44=2,\"Medizin\",IF(Hintergrunddaten!$W$44=3,\"Pflege\",IF(Hintergrunddaten!$W$44=4,\"Hebammen\",\"nicht klinisches Personal\"))))","v":""},{"$f":"'MA 51-60'!$F$98","v":0},{"$f":"'MA 51-60'!$G$98","v":0},{"$f":"'MA 51-60'!$H$98","v":0},{"$f":"'MA 51-60'!$I$98","v":0},{"$f":"'MA 51-60'!$J$98","v":0},{"$f":"'MA 51-60'!$K$98","v":0},{"$f":"'MA 51-60'!$L$98","v":0},{"$f":"'MA 51-60'!$M$98","v":"0%"}]
["MA 058",{"$f":"'MA 51-60'!$B$100","v":0},{"$f":"IF(Hintergrunddaten!$W$51=1,\"\",IF(Hintergrunddaten!$W$51=2,\"Medizin\",IF(Hintergrunddaten!$W$51=3,\"Pflege\",IF(Hintergrunddaten!$W$51=4,\"Hebammen\",\"nicht klinisches Personal\"))))","v":""},{"$f":"'MA 51-60'!$F$112","v":0},{"$f":"'MA 51-60'!$G$112","v":0},{"$f":"'MA 51-60'!$H$112","v":0},{"$f":"'MA 51-60'!$I$112","v":0},{"$f":"'MA 51-60'!$J$112","v":0},{"$f":"'MA 51-60'!$K$112","v":0},{"$f":"'MA 51-60'!$L$112","v":0},{"$f":"'MA 51-60'!$M$112","v":"0%"}]
["MA 059",{"$f":"'MA 51-60'!$B$114","v":0},{"$f":"IF(Hintergrunddaten!$W$58=1,\"\",IF(Hintergrunddaten!$W$58=2,\"Medizin\",IF(Hintergrunddaten!$W$58=3,\"Pflege\",IF(Hintergrunddaten!$W$58=4,\"Hebammen\",\"nicht klinisches Personal\"))))","v":""},{"$f":"'MA 51-60'!$F$126","v":0},{"$f":"'MA 51-60'!$G$126","v":0},{"$f":"'MA 51-60'!$H126","v":0},{"$f":"'MA 51-60'!$I$126","v":0},{"$f":"'MA 51-60'!$J$126","v":0},{"$f":"'MA 51-60'!$K$126","v":0},{"$f":"'MA 51-60'!$L$126","v":0},{"$f":"'MA 51-60'!$M$126","v":"0%"}]
["MA 060",{"$f":"'MA 51-60'!$B$128","v":0},{"$f":"IF(Hintergrunddaten!$W$65=1,\"\",IF(Hintergrunddaten!$W$65=2,\"Medizin\",IF(Hintergrunddaten!$W$65=3,\"Pflege\",IF(Hintergrunddaten!$W$65=4,\"Hebammen\",\"nicht klinisches Personal\"))))","v":""},{"$f":"'MA 51-60'!$F$140","v":0},{"$f":"'MA 51-60'!$G$140","v":0},{"$f":"'MA 51-60'!$H$140","v":0},{"$f":"'MA 51-60'!$I$140","v":0},{"$f":"'MA 51-60'!$J$140","v":0},{"$f":"'MA 51-60'!$K$140","v":0},{"$f":"'MA 51-60'!$L$140","v":0},{"$f":"'MA 51-60'!$M$140","v":"0%"}]
["MA 061",{"$f":"'MA 61-70'!$B$2","v":0},{"$f":"IF(Hintergrunddaten!$AA$2=1,\"\",IF(Hintergrunddaten!$AA$2=2,\"Medizin\",IF(Hintergrunddaten!$AA$2=3,\"Pflege\",IF(Hintergrunddaten!$AA$2=4,\"Hebammen\",\"nicht klinisches Personal\"))))","v":""},{"$f":"'MA 61-70'!$F$14","v":0},{"$f":"'MA 61-70'!$G$14","v":0},{"$f":"'MA 61-70'!$H$14","v":0},{"$f":"'MA 61-70'!$I$14","v":0},{"$f":"'MA 61-70'!$J$14","v":0},{"$f":"'MA 61-70'!$K$14","v":0},{"$f":"'MA 61-70'!$L$14","v":0},{"$f":"'MA 61-70'!$M$14","v":"0%"}]
["MA 062",{"$f":"'MA 61-70'!$B$16","v":0},{"$f":"IF(Hintergrunddaten!$AA$9=1,\"\",IF(Hintergrunddaten!$AA$9=2,\"Medizin\",IF(Hintergrunddaten!$AA$9=3,\"Pflege\",IF(Hintergrunddaten!$AA$9=4,\"Hebammen\",\"nicht klinisches Personal\"))))","v":""},{"$f":"'MA 61-70'!$F$28","v":0},{"$f":"'MA 61-70'!$G$28","v":0},{"$f":"'MA 61-70'!$H$28","v":0},{"$f":"'MA 61-70'!$I$28","v":0},{"$f":"'MA 61-70'!$J$28","v":0},{"$f":"'MA 61-70'!$K$28","v":0},{"$f":"'MA 61-70'!$L$28","v":0},{"$f":"'MA 61-70'!$M$28","v":"0%"}]
["MA 063",{"$f":"'MA 61-70'!$B$30","v":0},{"$f":"IF(Hintergrunddaten!$AA$16=1,\"\",IF(Hintergrunddaten!$AA$16=2,\"Medizin\",IF(Hintergrunddaten!$AA$16=3,\"Pflege\",IF(Hintergrunddaten!$AA$16=4,\"Hebammen\",\"nicht klinisches Personal\"))))","v":""},{"$f":"'MA 61-70'!$F$42","v":0},{"$f":"'MA 61-70'!$G$42","v":0},{"$f":"'MA 61-70'!$H$42","v":0},{"$f":"'MA 61-70'!$I$42","v":0},{"$f":"'MA 61-70'!$J$42","v":0},{"$f":"'MA 61-70'!$K$42","v":0},{"$f":"'MA 61-70'!$L$42","v":0},{"$f":"'MA 61-70'!$M$42","v":"0%"}]
["MA 064",{"$f":"'MA 61-70'!$B$44","v":0},{"$f":"IF(Hintergrunddaten!$AA$23=1,\"\",IF(Hintergrunddaten!$AA$23=2,\"Medizin\",IF(Hintergrunddaten!$AA$23=3,\"Pflege\",IF(Hintergrunddaten!$AA$23=4,\"Hebammen\",\"nicht klinisches Personal\"))))","v":""},{"$f":"'MA 61-70'!$F$56","v":0},{"$f":"'MA 61-70'!$G$56","v":0},{"$f":"'MA 61-70'!$H$56","v":0},{"$f":"'MA 61-70'!$I$56","v":0},{"$f":"'MA 61-70'!$J$56","v":0},{"$f":"'MA 61-70'!$K$56","v":0},{"$f":"'MA 61-70'!$L$56","v":0},{"$f":"'MA 61-70'!$M$56","v":"0%"}]
["MA 065",{"$f":"'MA 61-70'!$B$58","v":0},{"$f":"IF(Hintergrunddaten!$AA$30=1,\"\",IF(Hintergrunddaten!$AA$30=2,\"Medizin\",IF(Hintergrunddaten!$AA$30=3,\"Pflege\",IF(Hintergrunddaten!$AA$30=4,\"Hebammen\",\"nicht klinisches Personal\"))))","v":""},{"$f":"'MA 61-70'!$F$70","v":0},{"$f":"'MA 61-70'!$G$70","v":0},{"$f":"'MA 61-70'!$H$70","v":0},{"$f":"'MA 61-70'!$I$70","v":0},{"$f":"'MA 61-70'!$J$70","v":0},{"$f":"'MA 61-70'!$K$70","v":0},{"$f":"'MA 61-70'!$L$70","v":0},{"$f":"'MA 61-70'!$M$70","v":"0%"}]
["MA 066",{"$f":"'MA 61-70'!$B$72","v":0},{"$f":"IF(Hintergrunddaten!$AA$37=1,\"\",IF(Hintergrunddaten!$AA$37=2,\"Medizin\",IF(Hintergrunddaten!$AA$37=3,\"Pflege\",IF(Hintergrunddaten!$AA$37=4,\"Hebammen\",\"nicht klinisches Personal\"))))","v":""},{"$f":"'MA 61-70'!$F$84","v":0},{"$f":"'MA 61-70'!$G$84","v":0},{"$f":"'MA 61-70'!$H$84","v":0},{"$f":"'MA 61-70'!$I$84","v":0},{"$f":"'MA 61-70'!$J$84","v":0},{"$f":"'MA 61-70'!$K$84","v":0},{"$f":"'MA 61-70'!$L84","v":0},{"$f":"'MA 61-70'!$M$84","v":"0%"}]
["MA 067",{"$f":"'MA 61-70'!$B$86","v":0},{"$f":"IF(Hintergrunddaten!$AA$44=1,\"\",IF(Hintergrunddaten!$AA$44=2,\"Medizin\",IF(Hintergrunddaten!$AA$44=3,\"Pflege\",IF(Hintergrunddaten!$AA$44=4,\"Hebammen\",\"nicht klinisches Personal\"))))","v":""},{"$f":"'MA 61-70'!$F$98","v":0},{"$f":"'MA 61-70'!$G$98","v":0},{"$f":"'MA 61-70'!$H$98","v":0},{"$f":"'MA 61-70'!$I$98","v":0},{"$f":"'MA 61-70'!$J$98","v":0},{"$f":"'MA 61-70'!$K$98","v":0},{"$f":"'MA 61-70'!$L$98","v":0},{"$f":"'MA 61-70'!$M$98","v":"0%"}]
["MA 068",{"$f":"'MA 61-70'!$B$100","v":0},{"$f":"IF(Hintergrunddaten!$AA$51=1,\"\",IF(Hintergrunddaten!$AA$51=2,\"Medizin\",IF(Hintergrunddaten!$AA$51=3,\"Pflege\",IF(Hintergrunddaten!$AA$51=4,\"Hebammen\",\"nicht klinisches Personal\"))))","v":""},{"$f":"'MA 61-70'!$F$112","v":0},{"$f":"'MA 61-70'!$G$112","v":0},{"$f":"'MA 61-70'!$H$112","v":0},{"$f":"'MA 61-70'!$I$112","v":0},{"$f":"'MA 61-70'!$J$112","v":0},{"$f":"'MA 61-70'!$K$112","v":0},{"$f":"'MA 61-70'!$L$112","v":0},{"$f":"'MA 61-70'!$M$112","v":"0%"}]
["MA 069",{"$f":"'MA 61-70'!$B$114","v":0},{"$f":"IF(Hintergrunddaten!$AA$58=1,\"\",IF(Hintergrunddaten!$AA$58=2,\"Medizin\",IF(Hintergrunddaten!$AA$58=3,\"Pflege\",IF(Hintergrunddaten!$AA$58=4,\"Hebammen\",\"nicht klinisches Personal\"))))","v":""},{"$f":"'MA 61-70'!$F$126","v":0},{"$f":"'MA 61-70'!$G$126","v":0},{"$f":"'MA 61-70'!$H$126","v":0},{"$f":"'MA 61-70'!$I$126","v":0},{"$f":"'MA 61-70'!$J$126","v":0},{"$f":"'MA 61-70'!$K$126","v":0},{"$f":"'MA 61-70'!$L$126","v":0},{"$f":"'MA 61-70'!$M$126","v":"0%"}]
["MA 070",{"$f":"'MA 61-70'!$B$128","v":0},{"$f":"IF(Hintergrunddaten!$AA$65=1,\"\",IF(Hintergrunddaten!$AA$65=2,\"Medizin\",IF(Hintergrunddaten!#REF!=3,\"Pflege\",IF(Hintergrunddaten!$AA$65=4,\"Hebammen\",\"nicht klinisches Personal\"))))","v":""},{"$f":"'MA 61-70'!$F$140","v":0},{"$f":"'MA 61-70'!$G$140","v":0},{"$f":"'MA 61-70'!$H$140","v":0},{"$f":"'MA 61-70'!$I$140","v":0},{"$f":"'MA 61-70'!$J$140","v":0},{"$f":"'MA 61-70'!$K$140","v":0},{"$f":"'MA 61-70'!$L$140","v":0},{"$f":"'MA 61-70'!$M$140","v":"0%"}]
["MA 071",{"$f":"'MA 71-80'!$B$2","v":0},{"$f":"IF(Hintergrunddaten!$AE$2=1,\"\",IF(Hintergrunddaten!$AE$2=2,\"Medizin\",IF(Hintergrunddaten!$AE$2=3,\"Pflege\",IF(Hintergrunddaten!$AE$2=4,\"Hebammen\",\"nicht klinisches Personal\"))))","v":""},{"$f":"'MA 71-80'!$F$14","v":0},{"$f":"'MA 71-80'!$G$14","v":0},{"$f":"'MA 71-80'!$H$14","v":0},{"$f":"'MA 71-80'!$I$14","v":0},{"$f":"'MA 71-80'!$J$14","v":0},{"$f":"'MA 71-80'!$K$14","v":0},{"$f":"'MA 71-80'!$L$14","v":0},{"$f":"'MA 71-80'!$M$14","v":"0%"}]
["MA 072",{"$f":"'MA 71-80'!$B$16","v":0},{"$f":"IF(Hintergrunddaten!$AE$9=1,\"\",IF(Hintergrunddaten!$AE$9=2,\"Medizin\",IF(Hintergrunddaten!$AE$9=3,\"Pflege\",IF(Hintergrunddaten!$AE$9=4,\"Hebammen\",\"nicht klinisches Personal\"))))","v":""},{"$f":"'MA 71-80'!$F$28","v":0},{"$f":"'MA 71-80'!$G$28","v":0},{"$f":"'MA 71-80'!$H$28","v":0},{"$f":"'MA 71-80'!$I$28","v":0},{"$f":"'MA 71-80'!$J$28","v":0},{"$f":"'MA 71-80'!$K$28","v":0},{"$f":"'MA 71-80'!$L$28","v":0},{"$f":"'MA 71-80'!$M$28","v":"0%"}]
["MA 073",{"$f":"'MA 71-80'!$B$30","v":0},{"$f":"IF(Hintergrunddaten!$AE$16=1,\"\",IF(Hintergrunddaten!$AE$16=2,\"Medizin\",IF(Hintergrunddaten!$AE$16=3,\"Pflege\",IF(Hintergrunddaten!$AE$16=4,\"Hebammen\",\"nicht klinisches Personal\"))))","v":""},{"$f":"'MA 71-80'!$F$42","v":0},{"$f":"'MA 71-80'!$G$42","v":0},{"$f":"'MA 71-80'!$H$42","v":0},{"$f":"'MA 71-80'!$I$42","v":0},{"$f":"'MA 71-80'!$J$42","v":0},{"$f":"'MA 71-80'!$K$42","v":0},{"$f":"'MA 71-80'!$L$42","v":0},{"$f":"'MA 71-80'!$M$42","v":"0%"}]
["MA 074",{"$f":"'MA 71-80'!$B$44","v":0},{"$f":"IF(Hintergrunddaten!$AE$23=1,\"\",IF(Hintergrunddaten!$AE$23=2,\"Medizin\",IF(Hintergrunddaten!$AE$23=3,\"Pflege\",IF(Hintergrunddaten!$AE$23=4,\"Hebammen\",\"nicht klinisches Personal\"))))","v":""},{"$f":"'MA 71-80'!$F$56","v":0},{"$f":"'MA 71-80'!$G$56","v":0},{"$f":"'MA 71-80'!$H$56","v":0},{"$f":"'MA 71-80'!$I$56","v":0},{"$f":"'MA 71-80'!$J$56","v":0},{"$f":"'MA 71-80'!$K$56","v":0},{"$f":"'MA 71-80'!$L$56","v":0},{"$f":"'MA 71-80'!$M$56","v":"0%"}]
["MA 075",{"$f":"'MA 71-80'!$B$58","v":0},{"$f":"IF(Hintergrunddaten!$AE$30=1,\"\",IF(Hintergrunddaten!$AE$30=2,\"Medizin\",IF(Hintergrunddaten!$AE$30=3,\"Pflege\",IF(Hintergrunddaten!$AE$30=4,\"Hebammen\",\"nicht klinisches Personal\"))))","v":""},{"$f":"'MA 71-80'!$F$70","v":0},{"$f":"'MA 71-80'!$G$70","v":0},{"$f":"'MA 71-80'!$H$70","v":0},{"$f":"'MA 71-80'!$I$70","v":0},{"$f":"'MA 71-80'!$J$70","v":0},{"$f":"'MA 71-80'!$K$70","v":0},{"$f":"'MA 71-80'!$L$70","v":0},{"$f":"'MA 71-80'!$M$70","v":"0%"}]
["MA 076",{"$f":"'MA 71-80'!$B$72","v":0},{"$f":"IF(Hintergrunddaten!$AE$37=1,\"\",IF(Hintergrunddaten!$AE$37=2,\"Medizin\",IF(Hintergrunddaten!$AE$37=3,\"Pflege\",IF(Hintergrunddaten!$AE$37=4,\"Hebammen\",\"nicht klinisches Personal\"))))","v":""},{"$f":"'MA 71-80'!$F$84","v":0},{"$f":"'MA 71-80'!$G$84","v":0},{"$f":"'MA 71-80'!$H$84","v":0},{"$f":"'MA 71-80'!$I$84","v":0},{"$f":"'MA 71-80'!$J$84","v":0},{"$f":"'MA 71-80'!$K$84","v":0},{"$f":"'MA 71-80'!$L$84","v":0},{"$f":"'MA 71-80'!$M$84","v":"0%"}]
["MA 077",{"$f":"'MA 71-80'!$B$86","v":0},{"$f":"IF(Hintergrunddaten!$AE$44=1,\"\",IF(Hintergrunddaten!$AE$44=2,\"Medizin\",IF(Hintergrunddaten!$AE$44=3,\"Pflege\",IF(Hintergrunddaten!$AE$44=4,\"Hebammen\",\"nicht klinisches Personal\"))))","v":""},{"$f":"'MA 71-80'!$F$98","v":0},{"$f":"'MA 71-80'!$G$98","v":0},{"$f":"'MA 71-80'!$H$98","v":0},{"$f":"'MA 71-80'!$I$98","v":0},{"$f":"'MA 71-80'!$J$98","v":0},{"$f":"'MA 71-80'!$K$98","v":0},{"$f":"'MA 71-80'!$L$98","v":0},{"$f":"'MA 71-80'!$M$98","v":"0%"}]
["MA 078",{"$f":"'MA 71-80'!$B$100","v":0},{"$f":"IF(Hintergrunddaten!$AE$51=1,\"\",IF(Hintergrunddaten!$AE$51=2,\"Medizin\",IF(Hintergrunddaten!$AE$51=3,\"Pflege\",IF(Hintergrunddaten!$AE$51=4,\"Hebammen\",\"nicht klinisches Personal\"))))","v":""},{"$f":"'MA 71-80'!$F$112","v":0},{"$f":"'MA 71-80'!$G$112","v":0},{"$f":"'MA 71-80'!$H$112","v":0},{"$f":"'MA 71-80'!$I$112","v":0},{"$f":"'MA 71-80'!$J$112","v":0},{"$f":"'MA 71-80'!$K$112","v":0},{"$f":"'MA 71-80'!$L$112","v":0},{"$f":"'MA 71-80'!$M$112","v":"0%"}]
["MA 079",{"$f":"'MA 71-80'!$B$114","v":0},{"$f":"IF(Hintergrunddaten!$AE$58=1,\"\",IF(Hintergrunddaten!$AE$58=2,\"Medizin\",IF(Hintergrunddaten!$AE$58=3,\"Pflege\",IF(Hintergrunddaten!$AE$58=4,\"Hebammen\",\"nicht klinisches Personal\"))))","v":""},{"$f":"'MA 71-80'!$F$126","v":0},{"$f":"'MA 71-80'!$G$126","v":0},{"$f":"'MA 71-80'!$H$126","v":0},{"$f":"'MA 71-80'!$I$126","v":0},{"$f":"'MA 71-80'!$J$126","v":0},{"$f":"'MA 71-80'!$K$126","v":0},{"$f":"'MA 71-80'!$L$126","v":0},{"$f":"'MA 71-80'!$M$126","v":"0%"}]
["MA 080",{"$f":"'MA 71-80'!$B$128","v":0},{"$f":"IF(Hintergrunddaten!$AE$65=1,\"\",IF(Hintergrunddaten!$AE$65=2,\"Medizin\",IF(Hintergrunddaten!#REF!=3,\"Pflege\",IF(Hintergrunddaten!$AE$65=4,\"Hebammen\",\"nicht klinisches Personal\"))))","v":""},{"$f":"'MA 71-80'!$F$140","v":0},{"$f":"'MA 71-80'!$G$140","v":0},{"$f":"'MA 71-80'!$H$140","v":0},{"$f":"'MA 71-80'!$I$140","v":0},{"$f":"'MA 71-80'!$J$140","v":0},{"$f":"'MA 71-80'!$K$140","v":0},{"$f":"'MA 71-80'!$L$140","v":0},{"$f":"'MA 71-80'!$M$140","v":"0%"}]
["MA 081",{"$f":"'MA 81-90'!$B$2","v":0},{"$f":"IF(Hintergrunddaten!$AI$2=1,\"\",IF(Hintergrunddaten!$AI$2=2,\"Medizin\",IF(Hintergrunddaten!$AI$2=3,\"Pflege\",IF(Hintergrunddaten!$AI$2=4,\"Hebammen\",\"nicht klinisches Personal\"))))","v":""},{"$f":"'MA 81-90'!$F$14","v":0},{"$f":"'MA 81-90'!$G$14","v":0},{"$f":"'MA 81-90'!$H$14","v":0},{"$f":"'MA 81-90'!$I$14","v":0},{"$f":"'MA 81-90'!$J$14","v":0},{"$f":"'MA 81-90'!$K$14","v":0},{"$f":"'MA 81-90'!$L$14","v":0},{"$f":"'MA 81-90'!$M$14","v":"0%"}]
["MA 082",{"$f":"'MA 81-90'!$B$16","v":0},{"$f":"IF(Hintergrunddaten!$AI$9=1,\"\",IF(Hintergrunddaten!$AI$9=2,\"Medizin\",IF(Hintergrunddaten!$AI$9=3,\"Pflege\",IF(Hintergrunddaten!$AI$9=4,\"Hebammen\",\"nicht klinisches Personal\"))))","v":""},{"$f":"'MA 81-90'!$F$28","v":0},{"$f":"'MA 81-90'!$G$28","v":0},{"$f":"'MA 81-90'!$H$28","v":0},{"$f":"'MA 81-90'!$I$28","v":0},{"$f":"'MA 81-90'!$J$28","v":0},{"$f":"'MA 81-90'!$K$28","v":0},{"$f":"'MA 81-90'!$L$28","v":0},{"$f":"'MA 81-90'!$M$28","v":"0%"}]
["MA 083",{"$f":"'MA 81-90'!$B$30","v":0},{"$f":"IF(Hintergrunddaten!$AI$16=1,\"\",IF(Hintergrunddaten!$AI$16=2,\"Medizin\",IF(Hintergrunddaten!$AI$16=3,\"Pflege\",IF(Hintergrunddaten!$AI$16=4,\"Hebammen\",\"nicht klinisches Personal\"))))","v":""},{"$f":"'MA 81-90'!$F$42","v":0},{"$f":"'MA 81-90'!$G$42","v":0},{"$f":"'MA 81-90'!$H$42","v":0},{"$f":"'MA 81-90'!$I$42","v":0},{"$f":"'MA 81-90'!$J$42","v":0},{"$f":"'MA 81-90'!$K$42","v":0},{"$f":"'MA 81-90'!$L$42","v":0},{"$f":"'MA 81-90'!$M$42","v":"0%"}]
["MA 084",{"$f":"'MA 81-90'!$B$44","v":0},{"$f":"IF(Hintergrunddaten!$AI$23=1,\"\",IF(Hintergrunddaten!$AI$23=2,\"Medizin\",IF(Hintergrunddaten!$AI$23=3,\"Pflege\",IF(Hintergrunddaten!$AI$23=4,\"Hebammen\",\"nicht klinisches Personal\"))))","v":""},{"$f":"'MA 81-90'!$F$56","v":0},{"$f":"'MA 81-90'!$G$56","v":0},{"$f":"'MA 81-90'!$H$56","v":0},{"$f":"'MA 81-90'!$I$56","v":0},{"$f":"'MA 81-90'!$J$56","v":0},{"$f":"'MA 81-90'!$K$56","v":0},{"$f":"'MA 81-90'!$L$56","v":0},{"$f":"'MA 81-90'!$M$56","v":"0%"}]
["MA 085",{"$f":"'MA 81-90'!$B$58","v":0},{"$f":"IF(Hintergrunddaten!$AI$30=1,\"\",IF(Hintergrunddaten!$AI$30=2,\"Medizin\",IF(Hintergrunddaten!$AI$30=3,\"Pflege\",IF(Hintergrunddaten!$AI$30=4,\"Hebammen\",\"nicht klinisches Personal\"))))","v":""},{"$f":"'MA 81-90'!$F$70","v":0},{"$f":"'MA 81-90'!$G$70","v":0},{"$f":"'MA 81-90'!$H$70","v":0},{"$f":"'MA 81-90'!$I$70","v":0},{"$f":"'MA 81-90'!$J$70","v":0},{"$f":"'MA 81-90'!$K$70","v":0},{"$f":"'MA 81-90'!$L$70","v":0},{"$f":"'MA 81-90'!$M$70","v":"0%"}]
["MA 086",{"$f":"'MA 81-90'!$B$72","v":0},{"$f":"IF(Hintergrunddaten!$AI$37=1,\"\",IF(Hintergrunddaten!$AI$37=2,\"Medizin\",IF(Hintergrunddaten!$AI$37=3,\"Pflege\",IF(Hintergrunddaten!$AI$37=4,\"Hebammen\",\"nicht klinisches Personal\"))))","v":""},{"$f":"'MA 81-90'!$F$84","v":0},{"$f":"'MA 81-90'!$G$84","v":0},{"$f":"'MA 81-90'!$H$84","v":0},{"$f":"'MA 81-90'!$I$84","v":0},{"$f":"'MA 81-90'!$J$84","v":0},{"$f":"'MA 81-90'!$K$84","v":0},{"$f":"'MA 81-90'!$L$84","v":0},{"$f":"'MA 81-90'!$M$84","v":"0%"}]
["MA 087",{"$f":"'MA 81-90'!$B$86","v":0},{"$f":"IF(Hintergrunddaten!$AI$44=1,\"\",IF(Hintergrunddaten!$AI$44=2,\"Medizin\",IF(Hintergrunddaten!$AI$44=3,\"Pflege\",IF(Hintergrunddaten!$AI$44=4,\"Hebammen\",\"nicht klinisches Personal\"))))","v":""},{"$f":"'MA 81-90'!$F$98","v":0},{"$f":"'MA 81-90'!$G$98","v":0},{"$f":"'MA 81-90'!$H$98","v":0},{"$f":"'MA 81-90'!$I$98","v":0},{"$f":"'MA 81-90'!$J$98","v":0},{"$f":"'MA 81-90'!$K$98","v":0},{"$f":"'MA 81-90'!$L$98","v":0},{"$f":"'MA 81-90'!$M$98","v":"0%"}]
["MA 088",{"$f":"'MA 81-90'!$B$100","v":0},{"$f":"IF(Hintergrunddaten!$AI$51=1,\"\",IF(Hintergrunddaten!$AI$51=2,\"Medizin\",IF(Hintergrunddaten!$AI$51=3,\"Pflege\",IF(Hintergrunddaten!$AI$51=4,\"Hebammen\",\"nicht klinisches Personal\"))))","v":""},{"$f":"'MA 81-90'!$F$112","v":0},{"$f":"'MA 81-90'!$G$112","v":0},{"$f":"'MA 81-90'!$H$112","v":0},{"$f":"'MA 81-90'!$I$112","v":0},{"$f":"'MA 81-90'!$J$112","v":0},{"$f":"'MA 81-90'!$K$112","v":0},{"$f":"'MA 81-90'!$L$112","v":0},{"$f":"'MA 81-90'!$M$112","v":"0%"}]
["MA 089",{"$f":"'MA 81-90'!$B$114","v":0},{"$f":"IF(Hintergrunddaten!$AI$58=1,\"\",IF(Hintergrunddaten!$AI$58=2,\"Medizin\",IF(Hintergrunddaten!$AI$58=3,\"Pflege\",IF(Hintergrunddaten!$AI$58=4,\"Hebammen\",\"nicht klinisches Personal\"))))","v":""},{"$f":"'MA 81-90'!$F$126","v":0},{"$f":"'MA 81-90'!$G$126","v":0},{"$f":"'MA 81-90'!$H$126","v":0},{"$f":"'MA 81-90'!$I$126","v":0},{"$f":"'MA 81-90'!$J$126","v":0},{"$f":"'MA 81-90'!$K$126","v":0},{"$f":"'MA 81-90'!$L$126","v":0},{"$f":"'MA 81-90'!$M$126","v":"0%"}]
["MA 090",{"$f":"'MA 81-90'!$B$128","v":0},{"$f":"IF(Hintergrunddaten!$AI$65=1,\"\",IF(Hintergrunddaten!$AI$65=2,\"Medizin\",IF(Hintergrunddaten!$AI$65=3,\"Pflege\",IF(Hintergrunddaten!$AI$65=4,\"Hebammen\",\"nicht klinisches Personal\"))))","v":""},{"$f":"'MA 81-90'!$F$140","v":0},{"$f":"'MA 81-90'!$G$140","v":0},{"$f":"'MA 81-90'!$H$140","v":0},{"$f":"'MA 81-90'!$I$140","v":0},{"$f":"'MA 81-90'!$J$140","v":0},{"$f":"'MA 81-90'!$K$140","v":0},{"$f":"'MA 81-90'!$L$140","v":0},{"$f":"'MA 81-90'!$M$140","v":"0%"}]
["MA 091",{"$f":"'MA 91-100'!$B$2","v":0},{"$f":"IF(Hintergrunddaten!$AM$2=1,\"\",IF(Hintergrunddaten!$AM$2=2,\"Medizin\",IF(Hintergrunddaten!$AM$2=3,\"Pflege\",IF(Hintergrunddaten!$AM$2=4,\"Hebammen\",\"nicht klinisches Personal\"))))","v":""},{"$f":"'MA 91-100'!$F$14","v":0},{"$f":"'MA 91-100'!$G$14","v":0},{"$f":"'MA 91-100'!$H$14","v":0},{"$f":"'MA 91-100'!$I$14","v":0},{"$f":"'MA 91-100'!$J$14","v":0},{"$f":"'MA 91-100'!$K$14","v":0},{"$f":"'MA 91-100'!$L$14","v":0},{"$f":"'MA 91-100'!$M$14","v":"0%"}]
["MA 092",{"$f":"'MA 91-100'!$B$16","v":0},{"$f":"IF(Hintergrunddaten!$AM$9=1,\"\",IF(Hintergrunddaten!$AM$9=2,\"Medizin\",IF(Hintergrunddaten!$AM$9=3,\"Pflege\",IF(Hintergrunddaten!$AM$9=4,\"Hebammen\",\"nicht klinisches Personal\"))))","v":""},{"$f":"'MA 91-100'!$F$28","v":0},{"$f":"'MA 91-100'!$G$28","v":0},{"$f":"'MA 91-100'!$H$28","v":0},{"$f":"'MA 91-100'!$I$28","v":0},{"$f":"'MA 91-100'!$J$28","v":0},{"$f":"'MA 91-100'!$K$28","v":0},{"$f":"'MA 91-100'!$L$28","v":0},{"$f":"'MA 91-100'!$M$28","v":"0%"}]
["MA 093",{"$f":"'MA 91-100'!$B$30","v":0},{"$f":"IF(Hintergrunddaten!$AM$16=1,\"\",IF(Hintergrunddaten!$AM$16=2,\"Medizin\",IF(Hintergrunddaten!$AM$16=3,\"Pflege\",IF(Hintergrunddaten!$AM$16=4,\"Hebammen\",\"nicht klinisches Personal\"))))","v":""},{"$f":"'MA 91-100'!$F$42","v":0},{"$f":"'MA 91-100'!$G$42","v":0},{"$f":"'MA 91-100'!$H$42","v":0},{"$f":"'MA 91-100'!$I$42","v":0},{"$f":"'MA 91-100'!$J$42","v":0},{"$f":"'MA 91-100'!$K$42","v":0},{"$f":"'MA 91-100'!$L$42","v":0},{"$f":"'MA 91-100'!$M$42","v":"0%"}]
["MA 094",{"$f":"'MA 91-100'!$B$44","v":0},{"$f":"IF(Hintergrunddaten!$AM$23=1,\"\",IF(Hintergrunddaten!$AM$23=2,\"Medizin\",IF(Hintergrunddaten!$AM$23=3,\"Pflege\",IF(Hintergrunddaten!$AM$23=4,\"Hebammen\",\"nicht klinisches Personal\"))))","v":""},{"$f":"'MA 91-100'!$F$56","v":0},{"$f":"'MA 91-100'!$G$56","v":0},{"$f":"'MA 91-100'!$H$56","v":0},{"$f":"'MA 91-100'!$I$56","v":0},{"$f":"'MA 91-100'!$J$56","v":0},{"$f":"'MA 91-100'!$K$56","v":0},{"$f":"'MA 91-100'!$L$56","v":0},{"$f":"'MA 91-100'!$M$56","v":"0%"}]
["MA 095",{"$f":"'MA 91-100'!$B$58","v":0},{"$f":"IF(Hintergrunddaten!$AM$30=1,\"\",IF(Hintergrunddaten!$AM$30=2,\"Medizin\",IF(Hintergrunddaten!$AM$30=3,\"Pflege\",IF(Hintergrunddaten!$AM$30=4,\"Hebammen\",\"nicht klinisches Personal\"))))","v":""},{"$f":"'MA 91-100'!$F$70","v":0},{"$f":"'MA 91-100'!$G$70","v":0},{"$f":"'MA 91-100'!$H$70","v":0},{"$f":"'MA 91-100'!$I$70","v":0},{"$f":"'MA 91-100'!$J$70","v":0},{"$f":"'MA 91-100'!$K$70","v":0},{"$f":"'MA 91-100'!$L$70","v":0},{"$f":"'MA 91-100'!$M$70","v":"0%"}]
["MA 096",{"$f":"'MA 91-100'!$B$72","v":0},{"$f":"IF(Hintergrunddaten!$AM$37=1,\"\",IF(Hintergrunddaten!$AM$37=2,\"Medizin\",IF(Hintergrunddaten!$AM$37=3,\"Pflege\",IF(Hintergrunddaten!$AM$37=4,\"Hebammen\",\"nicht klinisches Personal\"))))","v":""},{"$f":"'MA 91-100'!$F$84","v":0},{"$f":"'MA 91-100'!$G$84","v":0},{"$f":"'MA 91-100'!$H$84","v":0},{"$f":"'MA 91-100'!$I$84","v":0},{"$f":"'MA 91-100'!$J$84","v":0},{"$f":"'MA 91-100'!$K$84","v":0},{"$f":"'MA 91-100'!$L$84","v":0},{"$f":"'MA 91-100'!$M$84","v":"0%"}]
["MA 097",{"$f":"'MA 91-100'!$B$86","v":0},{"$f":"IF(Hintergrunddaten!$AM$44=1,\"\",IF(Hintergrunddaten!$AM$44=2,\"Medizin\",IF(Hintergrunddaten!$AM$44=3,\"Pflege\",IF(Hintergrunddaten!$AM$44=4,\"Hebammen\",\"nicht klinisches Personal\"))))","v":""},{"$f":"'MA 91-100'!$F$98","v":0},{"$f":"'MA 91-100'!$G$98","v":0},{"$f":"'MA 91-100'!$H$98","v":0},{"$f":"'MA 91-100'!$I$98","v":0},{"$f":"'MA 91-100'!$J$98","v":0},{"$f":"'MA 91-100'!$K$98","v":0},{"$f":"'MA 91-100'!$L$98","v":0},{"$f":"'MA 91-100'!$M$98","v":"0%"}]
["MA 098",{"$f":"'MA 91-100'!$B$100","v":0},{"$f":"IF(Hintergrunddaten!$AM$51=1,\"\",IF(Hintergrunddaten!$AM$51=2,\"Medizin\",IF(Hintergrunddaten!$AM$51=3,\"Pflege\",IF(Hintergrunddaten!$AM$51=4,\"Hebammen\",\"nicht klinisches Personal\"))))","v":""},{"$f":"'MA 91-100'!$F$112","v":0},{"$f":"'MA 91-100'!$G$112","v":0},{"$f":"'MA 91-100'!$H$112","v":0},{"$f":"'MA 91-100'!$I$112","v":0},{"$f":"'MA 91-100'!$J$112","v":0},{"$f":"'MA 91-100'!$K$112","v":0},{"$f":"'MA 91-100'!$L$112","v":0},{"$f":"'MA 91-100'!$M$112","v":"0%"}]
["MA 099",{"$f":"'MA 91-100'!$B$114","v":0},{"$f":"IF(Hintergrunddaten!$AM$58=1,\"\",IF(Hintergrunddaten!$AM$58=2,\"Medizin\",IF(Hintergrunddaten!$AM$58=3,\"Pflege\",IF(Hintergrunddaten!$AM$58=4,\"Hebammen\",\"nicht klinisches Personal\"))))","v":""},{"$f":"'MA 91-100'!$F$126","v":0},{"$f":"'MA 91-100'!$G$126","v":0},{"$f":"'MA 91-100'!$H$126","v":0},{"$f":"'MA 91-100'!$I$126","v":0},{"$f":"'MA 91-100'!$J$126","v":0},{"$f":"'MA 91-100'!$K$126","v":0},{"$f":"'MA 91-100'!$L$126","v":0},{"$f":"'MA 91-100'!$M$126","v":"0%"}]
["MA 100",{"$f":"'MA 91-100'!$B$128","v":0},{"$f":"IF(Hintergrunddaten!$AM$65=1,\"\",IF(Hintergrunddaten!$AM$65=2,\"Medizin\",IF(Hintergrunddaten!$AM$65=3,\"Pflege\",IF(Hintergrunddaten!$AM$65=4,\"Hebammen\",\"nicht klinisches Personal\"))))","v":""},{"$f":"'MA 91-100'!$F$140","v":0},{"$f":"'MA 91-100'!$G$140","v":0},{"$f":"'MA 91-100'!$H$140","v":0},{"$f":"'MA 91-100'!$I$140","v":0},{"$f":"'MA 91-100'!$J$140","v":0},{"$f":"'MA 91-100'!$K$140","v":0},{"$f":"'MA 101-110'!$L$140","v":0},{"$f":"'MA 101-110'!$M$140","v":"0%"}]
["MA 101",{"$f":"'MA 101-110'!$B$2","v":0},{"$f":"IF(Hintergrunddaten!$AQ$2=1,\"\",IF(Hintergrunddaten!$AQ$2=2,\"Medizin\",IF(Hintergrunddaten!$AQ$2=3,\"Pflege\",IF(Hintergrunddaten!$AQ$2=4,\"Hebammen\",\"nicht klinisches Personal\"))))","v":""},{"$f":"'MA 101-110'!$F$14","v":0},{"$f":"'MA 101-110'!$G$14","v":0},{"$f":"'MA 101-110'!$H$14","v":0},{"$f":"'MA 101-110'!$I$14","v":0},{"$f":"'MA 101-110'!$J$14","v":0},{"$f":"'MA 101-110'!$K$14","v":0},{"$f":"'MA 101-110'!$L$14","v":0},{"$f":"'MA 101-110'!$M$14","v":"0%"}]
["MA 102",{"$f":"'MA 101-110'!$B$16","v":0},{"$f":"IF(Hintergrunddaten!$AQ$9=1,\"\",IF(Hintergrunddaten!$AQ$9=2,\"Medizin\",IF(Hintergrunddaten!$AQ$9=3,\"Pflege\",IF(Hintergrunddaten!$AQ$9=4,\"Hebammen\",\"nicht klinisches Personal\"))))","v":""},{"$f":"'MA 101-110'!$F$28","v":0},{"$f":"'MA 101-110'!$G$28","v":0},{"$f":"'MA 101-110'!$H$28","v":0},{"$f":"'MA 101-110'!$I$28","v":0},{"$f":"'MA 101-110'!$J$28","v":0},{"$f":"'MA 101-110'!$K$28","v":0},{"$f":"'MA 101-110'!$L$28","v":0},{"$f":"'MA 101-110'!$M$28","v":"0%"}]
["MA 103",{"$f":"'MA 101-110'!$B$30","v":0},{"$f":"IF(Hintergrunddaten!$AQ$16=1,\"\",IF(Hintergrunddaten!$AQ$16=2,\"Medizin\",IF(Hintergrunddaten!$AQ$16=3,\"Pflege\",IF(Hintergrunddaten!$AQ$16=4,\"Hebammen\",\"nicht klinisches Personal\"))))","v":""},{"$f":"'MA 101-110'!$F$42","v":0},{"$f":"'MA 101-110'!$G$42","v":0},{"$f":"'MA 101-110'!$H$42","v":0},{"$f":"'MA 101-110'!$I$42","v":0},{"$f":"'MA 101-110'!$J$42","v":0},{"$f":"'MA 101-110'!$K$42","v":0},{"$f":"'MA 101-110'!$L$42","v":0},{"$f":"'MA 101-110'!$M$42","v":"0%"}]
["MA 104",{"$f":"'MA 101-110'!$B$44","v":0},{"$f":"IF(Hintergrunddaten!$AQ$23=1,\"\",IF(Hintergrunddaten!$AQ$23=2,\"Medizin\",IF(Hintergrunddaten!$AQ$23=3,\"Pflege\",IF(Hintergrunddaten!$AQ$23=4,\"Hebammen\",\"nicht klinisches Personal\"))))","v":""},{"$f":"'MA 101-110'!$F$56","v":0},{"$f":"'MA 101-110'!$G$56","v":0},{"$f":"'MA 101-110'!$H$56","v":0},{"$f":"'MA 101-110'!$I$56","v":0},{"$f":"'MA 101-110'!$J$56","v":0},{"$f":"'MA 101-110'!$K$56","v":0},{"$f":"'MA 101-110'!$L$56","v":0},{"$f":"'MA 101-110'!$M$56","v":"0%"}]
["MA 105",{"$f":"'MA 101-110'!$B$58","v":0},{"$f":"IF(Hintergrunddaten!$AQ$30=1,\"\",IF(Hintergrunddaten!$AQ$30=2,\"Medizin\",IF(Hintergrunddaten!$AQ$30=3,\"Pflege\",IF(Hintergrunddaten!$AQ$30=4,\"Hebammen\",\"nicht klinisches Personal\"))))","v":""},{"$f":"'MA 101-110'!$F$70","v":0},{"$f":"'MA 101-110'!$G$70","v":0},{"$f":"'MA 101-110'!$H$70","v":0},{"$f":"'MA 101-110'!$I$70","v":0},{"$f":"'MA 101-110'!$J$70","v":0},{"$f":"'MA 101-110'!$K$70","v":0},{"$f":"'MA 101-110'!$L$70","v":0},{"$f":"'MA 101-110'!$M$70","v":"0%"}]
["MA 106",{"$f":"'MA 101-110'!$B$72","v":0},{"$f":"IF(Hintergrunddaten!$AQ$37=1,\"\",IF(Hintergrunddaten!$AQ$37=2,\"Medizin\",IF(Hintergrunddaten!$AQ$37=3,\"Pflege\",IF(Hintergrunddaten!$AQ$37=4,\"Hebammen\",\"nicht klinisches Personal\"))))","v":""},{"$f":"'MA 101-110'!$F$84","v":0},{"$f":"'MA 101-110'!$G$84","v":0},{"$f":"'MA 101-110'!$H$84","v":0},{"$f":"'MA 101-110'!$I$84","v":0},{"$f":"'MA 101-110'!$J$84","v":0},{"$f":"'MA 101-110'!$K$84","v":0},{"$f":"'MA 101-110'!$L$84","v":0},{"$f":"'MA 101-110'!$M$84","v":"0%"}]
["MA 107",{"$f":"'MA 101-110'!$B$86","v":0},{"$f":"IF(Hintergrunddaten!$AQ$44=1,\"\",IF(Hintergrunddaten!$AQ$44=2,\"Medizin\",IF(Hintergrunddaten!$AQ$44=3,\"Pflege\",IF(Hintergrunddaten!$AQ$44=4,\"Hebammen\",\"nicht klinisches Personal\"))))","v":""},{"$f":"'MA 101-110'!$F$98","v":0},{"$f":"'MA 101-110'!$G$98","v":0},{"$f":"'MA 101-110'!$H$98","v":0},{"$f":"'MA 101-110'!$I$98","v":0},{"$f":"'MA 101-110'!$J$98","v":0},{"$f":"'MA 101-110'!$K$98","v":0},{"$f":"'MA 101-110'!$L$98","v":0},{"$f":"'MA 101-110'!$M$98","v":"0%"}]
["MA 108",{"$f":"'MA 101-110'!$B$100","v":0},{"$f":"IF(Hintergrunddaten!$AQ$51=1,\"\",IF(Hintergrunddaten!$AQ$51=2,\"Medizin\",IF(Hintergrunddaten!$AQ$51=3,\"Pflege\",IF(Hintergrunddaten!$AQ$51=4,\"Hebammen\",\"nicht klinisches Personal\"))))","v":""},{"$f":"'MA 101-110'!$F$112","v":0},{"$f":"'MA 101-110'!$G$112","v":0},{"$f":"'MA 101-110'!$H$112","v":0},{"$f":"'MA 101-110'!$I$112","v":0},{"$f":"'MA 101-110'!$J$112","v":0},{"$f":"'MA 101-110'!$K$112","v":0},{"$f":"'MA 101-110'!$L$112","v":0},{"$f":"'MA 101-110'!$M$112","v":"0%"}]
["MA 109",{"$f":"'MA 101-110'!$B$114","v":0},{"$f":"IF(Hintergrunddaten!$AQ$58=1,\"\",IF(Hintergrunddaten!$AQ$58=2,\"Medizin\",IF(Hintergrunddaten!$AQ$58=3,\"Pflege\",IF(Hintergrunddaten!$AQ$58=4,\"Hebammen\",\"nicht klinisches Personal\"))))","v":""},{"$f":"'MA 101-110'!$F$126","v":0},{"$f":"'MA 101-110'!$G$126","v":0},{"$f":"'MA 101-110'!$H$126","v":0},{"$f":"'MA 101-110'!$I$126","v":0},{"$f":"'MA 101-110'!$J$126","v":0},{"$f":"'MA 101-110'!$K$126","v":0},{"$f":"'MA 101-110'!$L$126","v":0},{"$f":"'MA 101-110'!$M$126","v":"0%"}]
["MA 110",{"$f":"'MA 101-110'!$B$128","v":0},{"$f":"IF(Hintergrunddaten!$AQ$65=1,\"\",IF(Hintergrunddaten!$AQ$65=2,\"Medizin\",IF(Hintergrunddaten!$AQ$65=3,\"Pflege\",IF(Hintergrunddaten!$AQ$65=4,\"Hebammen\",\"nicht klinisches Personal\"))))","v":""},{"$f":"'MA 101-110'!$F$140","v":0},{"$f":"'MA 101-110'!$G$140","v":0},{"$f":"'MA 101-110'!$H$140","v":0},{"$f":"'MA 101-110'!$I$140","v":0},{"$f":"'MA 101-110'!$J$140","v":0},{"$f":"'MA 101-110'!$K$140","v":0},{"$f":"'MA 101-110'!$L$140","v":0},{"$f":"'MA 101-110'!$M$140","v":"0%"}]
["MA 111",{"$f":"'MA 111-120'!$B$2","v":0},{"$f":"IF(Hintergrunddaten!$AU$2=1,\"\",IF(Hintergrunddaten!$AU$2=2,\"Medizin\",IF(Hintergrunddaten!$AU$2=3,\"Pflege\",IF(Hintergrunddaten!$AU$2=4,\"Hebammen\",\"nicht klinisches Personal\"))))","v":""},{"$f":"'MA 111-120'!$F$14","v":0},{"$f":"'MA 111-120'!$G$14","v":0},{"$f":"'MA 111-120'!$H$14","v":0},{"$f":"'MA 111-120'!$I$14","v":0},{"$f":"'MA 111-120'!$J$14","v":0},{"$f":"'MA 111-120'!$K$14","v":0},{"$f":"'MA 111-120'!$L$14","v":0},{"$f":"'MA 111-120'!$M$14","v":"0%"}]
["MA 112",{"$f":"'MA 111-120'!$B$16","v":0},{"$f":"IF(Hintergrunddaten!$AU$9=1,\"\",IF(Hintergrunddaten!$AU$9=2,\"Medizin\",IF(Hintergrunddaten!$AU$9=3,\"Pflege\",IF(Hintergrunddaten!$AU$9=4,\"Hebammen\",\"nicht klinisches Personal\"))))","v":""},{"$f":"'MA 111-120'!$F$28","v":0},{"$f":"'MA 111-120'!$G$28","v":0},{"$f":"'MA 111-120'!$H$28","v":0},{"$f":"'MA 111-120'!$I$28","v":0},{"$f":"'MA 111-120'!$J$28","v":0},{"$f":"'MA 111-120'!$K$28","v":0},{"$f":"'MA 111-120'!$L$28","v":0},{"$f":"'MA 111-120'!$M$28","v":"0%"}]
["MA 113",{"$f":"'MA 111-120'!$B$30","v":0},{"$f":"IF(Hintergrunddaten!$AU$16=1,\"\",IF(Hintergrunddaten!$AU$16=2,\"Medizin\",IF(Hintergrunddaten!$AU$16=3,\"Pflege\",IF(Hintergrunddaten!$AU$16=4,\"Hebammen\",\"nicht klinisches Personal\"))))","v":""},{"$f":"'MA 111-120'!$F$42","v":0},{"$f":"'MA 111-120'!$G$42","v":0},{"$f":"'MA 111-120'!$H$42","v":0},{"$f":"'MA 111-120'!$I$42","v":0},{"$f":"'MA 111-120'!$J$42","v":0},{"$f":"'MA 111-120'!$K$42","v":0},{"$f":"'MA 111-120'!$L$42","v":0},{"$f":"'MA 111-120'!$M$42","v":"0%"}]
["MA 114",{"$f":"'MA 111-120'!$B$44","v":0},{"$f":"IF(Hintergrunddaten!$AU$23=1,\"\",IF(Hintergrunddaten!$AU$23=2,\"Medizin\",IF(Hintergrunddaten!$AU$23=3,\"Pflege\",IF(Hintergrunddaten!$AU$23=4,\"Hebammen\",\"nicht klinisches Personal\"))))","v":""},{"$f":"'MA 111-120'!$F$56","v":0},{"$f":"'MA 111-120'!$G$56","v":0},{"$f":"'MA 111-120'!$H$56","v":0},{"$f":"'MA 111-120'!$I$56","v":0},{"$f":"'MA 111-120'!$J$56","v":0},{"$f":"'MA 111-120'!$K$56","v":0},{"$f":"'MA 111-120'!$L$56","v":0},{"$f":"'MA 111-120'!$M$56","v":"0%"}]
["MA 115",{"$f":"'MA 111-120'!$B$58","v":0},{"$f":"IF(Hintergrunddaten!$AU$30=1,\"\",IF(Hintergrunddaten!$AU$30=2,\"Medizin\",IF(Hintergrunddaten!$AU$30=3,\"Pflege\",IF(Hintergrunddaten!$AU$30=4,\"Hebammen\",\"nicht klinisches Personal\"))))","v":""},{"$f":"'MA 111-120'!$F$70","v":0},{"$f":"'MA 111-120'!$G$70","v":0},{"$f":"'MA 111-120'!$H$70","v":0},{"$f":"'MA 111-120'!$I$70","v":0},{"$f":"'MA 111-120'!$J$70","v":0},{"$f":"'MA 111-120'!$K$70","v":0},{"$f":"'MA 111-120'!$L$70","v":0},{"$f":"'MA 111-120'!$M$70","v":"0%"}]
["MA 116",{"$f":"'MA 111-120'!$B$72","v":0},{"$f":"IF(Hintergrunddaten!$AU$37=1,\"\",IF(Hintergrunddaten!$AU$37=2,\"Medizin\",IF(Hintergrunddaten!$AU$37=3,\"Pflege\",IF(Hintergrunddaten!$AU$37=4,\"Hebammen\",\"nicht klinisches Personal\"))))","v":""},{"$f":"'MA 111-120'!$F$84","v":0},{"$f":"'MA 111-120'!$G$84","v":0},{"$f":"'MA 111-120'!$H$84","v":0},{"$f":"'MA 111-120'!$I$84","v":0},{"$f":"'MA 111-120'!$J$84","v":0},{"$f":"'MA 111-120'!$K$84","v":0},{"$f":"'MA 111-120'!$L$84","v":0},{"$f":"'MA 111-120'!$M$84","v":"0%"}]
["MA 117",{"$f":"'MA 111-120'!$B$86","v":0},{"$f":"IF(Hintergrunddaten!$AU$44=1,\"\",IF(Hintergrunddaten!$AU$44=2,\"Medizin\",IF(Hintergrunddaten!$AU$44=3,\"Pflege\",IF(Hintergrunddaten!$AU$44=4,\"Hebammen\",\"nicht klinisches Personal\"))))","v":""},{"$f":"'MA 111-120'!$F$98","v":0},{"$f":"'MA 111-120'!$G$98","v":0},{"$f":"'MA 111-120'!$H$98","v":0},{"$f":"'MA 111-120'!$I$98","v":0},{"$f":"'MA 111-120'!$J$98","v":0},{"$f":"'MA 111-120'!$K$98","v":0},{"$f":"'MA 111-120'!$L$98","v":0},{"$f":"'MA 111-120'!$M$98","v":"0%"}]
["MA 118",{"$f":"'MA 111-120'!$B$100","v":0},{"$f":"IF(Hintergrunddaten!$AU$51=1,\"\",IF(Hintergrunddaten!$AU$51=2,\"Medizin\",IF(Hintergrunddaten!$AU$51=3,\"Pflege\",IF(Hintergrunddaten!$AU$51=4,\"Hebammen\",\"nicht klinisches Personal\"))))","v":""},{"$f":"'MA 111-120'!$F$112","v":0},{"$f":"'MA 111-120'!$G$112","v":0},{"$f":"'MA 111-120'!$H$112","v":0},{"$f":"'MA 111-120'!$I$112","v":0},{"$f":"'MA 111-120'!$J$112","v":0},{"$f":"'MA 111-120'!$K$112","v":0},{"$f":"'MA 111-120'!$L$112","v":0},{"$f":"'MA 111-120'!$M$112","v":"0%"}]
["MA 119",{"$f":"'MA 111-120'!$B$114","v":0},{"$f":"IF(Hintergrunddaten!$AU$58=1,\"\",IF(Hintergrunddaten!$AU$58=2,\"Medizin\",IF(Hintergrunddaten!$AU$58=3,\"Pflege\",IF(Hintergrunddaten!$AU$58=4,\"Hebammen\",\"nicht klinisches Personal\"))))","v":""},{"$f":"'MA 111-120'!$F$126","v":0},{"$f":"'MA 111-120'!$G$126","v":0},{"$f":"'MA 111-120'!$H$126","v":0},{"$f":"'MA 111-120'!$I$126","v":0},{"$f":"'MA 111-120'!$J$126","v":0},{"$f":"'MA 111-120'!$K$126","v":0},{"$f":"'MA 111-120'!$L$126","v":0},{"$f":"'MA 111-120'!$M$126","v":"0%"}]
["MA 120",{"$f":"'MA 111-120'!$B$128","v":0},{"$f":"IF(Hintergrunddaten!$AU$65=1,\"\",IF(Hintergrunddaten!$AU$65=2,\"Medizin\",IF(Hintergrunddaten!$AU$65=3,\"Pflege\",IF(Hintergrunddaten!$AU$65=4,\"Hebammen\",\"nicht klinisches Personal\"))))","v":""},{"$f":"'MA 111-120'!$F$140","v":0},{"$f":"'MA 111-120'!$G$140","v":0},{"$f":"'MA 111-120'!$H$140","v":0},{"$f":"'MA 111-120'!$I$140","v":0},{"$f":"'MA 111-120'!$J$140","v":0},{"$f":"'MA 111-120'!$K$140","v":0},{"$f":"'MA 111-120'!$L$140","v":0},{"$f":"'MA 111-120'!$M$140","v":"0%"}]
["MA 121",{"$f":"'MA 121-130'!$B$2","v":0},{"$f":"IF(Hintergrunddaten!$AY$2=1,\"\",IF(Hintergrunddaten!$AY$2=2,\"Medizin\",IF(Hintergrunddaten!$AY$2=3,\"Pflege\",IF(Hintergrunddaten!$AY$2=4,\"Hebammen\",\"nicht klinisches Personal\"))))","v":""},{"$f":"'MA 121-130'!$F$14","v":0},{"$f":"'MA 121-130'!$G$14","v":0},{"$f":"'MA 121-130'!$H$14","v":0},{"$f":"'MA 121-130'!$I$14","v":0},{"$f":"'MA 121-130'!$J$14","v":0},{"$f":"'MA 121-130'!$K$14","v":0},{"$f":"'MA 121-130'!$L$14","v":0},{"$f":"'MA 121-130'!$M$14","v":"0%"}]
["MA 122",{"$f":"'MA 121-130'!$B$16","v":0},{"$f":"IF(Hintergrunddaten!$AY$9=1,\"\",IF(Hintergrunddaten!$AY$9=2,\"Medizin\",IF(Hintergrunddaten!$AY$9=3,\"Pflege\",IF(Hintergrunddaten!$AY$9=4,\"Hebammen\",\"nicht klinisches Personal\"))))","v":""},{"$f":"'MA 121-130'!$F$28","v":0},{"$f":"'MA 121-130'!$G$28","v":0},{"$f":"'MA 121-130'!$H$28","v":0},{"$f":"'MA 121-130'!$I$28","v":0},{"$f":"'MA 121-130'!$J$28","v":0},{"$f":"'MA 121-130'!$K$28","v":0},{"$f":"'MA 121-130'!$L$28","v":0},{"$f":"'MA 121-130'!$M$28","v":"0%"}]
["MA 123",{"$f":"'MA 121-130'!$B$30","v":0},{"$f":"IF(Hintergrunddaten!$AY$16=1,\"\",IF(Hintergrunddaten!$AY$16=2,\"Medizin\",IF(Hintergrunddaten!$AY$16=3,\"Pflege\",IF(Hintergrunddaten!$AY$16=4,\"Hebammen\",\"nicht klinisches Personal\"))))","v":""},{"$f":"'MA 121-130'!$F$42","v":0},{"$f":"'MA 121-130'!$G$42","v":0},{"$f":"'MA 121-130'!$H$42","v":0},{"$f":"'MA 121-130'!$I$42","v":0},{"$f":"'MA 121-130'!$J$42","v":0},{"$f":"'MA 121-130'!$K$42","v":0},{"$f":"'MA 121-130'!$L$42","v":0},{"$f":"'MA 121-130'!$M$42","v":"0%"}]
["MA 124",{"$f":"'MA 121-130'!$B$44","v":0},{"$f":"IF(Hintergrunddaten!$AY$23=1,\"\",IF(Hintergrunddaten!$AY$23=2,\"Medizin\",IF(Hintergrunddaten!$AY$23=3,\"Pflege\",IF(Hintergrunddaten!$AY$23=4,\"Hebammen\",\"nicht klinisches Personal\"))))","v":""},{"$f":"'MA 121-130'!$F$56","v":0},{"$f":"'MA 121-130'!$G$56","v":0},{"$f":"'MA 121-130'!$H$56","v":0},{"$f":"'MA 121-130'!$I$56","v":0},{"$f":"'MA 121-130'!$J$56","v":0},{"$f":"'MA 121-130'!$K$56","v":0},{"$f":"'MA 121-130'!$L$56","v":0},{"$f":"'MA 121-130'!$M$56","v":"0%"}]
["MA 125",{"$f":"'MA 121-130'!$B$58","v":0},{"$f":"IF(Hintergrunddaten!$AY$30=1,\"\",IF(Hintergrunddaten!$AY$30=2,\"Medizin\",IF(Hintergrunddaten!$AY$30=3,\"Pflege\",IF(Hintergrunddaten!$AY$30=4,\"Hebammen\",\"nicht klinisches Personal\"))))","v":""},{"$f":"'MA 121-130'!$F$70","v":0},{"$f":"'MA 121-130'!$G$70","v":0},{"$f":"'MA 121-130'!$H$70","v":0},{"$f":"'MA 121-130'!$I$70","v":0},{"$f":"'MA 121-130'!$J$70","v":0},{"$f":"'MA 121-130'!$K$70","v":0},{"$f":"'MA 121-130'!$L$70","v":0},{"$f":"'MA 121-130'!$M$70","v":"0%"}]
["MA 126",{"$f":"'MA 121-130'!$B$72","v":0},{"$f":"IF(Hintergrunddaten!$AY$37=1,\"\",IF(Hintergrunddaten!$AY$37=2,\"Medizin\",IF(Hintergrunddaten!$AY$37=3,\"Pflege\",IF(Hintergrunddaten!$AY$37=4,\"Hebammen\",\"nicht klinisches Personal\"))))","v":""},{"$f":"'MA 121-130'!$F$84","v":0},{"$f":"'MA 121-130'!$G$84","v":0},{"$f":"'MA 121-130'!$H$84","v":0},{"$f":"'MA 121-130'!$I$84","v":0},{"$f":"'MA 121-130'!$J$84","v":0},{"$f":"'MA 121-130'!$K$84","v":0},{"$f":"'MA 121-130'!$L$84","v":0},{"$f":"'MA 121-130'!$M$84","v":"0%"}]
["MA 127",{"$f":"'MA 121-130'!$B$86","v":0},{"$f":"IF(Hintergrunddaten!$AY$44=1,\"\",IF(Hintergrunddaten!$AY$44=2,\"Medizin\",IF(Hintergrunddaten!$AY$44=3,\"Pflege\",IF(Hintergrunddaten!$AY$44=4,\"Hebammen\",\"nicht klinisches Personal\"))))","v":""},{"$f":"'MA 121-130'!$F$98","v":0},{"$f":"'MA 121-130'!$G$98","v":0},{"$f":"'MA 121-130'!$H$98","v":0},{"$f":"'MA 121-130'!$I$98","v":0},{"$f":"'MA 121-130'!$J$98","v":0},{"$f":"'MA 121-130'!$K$98","v":0},{"$f":"'MA 121-130'!$L$98","v":0},{"$f":"'MA 121-130'!$M$98","v":"0%"}]
["MA 128",{"$f":"'MA 121-130'!$B$100","v":0},{"$f":"IF(Hintergrunddaten!$AY$51=1,\"\",IF(Hintergrunddaten!$AY$51=2,\"Medizin\",IF(Hintergrunddaten!$AY$51=3,\"Pflege\",IF(Hintergrunddaten!$AY$51=4,\"Hebammen\",\"nicht klinisches Personal\"))))","v":""},{"$f":"'MA 121-130'!$F$112","v":0},{"$f":"'MA 121-130'!$G$112","v":0},{"$f":"'MA 121-130'!$H$112","v":0},{"$f":"'MA 121-130'!$I$112","v":0},{"$f":"'MA 121-130'!$J$112","v":0},{"$f":"'MA 121-130'!$K$112","v":0},{"$f":"'MA 121-130'!$L$112","v":0},{"$f":"'MA 121-130'!$M$112","v":"0%"}]
["MA 129",{"$f":"'MA 121-130'!$B$114","v":0},{"$f":"IF(Hintergrunddaten!$AY$58=1,\"\",IF(Hintergrunddaten!$AY$58=2,\"Medizin\",IF(Hintergrunddaten!$AY$58=3,\"Pflege\",IF(Hintergrunddaten!$AY$58=4,\"Hebammen\",\"nicht klinisches Personal\"))))","v":""},{"$f":"'MA 121-130'!$F$126","v":0},{"$f":"'MA 121-130'!$G$126","v":0},{"$f":"'MA 121-130'!$H$126","v":0},{"$f":"'MA 121-130'!$I$126","v":0},{"$f":"'MA 121-130'!$J$126","v":0},{"$f":"'MA 121-130'!$K$126","v":0},{"$f":"'MA 121-130'!$L$126","v":0},{"$f":"'MA 121-130'!$M$126","v":"0%"}]
["MA 130",{"$f":"'MA 121-130'!$B$128","v":0},{"$f":"IF(Hintergrunddaten!$AY$65=1,\"\",IF(Hintergrunddaten!$AY$65=2,\"Medizin\",IF(Hintergrunddaten!$AY$65=3,\"Pflege\",IF(Hintergrunddaten!$AY$65=4,\"Hebammen\",\"nicht klinisches Personal\"))))","v":""},{"$f":"'MA 121-130'!$F$140","v":0},{"$f":"'MA 121-130'!$G$140","v":0},{"$f":"'MA 121-130'!$H$140","v":0},{"$f":"'MA 121-130'!$I$140","v":0},{"$f":"'MA 121-130'!$J$140","v":0},{"$f":"'MA 121-130'!$K$140","v":0},{"$f":"'MA 121-130'!$L$140","v":0},{"$f":"'MA 121-130'!$M$140","v":"0%"}]
["MA 131",{"$f":"'MA 131-140'!$B$2","v":0},{"$f":"IF(Hintergrunddaten!$BC$2=1,\"\",IF(Hintergrunddaten!$BC$2=2,\"Medizin\",IF(Hintergrunddaten!$BC$2=3,\"Pflege\",IF(Hintergrunddaten!$BC$2=4,\"Hebammen\",\"nicht klinisches Personal\"))))","v":""},{"$f":"'MA 131-140'!$F$14","v":0},{"$f":"'MA 131-140'!$G$14","v":0},{"$f":"'MA 131-140'!$H$14","v":0},{"$f":"'MA 131-140'!$I$14","v":0},{"$f":"'MA 131-140'!$J$14","v":0},{"$f":"'MA 131-140'!$K$14","v":0},{"$f":"'MA 131-140'!$L$14","v":0},{"$f":"'MA 131-140'!$M$14","v":"0%"}]
["MA 132",{"$f":"'MA 131-140'!$B$16","v":0},{"$f":"IF(Hintergrunddaten!$BC$9=1,\"\",IF(Hintergrunddaten!$BC$9=2,\"Medizin\",IF(Hintergrunddaten!$BC$9=3,\"Pflege\",IF(Hintergrunddaten!$BC$9=4,\"Hebammen\",\"nicht klinisches Personal\"))))","v":""},{"$f":"'MA 131-140'!$F$28","v":0},{"$f":"'MA 131-140'!$G$28","v":0},{"$f":"'MA 131-140'!$H$28","v":0},{"$f":"'MA 131-140'!$I$28","v":0},{"$f":"'MA 131-140'!$J$28","v":0},{"$f":"'MA 131-140'!$K$28","v":0},{"$f":"'MA 131-140'!$L$28","v":0},{"$f":"'MA 131-140'!$M$28","v":"0%"}]
["MA 133",{"$f":"'MA 131-140'!$B$30","v":0},{"$f":"IF(Hintergrunddaten!$BC$16=1,\"\",IF(Hintergrunddaten!$BC$16=2,\"Medizin\",IF(Hintergrunddaten!$BC$16=3,\"Pflege\",IF(Hintergrunddaten!$BC$16=4,\"Hebammen\",\"nicht klinisches Personal\"))))","v":""},{"$f":"'MA 131-140'!$F$42","v":0},{"$f":"'MA 131-140'!$G$42","v":0},{"$f":"'MA 131-140'!$H$42","v":0},{"$f":"'MA 131-140'!$I$42","v":0},{"$f":"'MA 131-140'!$J$42","v":0},{"$f":"'MA 131-140'!$K$42","v":0},{"$f":"'MA 131-140'!$L$42","v":0},{"$f":"'MA 131-140'!$M$42","v":"0%"}]
["MA 134",{"$f":"'MA 131-140'!$B$44","v":0},{"$f":"IF(Hintergrunddaten!$BC$23=1,\"\",IF(Hintergrunddaten!$BC$23=2,\"Medizin\",IF(Hintergrunddaten!$BC$23=3,\"Pflege\",IF(Hintergrunddaten!$BC$23=4,\"Hebammen\",\"nicht klinisches Personal\"))))","v":""},{"$f":"'MA 131-140'!$F$56","v":0},{"$f":"'MA 131-140'!$G$56","v":0},{"$f":"'MA 131-140'!$H$56","v":0},{"$f":"'MA 131-140'!$I$56","v":0},{"$f":"'MA 131-140'!$J$56","v":0},{"$f":"'MA 131-140'!$K$56","v":0},{"$f":"'MA 131-140'!$L$56","v":0},{"$f":"'MA 131-140'!$M$56","v":"0%"}]
["MA 135",{"$f":"'MA 131-140'!$B$58","v":0},{"$f":"IF(Hintergrunddaten!$BC$30=1,\"\",IF(Hintergrunddaten!$BC$30=2,\"Medizin\",IF(Hintergrunddaten!$BC$30=3,\"Pflege\",IF(Hintergrunddaten!$BC$30=4,\"Hebammen\",\"nicht klinisches Personal\"))))","v":""},{"$f":"'MA 131-140'!$F$70","v":0},{"$f":"'MA 131-140'!$G$70","v":0},{"$f":"'MA 131-140'!$H$70","v":0},{"$f":"'MA 131-140'!$I$70","v":0},{"$f":"'MA 131-140'!$J$70","v":0},{"$f":"'MA 131-140'!$K$70","v":0},{"$f":"'MA 131-140'!$L$70","v":0},{"$f":"'MA 131-140'!$M$70","v":"0%"}]
["MA 136",{"$f":"'MA 131-140'!$B$72","v":0},{"$f":"IF(Hintergrunddaten!$BC$37=1,\"\",IF(Hintergrunddaten!$BC$37=2,\"Medizin\",IF(Hintergrunddaten!$BC$37=3,\"Pflege\",IF(Hintergrunddaten!$BC$37=4,\"Hebammen\",\"nicht klinisches Personal\"))))","v":""},{"$f":"'MA 131-140'!$F$84","v":0},{"$f":"'MA 131-140'!$G$84","v":0},{"$f":"'MA 131-140'!$H$84","v":0},{"$f":"'MA 131-140'!$I$84","v":0},{"$f":"'MA 131-140'!$J$84","v":0},{"$f":"'MA 131-140'!$K$84","v":0},{"$f":"'MA 131-140'!$L$84","v":0},{"$f":"'MA 131-140'!$M$84","v":"0%"}]
["MA 137",{"$f":"'MA 131-140'!$B$86","v":0},{"$f":"IF(Hintergrunddaten!$BC$44=1,\"\",IF(Hintergrunddaten!$BC$44=2,\"Medizin\",IF(Hintergrunddaten!$BC$44=3,\"Pflege\",IF(Hintergrunddaten!$BC$44=4,\"Hebammen\",\"nicht klinisches Personal\"))))","v":""},{"$f":"'MA 131-140'!$F$98","v":0},{"$f":"'MA 131-140'!$G$98","v":0},{"$f":"'MA 131-140'!$H$98","v":0},{"$f":"'MA 131-140'!$I$98","v":0},{"$f":"'MA 131-140'!$J$98","v":0},{"$f":"'MA 131-140'!$K$98","v":0},{"$f":"'MA 131-140'!$L$98","v":0},{"$f":"'MA 131-140'!$M$98","v":"0%"}]
["MA 138",{"$f":"'MA 131-140'!$B$100","v":0},{"$f":"IF(Hintergrunddaten!$BC$51=1,\"\",IF(Hintergrunddaten!$BC$51=2,\"Medizin\",IF(Hintergrunddaten!$BC$51=3,\"Pflege\",IF(Hintergrunddaten!$BC$51=4,\"Hebammen\",\"nicht klinisches Personal\"))))","v":""},{"$f":"'MA 131-140'!$F$112","v":0},{"$f":"'MA 131-140'!$G$112","v":0},{"$f":"'MA 131-140'!$H$112","v":0},{"$f":"'MA 131-140'!$I$112","v":0},{"$f":"'MA 131-140'!$J$112","v":0},{"$f":"'MA 131-140'!$K$112","v":0},{"$f":"'MA 131-140'!$L$112","v":0},{"$f":"'MA 131-140'!$M$112","v":"0%"}]
["MA 139",{"$f":"'MA 131-140'!$B$114","v":0},{"$f":"IF(Hintergrunddaten!$BC$58=1,\"\",IF(Hintergrunddaten!$BC$58=2,\"Medizin\",IF(Hintergrunddaten!$BC$58=3,\"Pflege\",IF(Hintergrunddaten!$BC$58=4,\"Hebammen\",\"nicht klinisches Personal\"))))","v":""},{"$f":"'MA 131-140'!$F$126","v":0},{"$f":"'MA 131-140'!$G$126","v":0},{"$f":"'MA 131-140'!$H$126","v":0},{"$f":"'MA 131-140'!$I$126","v":0},{"$f":"'MA 131-140'!$J$126","v":0},{"$f":"'MA 131-140'!$K$126","v":0},{"$f":"'MA 131-140'!$L$126","v":0},{"$f":"'MA 131-140'!$M$126","v":"0%"}]
["MA 140",{"$f":"'MA 131-140'!$B$128","v":0},{"$f":"IF(Hintergrunddaten!$BC$65=1,\"\",IF(Hintergrunddaten!$BC$65=2,\"Medizin\",IF(Hintergrunddaten!$BC$65=3,\"Pflege\",IF(Hintergrunddaten!$BC$65=4,\"Hebammen\",\"nicht klinisches Personal\"))))","v":""},{"$f":"'MA 131-140'!$F$140","v":0},{"$f":"'MA 131-140'!$G$140","v":0},{"$f":"'MA 131-140'!$H$140","v":0},{"$f":"'MA 131-140'!$I$140","v":0},{"$f":"'MA 131-140'!$J$140","v":0},{"$f":"'MA 131-140'!$K$140","v":0},{"$f":"'MA 131-140'!$L$140","v":0},{"$f":"'MA 131-140'!$M$140","v":"0%"}]
["MA 141",{"$f":"'MA 141-150'!$B$2","v":0},{"$f":"IF(Hintergrunddaten!$BG$2=1,\"\",IF(Hintergrunddaten!$BG$2=2,\"Medizin\",IF(Hintergrunddaten!$BG$2=3,\"Pflege\",IF(Hintergrunddaten!$BG$2=4,\"Hebammen\",\"nicht klinisches Personal\"))))","v":""},{"$f":"'MA 141-150'!$F$14","v":0},{"$f":"'MA 141-150'!$G$14","v":0},{"$f":"'MA 141-150'!$H$14","v":0},{"$f":"'MA 141-150'!$I$14","v":0},{"$f":"'MA 141-150'!$J$14","v":0},{"$f":"'MA 141-150'!$K$14","v":0},{"$f":"'MA 141-150'!$L$14","v":0},{"$f":"'MA 141-150'!$M$14","v":"0%"}]
["MA 142",{"$f":"'MA 141-150'!$B$16","v":0},{"$f":"IF(Hintergrunddaten!$BG$9=1,\"\",IF(Hintergrunddaten!$BG$9=2,\"Medizin\",IF(Hintergrunddaten!$BG$9=3,\"Pflege\",IF(Hintergrunddaten!$BG$9=4,\"Hebammen\",\"nicht klinisches Personal\"))))","v":""},{"$f":"'MA 141-150'!$F$28","v":0},{"$f":"'MA 141-150'!$G$28","v":0},{"$f":"'MA 141-150'!$H$28","v":0},{"$f":"'MA 141-150'!$I$28","v":0},{"$f":"'MA 141-150'!$J$28","v":0},{"$f":"'MA 141-150'!$K$28","v":0},{"$f":"'MA 141-150'!$L$28","v":0},{"$f":"'MA 141-150'!$M$28","v":"0%"}]
["MA 143",{"$f":"'MA 141-150'!$B$30","v":0},{"$f":"IF(Hintergrunddaten!$BG$16=1,\"\",IF(Hintergrunddaten!$BG$16=2,\"Medizin\",IF(Hintergrunddaten!$BG$16=3,\"Pflege\",IF(Hintergrunddaten!$BG$16=4,\"Hebammen\",\"nicht klinisches Personal\"))))","v":""},{"$f":"'MA 141-150'!$F$42","v":0},{"$f":"'MA 141-150'!$G$42","v":0},{"$f":"'MA 141-150'!$H$42","v":0},{"$f":"'MA 141-150'!$I$42","v":0},{"$f":"'MA 141-150'!$J$42","v":0},{"$f":"'MA 141-150'!$K$42","v":0},{"$f":"'MA 141-150'!$L$42","v":0},{"$f":"'MA 141-150'!$M$42","v":"0%"}]
["MA 144",{"$f":"'MA 141-150'!$B$44","v":0},{"$f":"IF(Hintergrunddaten!$BG$23=1,\"\",IF(Hintergrunddaten!$BG$23=2,\"Medizin\",IF(Hintergrunddaten!$BG$23=3,\"Pflege\",IF(Hintergrunddaten!$BG$23=4,\"Hebammen\",\"nicht klinisches Personal\"))))","v":""},{"$f":"'MA 141-150'!$F$56","v":0},{"$f":"'MA 141-150'!$G$56","v":0},{"$f":"'MA 141-150'!$H$56","v":0},{"$f":"'MA 141-150'!$I$56","v":0},{"$f":"'MA 141-150'!$J$56","v":0},{"$f":"'MA 141-150'!$K$56","v":0},{"$f":"'MA 141-150'!$L$56","v":0},{"$f":"'MA 141-150'!$M$56","v":"0%"}]
["MA 145",{"$f":"'MA 141-150'!$B$58","v":0},{"$f":"IF(Hintergrunddaten!$BG$30=1,\"\",IF(Hintergrunddaten!$BG$30=2,\"Medizin\",IF(Hintergrunddaten!$BG$30=3,\"Pflege\",IF(Hintergrunddaten!$BG$30=4,\"Hebammen\",\"nicht klinisches Personal\"))))","v":""},{"$f":"'MA 141-150'!$F$70","v":0},{"$f":"'MA 141-150'!$G$70","v":0},{"$f":"'MA 141-150'!$H$70","v":0},{"$f":"'MA 141-150'!$I$70","v":0},{"$f":"'MA 141-150'!$J$70","v":0},{"$f":"'MA 141-150'!$K$70","v":0},{"$f":"'MA 141-150'!$L$70","v":0},{"$f":"'MA 141-150'!$M$70","v":"0%"}]
["MA 146",{"$f":"'MA 141-150'!$B$72","v":0},{"$f":"IF(Hintergrunddaten!$BG$37=1,\"\",IF(Hintergrunddaten!$BG$37=2,\"Medizin\",IF(Hintergrunddaten!$BG$37=3,\"Pflege\",IF(Hintergrunddaten!$BG$37=4,\"Hebammen\",\"nicht klinisches Personal\"))))","v":""},{"$f":"'MA 141-150'!$F$84","v":0},{"$f":"'MA 141-150'!$G$84","v":0},{"$f":"'MA 141-150'!$H$84","v":0},{"$f":"'MA 141-150'!$I$84","v":0},{"$f":"'MA 141-150'!$J$84","v":0},{"$f":"'MA 141-150'!$K$84","v":0},{"$f":"'MA 141-150'!$L$84","v":0},{"$f":"'MA 141-150'!$M$84","v":"0%"}]
["MA 147",{"$f":"'MA 141-150'!$B$86","v":0},{"$f":"IF(Hintergrunddaten!$BG$44=1,\"\",IF(Hintergrunddaten!$BG$44=2,\"Medizin\",IF(Hintergrunddaten!$BG$44=3,\"Pflege\",IF(Hintergrunddaten!$BG$44=4,\"Hebammen\",\"nicht klinisches Personal\"))))","v":""},{"$f":"'MA 141-150'!$F$98","v":0},{"$f":"'MA 141-150'!$G$98","v":0},{"$f":"'MA 141-150'!$H$98","v":0},{"$f":"'MA 141-150'!$I$98","v":0},{"$f":"'MA 141-150'!$J$98","v":0},{"$f":"'MA 141-150'!$K$98","v":0},{"$f":"'MA 141-150'!$L$98","v":0},{"$f":"'MA 141-150'!$M$98","v":"0%"}]
["MA 148",{"$f":"'MA 141-150'!$B$100","v":0},{"$f":"IF(Hintergrunddaten!$BG$51=1,\"\",IF(Hintergrunddaten!$BG$51=2,\"Medizin\",IF(Hintergrunddaten!$BG$51=3,\"Pflege\",IF(Hintergrunddaten!$BG$51=4,\"Hebammen\",\"nicht klinisches Personal\"))))","v":""},{"$f":"'MA 141-150'!$F$112","v":0},{"$f":"'MA 141-150'!$G$112","v":0},{"$f":"'MA 141-150'!$H$112","v":0},{"$f":"'MA 141-150'!$I$112","v":0},{"$f":"'MA 141-150'!$J$112","v":0},{"$f":"'MA 141-150'!$K$112","v":0},{"$f":"'MA 141-150'!$L$112","v":0},{"$f":"'MA 141-150'!$M$112","v":"0%"}]
["MA 149",{"$f":"'MA 141-150'!$B$114","v":0},{"$f":"IF(Hintergrunddaten!$BG$58=1,\"\",IF(Hintergrunddaten!$BG$58=2,\"Medizin\",IF(Hintergrunddaten!$BG$58=3,\"Pflege\",IF(Hintergrunddaten!$BG$58=4,\"Hebammen\",\"nicht klinisches Personal\"))))","v":""},{"$f":"'MA 141-150'!$F$126","v":0},{"$f":"'MA 141-150'!$G$126","v":0},{"$f":"'MA 141-150'!$H$126","v":0},{"$f":"'MA 141-150'!$I$126","v":0},{"$f":"'MA 141-150'!$J$126","v":0},{"$f":"'MA 141-150'!$K$126","v":0},{"$f":"'MA 141-150'!$L$126","v":0},{"$f":"'MA 141-150'!$M$126","v":"0%"}]
["MA 150",{"$f":"'MA 141-150'!$B$128","v":0},{"$f":"IF(Hintergrunddaten!$BG$65=1,\"\",IF(Hintergrunddaten!$BG$65=2,\"Medizin\",IF(Hintergrunddaten!$BG$65=3,\"Pflege\",IF(Hintergrunddaten!$BG$65=4,\"Hebammen\",\"nicht klinisches Personal\"))))","v":""},{"$f":"'MA 141-150'!$F$140","v":0},{"$f":"'MA 141-150'!$G$140","v":0},{"$f":"'MA 141-150'!$H$140","v":0},{"$f":"'MA 141-150'!$I$140","v":0},{"$f":"'MA 141-150'!$J$140","v":0},{"$f":"'MA 141-150'!$K$140","v":0},{"$f":"'MA 141-150'!$L$140","v":0},{"$f":"'MA 141-150'!$M$140","v":"0%"}]

{"sheet":"MA 1-10","index":1,"n_rows":140,"n_cols":13,"rows_kept":140,"cut":false,"hidden":false,"merged":[]}
[]
["MitarbeiterIn 001",null,null,null,null,{"$f":"IF(Übersicht!D3=0,\"Stunden Jahr 1\",\"Stunden\"&(Übersicht!D3))","v":"Stunden Jahr 1"},{"$f":"IF(Übersicht!D3=0,\"Stunden Jahr 2\",Übersicht!E6)","v":"Stunden Jahr 2"},{"$f":"IF(Übersicht!D3=0,\"Stunden Jahr 3\",Übersicht!F6)","v":"Stunden Jahr 3"},{"$f":"IF(Übersicht!D3=0,\"Stunden Jahr 4\",Übersicht!G6)","v":"Stunden Jahr 4"},"Stunden\nGesamt","Soll-stunden","Differenz","% erreicht"]
[null,"Titel der Fortbildung","Datum von","Datum bis","Inhalte",null,null,null,null,{"$f":"SUM(F14:I14)","v":0},{"$f":"IF(Hintergrunddaten!$C$2=1,0,IF(Hintergrunddaten!$C$2=2,10,IF(Hintergrunddaten!$C$2=5,4,20)))","v":0},{"$f":"K14-J14","v":0},{"$f":"IF('MA 1-10'!K3=0,\"0%\",J3/K3)","v":"0%"}]
["Fortbildung 01",null,null,null,null,null,null,null,null,{"$f":"SUM(F4:I4)","v":0}]
["Fortbildung 02",null,null,null,null,null,null,null,null,{"$f":"SUM(F5:I5)","v":0}]
["Fortbildung 03",null,null,null,null,null,null,null,null,0]
["Fortbildung 04",null,null,null,null,null,null,null,null,0]
["Fortbildung 05",null,null,null,null,null,null,null,null,0]
["Fortbildung 06",null,null,null,null,null,null,null,null,0]
["Fortbildung 07",null,null,null,null,null,null,null,null,0]
["Fortbildung 08",null,null,null,null,null,null,null,null,0]
["Fortbildung 09",null,null,null,null,null,null,null,null,0]
["Fortbildung 10",null,null,null,null,null,null,null,null,0]
[null,null,null,null,null,{"$f":"SUM(F3:F13)","v":0},{"$f":"SUM(G3:G13)","v":0},{"$f":"SUM(H3:H13)","v":0},{"$f":"SUM(I3:I13)","v":0},{"$f":"SUM(F14:I14)","v":0},{"$f":"IF(Hintergrunddaten!$C$2=1,0,IF(Hintergrunddaten!$C$2=2,10,IF(Hintergrunddaten!$C$2=5,4,20)))","v":0},{"$f":"K14-J14","v":0},{"$f":"IF('MA 1-10'!K3=0,\"0%\",J3/K3)","v":"0%"}]
[]
["MitarbeiterIn 002",null,null,null,null,{"$f":"IF(Übersicht!D3=0,\"Stunden Jahr 1\",\"Stunden\"&(Übersicht!D3))","v":"Stunden Jahr 1"},{"$f":"IF(Übersicht!D3=0,\"Stunden Jahr 2\",Übersicht!E6)","v":"Stunden Jahr 2"},{"$f":"IF(Übersicht!D3=0,\"Stunden Jahr 3\",Übersicht!F6)","v":"Stunden Jahr 3"},{"$f":"IF(Übersicht!D3=0,\"Stunden Jahr 4\",Übersicht!G6)","v":"Stunden Jahr 4"},"Stunden\nGesamt","Soll-stunden","Differenz","% erreicht"]
[null,"Titel der Fortbildung","Datum von","Datum bis","Inhalte",null,null,null,null,{"$f":"SUM(F28:I28)","v":0},{"$f":"IF(Hintergrunddaten!$C$9=1,0,IF(Hintergrunddaten!$C$9=2,10,IF(Hintergrunddaten!$C$9=5,4,20)))","v":0},{"$f":"K28-J28","v":0},{"$f":"IF('MA 1-10'!K17=0,\"0%\",J17/K17)","v":"0%"}]
["Fortbildung 01",null,null,null,null,null,null,null,null,{"$f":"SUM(F18:I18)","v":0}]
["Fortbildung 02",null,null,null,null,null,null,null,null,{"$f":"SUM(F19:I19)","v":0}]
["Fortbildung 03",null,null,null,null,null,null,null,null,0]
["Fortbildung 04",null,null,null,null,null,null,null,null,0]
["Fortbildung 05",null,null,null,null,null,null,null,null,0]
["Fortbildung 06",null,null,null,null,null,null,null,null,0]
["Fortbildung 07",null,null,null,null,null,null,null,null,0]
["Fortbildung 08",null,null,null,null,null,null,null,null,0]
["Fortbildung 09",null,null,null,null,null,null,null,null,0]
["Fortbildung 10",null,null,null,null,null,null,null,null,0]
[null,null,null,null,null,{"$f":"SUM(F17:F27)","v":0},{"$f":"SUM(G17:G27)","v":0},{"$f":"SUM(H17:H27)","v":0},{"$f":"SUM(I17:I27)","v":0},{"$f":"SUM(F28:I28)","v":0},{"$f":"IF(Hintergrunddaten!$C$9=1,0,IF(Hintergrunddaten!$C$9=2,10,IF(Hintergrunddaten!$C$9=5,4,20)))","v":0},{"$f":"K28-J28","v":0},{"$f":"IF('MA 1-10'!K17=0,\"0%\",J17/K17)","v":"0%"}]
[]
["MitarbeiterIn 003",null,null,null,null,{"$f":"IF(Übersicht!D3=0,\"Stunden Jahr 1\",\"Stunden\"&(Übersicht!D3))","v":"Stunden Jahr 1"},{"$f":"IF(Übersicht!D3=0,\"Stunden Jahr 2\",Übersicht!E6)","v":"Stunden Jahr 2"},{"$f":"IF(Übersicht!D3=0,\"Stunden Jahr 3\",Übersicht!F6)","v":"Stunden Jahr 3"},{"$f":"IF(Übersicht!D3=0,\"Stunden Jahr 4\",Übersicht!G6)","v":"Stunden Jahr 4"},"Stunden\nGesamt","Soll-stunden","Differenz","% erreicht"]
[null,"Titel der Fortbildung","Datum von","Datum bis","Inhalte",null,null,null,null,{"$f":"SUM(F42:I42)","v":0},{"$f":"IF(Hintergrunddaten!$C$16=1,0,IF(Hintergrunddaten!$C$16=2,10,IF(Hintergrunddaten!$C$16=5,4,20)))","v":0},{"$f":"K42-J42","v":0},{"$f":"IF('MA 1-10'!K31=0,\"0%\",J31/K31)","v":"0%"}]
["Fortbildung 01",null,null,null,null,null,null,null,null,{"$f":"SUM(F32:I32)","v":0}]
["Fortbildung 02",null,null,null,null,null,null,null,null,{"$f":"SUM(F33:I33)","v":0}]
["Fortbildung 03",null,null,null,null,null,null,null,null,0]
["Fortbildung 04",null,null,null,null,null,null,null,null,0]
["Fortbildung 05",null,null,null,null,null,null,null,null,0]
["Fortbildung 06",null,null,null,null,null,null,null,null,0]
["Fortbildung 07",null,null,null,null,null,null,null,null,0]
["Fortbildung 08",null,null,null,null,null,null,null,null,0]
["Fortbildung 09",null,null,null,null,null,null,null,null,0]
["Fortbildung 10",null,null,null,null,null,null,null,null,0]
[null,null,null,null,null,{"$f":"SUM(F31:F41)","v":0},{"$f":"SUM(G31:G41)","v":0},{"$f":"SUM(H31:H41)","v":0},{"$f":"SUM(I31:I41)","v":0},{"$f":"SUM(F42:I42)","v":0},{"$f":"IF(Hintergrunddaten!$C$16=1,0,IF(Hintergrunddaten!$C$16=2,10,IF(Hintergrunddaten!$C$16=5,4,20)))","v":0},{"$f":"K42-J42","v":0},{"$f":"IF('MA 1-10'!K31=0,\"0%\",J31/K31)","v":"0%"}]
[]
["MitarbeiterIn 004",null,null,null,null,{"$f":"IF(Übersicht!D3=0,\"Stunden Jahr 1\",\"Stunden\"&(Übersicht!D3))","v":"Stunden Jahr 1"},{"$f":"IF(Übersicht!D3=0,\"Stunden Jahr 2\",Übersicht!E6)","v":"Stunden Jahr 2"},{"$f":"IF(Übersicht!D3=0,\"Stunden Jahr 3\",Übersicht!F6)","v":"Stunden Jahr 3"},{"$f":"IF(Übersicht!D3=0,\"Stunden Jahr 4\",Übersicht!G6)","v":"Stunden Jahr 4"},"Stunden\nGesamt","Soll-stunden","Differenz","% erreicht"]
[null,"Titel der Fortbildung","Datum von","Datum bis","Inhalte",null,null,null,null,{"$f":"SUM(F56:I56)","v":0},{"$f":"IF(Hintergrunddaten!$C$23=1,0,IF(Hintergrunddaten!$C$23=2,10,IF(Hintergrunddaten!$C$23=5,4,20)))","v":0},{"$f":"K56-J56","v":0},{"$f":"IF('MA 1-10'!K45=0,\"0%\",J45/K45)","v":"0%"}]
["Fortbildung 01",null,null,null,null,null,null,null,null,{"$f":"SUM(F46:I46)","v":0}]
["Fortbildung 02",null,null,null,null,null,null,null,null,{"$f":"SUM(F47:I47)","v":0}]
["Fortbildung 03",null,null,null,null,null,null,null,null,0]
["Fortbildung 04",null,null,null,null,null,null,null,null,0]
["Fortbildung 05",null,null,null,null,null,null,null,null,0]
["Fortbildung 06",null,null,null,null,null,null,null,null,0]
["Fortbildung 07",null,null,null,null,null,null,null,null,0]
["Fortbildung 08",null,null,null,null,null,null,null,null,0]
["Fortbildung 09",null,null,null,null,null,null,null,null,0]
["Fortbildung 10",null,null,null,null,null,null,null,null,0]
[null,null,null,null,null,{"$f":"SUM(F45:F55)","v":0},{"$f":"SUM(G45:G55)","v":0},{"$f":"SUM(H45:H55)","v":0},{"$f":"SUM(I45:I55)","v":0},{"$f":"SUM(F56:I56)","v":0},{"$f":"IF(Hintergrunddaten!$C$23=1,0,IF(Hintergrunddaten!$C$23=2,10,IF(Hintergrunddaten!$C$23=5,4,20)))","v":0},{"$f":"K56-J56","v":0},{"$f":"IF('MA 1-10'!K45=0,\"0%\",J45/K45)","v":"0%"}]
[]
["MitarbeiterIn 005",null,null,null,null,{"$f":"IF(Übersicht!D3=0,\"Stunden Jahr 1\",\"Stunden\"&(Übersicht!D3))","v":"Stunden Jahr 1"},{"$f":"IF(Übersicht!D3=0,\"Stunden Jahr 2\",Übersicht!E6)","v":"Stunden Jahr 2"},{"$f":"IF(Übersicht!D3=0,\"Stunden Jahr 3\",Übersicht!F6)","v":"Stunden Jahr 3"},{"$f":"IF(Übersicht!D3=0,\"Stunden Jahr 4\",Übersicht!G6)","v":"Stunden Jahr 4"},"Stunden\nGesamt","Soll-stunden","Differenz","% erreicht"]
[null,"Titel der Fortbildung","Datum von","Datum bis","Inhalte",null,null,null,null,{"$f":"SUM(F70:I70)","v":0},{"$f":"IF(Hintergrunddaten!$C$30=1,0,IF(Hintergrunddaten!$C$30=2,10,IF(Hintergrunddaten!$C$30=5,4,20)))","v":0},{"$f":"K70-J70","v":0},{"$f":"IF('MA 1-10'!K59=0,\"0%\",J59/K59)","v":"0%"}]
["Fortbildung 01",null,null,null,null,null,null,null,null,{"$f":"SUM(F60:I60)","v":0}]
["Fortbildung 02",null,null,null,null,null,null,null,null,{"$f":"SUM(F61:I61)","v":0}]
["Fortbildung 03",null,null,null,null,null,null,null,null,0]
["Fortbildung 04",null,null,null,null,null,null,null,null,0]
["Fortbildung 05",null,null,null,null,null,null,null,null,0]
["Fortbildung 06",null,null,null,null,null,null,null,null,0]
["Fortbildung 07",null,null,null,null,null,null,null,null,0]
["Fortbildung 08",null,null,null,null,null,null,null,null,0]
["Fortbildung 09",null,null,null,null,null,null,null,null,0]
["Fortbildung 10",null,null,null,null,null,null,null,null,0]
[null,null,null,null,null,{"$f":"SUM(F59:F69)","v":0},{"$f":"SUM(G59:G69)","v":0},{"$f":"SUM(H59:H69)","v":0},{"$f":"SUM(I59:I69)","v":0},{"$f":"SUM(F70:I70)","v":0},{"$f":"IF(Hintergrunddaten!$C$30=1,0,IF(Hintergrunddaten!$C$30=2,10,IF(Hintergrunddaten!$C$30=5,4,20)))","v":0},{"$f":"K70-J70","v":0},{"$f":"IF('MA 1-10'!K59=0,\"0%\",J59/K59)","v":"0%"}]
[]
["MitarbeiterIn 006",null,null,null,null,{"$f":"IF(Übersicht!D3=0,\"Stunden Jahr 1\",\"Stunden\"&(Übersicht!D3))","v":"Stunden Jahr 1"},{"$f":"IF(Übersicht!D3=0,\"Stunden Jahr 2\",Übersicht!E6)","v":"Stunden Jahr 2"},{"$f":"IF(Übersicht!D3=0,\"Stunden Jahr 3\",Übersicht!F6)","v":"Stunden Jahr 3"},{"$f":"IF(Übersicht!D3=0,\"Stunden Jahr 4\",Übersicht!G6)","v":"Stunden Jahr 4"},"Stunden\nGesamt","Soll-stunden","Differenz","% erreicht"]
[null,"Titel der Fortbildung","Datum von","Datum bis","Inhalte",null,null,null,null,{"$f":"SUM(F84:I84)","v":0},{"$f":"IF(Hintergrunddaten!$C$37=1,0,IF(Hintergrunddaten!$C$37=2,10,IF(Hintergrunddaten!$C$37=5,4,20)))","v":0},{"$f":"K84-J84","v":0},{"$f":"IF('MA 1-10'!K73=0,\"0%\",J73/K73)","v":"0%"}]
["Fortbildung 01",null,null,null,null,null,null,null,null,{"$f":"SUM(F74:I74)","v":0}]
["Fortbildung 02",null,null,null,null,null,null,null,null,{"$f":"SUM(F75:I75)","v":0}]
["Fortbildung 03",null,null,null,null,null,null,null,null,0]
["Fortbildung 04",null,null,null,null,null,null,null,null,0]
["Fortbildung 05",null,null,null,null,null,null,null,null,0]
["Fortbildung 06",null,null,null,null,null,null,null,null,0]
["Fortbildung 07",null,null,null,null,null,null,null,null,0]
["Fortbildung 08",null,null,null,null,null,null,null,null,0]
["Fortbildung 09",null,null,null,null,null,null,null,null,0]
["Fortbildung 10",null,null,null,null,null,null,null,null,0]
[null,null,null,null,null,{"$f":"SUM(F73:F83)","v":0},{"$f":"SUM(G73:G83)","v":0},{"$f":"SUM(H73:H83)","v":0},{"$f":"SUM(I73:I83)","v":0},{"$f":"SUM(F84:I84)","v":0},{"$f":"IF(Hintergrunddaten!$C$37=1,0,IF(Hintergrunddaten!$C$37=2,10,IF(Hintergrunddaten!$C$37=5,4,20)))","v":0},{"$f":"K84-J84","v":0},{"$f":"IF('MA 1-10'!K73=0,\"0%\",J73/K73)","v":"0%"}]
[]
["MitarbeiterIn 007",null,null,null,null,{"$f":"IF(Übersicht!D3=0,\"Stunden Jahr 1\",\"Stunden\"&(Übersicht!D3))","v":"Stunden Jahr 1"},{"$f":"IF(Übersicht!D3=0,\"Stunden Jahr 2\",Übersicht!E6)","v":"Stunden Jahr 2"},{"$f":"IF(Übersicht!D3=0,\"Stunden Jahr 3\",Übersicht!F6)","v":"Stunden Jahr 3"},{"$f":"IF(Übersicht!D3=0,\"Stunden Jahr 4\",Übersicht!G6)","v":"Stunden Jahr 4"},"Stunden\nGesamt","Soll-stunden","Differenz","% erreicht"]
[null,"Titel der Fortbildung","Datum von","Datum bis","Inhalte",null,null,null,null,{"$f":"SUM(F98:I98)","v":0},{"$f":"IF(Hintergrunddaten!$C$44=1,0,IF(Hintergrunddaten!$C$44=2,10,IF(Hintergrunddaten!$C$44=5,4,20)))","v":0},{"$f":"K98-J98","v":0},{"$f":"IF('MA 1-10'!K87=0,\"0%\",J87/K87)","v":"0%"}]
["Fortbildung 01",null,null,null,null,null,null,null,null,{"$f":"SUM(F88:I88)","v":0}]
["Fortbildung 02",null,null,null,null,null,null,null,null,{"$f":"SUM(F89:I89)","v":0}]
["Fortbildung 03",null,null,null,null,null,null,null,null,0]
["Fortbildung 04",null,null,null,null,null,null,null,null,0]
["Fortbildung 05",null,null,null,null,null,null,null,null,0]
["Fortbildung 06",null,null,null,null,null,null,null,null,0]
["Fortbildung 07",null,null,null,null,null,null,null,null,0]
["Fortbildung 08",null,null,null,null,null,null,null,null,0]
["Fortbildung 09",null,null,null,null,null,null,null,null,0]
["Fortbildung 10",null,null,null,null,null,null,null,null,0]
[null,null,null,null,null,{"$f":"SUM(F87:F97)","v":0},{"$f":"SUM(G87:G97)","v":0},{"$f":"SUM(H87:H97)","v":0},{"$f":"SUM(I87:I97)","v":0},{"$f":"SUM(F98:I98)","v":0},{"$f":"IF(Hintergrunddaten!$C$44=1,0,IF(Hintergrunddaten!$C$44=2,10,IF(Hintergrunddaten!$C$44=5,4,20)))","v":0},{"$f":"K98-J98","v":0},{"$f":"IF('MA 1-10'!K87=0,\"0%\",J87/K87)","v":"0%"}]
[]
["MitarbeiterIn 008",null,null,null,null,{"$f":"IF(Übersicht!D3=0,\"Stunden Jahr 1\",\"Stunden\"&(Übersicht!D3))","v":"Stunden Jahr 1"},{"$f":"IF(Übersicht!D3=0,\"Stunden Jahr 2\",Übersicht!E6)","v":"Stunden Jahr 2"},{"$f":"IF(Übersicht!D3=0,\"Stunden Jahr 3\",Übersicht!F6)","v":"Stunden Jahr 3"},{"$f":"IF(Übersicht!D3=0,\"Stunden Jahr 4\",Übersicht!G6)","v":"Stunden Jahr 4"},"Stunden\nGesamt","Soll-stunden","Differenz","% erreicht"]
[null,"Titel der Fortbildung","Datum von","Datum bis","Inhalte",null,null,null,null,{"$f":"SUM(F112:I112)","v":0},{"$f":"IF(Hintergrunddaten!$C$51=1,0,IF(Hintergrunddaten!$C$51=2,10,IF(Hintergrunddaten!$C$51=5,4,20)))","v":0},{"$f":"K112-J112","v":0},{"$f":"IF('MA 1-10'!K101=0,\"0%\",J101/K101)","v":"0%"}]
["Fortbildung 01",null,null,null,null,null,null,null,null,{"$f":"SUM(F102:I102)","v":0}]
["Fortbildung 02",null,null,null,null,null,null,null,null,{"$f":"SUM(F103:I103)","v":0}]
["Fortbildung 03",null,null,null,null,null,null,null,null,0]
["Fortbildung 04",null,null,null,null,null,null,null,null,0]
["Fortbildung 05",null,null,null,null,null,null,null,null,0]
["Fortbildung 06",null,null,null,null,null,null,null,null,0]
["Fortbildung 07",null,null,null,null,null,null,null,null,0]
["Fortbildung 08",null,null,null,null,null,null,null,null,0]
["Fortbildung 09",null,null,null,null,null,null,null,null,0]
["Fortbildung 10",null,null,null,null,null,null,null,null,0]
[null,null,null,null,null,{"$f":"SUM(F101:F111)","v":0},{"$f":"SUM(G101:G111)","v":0},{"$f":"SUM(H101:H111)","v":0},{"$f":"SUM(I101:I111)","v":0},{"$f":"SUM(F112:I112)","v":0},{"$f":"IF(Hintergrunddaten!$C$51=1,0,IF(Hintergrunddaten!$C$51=2,10,IF(Hintergrunddaten!$C$51=5,4,20)))","v":0},{"$f":"K112-J112","v":0},{"$f":"IF('MA 1-10'!K101=0,\"0%\",J101/K101)","v":"0%"}]
[]
["MitarbeiterIn 009",null,null,null,null,{"$f":"IF(Übersicht!D3=0,\"Stunden Jahr 1\",\"Stunden\"&(Übersicht!D3))","v":"Stunden Jahr 1"},{"$f":"IF(Übersicht!D3=0,\"Stunden Jahr 2\",Übersicht!E6)","v":"Stunden Jahr 2"},{"$f":"IF(Übersicht!D3=0,\"Stunden Jahr 3\",Übersicht!F6)","v":"Stunden Jahr 3"},{"$f":"IF(Übersicht!D3=0,\"Stunden Jahr 4\",Übersicht!G6)","v":"Stunden Jahr 4"},"Stunden\nGesamt","Soll-stunden","Differenz","% erreicht"]
[null,"Titel der Fortbildung","Datum von","Datum bis","Inhalte",null,null,null,null,{"$f":"SUM(F126:I126)","v":0},{"$f":"IF(Hintergrunddaten!$C$58=1,0,IF(Hintergrunddaten!$C$58=2,10,IF(Hintergrunddaten!$C$58=5,4,20)))","v":0},{"$f":"K126-J126","v":0},{"$f":"IF('MA 1-10'!K115=0,\"0%\",J115/K115)","v":"0%"}]
["Fortbildung 01",null,null,null,null,null,null,null,null,{"$f":"SUM(F116:I116)","v":0}]
["Fortbildung 02",null,null,null,null,null,null,null,null,{"$f":"SUM(F117:I117)","v":0}]
["Fortbildung 03",null,null,null,null,null,null,null,null,0]
["Fortbildung 04",null,null,null,null,null,null,null,null,0]
["Fortbildung 05",null,null,null,null,null,null,null,null,0]
["Fortbildung 06",null,null,null,null,null,null,null,null,0]
["Fortbildung 07",null,null,null,null,null,null,null,null,0]
["Fortbildung 08",null,null,null,null,null,null,null,null,0]
["Fortbildung 09",null,null,null,null,null,null,null,null,0]
["Fortbildung 10",null,null,null,null,null,null,null,null,0]
[null,null,null,null,null,{"$f":"SUM(F115:F125)","v":0},{"$f":"SUM(G115:G125)","v":0},{"$f":"SUM(H115:H125)","v":0},{"$f":"SUM(I115:I125)","v":0},{"$f":"SUM(F126:I126)","v":0},{"$f":"IF(Hintergrunddaten!$C$58=1,0,IF(Hintergrunddaten!$C$58=2,10,IF(Hintergrunddaten!$C$58=5,4,20)))","v":0},{"$f":"K126-J126","v":0},{"$f":"IF('MA 1-10'!K115=0,\"0%\",J115/K115)","v":"0%"}]
[]
["MitarbeiterIn 010",null,null,null,null,{"$f":"IF(Übersicht!D3=0,\"Stunden Jahr 1\",\"Stunden\"&(Übersicht!D3))","v":"Stunden Jahr 1"},{"$f":"IF(Übersicht!D3=0,\"Stunden Jahr 2\",Übersicht!E6)","v":"Stunden Jahr 2"},{"$f":"IF(Übersicht!D3=0,\"Stunden Jahr 3\",Übersicht!F6)","v":"Stunden Jahr 3"},{"$f":"IF(Übersicht!D3=0,\"Stunden Jahr 4\",Übersicht!G6)","v":"Stunden Jahr 4"},"Stunden\nGesamt","Soll-stunden","Differenz","% erreicht"]
[null,"Titel der Fortbildung","Datum von","Datum bis","Inhalte",null,null,null,null,{"$f":"SUM(F140:I140)","v":0},{"$f":"IF(Hintergrunddaten!$C$65=1,0,IF(Hintergrunddaten!$C$65=2,10,IF(Hintergrunddaten!$C$65=5,4,20)))","v":0},{"$f":"K140-J140","v":0},{"$f":"IF('MA 1-10'!K129=0,\"0%\",J129/K129)","v":"0%"}]
["Fortbildung 01",null,null,null,null,null,null,null,null,{"$f":"SUM(F130:I130)","v":0}]
["Fortbildung 02",null,null,null,null,null,null,null,null,{"$f":"SUM(F131:I131)","v":0}]
["Fortbildung 03",null,null,null,null,null,null,null,null,0]
["Fortbildung 04",null,null,null,null,null,null,null,null,0]
["Fortbildung 05",null,null,null,null,null,null,null,null,0]
["Fortbildung 06",null,null,null,null,null,null,null,null,0]
["Fortbildung 07",null,null,null,null,null,null,null,null,0]
["Fortbildung 08",null,null,null,null,null,null,null,null,0]
["Fortbildung 09",null,null,null,null,null,null,null,null,0]
["Fortbildung 10",null,null,null,null,null,null,null,null,0]
[null,null,null,null,null,{"$f":"SUM(F129:F139)","v":0},{"$f":"SUM(G129:G139)","v":0},{"$f":"SUM(H129:H139)","v":0},{"$f":"SUM(I129:I139)","v":0},{"$f":"SUM(F140:I140)","v":0},{"$f":"IF(Hintergrunddaten!$C$65=1,0,IF(Hintergrunddaten!$C$65=2,10,IF(Hintergrunddaten!$C$65=5,4,20)))","v":0},{"$f":"K140-J140","v":0},{"$f":"IF('MA 1-10'!K129=0,\"0%\",J129/K129)","v":"0%"}]

{"sheet":"MA 11-20","index":2,"n_rows":140,"n_cols":13,"rows_kept":140,"cut":false,"hidden":false,"merged":[]}
[]
["MitarbeiterIn 011",null,null,null,null,{"$f":"IF(Übersicht!D3=0,\"Stunden Jahr 1\",\"Stunden\"&(Übersicht!D3))","v":"Stunden Jahr 1"},{"$f":"IF(Übersicht!D3=0,\"Stunden Jahr 2\",Übersicht!E6)","v":"Stunden Jahr 2"},{"$f":"IF(Übersicht!D3=0,\"Stunden Jahr 3\",Übersicht!F6)","v":"Stunden Jahr 3"},{"$f":"IF(Übersicht!D3=0,\"Stunden Jahr 4\",Übersicht!G6)","v":"Stunden Jahr 4"},"Stunden\nGesamt","Soll-stunden","Differenz","% erreicht"]
[null,"Titel der Fortbildung","Datum von","Datum bis","Inhalte",null,null,null,null,{"$f":"SUM(F14:I14)","v":0},{"$f":"IF(Hintergrunddaten!$G$2=1,0,IF(Hintergrunddaten!$G$2=2,10,IF(Hintergrunddaten!$G$2=5,4,20)))","v":0},{"$f":"K14-J14","v":0},{"$f":"IF('MA 11-20'!K3=0,\"0%\",J3/K3)","v":"0%"}]
["Fortbildung 01",null,null,null,null,null,null,null,null,{"$f":"SUM(F4:I4)","v":0}]
["Fortbildung 02",null,null,null,null,null,null,null,null,{"$f":"SUM(F5:I5)","v":0}]
["Fortbildung 03",null,null,null,null,null,null,null,null,0]
["Fortbildung 04",null,null,null,null,null,null,null,null,0]
["Fortbildung 05",null,null,null,null,null,null,null,null,0]
["Fortbildung 06",null,null,null,null,null,null,null,null,0]
["Fortbildung 07",null,null,null,null,null,null,null,null,0]
["Fortbildung 08",null,null,null,null,null,null,null,null,0]
["Fortbildung 09",null,null,null,null,null,null,null,null,0]
["Fortbildung 10",null,null,null,null,null,null,null,null,0]
[null,null,null,null,null,{"$f":"SUM(F3:F13)","v":0},{"$f":"SUM(G3:G13)","v":0},{"$f":"SUM(H3:H13)","v":0},{"$f":"SUM(I3:I13)","v":0},{"$f":"SUM(F14:I14)","v":0},{"$f":"IF(Hintergrunddaten!$G$65=1,0,IF(Hintergrunddaten!$G$65=2,10,IF(Hintergrunddaten!$G$65=5,4,20)))","v":0},{"$f":"K14-J14","v":0},{"$f":"IF('MA 11-20'!K3=0,\"0%\",J3/K3)","v":"0%"}]
[]
["MitarbeiterIn 012",null,null,null,null,{"$f":"IF(Übersicht!D3=0,\"Stunden Jahr 1\",\"Stunden\"&(Übersicht!D3))","v":"Stunden Jahr 1"},{"$f":"IF(Übersicht!D3=0,\"Stunden Jahr 2\",Übersicht!E6)","v":"Stunden Jahr 2"},{"$f":"IF(Übersicht!D3=0,\"Stunden Jahr 3\",Übersicht!F6)","v":"Stunden Jahr 3"},{"$f":"IF(Übersicht!D3=0,\"Stunden Jahr 4\",Übersicht!G6)","v":"Stunden Jahr 4"},"Stunden\nGesamt","Soll-stunden","Differenz","% erreicht"]
[null,"Titel der Fortbildung","Datum von","Datum bis","Inhalte",null,null,null,null,{"$f":"SUM(F28:I28)","v":0},{"$f":"IF(Hintergrunddaten!$G$9=1,0,IF(Hintergrunddaten!$G$9=2,10,IF(Hintergrunddaten!$G$9=5,4,20)))","v":0},{"$f":"K28-J28","v":0},{"$f":"IF('MA 11-20'!K17=0,\"0%\",J17/K17)","v":"0%"}]
["Fortbildung 01",null,null,null,null,null,null,null,null,{"$f":"SUM(F18:I18)","v":0}]
["Fortbildung 02",null,null,null,null,null,null,null,null,{"$f":"SUM(F19:I19)","v":0}]
["Fortbildung 03",null,null,null,null,null,null,null,null,0]
["Fortbildung 04",null,null,null,null,null,null,null,null,0]
["Fortbildung 05",null,null,null,null,null,null,null,null,0]
["Fortbildung 06",null,null,null,null,null,null,null,null,0]
["Fortbildung 07",null,null,null,null,null,null,null,null,0]
["Fortbildung 08",null,null,null,null,null,null,null,null,0]
["Fortbildung 09",null,null,null,null,null,null,null,null,0]
["Fortbildung 10",null,null,null,null,null,null,null,null,0]
[null,null,null,null,null,{"$f":"SUM(F17:F27)","v":0},{"$f":"SUM(G17:G27)","v":0},{"$f":"SUM(H17:H27)","v":0},{"$f":"SUM(I17:I27)","v":0},{"$f":"SUM(F28:I28)","v":0},{"$f":"IF(Hintergrunddaten!$G$9=1,0,IF(Hintergrunddaten!$G$9=2,10,IF(Hintergrunddaten!$G$9=5,4,20)))","v":0},{"$f":"K28-J28","v":0},{"$f":"IF('MA 11-20'!K17=0,\"0%\",J17/K17)","v":"0%"}]
[]
["MitarbeiterIn 013",null,null,null,null,{"$f":"IF(Übersicht!D3=0,\"Stunden Jahr 1\",\"Stunden\"&(Übersicht!D3))","v":"Stunden Jahr 1"},{"$f":"IF(Übersicht!D3=0,\"Stunden Jahr 2\",Übersicht!E6)","v":"Stunden Jahr 2"},{"$f":"IF(Übersicht!D3=0,\"Stunden Jahr 3\",Übersicht!F6)","v":"Stunden Jahr 3"},{"$f":"IF(Übersicht!D3=0,\"Stunden Jahr 4\",Übersicht!G6)","v":"Stunden Jahr 4"},"Stunden\nGesamt","Soll-stunden","Differenz","% erreicht"]
[null,"Titel der Fortbildung","Datum von","Datum bis","Inhalte",null,null,null,null,{"$f":"SUM(F42:I42)","v":0},{"$f":"IF(Hintergrunddaten!$G$16=1,0,IF(Hintergrunddaten!$G$16=2,10,IF(Hintergrunddaten!$G$16=5,4,20)))","v":0},{"$f":"K42-J42","v":0},{"$f":"IF('MA 11-20'!K31=0,\"0%\",J31/K31)","v":"0%"}]
["Fortbildung 01",null,null,null,null,null,null,null,null,{"$f":"SUM(F32:I32)","v":0}]
["Fortbildung 02",null,null,null,null,null,null,null,null,{"$f":"SUM(F33:I33)","v":0}]
["Fortbildung 03",null,null,null,null,null,null,null,null,0]
["Fortbildung 04",null,null,null,null,null,null,null,null,0]
["Fortbildung 05",null,null,null,null,null,null,null,null,0]
["Fortbildung 06",null,null,null,null,null,null,null,null,0]
["Fortbildung 07",null,null,null,null,null,null,null,null,0]
["Fortbildung 08",null,null,null,null,null,null,null,null,0]
["Fortbildung 09",null,null,null,null,null,null,null,null,0]
["Fortbildung 10",null,null,null,null,null,null,null,null,0]
[null,null,null,null,null,{"$f":"SUM(F31:F41)","v":0},{"$f":"SUM(G31:G41)","v":0},{"$f":"SUM(H31:H41)","v":0},{"$f":"SUM(I31:I41)","v":0},{"$f":"SUM(F42:I42)","v":0},{"$f":"IF(Hintergrunddaten!$G$16=1,0,IF(Hintergrunddaten!$G$16=2,10,IF(Hintergrunddaten!$G$16=5,4,20)))","v":0},{"$f":"K42-J42","v":0},{"$f":"IF('MA 11-20'!K31=0,\"0%\",J31/K31)","v":"0%"}]
[]
["MitarbeiterIn 014",null,null,null,null,{"$f":"IF(Übersicht!D3=0,\"Stunden Jahr 1\",\"Stunden\"&(Übersicht!D3))","v":"Stunden Jahr 1"},{"$f":"IF(Übersicht!D3=0,\"Stunden Jahr 2\",Übersicht!E6)","v":"Stunden Jahr 2"},{"$f":"IF(Übersicht!D3=0,\"Stunden Jahr 3\",Übersicht!F6)","v":"Stunden Jahr 3"},{"$f":"IF(Übersicht!D3=0,\"Stunden Jahr 4\",Übersicht!G6)","v":"Stunden Jahr 4"},"Stunden\nGesamt","Soll-stunden","Differenz","% erreicht"]
[null,"Titel der Fortbildung","Datum von","Datum bis","Inhalte",null,null,null,null,{"$f":"SUM(F56:I56)","v":0},{"$f":"IF(Hintergrunddaten!$G$23=1,0,IF(Hintergrunddaten!$G$23=2,10,IF(Hintergrunddaten!$G$23=5,4,20)))","v":0},{"$f":"K56-J56","v":0},{"$f":"IF('MA 11-20'!K45=0,\"0%\",J45/K45)","v":"0%"}]
["Fortbildung 01",null,null,null,null,null,null,null,null,{"$f":"SUM(F46:I46)","v":0}]
["Fortbildung 02",null,null,null,null,null,null,null,null,{"$f":"SUM(F47:I47)","v":0}]
["Fortbildung 03",null,null,null,null,null,null,null,null,0]
["Fortbildung 04",null,null,null,null,null,null,null,null,0]
["Fortbildung 05",null,null,null,null,null,null,null,null,0]
["Fortbildung 06",null,null,null,null,null,null,null,null,0]
["Fortbildung 07",null,null,null,null,null,null,null,null,0]
["Fortbildung 08",null,null,null,null,null,null,null,null,0]
["Fortbildung 09",null,null,null,null,null,null,null,null,0]
["Fortbildung 10",null,null,null,null,null,null,null,null,0]
[null,null,null,null,null,{"$f":"SUM(F45:F55)","v":0},{"$f":"SUM(G45:G55)","v":0},{"$f":"SUM(H45:H55)","v":0},{"$f":"SUM(I45:I55)","v":0},{"$f":"SUM(F56:I56)","v":0},{"$f":"IF(Hintergrunddaten!$G$23=1,0,IF(Hintergrunddaten!$G$23=2,10,IF(Hintergrunddaten!$G$23=5,4,20)))","v":0},{"$f":"K56-J56","v":0},{"$f":"IF('MA 11-20'!K45=0,\"0%\",J45/K45)","v":"0%"}]
[]
["MitarbeiterIn 015",null,null,null,null,{"$f":"IF(Übersicht!D3=0,\"Stunden Jahr 1\",\"Stunden\"&(Übersicht!D3))","v":"Stunden Jahr 1"},{"$f":"IF(Übersicht!D3=0,\"Stunden Jahr 2\",Übersicht!E6)","v":"Stunden Jahr 2"},{"$f":"IF(Übersicht!D3=0,\"Stunden Jahr 3\",Übersicht!F6)","v":"Stunden Jahr 3"},{"$f":"IF(Übersicht!D3=0,\"Stunden Jahr 4\",Übersicht!G6)","v":"Stunden Jahr 4"},"Stunden\nGesamt","Soll-stunden","Differenz","% erreicht"]
[null,"Titel der Fortbildung","Datum von","Datum bis","Inhalte",null,null,null,null,{"$f":"SUM(F70:I70)","v":0},{"$f":"IF(Hintergrunddaten!$G$30=1,0,IF(Hintergrunddaten!$G$30=2,10,IF(Hintergrunddaten!$G$30=5,4,20)))","v":0},{"$f":"K70-J70","v":0},{"$f":"IF('MA 11-20'!K59=0,\"0%\",J59/K59)","v":"0%"}]
["Fortbildung 01",null,null,null,null,null,null,null,null,{"$f":"SUM(F60:I60)","v":0}]
["Fortbildung 02",null,null,null,null,null,null,null,null,{"$f":"SUM(F61:I61)","v":0}]
["Fortbildung 03",null,null,null,null,null,null,null,null,0]
["Fortbildung 04",null,null,null,null,null,null,null,null,0]
["Fortbildung 05",null,null,null,null,null,null,null,null,0]
["Fortbildung 06",null,null,null,null,null,null,null,null,0]
["Fortbildung 07",null,null,null,null,null,null,null,null,0]
["Fortbildung 08",null,null,null,null,null,null,null,null,0]
["Fortbildung 09",null,null,null,null,null,null,null,null,0]
["Fortbildung 10",null,null,null,null,null,null,null,null,0]
[null,null,null,null,null,{"$f":"SUM(F59:F69)","v":0},{"$f":"SUM(G59:G69)","v":0},{"$f":"SUM(H59:H69)","v":0},{"$f":"SUM(I59:I69)","v":0},{"$f":"SUM(F70:I70)","v":0},{"$f":"IF(Hintergrunddaten!$G$30=1,0,IF(Hintergrunddaten!$G$30=2,10,IF(Hintergrunddaten!$G$30=5,4,20)))","v":0},{"$f":"K70-J70","v":0},{"$f":"IF('MA 11-20'!K59=0,\"0%\",J59/K59)","v":"0%"}]
[]
["MitarbeiterIn 016",null,null,null,null,{"$f":"IF(Übersicht!D3=0,\"Stunden Jahr 1\",\"Stunden\"&(Übersicht!D3))","v":"Stunden Jahr 1"},{"$f":"IF(Übersicht!D3=0,\"Stunden Jahr 2\",Übersicht!E6)","v":"Stunden Jahr 2"},{"$f":"IF(Übersicht!D3=0,\"Stunden Jahr 3\",Übersicht!F6)","v":"Stunden Jahr 3"},{"$f":"IF(Übersicht!D3=0,\"Stunden Jahr 4\",Übersicht!G6)","v":"Stunden Jahr 4"},"Stunden\nGesamt","Soll-stunden","Differenz","% erreicht"]
[null,"Titel der Fortbildung","Datum von","Datum bis","Inhalte",null,null,null,null,{"$f":"SUM(F84:I84)","v":0},{"$f":"IF(Hintergrunddaten!$G$37=1,0,IF(Hintergrunddaten!$G$37=2,10,IF(Hintergrunddaten!$G$37=5,4,20)))","v":0},{"$f":"K84-J84","v":0},{"$f":"IF('MA 11-20'!K73=0,\"0%\",J73/K73)","v":"0%"}]
["Fortbildung 01",null,null,null,null,null,null,null,null,{"$f":"SUM(F74:I74)","v":0}]
["Fortbildung 02",null,null,null,null,null,null,null,null,{"$f":"SUM(F75:I75)","v":0}]
["Fortbildung 03",null,null,null,null,null,null,null,null,0]
["Fortbildung 04",null,null,null,null,null,null,null,null,0]
["Fortbildung 05",null,null,null,null,null,null,null,null,0]
["Fortbildung 06",null,null,null,null,null,null,null,null,0]
["Fortbildung 07",null,null,null,null,null,null,null,null,0]
["Fortbildung 08",null,null,null,null,null,null,null,null,0]
["Fortbildung 09",null,null,null,null,null,null,null,null,0]
["Fortbildung 10",null,null,null,null,null,null,null,null,0]
[null,null,null,null,null,{"$f":"SUM(F73:F83)","v":0},{"$f":"SUM(G73:G83)","v":0},{"$f":"SUM(H73:H83)","v":0},{"$f":"SUM(I73:I83)","v":0},{"$f":"SUM(F84:I84)","v":0},{"$f":"IF(Hintergrunddaten!$G$37=1,0,IF(Hintergrunddaten!$G$37=2,10,IF(Hintergrunddaten!$G$37=5,4,20)))","v":0},{"$f":"K84-J84","v":0},{"$f":"IF('MA 11-20'!K73=0,\"0%\",J73/K73)","v":"0%"}]
[]
["MitarbeiterIn 017",null,null,null,null,{"$f":"IF(Übersicht!D3=0,\"Stunden Jahr 1\",\"Stunden\"&(Übersicht!D3))","v":"Stunden Jahr 1"},{"$f":"IF(Übersicht!D3=0,\"Stunden Jahr 2\",Übersicht!E6)","v":"Stunden Jahr 2"},{"$f":"IF(Übersicht!D3=0,\"Stunden Jahr 3\",Übersicht!F6)","v":"Stunden Jahr 3"},{"$f":"IF(Übersicht!D3=0,\"Stunden Jahr 4\",Übersicht!G6)","v":"Stunden Jahr 4"},"Stunden\nGesamt","Soll-stunden","Differenz","% erreicht"]
[null,"Titel der Fortbildung","Datum von","Datum bis","Inhalte",null,null,null,null,{"$f":"SUM(F98:I98)","v":0},{"$f":"IF(Hintergrunddaten!$G$44=1,0,IF(Hintergrunddaten!$G$44=2,10,IF(Hintergrunddaten!$G$44=5,4,20)))","v":0},{"$f":"K98-J98","v":0},{"$f":"IF('MA 11-20'!K87=0,\"0%\",J87/K87)","v":"0%"}]
["Fortbildung 01",null,null,null,null,null,null,null,null,{"$f":"SUM(F88:I88)","v":0}]
["Fortbildung 02",null,null,null,null,null,null,null,null,{"$f":"SUM(F89:I89)","v":0}]
["Fortbildung 03",null,null,null,null,null,null,null,null,0]
["Fortbildung 04",null,null,null,null,null,null,null,null,0]
["Fortbildung 05",null,null,null,null,null,null,null,null,0]
["Fortbildung 06",null,null,null,null,null,null,null,null,0]
["Fortbildung 07",null,null,null,null,null,null,null,null,0]
["Fortbildung 08",null,null,null,null,null,null,null,null,0]
["Fortbildung 09",null,null,null,null,null,null,null,null,0]
["Fortbildung 10",null,null,null,null,null,null,null,null,0]
[null,null,null,null,null,{"$f":"SUM(F87:F97)","v":0},{"$f":"SUM(G87:G97)","v":0},{"$f":"SUM(H87:H97)","v":0},{"$f":"SUM(I87:I97)","v":0},{"$f":"SUM(F98:I98)","v":0},{"$f":"IF(Hintergrunddaten!$G$44=1,0,IF(Hintergrunddaten!$G$44=2,10,IF(Hintergrunddaten!$G$44=5,4,20)))","v":0},{"$f":"K98-J98","v":0},{"$f":"IF('MA 11-20'!K87=0,\"0%\",J87/K87)","v":"0%"}]
[]
["MitarbeiterIn 018",null,null,null,null,{"$f":"IF(Übersicht!D3=0,\"Stunden Jahr 1\",\"Stunden\"&(Übersicht!D3))","v":"Stunden Jahr 1"},{"$f":"IF(Übersicht!D3=0,\"Stunden Jahr 2\",Übersicht!E6)","v":"Stunden Jahr 2"},{"$f":"IF(Übersicht!D3=0,\"Stunden Jahr 3\",Übersicht!F6)","v":"Stunden Jahr 3"},{"$f":"IF(Übersicht!D3=0,\"Stunden Jahr 4\",Übersicht!G6)","v":"Stunden Jahr 4"},"Stunden\nGesamt","Soll-stunden","Differenz","% erreicht"]
[null,"Titel der Fortbildung","Datum von","Datum bis","Inhalte",null,null,null,null,{"$f":"SUM(F112:I112)","v":0},{"$f":"IF(Hintergrunddaten!$G$51=1,0,IF(Hintergrunddaten!$G$51=2,10,IF(Hintergrunddaten!$G$51=5,4,20)))","v":0},{"$f":"K112-J112","v":0},{"$f":"IF('MA 11-20'!K101=0,\"0%\",J101/K101)","v":"0%"}]
["Fortbildung 01",null,null,null,null,null,null,null,null,{"$f":"SUM(F102:I102)","v":0}]
["Fortbildung 02",null,null,null,null,null,null,null,null,{"$f":"SUM(F103:I103)","v":0}]
["Fortbildung 03",null,null,null,null,null,null,null,null,0]
["Fortbildung 04",null,null,null,null,null,null,null,null,0]
["Fortbildung 05",null,null,null,null,null,null,null,null,0]
["Fortbildung 06",null,null,null,null,null,null,null,null,0]
["Fortbildung 07",null,null,null,null,null,null,null,null,0]
["Fortbildung 08",null,null,null,null,null,null,null,null,0]
["Fortbildung 09",null,null,null,null,null,null,null,null,0]
["Fortbildung 10",null,null,null,null,null,null,null,null,0]
[null,null,null,null,null,{"$f":"SUM(F101:F111)","v":0},{"$f":"SUM(G101:G111)","v":0},{"$f":"SUM(H101:H111)","v":0},{"$f":"SUM(I101:I111)","v":0},{"$f":"SUM(F112:I112)","v":0},{"$f":"IF(Hintergrunddaten!$G$51=1,0,IF(Hintergrunddaten!$G$51=2,10,IF(Hintergrunddaten!$G$51=5,4,20)))","v":0},{"$f":"K112-J112","v":0},{"$f":"IF('MA 11-20'!K101=0,\"0%\",J101/K101)","v":"0%"}]
[]
["MitarbeiterIn 019",null,null,null,null,{"$f":"IF(Übersicht!D3=0,\"Stunden Jahr 1\",\"Stunden\"&(Übersicht!D3))","v":"Stunden Jahr 1"},{"$f":"IF(Übersicht!D3=0,\"Stunden Jahr 2\",Übersicht!E6)","v":"Stunden Jahr 2"},{"$f":"IF(Übersicht!D3=0,\"Stunden Jahr 3\",Übersicht!F6)","v":"Stunden Jahr 3"},{"$f":"IF(Übersicht!D3=0,\"Stunden Jahr 4\",Übersicht!G6)","v":"Stunden Jahr 4"},"Stunden\nGesamt","Soll-stunden","Differenz","% erreicht"]
[null,"Titel der Fortbildung","Datum von","Datum bis","Inhalte",null,null,null,null,{"$f":"SUM(F126:I126)","v":0},{"$f":"IF(Hintergrunddaten!$G$58=1,0,IF(Hintergrunddaten!$G$58=2,10,IF(Hintergrunddaten!$G$58=5,4,20)))","v":0},{"$f":"K126-J126","v":0},{"$f":"IF('MA 11-20'!K115=0,\"0%\",J115/K115)","v":"0%"}]
["Fortbildung 01",null,null,null,null,null,null,null,null,{"$f":"SUM(F116:I116)","v":0}]
["Fortbildung 02",null,null,null,null,null,null,null,null,{"$f":"SUM(F117:I117)","v":0}]
["Fortbildung 03",null,null,null,null,null,null,null,null,0]
["Fortbildung 04",null,null,null,null,null,null,null,null,0]
["Fortbildung 05",null,null,null,null,null,null,null,null,0]
["Fortbildung 06",null,null,null,null,null,null,null,null,0]
["Fortbildung 07",null,null,null,null,null,null,null,null,0]
["Fortbildung 08",null,null,null,null,null,null,null,null,0]
["Fortbildung 09",null,null,null,null,null,null,null,null,0]
["Fortbildung 10",null,null,null,null,null,null,null,null,0]
[null,null,null,null,null,{"$f":"SUM(F115:F125)","v":0},{"$f":"SUM(G115:G125)","v":0},{"$f":"SUM(H115:H125)","v":0},{"$f":"SUM(I115:I125)","v":0},{"$f":"SUM(F126:I126)","v":0},{"$f":"IF(Hintergrunddaten!$G$58=1,0,IF(Hintergrunddaten!$G$58=2,10,IF(Hintergrunddaten!$G$58=5,4,20)))","v":0},{"$f":"K126-J126","v":0},{"$f":"IF('MA 11-20'!K115=0,\"0%\",J115/K115)","v":"0%"}]
[]
["MitarbeiterIn 020",null,null,null,null,{"$f":"IF(Übersicht!D3=0,\"Stunden Jahr 1\",\"Stunden\"&(Übersicht!D3))","v":"Stunden Jahr 1"},{"$f":"IF(Übersicht!D3=0,\"Stunden Jahr 2\",Übersicht!E6)","v":"Stunden Jahr 2"},{"$f":"IF(Übersicht!D3=0,\"Stunden Jahr 3\",Übersicht!F6)","v":"Stunden Jahr 3"},{"$f":"IF(Übersicht!D3=0,\"Stunden Jahr 4\",Übersicht!G6)","v":"Stunden Jahr 4"},"Stunden\nGesamt","Soll-stunden","Differenz","% erreicht"]
[null,"Titel der Fortbildung","Datum von","Datum bis","Inhalte",null,null,null,null,{"$f":"SUM(F140:I140)","v":0},{"$f":"IF(Hintergrunddaten!$G$65=1,0,IF(Hintergrunddaten!$G$65=2,10,IF(Hintergrunddaten!$G$65=5,4,20)))","v":0},{"$f":"K140-J140","v":0},{"$f":"IF('MA 11-20'!K129=0,\"0%\",J129/K129)","v":"0%"}]
["Fortbildung 01",null,null,null,null,null,null,null,null,{"$f":"SUM(F130:I130)","v":0}]
["Fortbildung 02",null,null,null,null,null,null,null,null,{"$f":"SUM(F131:I131)","v":0}]
["Fortbildung 03",null,null,null,null,null,null,null,null,0]
["Fortbildung 04",null,null,null,null,null,null,null,null,0]
["Fortbildung 05",null,null,null,null,null,null,null,null,0]
["Fortbildung 06",null,null,null,null,null,null,null,null,0]
["Fortbildung 07",null,null,null,null,null,null,null,null,0]
["Fortbildung 08",null,null,null,null,null,null,null,null,0]
["Fortbildung 09",null,null,null,null,null,null,null,null,0]
["Fortbildung 10",null,null,null,null,null,null,null,null,0]
[null,null,null,null,null,{"$f":"SUM(F129:F139)","v":0},{"$f":"SUM(G129:G139)","v":0},{"$f":"SUM(H129:H139)","v":0},{"$f":"SUM(I129:I139)","v":0},{"$f":"SUM(F140:I140)","v":0},{"$f":"IF(Hintergrunddaten!$G$65=1,0,IF(Hintergrunddaten!$G$65=2,10,IF(Hintergrunddaten!$G$65=5,4,20)))","v":0},{"$f":"K140-J140","v":0},{"$f":"IF('MA 11-20'!K129=0,\"0%\",J129/K129)","v":"0%"}]

{"sheet":"MA 21-30","index":3,"n_rows":140,"n_cols":13,"rows_kept":140,"cut":false,"hidden":false,"merged":[]}
[]
["MitarbeiterIn 021",null,null,null,null,{"$f":"IF(Übersicht!D3=0,\"Stunden Jahr 1\",\"Stunden\"&(Übersicht!D3))","v":"Stunden Jahr 1"},{"$f":"IF(Übersicht!D3=0,\"Stunden Jahr 2\",Übersicht!E6)","v":"Stunden Jahr 2"},{"$f":"IF(Übersicht!D3=0,\"Stunden Jahr 3\",Übersicht!F6)","v":"Stunden Jahr 3"},{"$f":"IF(Übersicht!D3=0,\"Stunden Jahr 4\",Übersicht!G6)","v":"Stunden Jahr 4"},"Stunden\nGesamt","Soll-stunden","Differenz","% erreicht"]
[null,"Titel der Fortbildung","Datum von","Datum bis","Inhalte",null,null,null,null,{"$f":"SUM(F14:I14)","v":0},{"$f":"IF(Hintergrunddaten!$K$2=1,0,IF(Hintergrunddaten!$K$2=2,10,IF(Hintergrunddaten!$K$2=5,4,20)))","v":0},{"$f":"K14-J14","v":0},{"$f":"IF('MA 21-30'!K3=0,\"0%\",J3/K3)","v":"0%"}]
["Fortbildung 01",null,null,null,null,null,null,null,null,{"$f":"SUM(F4:I4)","v":0}]
["Fortbildung 02",null,null,null,null,null,null,null,null,{"$f":"SUM(F5:I5)","v":0}]
["Fortbildung 03",null,null,null,null,null,null,null,null,0]
["Fortbildung 04",null,null,null,null,null,null,null,null,0]
["Fortbildung 05",null,null,null,null,null,null,null,null,0]
["Fortbildung 06",null,null,null,null,null,null,null,null,0]
["Fortbildung 07",null,null,null,null,null,null,null,null,0]
["Fortbildung 08",null,null,null,null,null,null,null,null,0]
["Fortbildung 09",null,null,null,null,null,null,null,null,0]
["Fortbildung 10",null,null,null,null,null,null,null,null,0]
[null,null,null,null,null,{"$f":"SUM(F3:F13)","v":0},{"$f":"SUM(G3:G13)","v":0},{"$f":"SUM(H3:H13)","v":0},{"$f":"SUM(I3:I13)","v":0},{"$f":"SUM(F14:I14)","v":0},{"$f":"IF(Hintergrunddaten!$K$2=1,0,IF(Hintergrunddaten!$K$2=2,10,IF(Hintergrunddaten!$K$2=5,4,20)))","v":0},{"$f":"K14-J14","v":0},{"$f":"IF('MA 21-30'!K3=0,\"0%\",J3/K3)","v":"0%"}]
[]
["MitarbeiterIn 022",null,null,null,null,{"$f":"IF(Übersicht!D3=0,\"Stunden Jahr 1\",\"Stunden\"&(Übersicht!D3))","v":"Stunden Jahr 1"},{"$f":"IF(Übersicht!D3=0,\"Stunden Jahr 2\",Übersicht!E6)","v":"Stunden Jahr 2"},{"$f":"IF(Übersicht!D3=0,\"Stunden Jahr 3\",Übersicht!F6)","v":"Stunden Jahr 3"},{"$f":"IF(Übersicht!D3=0,\"Stunden Jahr 4\",Übersicht!G6)","v":"Stunden Jahr 4"},"Stunden\nGesamt","Soll-stunden","Differenz","% erreicht"]
[null,"Titel der Fortbildung","Datum von","Datum bis","Inhalte",null,null,null,null,{"$f":"SUM(F28:I28)","v":0},{"$f":"IF(Hintergrunddaten!$K$9=1,0,IF(Hintergrunddaten!$K$9=2,10,IF(Hintergrunddaten!$K$9=5,4,20)))","v":0},{"$f":"K28-J28","v":0},{"$f":"IF('MA 21-30'!K17=0,\"0%\",J17/K17)","v":"0%"}]
["Fortbildung 01",null,null,null,null,null,null,null,null,{"$f":"SUM(F18:I18)","v":0}]
["Fortbildung 02",null,null,null,null,null,null,null,null,{"$f":"SUM(F19:I19)","v":0}]
["Fortbildung 03",null,null,null,null,null,null,null,null,0]
["Fortbildung 04",null,null,null,null,null,null,null,null,0]
["Fortbildung 05",null,null,null,null,null,null,null,null,0]
["Fortbildung 06",null,null,null,null,null,null,null,null,0]
["Fortbildung 07",null,null,null,null,null,null,null,null,0]
["Fortbildung 08",null,null,null,null,null,null,null,null,0]
["Fortbildung 09",null,null,null,null,null,null,null,null,0]
["Fortbildung 10",null,null,null,null,null,null,null,null,0]
[null,null,null,null,null,{"$f":"SUM(F17:F27)","v":0},{"$f":"SUM(G17:G27)","v":0},{"$f":"SUM(H17:H27)","v":0},{"$f":"SUM(I17:I27)","v":0},{"$f":"SUM(F28:I28)","v":0},{"$f":"IF(Hintergrunddaten!$K$9=1,0,IF(Hintergrunddaten!$K$9=2,10,IF(Hintergrunddaten!$K$9=5,4,20)))","v":0},{"$f":"K28-J28","v":0},{"$f":"IF('MA 21-30'!K17=0,\"0%\",J17/K17)","v":"0%"}]
[]
["MitarbeiterIn 023",null,null,null,null,{"$f":"IF(Übersicht!D3=0,\"Stunden Jahr 1\",\"Stunden\"&(Übersicht!D3))","v":"Stunden Jahr 1"},{"$f":"IF(Übersicht!D3=0,\"Stunden Jahr 2\",Übersicht!E6)","v":"Stunden Jahr 2"},{"$f":"IF(Übersicht!D3=0,\"Stunden Jahr 3\",Übersicht!F6)","v":"Stunden Jahr 3"},{"$f":"IF(Übersicht!D3=0,\"Stunden Jahr 4\",Übersicht!G6)","v":"Stunden Jahr 4"},"Stunden\nGesamt","Soll-stunden","Differenz","% erreicht"]
[null,"Titel der Fortbildung","Datum von","Datum bis","Inhalte",null,null,null,null,{"$f":"SUM(F42:I42)","v":0},{"$f":"IF(Hintergrunddaten!$K$16=1,0,IF(Hintergrunddaten!$K$16=2,10,IF(Hintergrunddaten!$K$16=5,4,20)))","v":0},{"$f":"K42-J42","v":0},{"$f":"IF('MA 21-30'!K31=0,\"0%\",J31/K31)","v":"0%"}]
["Fortbildung 01",null,null,null,null,null,null,null,null,{"$f":"SUM(F32:I32)","v":0}]
["Fortbildung 02",null,null,null,null,null,null,null,null,{"$f":"SUM(F33:I33)","v":0}]
["Fortbildung 03",null,null,null,null,null,null,null,null,0]
["Fortbildung 04",null,null,null,null,null,null,null,null,0]
["Fortbildung 05",null,null,null,null,null,null,null,null,0]
["Fortbildung 06",null,null,null,null,null,null,null,null,0]
["Fortbildung 07",null,null,null,null,null,null,null,null,0]
["Fortbildung 08",null,null,null,null,null,null,null,null,0]
["Fortbildung 09",null,null,null,null,null,null,null,null,0]
["Fortbildung 10",null,null,null,null,null,null,null,null,0]
[null,null,null,null,null,{"$f":"SUM(F31:F41)","v":0},{"$f":"SUM(G31:G41)","v":0},{"$f":"SUM(H31:H41)","v":0},{"$f":"SUM(I31:I41)","v":0},{"$f":"SUM(F42:I42)","v":0},{"$f":"IF(Hintergrunddaten!$K$16=1,0,IF(Hintergrunddaten!$K$16=2,10,IF(Hintergrunddaten!$K$16=5,4,20)))","v":0},{"$f":"K42-J42","v":0},{"$f":"IF('MA 21-30'!K31=0,\"0%\",J31/K31)","v":"0%"}]
[]
["MitarbeiterIn 024",null,null,null,null,{"$f":"IF(Übersicht!D3=0,\"Stunden Jahr 1\",\"Stunden\"&(Übersicht!D3))","v":"Stunden Jahr 1"},{"$f":"IF(Übersicht!D3=0,\"Stunden Jahr 2\",Übersicht!E6)","v":"Stunden Jahr 2"},{"$f":"IF(Übersicht!D3=0,\"Stunden Jahr 3\",Übersicht!F6)","v":"Stunden Jahr 3"},{"$f":"IF(Übersicht!D3=0,\"Stunden Jahr 4\",Übersicht!G6)","v":"Stunden Jahr 4"},"Stunden\nGesamt","Soll-stunden","Differenz","% erreicht"]
[null,"Titel der Fortbildung","Datum von","Datum bis","Inhalte",null,null,null,null,{"$f":"SUM(F56:I56)","v":0},{"$f":"IF(Hintergrunddaten!$K$23=1,0,IF(Hintergrunddaten!$K$23=2,10,IF(Hintergrunddaten!$K$23=5,4,20)))","v":0},{"$f":"K56-J56","v":0},{"$f":"IF('MA 21-30'!K45=0,\"0%\",J45/K45)","v":"0%"}]
["Fortbildung 01",null,null,null,null,null,null,null,null,{"$f":"SUM(F46:I46)","v":0}]
["Fortbildung 02",null,null,null,null,null,null,null,null,{"$f":"SUM(F47:I47)","v":0}]
["Fortbildung 03",null,null,null,null,null,null,null,null,0]
["Fortbildung 04",null,null,null,null,null,null,null,null,0]
["Fortbildung 05",null,null,null,null,null,null,null,null,0]
["Fortbildung 06",null,null,null,null,null,null,null,null,0]
["Fortbildung 07",null,null,null,null,null,null,null,null,0]
["Fortbildung 08",null,null,null,null,null,null,null,null,0]
["Fortbildung 09",null,null,null,null,null,null,null,null,0]
["Fortbildung 10",null,null,null,null,null,null,null,null,0]
[null,null,null,null,null,{"$f":"SUM(F45:F55)","v":0},{"$f":"SUM(G45:G55)","v":0},{"$f":"SUM(H45:H55)","v":0},{"$f":"SUM(I45:I55)","v":0},{"$f":"SUM(F56:I56)","v":0},{"$f":"IF(Hintergrunddaten!$K$23=1,0,IF(Hintergrunddaten!$K$23=2,10,IF(Hintergrunddaten!$K$23=5,4,20)))","v":0},{"$f":"K56-J56","v":0},{"$f":"IF('MA 21-30'!K45=0,\"0%\",J45/K45)","v":"0%"}]
[]
["MitarbeiterIn 025",null,null,null,null,{"$f":"IF(Übersicht!D3=0,\"Stunden Jahr 1\",\"Stunden\"&(Übersicht!D3))","v":"Stunden Jahr 1"},{"$f":"IF(Übersicht!D3=0,\"Stunden Jahr 2\",Übersicht!E6)","v":"Stunden Jahr 2"},{"$f":"IF(Übersicht!D3=0,\"Stunden Jahr 3\",Übersicht!F6)","v":"Stunden Jahr 3"},{"$f":"IF(Übersicht!D3=0,\"Stunden Jahr 4\",Übersicht!G6)","v":"Stunden Jahr 4"},"Stunden\nGesamt","Soll-stunden","Differenz","% erreicht"]
[null,"Titel der Fortbildung","Datum von","Datum bis","Inhalte",null,null,null,null,{"$f":"SUM(F70:I70)","v":0},{"$f":"IF(Hintergrunddaten!$K$30=1,0,IF(Hintergrunddaten!$K$30=2,10,IF(Hintergrunddaten!$K$30=5,4,20)))","v":0},{"$f":"K70-J70","v":0},{"$f":"IF('MA 21-30'!K59=0,\"0%\",J59/K59)","v":"0%"}]
["Fortbildung 01",null,null,null,null,null,null,null,null,{"$f":"SUM(F60:I60)","v":0}]
["Fortbildung 02",null,null,null,null,null,null,null,null,{"$f":"SUM(F61:I61)","v":0}]
["Fortbildung 03",null,null,null,null,null,null,null,null,0]
["Fortbildung 04",null,null,null,null,null,null,null,null,0]
["Fortbildung 05",null,null,null,null,null,null,null,null,0]
["Fortbildung 06",null,null,null,null,null,null,null,null,0]
["Fortbildung 07",null,null,null,null,null,null,null,null,0]
["Fortbildung 08",null,null,null,null,null,null,null,null,0]
["Fortbildung 09",null,null,null,null,null,null,null,null,0]
["Fortbildung 10",null,null,null,null,null,null,null,null,0]
[null,null,null,null,null,{"$f":"SUM(F59:F69)","v":0},{"$f":"SUM(G59:G69)","v":0},{"$f":"SUM(H59:H69)","v":0},{"$f":"SUM(I59:I69)","v":0},{"$f":"SUM(F70:I70)","v":0},{"$f":"IF(Hintergrunddaten!$K$30=1,0,IF(Hintergrunddaten!$K$30=2,10,IF(Hintergrunddaten!$K$30=5,4,20)))","v":0},{"$f":"K70-J70","v":0},{"$f":"IF('MA 21-30'!K59=0,\"0%\",J59/K59)","v":"0%"}]
[]
["MitarbeiterIn 026",null,null,null,null,{"$f":"IF(Übersicht!D3=0,\"Stunden Jahr 1\",\"Stunden\"&(Übersicht!D3))","v":"Stunden Jahr 1"},{"$f":"IF(Übersicht!D3=0,\"Stunden Jahr 2\",Übersicht!E6)","v":"Stunden Jahr 2"},{"$f":"IF(Übersicht!D3=0,\"Stunden Jahr 3\",Übersicht!F6)","v":"Stunden Jahr 3"},{"$f":"IF(Übersicht!D3=0,\"Stunden Jahr 4\",Übersicht!G6)","v":"Stunden Jahr 4"},"Stunden\nGesamt","Soll-stunden","Differenz","% erreicht"]
[null,"Titel der Fortbildung","Datum von","Datum bis","Inhalte",null,null,null,null,{"$f":"SUM(F84:I84)","v":0},{"$f":"IF(Hintergrunddaten!$K$37=1,0,IF(Hintergrunddaten!$K$37=2,10,IF(Hintergrunddaten!$K$37=5,4,20)))","v":0},{"$f":"K84-J84","v":0},{"$f":"IF('MA 21-30'!K73=0,\"0%\",J73/K73)","v":"0%"}]
["Fortbildung 01",null,null,null,null,null,null,null,null,{"$f":"SUM(F74:I74)","v":0}]
["Fortbildung 02",null,null,null,null,null,null,null,null,{"$f":"SUM(F75:I75)","v":0}]
["Fortbildung 03",null,null,null,null,null,null,null,null,0]
["Fortbildung 04",null,null,null,null,null,null,null,null,0]
["Fortbildung 05",null,null,null,null,null,null,null,null,0]
["Fortbildung 06",null,null,null,null,null,null,null,null,0]
["Fortbildung 07",null,null,null,null,null,null,null,null,0]
["Fortbildung 08",null,null,null,null,null,null,null,null,0]
["Fortbildung 09",null,null,null,null,null,null,null,null,0]
["Fortbildung 10",null,null,null,null,null,null,null,null,0]
[null,null,null,null,null,{"$f":"SUM(F73:F83)","v":0},{"$f":"SUM(G73:G83)","v":0},{"$f":"SUM(H73:H83)","v":0},{"$f":"SUM(I73:I83)","v":0},{"$f":"SUM(F84:I84)","v":0},{"$f":"IF(Hintergrunddaten!$K$37=1,0,IF(Hintergrunddaten!$K$37=2,10,IF(Hintergrunddaten!$K$37=5,4,20)))","v":0},{"$f":"K84-J84","v":0},{"$f":"IF('MA 21-30'!K73=0,\"0%\",J73/K73)","v":"0%"}]
[]
["MitarbeiterIn 027",null,null,null,null,{"$f":"IF(Übersicht!D3=0,\"Stunden Jahr 1\",\"Stunden\"&(Übersicht!D3))","v":"Stunden Jahr 1"},{"$f":"IF(Übersicht!D3=0,\"Stunden Jahr 2\",Übersicht!E6)","v":"Stunden Jahr 2"},{"$f":"IF(Übersicht!D3=0,\"Stunden Jahr 3\",Übersicht!F6)","v":"Stunden Jahr 3"},{"$f":"IF(Übersicht!D3=0,\"Stunden Jahr 4\",Übersicht!G6)","v":"Stunden Jahr 4"},"Stunden\nGesamt","Soll-stunden","Differenz","% erreicht"]
[null,"Titel der Fortbildung","Datum von","Datum bis","Inhalte",null,null,null,null,{"$f":"SUM(F98:I98)","v":0},{"$f":"IF(Hintergrunddaten!$K$44=1,0,IF(Hintergrunddaten!$K$44=2,10,IF(Hintergrunddaten!$K$44=5,4,20)))","v":0},{"$f":"K98-J98","v":0},{"$f":"IF('MA 21-30'!K87=0,\"0%\",J87/K87)","v":"0%"}]
["Fortbildung 01",null,null,null,null,null,null,null,null,{"$f":"SUM(F88:I88)","v":0}]
["Fortbildung 02",null,null,null,null,null,null,null,null,{"$f":"SUM(F89:I89)","v":0}]
["Fortbildung 03",null,null,null,null,null,null,null,null,0]
["Fortbildung 04",null,null,null,null,null,null,null,null,0]
["Fortbildung 05",null,null,null,null,null,null,null,null,0]
["Fortbildung 06",null,null,null,null,null,null,null,null,0]
["Fortbildung 07",null,null,null,null,null,null,null,null,0]
["Fortbildung 08",null,null,null,null,null,null,null,null,0]
["Fortbildung 09",null,null,null,null,null,null,null,null,0]
["Fortbildung 10",null,null,null,null,null,null,null,null,0]
[null,null,null,null,null,{"$f":"SUM(F87:F97)","v":0},{"$f":"SUM(G87:G97)","v":0},{"$f":"SUM(H87:H97)","v":0},{"$f":"SUM(I87:I97)","v":0},{"$f":"SUM(F98:I98)","v":0},{"$f":"IF(Hintergrunddaten!$K$44=1,0,IF(Hintergrunddaten!$K$44=2,10,IF(Hintergrunddaten!$K$44=5,4,20)))","v":0},{"$f":"K98-J98","v":0},{"$f":"IF('MA 21-30'!K87=0,\"0%\",J87/K87)","v":"0%"}]
[]
["MitarbeiterIn 028",null,null,null,null,{"$f":"IF(Übersicht!D3=0,\"Stunden Jahr 1\",\"Stunden\"&(Übersicht!D3))","v":"Stunden Jahr 1"},{"$f":"IF(Übersicht!D3=0,\"Stunden Jahr 2\",Übersicht!E6)","v":"Stunden Jahr 2"},{"$f":"IF(Übersicht!D3=0,\"Stunden Jahr 3\",Übersicht!F6)","v":"Stunden Jahr 3"},{"$f":"IF(Übersicht!D3=0,\"Stunden Jahr 4\",Übersicht!G6)","v":"Stunden Jahr 4"},"Stunden\nGesamt","Soll-stunden","Differenz","% erreicht"]
[null,"Titel der Fortbildung","Datum von","Datum bis","Inhalte",null,null,null,null,{"$f":"SUM(F112:I112)","v":0},{"$f":"IF(Hintergrunddaten!$K$51=1,0,IF(Hintergrunddaten!$K51=2,10,IF(Hintergrunddaten!$K$51=5,4,20)))","v":0},{"$f":"K112-J112","v":0},{"$f":"IF('MA 21-30'!K101=0,\"0%\",J101/K101)","v":"0%"}]
["Fortbildung 01",null,null,null,null,null,null,null,null,{"$f":"SUM(F102:I102)","v":0}]
["Fortbildung 02",null,null,null,null,null,null,null,null,{"$f":"SUM(F103:I103)","v":0}]
["Fortbildung 03",null,null,null,null,null,null,null,null,0]
["Fortbildung 04",null,null,null,null,null,null,null,null,0]
["Fortbildung 05",null,null,null,null,null,null,null,null,0]
["Fortbildung 06",null,null,null,null,null,null,null,null,0]
["Fortbildung 07",null,null,null,null,null,null,null,null,0]
["Fortbildung 08",null,null,null,null,null,null,null,null,0]
["Fortbildung 09",null,null,null,null,null,null,null,null,0]
["Fortbildung 10",null,null,null,null,null,null,null,null,0]
[null,null,null,null,null,{"$f":"SUM(F101:F111)","v":0},{"$f":"SUM(G101:G111)","v":0},{"$f":"SUM(H101:H111)","v":0},{"$f":"SUM(I101:I111)","v":0},{"$f":"SUM(F112:I112)","v":0},{"$f":"IF(Hintergrunddaten!$K$51=1,0,IF(Hintergrunddaten!$K$51=2,10,IF(Hintergrunddaten!$K$51=5,4,20)))","v":0},{"$f":"K112-J112","v":0},{"$f":"IF('MA 21-30'!K101=0,\"0%\",J101/K101)","v":"0%"}]
[]
["MitarbeiterIn 029",null,null,null,null,{"$f":"IF(Übersicht!D3=0,\"Stunden Jahr 1\",\"Stunden\"&(Übersicht!D3))","v":"Stunden Jahr 1"},{"$f":"IF(Übersicht!D3=0,\"Stunden Jahr 2\",Übersicht!E6)","v":"Stunden Jahr 2"},{"$f":"IF(Übersicht!D3=0,\"Stunden Jahr 3\",Übersicht!F6)","v":"Stunden Jahr 3"},{"$f":"IF(Übersicht!D3=0,\"Stunden Jahr 4\",Übersicht!G6)","v":"Stunden Jahr 4"},"Stunden\nGesamt","Soll-stunden","Differenz","% erreicht"]
[null,"Titel der Fortbildung","Datum von","Datum bis","Inhalte",null,null,null,null,{"$f":"SUM(F126:I126)","v":0},{"$f":"IF(Hintergrunddaten!$K$58=1,0,IF(Hintergrunddaten!$K$58=2,10,IF(Hintergrunddaten!$K$58=5,4,20)))","v":0},{"$f":"K126-J126","v":0},{"$f":"IF('MA 21-30'!K115=0,\"0%\",J115/K115)","v":"0%"}]
["Fortbildung 01",null,null,null,null,null,null,null,null,{"$f":"SUM(F116:I116)","v":0}]
["Fortbildung 02",null,null,null,null,null,null,null,null,{"$f":"SUM(F117:I117)","v":0}]
["Fortbildung 03",null,null,null,null,null,null,null,null,0]
["Fortbildung 04",null,null,null,null,null,null,null,null,0]
["Fortbildung 05",null,null,null,null,null,null,null,null,0]
["Fortbildung 06",null,null,null,null,null,null,null,null,0]
["Fortbildung 07",null,null,null,null,null,null,null,null,0]
["Fortbildung 08",null,null,null,null,null,null,null,null,0]
["Fortbildung 09",null,null,null,null,null,null,null,null,0]
["Fortbildung 10",null,null,null,null,null,null,null,null,0]
[null,null,null,null,null,{"$f":"SUM(F115:F125)","v":0},{"$f":"SUM(G115:G125)","v":0},{"$f":"SUM(H115:H125)","v":0},{"$f":"SUM(I115:I125)","v":0},{"$f":"SUM(F126:I126)","v":0},{"$f":"IF(Hintergrunddaten!$K$58=1,0,IF(Hintergrunddaten!$K$58=2,10,IF(Hintergrunddaten!$K$58=5,4,20)))","v":0},{"$f":"K126-J126","v":0},{"$f":"IF('MA 21-30'!K115=0,\"0%\",J115/K115)","v":"0%"}]
[]
["MitarbeiterIn 030",null,null,null,null,{"$f":"IF(Übersicht!D3=0,\"Stunden Jahr 1\",\"Stunden\"&(Übersicht!D3))","v":"Stunden Jahr 1"},{"$f":"IF(Übersicht!D3=0,\"Stunden Jahr 2\",Übersicht!E6)","v":"Stunden Jahr 2"},{"$f":"IF(Übersicht!D3=0,\"Stunden Jahr 3\",Übersicht!F6)","v":"Stunden Jahr 3"},{"$f":"IF(Übersicht!D3=0,\"Stunden Jahr 4\",Übersicht!G6)","v":"Stunden Jahr 4"},"Stunden\nGesamt","Soll-stunden","Differenz","% erreicht"]
[null,"Titel der Fortbildung","Datum von","Datum bis","Inhalte",null,null,null,null,{"$f":"SUM(F140:I140)","v":0},{"$f":"IF(Hintergrunddaten!$K$65=1,0,IF(Hintergrunddaten!$K$65=2,10,IF(Hintergrunddaten!$K$65=5,4,20)))","v":0},{"$f":"K140-J140","v":0},{"$f":"IF('MA 21-30'!K129=0,\"0%\",J129/K129)","v":"0%"}]
["Fortbildung 01",null,null,null,null,null,null,null,null,{"$f":"SUM(F130:I130)","v":0}]
["Fortbildung 02",null,null,null,null,null,null,null,null,{"$f":"SUM(F131:I131)","v":0}]
["Fortbildung 03",null,null,null,null,null,null,null,null,0]
["Fortbildung 04",null,null,null,null,null,null,null,null,0]
["Fortbildung 05",null,null,null,null,null,null,null,null,0]
["Fortbildung 06",null,null,null,null,null,null,null,null,0]
["Fortbildung 07",null,null,null,null,null,null,null,null,0]
["Fortbildung 08",null,null,null,null,null,null,null,null,0]
["Fortbildung 09",null,null,null,null,null,null,null,null,0]
["Fortbildung 10",null,null,null,null,null,null,null,null,0]
[null,null,null,null,null,{"$f":"SUM(F129:F139)","v":0},{"$f":"SUM(G129:G139)","v":0},{"$f":"SUM(H129:H139)","v":0},{"$f":"SUM(I129:I139)","v":0},{"$f":"SUM(F140:I140)","v":0},{"$f":"IF(Hintergrunddaten!$K$65=1,0,IF(Hintergrunddaten!$K$65=2,10,IF(Hintergrunddaten!$K$65=5,4,20)))","v":0},{"$f":"K140-J140","v":0},{"$f":"IF('MA 21-30'!K129=0,\"0%\",J129/K129)","v":"0%"}]

{"sheet":"MA 31-40","index":4,"n_rows":140,"n_cols":13,"rows_kept":140,"cut":false,"hidden":false,"merged":[]}
[]
["MitarbeiterIn 031",null,null,null,null,{"$f":"IF(Übersicht!D3=0,\"Stunden Jahr 1\",\"Stunden\"&(Übersicht!D3))","v":"Stunden Jahr 1"},{"$f":"IF(Übersicht!D3=0,\"Stunden Jahr 2\",Übersicht!E6)","v":"Stunden Jahr 2"},{"$f":"IF(Übersicht!D3=0,\"Stunden Jahr 3\",Übersicht!F6)","v":"Stunden Jahr 3"},{"$f":"IF(Übersicht!D3=0,\"Stunden Jahr 4\",Übersicht!G6)","v":"Stunden Jahr 4"},"Stunden\nGesamt","Soll-stunden","Differenz","% erreicht"]
[null,"Titel der Fortbildung","Datum von","Datum bis","Inhalte",null,null,null,null,{"$f":"SUM(F14:I14)","v":0},{"$f":"IF(Hintergrunddaten!$O$2=1,0,IF(Hintergrunddaten!$O$2=2,10,IF(Hintergrunddaten!$O$2=5,4,20)))","v":0},{"$f":"K14-J14","v":0},{"$f":"IF('MA 31-40'!K3=0,\"0%\",J3/K3)","v":"0%"}]
["Fortbildung 01",null,null,null,null,null,null,null,null,{"$f":"SUM(F4:I4)","v":0}]
["Fortbildung 02",null,null,null,null,null,null,null,null,{"$f":"SUM(F5:I5)","v":0}]
["Fortbildung 03",null,null,null,null,null,null,null,null,0]
["Fortbildung 04",null,null,null,null,null,null,null,null,0]
["Fortbildung 05",null,null,null,null,null,null,null,null,0]
["Fortbildung 06",null,null,null,null,null,null,null,null,0]
["Fortbildung 07",null,null,null,null,null,null,null,null,0]
["Fortbildung 08",null,null,null,null,null,null,null,null,0]
["Fortbildung 09",null,null,null,null,null,null,null,null,0]
["Fortbildung 10",null,null,null,null,null,null,null,null,0]
[null,null,null,null,null,{"$f":"SUM(F3:F13)","v":0},{"$f":"SUM(G3:G13)","v":0},{"$f":"SUM(H3:H13)","v":0},{"$f":"SUM(I3:I13)","v":0},{"$f":"SUM(F14:I14)","v":0},{"$f":"IF(Hintergrunddaten!$O$2=1,0,IF(Hintergrunddaten!$O$2=2,10,IF(Hintergrunddaten!$O$2=5,4,20)))","v":0},{"$f":"K14-J14","v":0},{"$f":"IF('MA 31-40'!K3=0,\"0%\",J3/K3)","v":"0%"}]
[]
["MitarbeiterIn 032",null,null,null,null,{"$f":"IF(Übersicht!D3=0,\"Stunden Jahr 1\",\"Stunden\"&(Übersicht!D3))","v":"Stunden Jahr 1"},{"$f":"IF(Übersicht!D3=0,\"Stunden Jahr 2\",Übersicht!E6)","v":"Stunden Jahr 2"},{"$f":"IF(Übersicht!D3=0,\"Stunden Jahr 3\",Übersicht!F6)","v":"Stunden Jahr 3"},{"$f":"IF(Übersicht!D3=0,\"Stunden Jahr 4\",Übersicht!G6)","v":"Stunden Jahr 4"},"Stunden\nGesamt","Soll-stunden","Differenz","% erreicht"]
[null,"Titel der Fortbildung","Datum von","Datum bis","Inhalte",null,null,null,null,{"$f":"SUM(F28:I28)","v":0},{"$f":"IF(Hintergrunddaten!$O$9=1,0,IF(Hintergrunddaten!$O$9=2,10,IF(Hintergrunddaten!$O$9=5,4,20)))","v":0},{"$f":"K28-J28","v":0},{"$f":"IF('MA 31-40'!K17=0,\"0%\",J17/K17)","v":"0%"}]
["Fortbildung 01",null,null,null,null,null,null,null,null,{"$f":"SUM(F18:I18)","v":0}]
["Fortbildung 02",null,null,null,null,null,null,null,null,{"$f":"SUM(F19:I19)","v":0}]
["Fortbildung 03",null,null,null,null,null,null,null,null,0]
["Fortbildung 04",null,null,null,null,null,null,null,null,0]
["Fortbildung 05",null,null,null,null,null,null,null,null,0]
["Fortbildung 06",null,null,null,null,null,null,null,null,0]
["Fortbildung 07",null,null,null,null,null,null,null,null,0]
["Fortbildung 08",null,null,null,null,null,null,null,null,0]
["Fortbildung 09",null,null,null,null,null,null,null,null,0]
["Fortbildung 10",null,null,null,null,null,null,null,null,0]
[null,null,null,null,null,{"$f":"SUM(F17:F27)","v":0},{"$f":"SUM(G17:G27)","v":0},{"$f":"SUM(H17:H27)","v":0},{"$f":"SUM(I17:I27)","v":0},{"$f":"SUM(F28:I28)","v":0},{"$f":"IF(Hintergrunddaten!$O$9=1,0,IF(Hintergrunddaten!$O$9=2,10,IF(Hintergrunddaten!$O$9=5,4,20)))","v":0},{"$f":"K28-J28","v":0},{"$f":"IF('MA 31-40'!K17=0,\"0%\",J17/K17)","v":"0%"}]
[]
["MitarbeiterIn 033",null,null,null,null,{"$f":"IF(Übersicht!D3=0,\"Stunden Jahr 1\",\"Stunden\"&(Übersicht!D3))","v":"Stunden Jahr 1"},{"$f":"IF(Übersicht!D3=0,\"Stunden Jahr 2\",Übersicht!E6)","v":"Stunden Jahr 2"},{"$f":"IF(Übersicht!D3=0,\"Stunden Jahr 3\",Übersicht!F6)","v":"Stunden Jahr 3"},{"$f":"IF(Übersicht!D3=0,\"Stunden Jahr 4\",Übersicht!G6)","v":"Stunden Jahr 4"},"Stunden\nGesamt","Soll-stunden","Differenz","% erreicht"]
[null,"Titel der Fortbildung","Datum von","Datum bis","Inhalte",null,null,null,null,{"$f":"SUM(F42:I42)","v":0},{"$f":"IF(Hintergrunddaten!$O$16=1,0,IF(Hintergrunddaten!$O$16=2,10,IF(Hintergrunddaten!$O$16=5,4,20)))","v":0},{"$f":"K42-J42","v":0},{"$f":"IF('MA 31-40'!K31=0,\"0%\",J31/K31)","v":"0%"}]
["Fortbildung 01",null,null,null,null,null,null,null,null,{"$f":"SUM(F32:I32)","v":0}]
["Fortbildung 02",null,null,null,null,null,null,null,null,{"$f":"SUM(F33:I33)","v":0}]
["Fortbildung 03",null,null,null,null,null,null,null,null,0]
["Fortbildung 04",null,null,null,null,null,null,null,null,0]
["Fortbildung 05",null,null,null,null,null,null,null,null,0]
["Fortbildung 06",null,null,null,null,null,null,null,null,0]
["Fortbildung 07",null,null,null,null,null,null,null,null,0]
["Fortbildung 08",null,null,null,null,null,null,null,null,0]
["Fortbildung 09",null,null,null,null,null,null,null,null,0]
["Fortbildung 10",null,null,null,null,null,null,null,null,0]
[null,null,null,null,null,{"$f":"SUM(F31:F41)","v":0},{"$f":"SUM(G31:G41)","v":0},{"$f":"SUM(H31:H41)","v":0},{"$f":"SUM(I31:I41)","v":0},{"$f":"SUM(F42:I42)","v":0},{"$f":"IF(Hintergrunddaten!$O$16=1,0,IF(Hintergrunddaten!$O$16=2,10,IF(Hintergrunddaten!$O$16=5,4,20)))","v":0},{"$f":"K42-J42","v":0},{"$f":"IF('MA 31-40'!K31=0,\"0%\",J31/K31)","v":"0%"}]
[]
["MitarbeiterIn 034",null,null,null,null,{"$f":"IF(Übersicht!D3=0,\"Stunden Jahr 1\",\"Stunden\"&(Übersicht!D3))","v":"Stunden Jahr 1"},{"$f":"IF(Übersicht!D3=0,\"Stunden Jahr 2\",Übersicht!E6)","v":"Stunden Jahr 2"},{"$f":"IF(Übersicht!D3=0,\"Stunden Jahr 3\",Übersicht!F6)","v":"Stunden Jahr 3"},{"$f":"IF(Übersicht!D3=0,\"Stunden Jahr 4\",Übersicht!G6)","v":"Stunden Jahr 4"},"Stunden\nGesamt","Soll-stunden","Differenz","% erreicht"]
[null,"Titel der Fortbildung","Datum von","Datum bis","Inhalte",null,null,null,null,{"$f":"SUM(F56:I56)","v":0},{"$f":"IF(Hintergrunddaten!$O$23=1,0,IF(Hintergrunddaten!$O$23=2,10,IF(Hintergrunddaten!$O$23=5,4,20)))","v":0},{"$f":"K56-J56","v":0},{"$f":"IF('MA 31-40'!K45=0,\"0%\",J45/K45)","v":"0%"}]
["Fortbildung 01",null,null,null,null,null,null,null,null,{"$f":"SUM(F46:I46)","v":0}]
["Fortbildung 02",null,null,null,null,null,null,null,null,{"$f":"SUM(F47:I47)","v":0}]
["Fortbildung 03",null,null,null,null,null,null,null,null,0]
["Fortbildung 04",null,null,null,null,null,null,null,null,0]
["Fortbildung 05",null,null,null,null,null,null,null,null,0]
["Fortbildung 06",null,null,null,null,null,null,null,null,0]
["Fortbildung 07",null,null,null,null,null,null,null,null,0]
["Fortbildung 08",null,null,null,null,null,null,null,null,0]
["Fortbildung 09",null,null,null,null,null,null,null,null,0]
["Fortbildung 10",null,null,null,null,null,null,null,null,0]
[null,null,null,null,null,{"$f":"SUM(F45:F55)","v":0},{"$f":"SUM(G45:G55)","v":0},{"$f":"SUM(H45:H55)","v":0},{"$f":"SUM(I45:I55)","v":0},{"$f":"SUM(F56:I56)","v":0},{"$f":"IF(Hintergrunddaten!$O$23=1,0,IF(Hintergrunddaten!$O$23=2,10,IF(Hintergrunddaten!$O$23=5,4,20)))","v":0},{"$f":"K56-J56","v":0},{"$f":"IF('MA 31-40'!K45=0,\"0%\",J45/K45)","v":"0%"}]
[]
["MitarbeiterIn 035",null,null,null,null,{"$f":"IF(Übersicht!D3=0,\"Stunden Jahr 1\",\"Stunden\"&(Übersicht!D3))","v":"Stunden Jahr 1"},{"$f":"IF(Übersicht!D3=0,\"Stunden Jahr 2\",Übersicht!E6)","v":"Stunden Jahr 2"},{"$f":"IF(Übersicht!D3=0,\"Stunden Jahr 3\",Übersicht!F6)","v":"Stunden Jahr 3"},{"$f":"IF(Übersicht!D3=0,\"Stunden Jahr 4\",Übersicht!G6)","v":"Stunden Jahr 4"},"Stunden\nGesamt","Soll-stunden","Differenz","% erreicht"]
[null,"Titel der Fortbildung","Datum von","Datum bis","Inhalte",null,null,null,null,{"$f":"SUM(F70:I70)","v":0},{"$f":"IF(Hintergrunddaten!$O$30=1,0,IF(Hintergrunddaten!$O$30=2,10,IF(Hintergrunddaten!$O$30=5,4,20)))","v":0},{"$f":"K70-J70","v":0},{"$f":"IF('MA 31-40'!K59=0,\"0%\",J59/K59)","v":"0%"}]
["Fortbildung 01",null,null,null,null,null,null,null,null,{"$f":"SUM(F60:I60)","v":0}]
["Fortbildung 02",null,null,null,null,null,null,null,null,{"$f":"SUM(F61:I61)","v":0}]
["Fortbildung 03",null,null,null,null,null,null,null,null,0]
["Fortbildung 04",null,null,null,null,null,null,null,null,0]
["Fortbildung 05",null,null,null,null,null,null,null,null,0]
["Fortbildung 06",null,null,null,null,null,null,null,null,0]
["Fortbildung 07",null,null,null,null,null,null,null,null,0]
["Fortbildung 08",null,null,null,null,null,null,null,null,0]
["Fortbildung 09",null,null,null,null,null,null,null,null,0]
["Fortbildung 10",null,null,null,null,null,null,null,null,0]
[null,null,null,null,null,{"$f":"SUM(F59:F69)","v":0},{"$f":"SUM(G59:G69)","v":0},{"$f":"SUM(H59:H69)","v":0},{"$f":"SUM(I59:I69)","v":0},{"$f":"SUM(F70:I70)","v":0},{"$f":"IF(Hintergrunddaten!$O$30=1,0,IF(Hintergrunddaten!$O$30=2,10,IF(Hintergrunddaten!$O$30=5,4,20)))","v":0},{"$f":"K70-J70","v":0},{"$f":"IF('MA 31-40'!K59=0,\"0%\",J59/K59)","v":"0%"}]
[]
["MitarbeiterIn 036",null,null,null,null,{"$f":"IF(Übersicht!D3=0,\"Stunden Jahr 1\",\"Stunden\"&(Übersicht!D3))","v":"Stunden Jahr 1"},{"$f":"IF(Übersicht!D3=0,\"Stunden Jahr 2\",Übersicht!E6)","v":"Stunden Jahr 2"},{"$f":"IF(Übersicht!D3=0,\"Stunden Jahr 3\",Übersicht!F6)","v":"Stunden Jahr 3"},{"$f":"IF(Übersicht!D3=0,\"Stunden Jahr 4\",Übersicht!G6)","v":"Stunden Jahr 4"},"Stunden\nGesamt","Soll-stunden","Differenz","% erreicht"]
[null,"Titel der Fortbildung","Datum von","Datum bis","Inhalte",null,null,null,null,{"$f":"SUM(F84:I84)","v":0},{"$f":"IF(Hintergrunddaten!$O$37=1,0,IF(Hintergrunddaten!$O$37=2,10,IF(Hintergrunddaten!$O$37=5,4,20)))","v":0},{"$f":"K84-J84","v":0},{"$f":"IF('MA 31-40'!K73=0,\"0%\",J73/K73)","v":"0%"}]
["Fortbildung 01",null,null,null,null,null,null,null,null,{"$f":"SUM(F74:I74)","v":0}]
["Fortbildung 02",null,null,null,null,null,null,null,null,{"$f":"SUM(F75:I75)","v":0}]
["Fortbildung 03",null,null,null,null,null,null,null,null,0]
["Fortbildung 04",null,null,null,null,null,null,null,null,0]
["Fortbildung 05",null,null,null,null,null,null,null,null,0]
["Fortbildung 06",null,null,null,null,null,null,null,null,0]
["Fortbildung 07",null,null,null,null,null,null,null,null,0]
["Fortbildung 08",null,null,null,null,null,null,null,null,0]
["Fortbildung 09",null,null,null,null,null,null,null,null,0]
["Fortbildung 10",null,null,null,null,null,null,null,null,0]
[null,null,null,null,null,{"$f":"SUM(F73:F83)","v":0},{"$f":"SUM(G73:G83)","v":0},{"$f":"SUM(H73:H83)","v":0},{"$f":"SUM(I73:I83)","v":0},{"$f":"SUM(F84:I84)","v":0},{"$f":"IF(Hintergrunddaten!$O$37=1,0,IF(Hintergrunddaten!$O$37=2,10,IF(Hintergrunddaten!$O$37=5,4,20)))","v":0},{"$f":"K84-J84","v":0},{"$f":"IF('MA 31-40'!K73=0,\"0%\",J73/K73)","v":"0%"}]
[]
["MitarbeiterIn 037",null,null,null,null,{"$f":"IF(Übersicht!D3=0,\"Stunden Jahr 1\",\"Stunden\"&(Übersicht!D3))","v":"Stunden Jahr 1"},{"$f":"IF(Übersicht!D3=0,\"Stunden Jahr 2\",Übersicht!E6)","v":"Stunden Jahr 2"},{"$f":"IF(Übersicht!D3=0,\"Stunden Jahr 3\",Übersicht!F6)","v":"Stunden Jahr 3"},{"$f":"IF(Übersicht!D3=0,\"Stunden Jahr 4\",Übersicht!G6)","v":"Stunden Jahr 4"},"Stunden\nGesamt","Soll-stunden","Differenz","% erreicht"]
[null,"Titel der Fortbildung","Datum von","Datum bis","Inhalte",null,null,null,null,{"$f":"SUM(F98:I98)","v":0},{"$f":"IF(Hintergrunddaten!$O$44=1,0,IF(Hintergrunddaten!$O$44=2,10,IF(Hintergrunddaten!$O$44=5,4,20)))","v":0},{"$f":"K98-J98","v":0},{"$f":"IF('MA 31-40'!K87=0,\"0%\",J87/K87)","v":"0%"}]
["Fortbildung 01",null,null,null,null,null,null,null,null,{"$f":"SUM(F88:I88)","v":0}]
["Fortbildung 02",null,null,null,null,null,null,null,null,{"$f":"SUM(F89:I89)","v":0}]
["Fortbildung 03",null,null,null,null,null,null,null,null,0]
["Fortbildung 04",null,null,null,null,null,null,null,null,0]
["Fortbildung 05",null,null,null,null,null,null,null,null,0]
["Fortbildung 06",null,null,null,null,null,null,null,null,0]
["Fortbildung 07",null,null,null,null,null,null,null,null,0]
["Fortbildung 08",null,null,null,null,null,null,null,null,0]
["Fortbildung 09",null,null,null,null,null,null,null,null,0]
["Fortbildung 10",null,null,null,null,null,null,null,null,0]
[null,null,null,null,null,{"$f":"SUM(F87:F97)","v":0},{"$f":"SUM(G87:G97)","v":0},{"$f":"SUM(H87:H97)","v":0},{"$f":"SUM(I87:I97)","v":0},{"$f":"SUM(F98:I98)","v":0},{"$f":"IF(Hintergrunddaten!$O$44=1,0,IF(Hintergrunddaten!$O$44=2,10,IF(Hintergrunddaten!$O$44=5,4,20)))","v":0},{"$f":"K98-J98","v":0},{"$f":"IF('MA 31-40'!K87=0,\"0%\",J87/K87)","v":"0%"}]
[]
["MitarbeiterIn 038",null,null,null,null,{"$f":"IF(Übersicht!D3=0,\"Stunden Jahr 1\",\"Stunden\"&(Übersicht!D3))","v":"Stunden Jahr 1"},{"$f":"IF(Übersicht!D3=0,\"Stunden Jahr 2\",Übersicht!E6)","v":"Stunden Jahr 2"},{"$f":"IF(Übersicht!D3=0,\"Stunden Jahr 3\",Übersicht!F6)","v":"Stunden Jahr 3"},{"$f":"IF(Übersicht!D3=0,\"Stunden Jahr 4\",Übersicht!G6)","v":"Stunden Jahr 4"},"Stunden\nGesamt","Soll-stunden","Differenz","% erreicht"]
[null,"Titel der Fortbildung","Datum von","Datum bis","Inhalte",null,null,null,null,{"$f":"SUM(F112:I112)","v":0},{"$f":"IF(Hintergrunddaten!$O$51=1,0,IF(Hintergrunddaten!$O$51=2,10,IF(Hintergrunddaten!$O$51=5,4,20)))","v":0},{"$f":"K112-J112","v":0},{"$f":"IF('MA 31-40'!K101=0,\"0%\",J101/K101)","v":"0%"}]
["Fortbildung 01",null,null,null,null,null,null,null,null,{"$f":"SUM(F102:I102)","v":0}]
["Fortbildung 02",null,null,null,null,null,null,null,null,{"$f":"SUM(F103:I103)","v":0}]
["Fortbildung 03",null,null,null,null,null,null,null,null,0]
["Fortbildung 04",null,null,null,null,null,null,null,null,0]
["Fortbildung 05",null,null,null,null,null,null,null,null,0]
["Fortbildung 06",null,null,null,null,null,null,null,null,0]
["Fortbildung 07",null,null,null,null,null,null,null,null,0]
["Fortbildung 08",null,null,null,null,null,null,null,null,0]
["Fortbildung 09",null,null,null,null,null,null,null,null,0]
["Fortbildung 10",null,null,null,null,null,null,null,null,0]
[null,null,null,null,null,{"$f":"SUM(F101:F111)","v":0},{"$f":"SUM(G101:G111)","v":0},{"$f":"SUM(H101:H111)","v":0},{"$f":"SUM(I101:I111)","v":0},{"$f":"SUM(F112:I112)","v":0},{"$f":"IF(Hintergrunddaten!$O$51=1,0,IF(Hintergrunddaten!$O$51=2,10,IF(Hintergrunddaten!$O$51=5,4,20)))","v":0},{"$f":"K112-J112","v":0},{"$f":"IF('MA 31-40'!K101=0,\"0%\",J101/K101)","v":"0%"}]
[]
["MitarbeiterIn 039",null,null,null,null,{"$f":"IF(Übersicht!D3=0,\"Stunden Jahr 1\",\"Stunden\"&(Übersicht!D3))","v":"Stunden Jahr 1"},{"$f":"IF(Übersicht!D3=0,\"Stunden Jahr 2\",Übersicht!E6)","v":"Stunden Jahr 2"},{"$f":"IF(Übersicht!D3=0,\"Stunden Jahr 3\",Übersicht!F6)","v":"Stunden Jahr 3"},{"$f":"IF(Übersicht!D3=0,\"Stunden Jahr 4\",Übersicht!G6)","v":"Stunden Jahr 4"},"Stunden\nGesamt","Soll-stunden","Differenz","% erreicht"]
[null,"Titel der Fortbildung","Datum von","Datum bis","Inhalte",null,null,null,null,{"$f":"SUM(F126:I126)","v":0},{"$f":"IF(Hintergrunddaten!$O$58=1,0,IF(Hintergrunddaten!$O$58=2,10,IF(Hintergrunddaten!$O$58=5,4,20)))","v":0},{"$f":"K126-J126","v":0},{"$f":"IF('MA 31-40'!K115=0,\"0%\",J115/K115)","v":"0%"}]
["Fortbildung 01",null,null,null,null,null,null,null,null,{"$f":"SUM(F116:I116)","v":0}]
["Fortbildung 02",null,null,null,null,null,null,null,null,{"$f":"SUM(F117:I117)","v":0}]
["Fortbildung 03",null,null,null,null,null,null,null,null,0]
["Fortbildung 04",null,null,null,null,null,null,null,null,0]
["Fortbildung 05",null,null,null,null,null,null,null,null,0]
["Fortbildung 06",null,null,null,null,null,null,null,null,0]
["Fortbildung 07",null,null,null,null,null,null,null,null,0]
["Fortbildung 08",null,null,null,null,null,null,null,null,0]
["Fortbildung 09",null,null,null,null,null,null,null,null,0]
["Fortbildung 10",null,null,null,null,null,null,null,null,0]
[null,null,null,null,null,{"$f":"SUM(F115:F125)","v":0},{"$f":"SUM(G115:G125)","v":0},{"$f":"SUM(H115:H125)","v":0},{"$f":"SUM(I115:I125)","v":0},{"$f":"SUM(F126:I126)","v":0},{"$f":"IF(Hintergrunddaten!$O$58=1,0,IF(Hintergrunddaten!$O$58=2,10,IF(Hintergrunddaten!$O$58=5,4,20)))","v":0},{"$f":"K126-J126","v":0},{"$f":"IF('MA 31-40'!K115=0,\"0%\",J115/K115)","v":"0%"}]
[]
["MitarbeiterIn 040",null,null,null,null,{"$f":"IF(Übersicht!D3=0,\"Stunden Jahr 1\",\"Stunden\"&(Übersicht!D3))","v":"Stunden Jahr 1"},{"$f":"IF(Übersicht!D3=0,\"Stunden Jahr 2\",Übersicht!E6)","v":"Stunden Jahr 2"},{"$f":"IF(Übersicht!D3=0,\"Stunden Jahr 3\",Übersicht!F6)","v":"Stunden Jahr 3"},{"$f":"IF(Übersicht!D3=0,\"Stunden Jahr 4\",Übersicht!G6)","v":"Stunden Jahr 4"},"Stunden\nGesamt","Soll-stunden","Differenz","% erreicht"]
[null,"Titel der Fortbildung","Datum von","Datum bis","Inhalte",null,null,null,null,{"$f":"SUM(F140:I140)","v":0},{"$f":"IF(Hintergrunddaten!$O$65=1,0,IF(Hintergrunddaten!$O$65=2,10,IF(Hintergrunddaten!$O$65=5,4,20)))","v":0},{"$f":"K140-J140","v":0},{"$f":"IF('MA 31-40'!K129=0,\"0%\",J129/K129)","v":"0%"}]
["Fortbildung 01",null,null,null,null,null,null,null,null,{"$f":"SUM(F130:I130)","v":0}]
["Fortbildung 02",null,null,null,null,null,null,null,null,{"$f":"SUM(F131:I131)","v":0}]
["Fortbildung 03",null,null,null,null,null,null,null,null,0]
["Fortbildung 04",null,null,null,null,null,null,null,null,0]
["Fortbildung 05",null,null,null,null,null,null,null,null,0]
["Fortbildung 06",null,null,null,null,null,null,null,null,0]
["Fortbildung 07",null,null,null,null,null,null,null,null,0]
["Fortbildung 08",null,null,null,null,null,null,null,null,0]
["Fortbildung 09",null,null,null,null,null,null,null,null,0]
["Fortbildung 10",null,null,null,null,null,null,null,null,0]
[null,null,null,null,null,{"$f":"SUM(F129:F139)","v":0},{"$f":"SUM(G129:G139)","v":0},{"$f":"SUM(H129:H139)","v":0},{"$f":"SUM(I129:I139)","v":0},{"$f":"SUM(F140:I140)","v":0},{"$f":"IF(Hintergrunddaten!$O$65=1,0,IF(Hintergrunddaten!$O$65=2,10,IF(Hintergrunddaten!$O$65=5,4,20)))","v":0},{"$f":"K140-J140","v":0},{"$f":"IF('MA 31-40'!K129=0,\"0%\",J129/K129)","v":"0%"}]

{"sheet":"MA 41-50","index":5,"n_rows":140,"n_cols":13,"rows_kept":140,"cut":false,"hidden":false,"merged":[]}
[]
["MitarbeiterIn 041",null,null,null,null,{"$f":"IF(Übersicht!D3=0,\"Stunden Jahr 1\",\"Stunden\"&(Übersicht!D3))","v":"Stunden Jahr 1"},{"$f":"IF(Übersicht!D3=0,\"Stunden Jahr 2\",Übersicht!E6)","v":"Stunden Jahr 2"},{"$f":"IF(Übersicht!D3=0,\"Stunden Jahr 2\",Übersicht!F6)","v":"Stunden Jahr 2"},{"$f":"IF(Übersicht!D3=0,\"Stunden Jahr 4\",Übersicht!G6)","v":"Stunden Jahr 4"},"Stunden\nGesamt","Soll-stunden","Differenz","% erreicht"]
[null,"Titel der Fortbildung","Datum von","Datum bis","Inhalte",null,null,null,null,{"$f":"SUM(F14:I14)","v":0},{"$f":"IF(Hintergrunddaten!$S$2=1,0,IF(Hintergrunddaten!$S$2=2,10,IF(Hintergrunddaten!$S$2=5,4,20)))","v":0},{"$f":"K14-J14","v":0},{"$f":"IF('MA 41-50'!K3=0,\"0%\",J3/K3)","v":"0%"}]
["Fortbildung 01",null,null,null,null,null,null,null,null,{"$f":"SUM(F4:I4)","v":0}]
["Fortbildung 02",null,null,null,null,null,null,null,null,{"$f":"SUM(F5:I5)","v":0}]
["Fortbildung 03",null,null,null,null,null,null,null,null,0]
["Fortbildung 04",null,null,null,null,null,null,null,null,0]
["Fortbildung 05",null,null,null,null,null,null,null,null,0]
["Fortbildung 06",null,null,null,null,null,null,null,null,0]
["Fortbildung 07",null,null,null,null,null,null,null,null,0]
["Fortbildung 08",null,null,null,null,null,null,null,null,0]
["Fortbildung 09",null,null,null,null,null,null,null,null,0]
["Fortbildung 10",null,null,null,null,null,null,null,null,0]
[null,null,null,null,null,{"$f":"SUM(F3:F13)","v":0},{"$f":"SUM(G3:G13)","v":0},{"$f":"SUM(H3:H13)","v":0},{"$f":"SUM(I3:I13)","v":0},{"$f":"SUM(F14:I14)","v":0},{"$f":"IF(Hintergrunddaten!$S$2=1,0,IF(Hintergrunddaten!$S$2=2,10,IF(Hintergrunddaten!$S$2=5,4,20)))","v":0},{"$f":"K14-J14","v":0},{"$f":"IF('MA 41-50'!K3=0,\"0%\",J3/K3)","v":"0%"}]
[]
["MitarbeiterIn 042",null,null,null,null,{"$f":"IF(Übersicht!D3=0,\"Stunden Jahr 1\",\"Stunden\"&(Übersicht!D3))","v":"Stunden Jahr 1"},{"$f":"IF(Übersicht!D3=0,\"Stunden Jahr 2\",Übersicht!E6)","v":"Stunden Jahr 2"},{"$f":"IF(Übersicht!D3=0,\"Stunden Jahr 3\",Übersicht!F6)","v":"Stunden Jahr 3"},{"$f":"IF(Übersicht!D3=0,\"Stunden Jahr 4\",Übersicht!G6)","v":"Stunden Jahr 4"},"Stunden\nGesamt","Soll-stunden","Differenz","% erreicht"]
[null,"Titel der Fortbildung","Datum von","Datum bis","Inhalte",null,null,null,null,{"$f":"SUM(F28:I28)","v":0},{"$f":"IF(Hintergrunddaten!$S$9=1,0,IF(Hintergrunddaten!$S$9=2,10,IF(Hintergrunddaten!$S$9=5,4,20)))","v":0},{"$f":"K28-J28","v":0},{"$f":"IF('MA 41-50'!K17=0,\"0%\",J17/K17)","v":"0%"}]
["Fortbildung 01",null,null,null,null,null,null,null,null,{"$f":"SUM(F18:I18)","v":0}]
["Fortbildung 02",null,null,null,null,null,null,null,null,{"$f":"SUM(F19:I19)","v":0}]
["Fortbildung 03",null,null,null,null,null,null,null,null,0]
["Fortbildung 04",null,null,null,null,null,null,null,null,0]
["Fortbildung 05",null,null,null,null,null,null,null,null,0]
["Fortbildung 06",null,null,null,null,null,null,null,null,0]
["Fortbildung 07",null,null,null,null,null,null,null,null,0]
["Fortbildung 08",null,null,null,null,null,null,null,null,0]
["Fortbildung 09",null,null,null,null,null,null,null,null,0]
["Fortbildung 10",null,null,null,null,null,null,null,null,0]
[null,null,null,null,null,{"$f":"SUM(F17:F27)","v":0},{"$f":"SUM(G17:G27)","v":0},{"$f":"SUM(H17:H27)","v":0},{"$f":"SUM(I17:I27)","v":0},{"$f":"SUM(F28:I28)","v":0},{"$f":"IF(Hintergrunddaten!$S$9=1,0,IF(Hintergrunddaten!$S$9=2,10,IF(Hintergrunddaten!$S$9=5,4,20)))","v":0},{"$f":"K28-J28","v":0},{"$f":"IF('MA 41-50'!K17=0,\"0%\",J17/K17)","v":"0%"}]
[]
["MitarbeiterIn 043",null,null,null,null,{"$f":"IF(Übersicht!D3=0,\"Stunden Jahr 1\",\"Stunden\"&(Übersicht!D3))","v":"Stunden Jahr 1"},{"$f":"IF(Übersicht!D3=0,\"Stunden Jahr 2\",Übersicht!E6)","v":"Stunden Jahr 2"},{"$f":"IF(Übersicht!D3=0,\"Stunden Jahr 3\",Übersicht!F6)","v":"Stunden Jahr 3"},{"$f":"IF(Übersicht!D3=0,\"Stunden Jahr 4\",Übersicht!G6)","v":"Stunden Jahr 4"},"Stunden\nGesamt","Soll-stunden","Differenz","% erreicht"]
[null,"Titel der Fortbildung","Datum von","Datum bis","Inhalte",null,null,null,null,{"$f":"SUM(F42:I42)","v":0},{"$f":"IF(Hintergrunddaten!$S$16=1,0,IF(Hintergrunddaten!$S$16=2,10,IF(Hintergrunddaten!$S$16=5,4,20)))","v":0},{"$f":"K42-J42","v":0},{"$f":"IF('MA 41-50'!K31=0,\"0%\",J31/K31)","v":"0%"}]
["Fortbildung 01",null,null,null,null,null,null,null,null,{"$f":"SUM(F32:I32)","v":0}]
["Fortbildung 02",null,null,null,null,null,null,null,null,{"$f":"SUM(F33:I33)","v":0}]
["Fortbildung 03",null,null,null,null,null,null,null,null,0]
["Fortbildung 04",null,null,null,null,null,null,null,null,0]
["Fortbildung 05",null,null,null,null,null,null,null,null,0]
["Fortbildung 06",null,null,null,null,null,null,null,null,0]
["Fortbildung 07",null,null,null,null,null,null,null,null,0]
["Fortbildung 08",null,null,null,null,null,null,null,null,0]
["Fortbildung 09",null,null,null,null,null,null,null,null,0]
["Fortbildung 10",null,null,null,null,null,null,null,null,0]
[null,null,null,null,null,{"$f":"SUM(F31:F41)","v":0},{"$f":"SUM(G31:G41)","v":0},{"$f":"SUM(H31:H41)","v":0},{"$f":"SUM(I31:I41)","v":0},{"$f":"SUM(F42:I42)","v":0},{"$f":"IF(Hintergrunddaten!$S$16=1,0,IF(Hintergrunddaten!$S$16=2,10,IF(Hintergrunddaten!$S$16=5,4,20)))","v":0},{"$f":"K42-J42","v":0},{"$f":"IF('MA 41-50'!K31=0,\"0%\",J31/K31)","v":"0%"}]
[]
["MitarbeiterIn 044",null,null,null,null,{"$f":"IF(Übersicht!D3=0,\"Stunden Jahr 1\",\"Stunden\"&(Übersicht!D3))","v":"Stunden Jahr 1"},{"$f":"IF(Übersicht!D3=0,\"Stunden Jahr 2\",Übersicht!E6)","v":"Stunden Jahr 2"},{"$f":"IF(Übersicht!D3=0,\"Stunden Jahr 3\",Übersicht!F6)","v":"Stunden Jahr 3"},{"$f":"IF(Übersicht!D3=0,\"Stunden Jahr 4\",Übersicht!G6)","v":"Stunden Jahr 4"},"Stunden\nGesamt","Soll-stunden","Differenz","% erreicht"]
[null,"Titel der Fortbildung","Datum von","Datum bis","Inhalte",null,null,null,null,{"$f":"SUM(F56:I56)","v":0},{"$f":"IF(Hintergrunddaten!$S$23=1,0,IF(Hintergrunddaten!$S$23=2,10,IF(Hintergrunddaten!$S$23=5,4,20)))","v":0},{"$f":"K56-J56","v":0},{"$f":"IF('MA 41-50'!K45=0,\"0%\",J45/K45)","v":"0%"}]
["Fortbildung 01",null,null,null,null,null,null,null,null,{"$f":"SUM(F46:I46)","v":0}]
["Fortbildung 02",null,null,null,null,null,null,null,null,{"$f":"SUM(F47:I47)","v":0}]
["Fortbildung 03",null,null,null,null,null,null,null,null,0]
["Fortbildung 04",null,null,null,null,null,null,null,null,0]
["Fortbildung 05",null,null,null,null,null,null,null,null,0]
["Fortbildung 06",null,null,null,null,null,null,null,null,0]
["Fortbildung 07",null,null,null,null,null,null,null,null,0]
["Fortbildung 08",null,null,null,null,null,null,null,null,0]
["Fortbildung 09",null,null,null,null,null,null,null,null,0]
["Fortbildung 10",null,null,null,null,null,null,null,null,0]
[null,null,null,null,null,{"$f":"SUM(F45:F55)","v":0},{"$f":"SUM(G45:G55)","v":0},{"$f":"SUM(H45:H55)","v":0},{"$f":"SUM(I45:I55)","v":0},{"$f":"SUM(F56:I56)","v":0},{"$f":"IF(Hintergrunddaten!$S$23=1,0,IF(Hintergrunddaten!$S$23=2,10,IF(Hintergrunddaten!$S$23=5,4,20)))","v":0},{"$f":"K56-J56","v":0},{"$f":"IF('MA 41-50'!K45=0,\"0%\",J45/K45)","v":"0%"}]
[]
["MitarbeiterIn 045",null,null,null,null,{"$f":"IF(Übersicht!D3=0,\"Stunden Jahr 1\",\"Stunden\"&(Übersicht!D3))","v":"Stunden Jahr 1"},{"$f":"IF(Übersicht!D3=0,\"Stunden Jahr 2\",Übersicht!E6)","v":"Stunden Jahr 2"},{"$f":"IF(Übersicht!D3=0,\"Stunden Jahr 3\",Übersicht!F6)","v":"Stunden Jahr 3"},{"$f":"IF(Übersicht!D3=0,\"Stunden Jahr 4\",Übersicht!G6)","v":"Stunden Jahr 4"},"Stunden\nGesamt","Soll-stunden","Differenz","% erreicht"]
[null,"Titel der Fortbildung","Datum von","Datum bis","Inhalte",null,null,null,null,{"$f":"SUM(F70:I70)","v":0},{"$f":"IF(Hintergrunddaten!$S$30=1,0,IF(Hintergrunddaten!$S$30=2,10,IF(Hintergrunddaten!$S$30=5,4,20)))","v":0},{"$f":"K70-J70","v":0},{"$f":"IF('MA 41-50'!K59=0,\"0%\",J59/K59)","v":"0%"}]
["Fortbildung 01",null,null,null,null,null,null,null,null,{"$f":"SUM(F60:I60)","v":0}]
["Fortbildung 02",null,null,null,null,null,null,null,null,{"$f":"SUM(F61:I61)","v":0}]
["Fortbildung 03",null,null,null,null,null,null,null,null,0]
["Fortbildung 04",null,null,null,null,null,null,null,null,0]
["Fortbildung 05",null,null,null,null,null,null,null,null,0]
["Fortbildung 06",null,null,null,null,null,null,null,null,0]
["Fortbildung 07",null,null,null,null,null,null,null,null,0]
["Fortbildung 08",null,null,null,null,null,null,null,null,0]
["Fortbildung 09",null,null,null,null,null,null,null,null,0]
["Fortbildung 10",null,null,null,null,null,null,null,null,0]
[null,null,null,null,null,{"$f":"SUM(F59:F69)","v":0},{"$f":"SUM(G59:G69)","v":0},{"$f":"SUM(H59:H69)","v":0},{"$f":"SUM(I59:I69)","v":0},{"$f":"SUM(F70:I70)","v":0},{"$f":"IF(Hintergrunddaten!$S$30=1,0,IF(Hintergrunddaten!$S$30=2,10,IF(Hintergrunddaten!$S$30=5,4,20)))","v":0},{"$f":"K70-J70","v":0},{"$f":"IF('MA 41-50'!K59=0,\"0%\",J59/K59)","v":"0%"}]
[]
["MitarbeiterIn 046",null,null,null,null,{"$f":"IF(Übersicht!D3=0,\"Stunden Jahr 1\",\"Stunden\"&(Übersicht!D3))","v":"Stunden Jahr 1"},{"$f":"IF(Übersicht!D3=0,\"Stunden Jahr 2\",Übersicht!E6)","v":"Stunden Jahr 2"},{"$f":"IF(Übersicht!D3=0,\"Stunden Jahr 3\",Übersicht!F6)","v":"Stunden Jahr 3"},{"$f":"IF(Übersicht!D3=0,\"Stunden Jahr 4\",Übersicht!G6)","v":"Stunden Jahr 4"},"Stunden\nGesamt","Soll-stunden","Differenz","% erreicht"]
[null,"Titel der Fortbildung","Datum von","Datum bis","Inhalte",null,null,null,null,{"$f":"SUM(F84:I84)","v":0},{"$f":"IF(Hintergrunddaten!$S$37=1,0,IF(Hintergrunddaten!$S$37=2,10,IF(Hintergrunddaten!$S$37=5,4,20)))","v":0},{"$f":"K84-J84","v":0},{"$f":"IF('MA 41-50'!K73=0,\"0%\",J73/K73)","v":"0%"}]
["Fortbildung 01",null,null,null,null,null,null,null,null,{"$f":"SUM(F74:I74)","v":0}]
["Fortbildung 02",null,null,null,null,null,null,null,null,{"$f":"SUM(F75:I75)","v":0}]
["Fortbildung 03",null,null,null,null,null,null,null,null,0]
["Fortbildung 04",null,null,null,null,null,null,null,null,0]
["Fortbildung 05",null,null,null,null,null,null,null,null,0]
["Fortbildung 06",null,null,null,null,null,null,null,null,0]
["Fortbildung 07",null,null,null,null,null,null,null,null,0]
["Fortbildung 08",null,null,null,null,null,null,null,null,0]
["Fortbildung 09",null,null,null,null,null,null,null,null,0]
["Fortbildung 10",null,null,null,null,null,null,null,null,0]
[null,null,null,null,null,{"$f":"SUM(F73:F83)","v":0},{"$f":"SUM(G73:G83)","v":0},{"$f":"SUM(H73:H83)","v":0},{"$f":"SUM(I73:I83)","v":0},{"$f":"SUM(F84:I84)","v":0},{"$f":"IF(Hintergrunddaten!$S$37=1,0,IF(Hintergrunddaten!$S$37=2,10,IF(Hintergrunddaten!$S$37=5,4,20)))","v":0},{"$f":"K84-J84","v":0},{"$f":"IF('MA 41-50'!K73=0,\"0%\",J73/K73)","v":"0%"}]
[]
["MitarbeiterIn 047",null,null,null,null,{"$f":"IF(Übersicht!D3=0,\"Stunden Jahr 1\",\"Stunden\"&(Übersicht!D3))","v":"Stunden Jahr 1"},{"$f":"IF(Übersicht!D3=0,\"Stunden Jahr 2\",Übersicht!E6)","v":"Stunden Jahr 2"},{"$f":"IF(Übersicht!D3=0,\"Stunden Jahr 3\",Übersicht!F6)","v":"Stunden Jahr 3"},{"$f":"IF(Übersicht!D3=0,\"Stunden Jahr 4\",Übersicht!G6)","v":"Stunden Jahr 4"},"Stunden\nGesamt","Soll-stunden","Differenz","% erreicht"]
[null,"Titel der Fortbildung","Datum von","Datum bis","Inhalte",null,null,null,null,{"$f":"SUM(F98:I98)","v":0},{"$f":"IF(Hintergrunddaten!$S$44=1,0,IF(Hintergrunddaten!$S$44=2,10,IF(Hintergrunddaten!$S$44=5,4,20)))","v":0},{"$f":"K98-J98","v":0},{"$f":"IF('MA 41-50'!K87=0,\"0%\",J87/K87)","v":"0%"}]
["Fortbildung 01",null,null,null,null,null,null,null,null,{"$f":"SUM(F88:I88)","v":0}]
["Fortbildung 02",null,null,null,null,null,null,null,null,{"$f":"SUM(F89:I89)","v":0}]
["Fortbildung 03",null,null,null,null,null,null,null,null,0]
["Fortbildung 04",null,null,null,null,null,null,null,null,0]
["Fortbildung 05",null,null,null,null,null,null,null,null,0]
["Fortbildung 06",null,null,null,null,null,null,null,null,0]
["Fortbildung 07",null,null,null,null,null,null,null,null,0]
["Fortbildung 08",null,null,null,null,null,null,null,null,0]
["Fortbildung 09",null,null,null,null,null,null,null,null,0]
["Fortbildung 10",null,null,null,null,null,null,null,null,0]
[null,null,null,null,null,{"$f":"SUM(F87:F97)","v":0},{"$f":"SUM(G87:G97)","v":0},{"$f":"SUM(H87:H97)","v":0},{"$f":"SUM(I87:I97)","v":0},{"$f":"SUM(F98:I98)","v":0},{"$f":"IF(Hintergrunddaten!$S$44=1,0,IF(Hintergrunddaten!$S$44=2,10,IF(Hintergrunddaten!$S$44=5,4,20)))","v":0},{"$f":"K98-J98","v":0},{"$f":"IF('MA 41-50'!K87=0,\"0%\",J87/K87)","v":"0%"}]
[]
["MitarbeiterIn 048",null,null,null,null,{"$f":"IF(Übersicht!D3=0,\"Stunden Jahr 1\",\"Stunden\"&(Übersicht!D3))","v":"Stunden Jahr 1"},{"$f":"IF(Übersicht!D3=0,\"Stunden Jahr 2\",Übersicht!E6)","v":"Stunden Jahr 2"},{"$f":"IF(Übersicht!D3=0,\"Stunden Jahr 3\",Übersicht!F6)","v":"Stunden Jahr 3"},{"$f":"IF(Übersicht!D3=0,\"Stunden Jahr 4\",Übersicht!G6)","v":"Stunden Jahr 4"},"Stunden\nGesamt","Soll-stunden","Differenz","% erreicht"]
[null,"Titel der Fortbildung","Datum von","Datum bis","Inhalte",null,null,null,null,{"$f":"SUM(F112:I112)","v":0},{"$f":"IF(Hintergrunddaten!$S$51=1,0,IF(Hintergrunddaten!$S$51=2,10,IF(Hintergrunddaten!$S$51=5,4,20)))","v":0},{"$f":"K112-J112","v":0},{"$f":"IF('MA 41-50'!K101=0,\"0%\",J101/K101)","v":"0%"}]
["Fortbildung 01",null,null,null,null,null,null,null,null,{"$f":"SUM(F102:I102)","v":0}]
["Fortbildung 02",null,null,null,null,null,null,null,null,{"$f":"SUM(F103:I103)","v":0}]
["Fortbildung 03",null,null,null,null,null,null,null,null,0]
["Fortbildung 04",null,null,null,null,null,null,null,null,0]
["Fortbildung 05",null,null,null,null,null,null,null,null,0]
["Fortbildung 06",null,null,null,null,null,null,null,null,0]
["Fortbildung 07",null,null,null,null,null,null,null,null,0]
["Fortbildung 08",null,null,null,null,null,null,null,null,0]
["Fortbildung 09",null,null,null,null,null,null,null,null,0]
["Fortbildung 10",null,null,null,null,null,null,null,null,0]
[null,null,null,null,null,{"$f":"SUM(F101:F111)","v":0},{"$f":"SUM(G101:G111)","v":0},{"$f":"SUM(H101:H111)","v":0},{"$f":"SUM(I101:I111)","v":0},{"$f":"SUM(F112:I112)","v":0},{"$f":"IF(Hintergrunddaten!$S$51=1,0,IF(Hintergrunddaten!$S$51=2,10,IF(Hintergrunddaten!$S$51=5,4,20)))","v":0},{"$f":"K112-J112","v":0},{"$f":"IF('MA 41-50'!K101=0,\"0%\",J101/K101)","v":"0%"}]
[]
["MitarbeiterIn 049",null,null,null,null,{"$f":"IF(Übersicht!D3=0,\"Stunden Jahr 1\",\"Stunden\"&(Übersicht!D3))","v":"Stunden Jahr 1"},{"$f":"IF(Übersicht!D3=0,\"Stunden Jahr 2\",Übersicht!E6)","v":"Stunden Jahr 2"},{"$f":"IF(Übersicht!D3=0,\"Stunden Jahr 3\",Übersicht!F6)","v":"Stunden Jahr 3"},{"$f":"IF(Übersicht!D3=0,\"Stunden Jahr 4\",Übersicht!G6)","v":"Stunden Jahr 4"},"Stunden\nGesamt","Soll-stunden","Differenz","% erreicht"]
[null,"Titel der Fortbildung","Datum von","Datum bis","Inhalte",null,null,null,null,{"$f":"SUM(F126:I126)","v":0},{"$f":"IF(Hintergrunddaten!$S$58=1,0,IF(Hintergrunddaten!$S$58=2,10,IF(Hintergrunddaten!$S$58=5,4,20)))","v":0},{"$f":"K126-J126","v":0},{"$f":"IF('MA 41-50'!K115=0,\"0%\",J115/K115)","v":"0%"}]
["Fortbildung 01",null,null,null,null,null,null,null,null,{"$f":"SUM(F116:I116)","v":0}]
["Fortbildung 02",null,null,null,null,null,null,null,null,{"$f":"SUM(F117:I117)","v":0}]
["Fortbildung 03",null,null,null,null,null,null,null,null,0]
["Fortbildung 04",null,null,null,null,null,null,null,null,0]
["Fortbildung 05",null,null,null,null,null,null,null,null,0]
["Fortbildung 06",null,null,null,null,null,null,null,null,0]
["Fortbildung 07",null,null,null,null,null,null,null,null,0]
["Fortbildung 08",null,null,null,null,null,null,null,null,0]
["Fortbildung 09",null,null,null,null,null,null,null,null,0]
["Fortbildung 10",null,null,null,null,null,null,null,null,0]
[null,null,null,null,null,{"$f":"SUM(F115:F125)","v":0},{"$f":"SUM(G115:G125)","v":0},{"$f":"SUM(H115:H125)","v":0},{"$f":"SUM(I115:I125)","v":0},{"$f":"SUM(F126:I126)","v":0},{"$f":"IF(Hintergrunddaten!$S$58=1,0,IF(Hintergrunddaten!$S$58=2,10,IF(Hintergrunddaten!$S$58=5,4,20)))","v":0},{"$f":"K126-J126","v":0},{"$f":"IF('MA 41-50'!K115=0,\"0%\",J115/K115)","v":"0%"}]
[]
["MitarbeiterIn 050",null,null,null,null,{"$f":"IF(Übersicht!D3=0,\"Stunden Jahr 1\",\"Stunden\"&(Übersicht!D3))","v":"Stunden Jahr 1"},{"$f":"IF(Übersicht!D3=0,\"Stunden Jahr 2\",Übersicht!E6)","v":"Stunden Jahr 2"},{"$f":"IF(Übersicht!D3=0,\"Stunden Jahr 3\",Übersicht!F6)","v":"Stunden Jahr 3"},{"$f":"IF(Übersicht!D3=0,\"Stunden Jahr 4\",Übersicht!G6)","v":"Stunden Jahr 4"},"Stunden\nGesamt","Soll-stunden","Differenz","% erreicht"]
[null,"Titel der Fortbildung","Datum von","Datum bis","Inhalte",null,null,null,null,{"$f":"SUM(F140:I140)","v":0},{"$f":"IF(Hintergrunddaten!$S$65=1,0,IF(Hintergrunddaten!$S$65=2,10,IF(Hintergrunddaten!$S$65=5,4,20)))","v":0},{"$f":"K140-J140","v":0},{"$f":"IF('MA 41-50'!K129=0,\"0%\",J129/K129)","v":"0%"}]
["Fortbildung 01",null,null,null,null,null,null,null,null,{"$f":"SUM(F130:I130)","v":0}]
["Fortbildung 02",null,null,null,null,null,null,null,null,{"$f":"SUM(F131:I131)","v":0}]
["Fortbildung 03",null,null,null,null,null,null,null,null,0]
["Fortbildung 04",null,null,null,null,null,null,null,null,0]
["Fortbildung 05",null,null,null,null,null,null,null,null,0]
["Fortbildung 06",null,null,null,null,null,null,null,null,0]
["Fortbildung 07",null,null,null,null,null,null,null,null,0]
["Fortbildung 08",null,null,null,null,null,null,null,null,0]
["Fortbildung 09",null,null,null,null,null,null,null,null,0]
["Fortbildung 10",null,null,null,null,null,null,null,null,0]
[null,null,null,null,null,{"$f":"SUM(F129:F139)","v":0},{"$f":"SUM(G129:G139)","v":0},{"$f":"SUM(H129:H139)","v":0},{"$f":"SUM(I129:I139)","v":0},{"$f":"SUM(F140:I140)","v":0},{"$f":"IF(Hintergrunddaten!$S$65=1,0,IF(Hintergrunddaten!$S$65=2,10,IF(Hintergrunddaten!$S$65=5,4,20)))","v":0},{"$f":"K140-J140","v":0},{"$f":"IF('MA 41-50'!K129=0,\"0%\",J129/K129)","v":"0%"}]

{"sheet":"MA 51-60","index":6,"n_rows":140,"n_cols":13,"rows_kept":140,"cut":false,"hidden":false,"merged":[]}
[]
["MitarbeiterIn 051",null,null,null,null,{"$f":"IF(Übersicht!D3=0,\"Stunden Jahr 1\",\"Stunden\"&(Übersicht!D3))","v":"Stunden Jahr 1"},{"$f":"IF(Übersicht!D3=0,\"Stunden Jahr 2\",Übersicht!E6)","v":"Stunden Jahr 2"},{"$f":"IF(Übersicht!D3=0,\"Stunden Jahr 3\",Übersicht!F6)","v":"Stunden Jahr 3"},{"$f":"IF(Übersicht!D3=0,\"Stunden Jahr 4\",Übersicht!G6)","v":"Stunden Jahr 4"},"Stunden\nGesamt","Soll-stunden","Differenz","% erreicht"]
[null,"Titel der Fortbildung","Datum von","Datum bis","Inhalte",null,null,null,null,{"$f":"SUM(F14:I14)","v":0},{"$f":"IF(Hintergrunddaten!$W$2=1,0,IF(Hintergrunddaten!$W$2=2,10,IF(Hintergrunddaten!$W$2=5,4,20)))","v":0},{"$f":"K14-J14","v":0},{"$f":"IF('MA 51-60'!K3=0,\"0%\",J3/K3)","v":"0%"}]
["Fortbildung 01",null,null,null,null,null,null,null,null,{"$f":"SUM(F4:I4)","v":0}]
["Fortbildung 02",null,null,null,null,null,null,null,null,{"$f":"SUM(F5:I5)","v":0}]
["Fortbildung 03",null,null,null,null,null,null,null,null,0]
["Fortbildung 04",null,null,null,null,null,null,null,null,0]
["Fortbildung 05",null,null,null,null,null,null,null,null,0]
["Fortbildung 06",null,null,null,null,null,null,null,null,0]
["Fortbildung 07",null,null,null,null,null,null,null,null,0]
["Fortbildung 08",null,null,null,null,null,null,null,null,0]
["Fortbildung 09",null,null,null,null,null,null,null,null,0]
["Fortbildung 10",null,null,null,null,null,null,null,null,0]
[null,null,null,null,null,{"$f":"SUM(F3:F13)","v":0},{"$f":"SUM(G3:G13)","v":0},{"$f":"SUM(H3:H13)","v":0},{"$f":"SUM(I3:I13)","v":0},{"$f":"SUM(F14:I14)","v":0},{"$f":"IF(Hintergrunddaten!$W$2=1,0,IF(Hintergrunddaten!$W$2=2,10,IF(Hintergrunddaten!$W$2=5,4,20)))","v":0},{"$f":"K14-J14","v":0},{"$f":"IF('MA 51-60'!K3=0,\"0%\",J3/K3)","v":"0%"}]
[]
["MitarbeiterIn 052",null,null,null,null,{"$f":"IF(Übersicht!D3=0,\"Stunden Jahr 1\",\"Stunden\"&(Übersicht!D3))","v":"Stunden Jahr 1"},{"$f":"IF(Übersicht!D3=0,\"Stunden Jahr 2\",Übersicht!E6)","v":"Stunden Jahr 2"},{"$f":"IF(Übersicht!D3=0,\"Stunden Jahr 3\",Übersicht!F6)","v":"Stunden Jahr 3"},{"$f":"IF(Übersicht!D3=0,\"Stunden Jahr 4\",Übersicht!G6)","v":"Stunden Jahr 4"},"Stunden\nGesamt","Soll-stunden","Differenz","% erreicht"]
[null,"Titel der Fortbildung","Datum von","Datum bis","Inhalte",null,null,null,null,{"$f":"SUM(F28:I28)","v":0},{"$f":"IF(Hintergrunddaten!$W$9=1,0,IF(Hintergrunddaten!$W$9=2,10,IF(Hintergrunddaten!$W$9=5,4,20)))","v":0},{"$f":"K28-J28","v":0},{"$f":"IF('MA 51-60'!K17=0,\"0%\",J17/K17)","v":"0%"}]
["Fortbildung 01",null,null,null,null,null,null,null,null,{"$f":"SUM(F18:I18)","v":0}]
["Fortbildung 02",null,null,null,null,null,null,null,null,{"$f":"SUM(F19:I19)","v":0}]
["Fortbildung 03",null,null,null,null,null,null,null,null,0]
["Fortbildung 04",null,null,null,null,null,null,null,null,0]
["Fortbildung 05",null,null,null,null,null,null,null,null,0]
["Fortbildung 06",null,null,null,null,null,null,null,null,0]
["Fortbildung 07",null,null,null,null,null,null,null,null,0]
["Fortbildung 08",null,null,null,null,null,null,null,null,0]
["Fortbildung 09",null,null,null,null,null,null,null,null,0]
["Fortbildung 10",null,null,null,null,null,null,null,null,0]
[null,null,null,null,null,{"$f":"SUM(F17:F27)","v":0},{"$f":"SUM(G17:G27)","v":0},{"$f":"SUM(H17:H27)","v":0},{"$f":"SUM(I17:I27)","v":0},{"$f":"SUM(F28:I28)","v":0},{"$f":"IF(Hintergrunddaten!$W$9=1,0,IF(Hintergrunddaten!$W$9=2,10,IF(Hintergrunddaten!$W$9=5,4,20)))","v":0},{"$f":"K28-J28","v":0},{"$f":"IF('MA 51-60'!K17=0,\"0%\",J17/K17)","v":"0%"}]
[]
["MitarbeiterIn 053",null,null,null,null,{"$f":"IF(Übersicht!D3=0,\"Stunden Jahr 1\",\"Stunden\"&(Übersicht!D3))","v":"Stunden Jahr 1"},{"$f":"IF(Übersicht!D3=0,\"Stunden Jahr 2\",Übersicht!E6)","v":"Stunden Jahr 2"},{"$f":"IF(Übersicht!D3=0,\"Stunden Jahr 3\",Übersicht!F6)","v":"Stunden Jahr 3"},{"$f":"IF(Übersicht!D3=0,\"Stunden Jahr 4\",Übersicht!G6)","v":"Stunden Jahr 4"},"Stunden\nGesamt","Soll-stunden","Differenz","% erreicht"]
[null,"Titel der Fortbildung","Datum von","Datum bis","Inhalte",null,null,null,null,{"$f":"SUM(F42:I42)","v":0},{"$f":"IF(Hintergrunddaten!$W$16=1,0,IF(Hintergrunddaten!$W$16=2,10,IF(Hintergrunddaten!$W$16=5,4,20)))","v":0},{"$f":"K42-J42","v":0},{"$f":"IF('MA 51-60'!K31=0,\"0%\",J31/K31)","v":"0%"}]
["Fortbildung 01",null,null,null,null,null,null,null,null,{"$f":"SUM(F32:I32)","v":0}]
["Fortbildung 02",null,null,null,null,null,null,null,null,{"$f":"SUM(F33:I33)","v":0}]
["Fortbildung 03",null,null,null,null,null,null,null,null,0]
["Fortbildung 04",null,null,null,null,null,null,null,null,0]
["Fortbildung 05",null,null,null,null,null,null,null,null,0]
["Fortbildung 06",null,null,null,null,null,null,null,null,0]
["Fortbildung 07",null,null,null,null,null,null,null,null,0]
["Fortbildung 08",null,null,null,null,null,null,null,null,0]
["Fortbildung 09",null,null,null,null,null,null,null,null,0]
["Fortbildung 10",null,null,null,null,null,null,null,null,0]
[null,null,null,null,null,{"$f":"SUM(F31:F41)","v":0},{"$f":"SUM(G31:G41)","v":0},{"$f":"SUM(H31:H41)","v":0},{"$f":"SUM(I31:I41)","v":0},{"$f":"SUM(F42:I42)","v":0},{"$f":"IF(Hintergrunddaten!$W$16=1,0,IF(Hintergrunddaten!$W$16=2,10,IF(Hintergrunddaten!$W$16=5,4,20)))","v":0},{"$f":"K42-J42","v":0},{"$f":"IF('MA 51-60'!K31=0,\"0%\",J31/K31)","v":"0%"}]
[]
["MitarbeiterIn 054",null,null,null,null,{"$f":"IF(Übersicht!D3=0,\"Stunden Jahr 1\",\"Stunden\"&(Übersicht!D3))","v":"Stunden Jahr 1"},{"$f":"IF(Übersicht!D3=0,\"Stunden Jahr 2\",Übersicht!E6)","v":"Stunden Jahr 2"},{"$f":"IF(Übersicht!D3=0,\"Stunden Jahr 3\",Übersicht!F6)","v":"Stunden Jahr 3"},{"$f":"IF(Übersicht!D3=0,\"Stunden Jahr 4\",Übersicht!G6)","v":"Stunden Jahr 4"},"Stunden\nGesamt","Soll-stunden","Differenz","% erreicht"]
[null,"Titel der Fortbildung","Datum von","Datum bis","Inhalte",null,null,null,null,{"$f":"SUM(F56:I56)","v":0},{"$f":"IF(Hintergrunddaten!$W$23=1,0,IF(Hintergrunddaten!$W$23=2,10,IF(Hintergrunddaten!$W$23=5,4,20)))","v":0},{"$f":"K56-J56","v":0},{"$f":"IF('MA 51-60'!K45=0,\"0%\",J45/K45)","v":"0%"}]
["Fortbildung 01",null,null,null,null,null,null,null,null,{"$f":"SUM(F46:I46)","v":0}]
["Fortbildung 02",null,null,null,null,null,null,null,null,{"$f":"SUM(F47:I47)","v":0}]
["Fortbildung 03",null,null,null,null,null,null,null,null,0]
["Fortbildung 04",null,null,null,null,null,null,null,null,0]
["Fortbildung 05",null,null,null,null,null,null,null,null,0]
["Fortbildung 06",null,null,null,null,null,null,null,null,0]
["Fortbildung 07",null,null,null,null,null,null,null,null,0]
["Fortbildung 08",null,null,null,null,null,null,null,null,0]
["Fortbildung 09",null,null,null,null,null,null,null,null,0]
["Fortbildung 10",null,null,null,null,null,null,null,null,0]
[null,null,null,null,null,{"$f":"SUM(F45:F55)","v":0},{"$f":"SUM(G45:G55)","v":0},{"$f":"SUM(H45:H55)","v":0},{"$f":"SUM(I45:I55)","v":0},{"$f":"SUM(F56:I56)","v":0},{"$f":"IF(Hintergrunddaten!$W$23=1,0,IF(Hintergrunddaten!$W$23=2,10,IF(Hintergrunddaten!$W$23=5,4,20)))","v":0},{"$f":"K56-J56","v":0},{"$f":"IF('MA 51-60'!K45=0,\"0%\",J45/K45)","v":"0%"}]
[]
["MitarbeiterIn 055",null,null,null,null,{"$f":"IF(Übersicht!D3=0,\"Stunden Jahr 1\",\"Stunden\"&(Übersicht!D3))","v":"Stunden Jahr 1"},{"$f":"IF(Übersicht!D3=0,\"Stunden Jahr 2\",Übersicht!E6)","v":"Stunden Jahr 2"},{"$f":"IF(Übersicht!D3=0,\"Stunden Jahr 3\",Übersicht!F6)","v":"Stunden Jahr 3"},{"$f":"IF(Übersicht!D3=0,\"Stunden Jahr 4\",Übersicht!G6)","v":"Stunden Jahr 4"},"Stunden\nGesamt","Soll-stunden","Differenz","% erreicht"]
[null,"Titel der Fortbildung","Datum von","Datum bis","Inhalte",null,null,null,null,{"$f":"SUM(F70:I70)","v":0},{"$f":"IF(Hintergrunddaten!$W$30=1,0,IF(Hintergrunddaten!$W$30=2,10,IF(Hintergrunddaten!$W$30=5,4,20)))","v":0},{"$f":"K70-J70","v":0},{"$f":"IF('MA 51-60'!K59=0,\"0%\",J59/K59)","v":"0%"}]
["Fortbildung 01",null,null,null,null,null,null,null,null,{"$f":"SUM(F60:I60)","v":0}]
["Fortbildung 02",null,null,null,null,null,null,null,null,{"$f":"SUM(F61:I61)","v":0}]
["Fortbildung 03",null,null,null,null,null,null,null,null,0]
["Fortbildung 04",null,null,null,null,null,null,null,null,0]
["Fortbildung 05",null,null,null,null,null,null,null,null,0]
["Fortbildung 06",null,null,null,null,null,null,null,null,0]
["Fortbildung 07",null,null,null,null,null,null,null,null,0]
["Fortbildung 08",null,null,null,null,null,null,null,null,0]
["Fortbildung 09",null,null,null,null,null,null,null,null,0]
["Fortbildung 10",null,null,null,null,null,null,null,null,0]
[null,null,null,null,null,{"$f":"SUM(F59:F69)","v":0},{"$f":"SUM(G59:G69)","v":0},{"$f":"SUM(H59:H69)","v":0},{"$f":"SUM(I59:I69)","v":0},{"$f":"SUM(F70:I70)","v":0},{"$f":"IF(Hintergrunddaten!$W$30=1,0,IF(Hintergrunddaten!$W$30=2,10,IF(Hintergrunddaten!$W$30=5,4,20)))","v":0},{"$f":"K70-J70","v":0},{"$f":"IF('MA 51-60'!K59=0,\"0%\",J59/K59)","v":"0%"}]
[]
["MitarbeiterIn 056",null,null,null,null,{"$f":"IF(Übersicht!D3=0,\"Stunden Jahr 1\",\"Stunden\"&(Übersicht!D3))","v":"Stunden Jahr 1"},{"$f":"IF(Übersicht!D3=0,\"Stunden Jahr 2\",Übersicht!E6)","v":"Stunden Jahr 2"},{"$f":"IF(Übersicht!D3=0,\"Stunden Jahr 3\",Übersicht!F6)","v":"Stunden Jahr 3"},{"$f":"IF(Übersicht!D3=0,\"Stunden Jahr 4\",Übersicht!G6)","v":"Stunden Jahr 4"},"Stunden\nGesamt","Soll-stunden","Differenz","% erreicht"]
[null,"Titel der Fortbildung","Datum von","Datum bis","Inhalte",null,null,null,null,{"$f":"SUM(F84:I84)","v":0},{"$f":"IF(Hintergrunddaten!$W$37=1,0,IF(Hintergrunddaten!$W$37=2,10,IF(Hintergrunddaten!$W$37=5,4,20)))","v":0},{"$f":"K84-J84","v":0},{"$f":"IF('MA 51-60'!K73=0,\"0%\",J73/K73)","v":"0%"}]
["Fortbildung 01",null,null,null,null,null,null,null,null,{"$f":"SUM(F74:I74)","v":0}]
["Fortbildung 02",null,null,null,null,null,null,null,null,{"$f":"SUM(F75:I75)","v":0}]
["Fortbildung 03",null,null,null,null,null,null,null,null,0]
["Fortbildung 04",null,null,null,null,null,null,null,null,0]
["Fortbildung 05",null,null,null,null,null,null,null,null,0]
["Fortbildung 06",null,null,null,null,null,null,null,null,0]
["Fortbildung 07",null,null,null,null,null,null,null,null,0]
["Fortbildung 08",null,null,null,null,null,null,null,null,0]
["Fortbildung 09",null,null,null,null,null,null,null,null,0]
["Fortbildung 10",null,null,null,null,null,null,null,null,0]
[null,null,null,null,null,{"$f":"SUM(F73:F83)","v":0},{"$f":"SUM(G73:G83)","v":0},{"$f":"SUM(H73:H83)","v":0},{"$f":"SUM(I73:I83)","v":0},{"$f":"SUM(F84:I84)","v":0},{"$f":"IF(Hintergrunddaten!$W$37=1,0,IF(Hintergrunddaten!$W$37=2,10,IF(Hintergrunddaten!$W$37=5,4,20)))","v":0},{"$f":"K84-J84","v":0},{"$f":"IF('MA 51-60'!K73=0,\"0%\",J73/K73)","v":"0%"}]
[]
["MitarbeiterIn 057",null,null,null,null,{"$f":"IF(Übersicht!D3=0,\"Stunden Jahr 1\",\"Stunden\"&(Übersicht!D3))","v":"Stunden Jahr 1"},{"$f":"IF(Übersicht!D3=0,\"Stunden Jahr 2\",Übersicht!E6)","v":"Stunden Jahr 2"},{"$f":"IF(Übersicht!D3=0,\"Stunden Jahr 3\",Übersicht!F6)","v":"Stunden Jahr 3"},{"$f":"IF(Übersicht!D3=0,\"Stunden Jahr 4\",Übersicht!G6)","v":"Stunden Jahr 4"},"Stunden\nGesamt","Soll-stunden","Differenz","% erreicht"]
[null,"Titel der Fortbildung","Datum von","Datum bis","Inhalte",null,null,null,null,{"$f":"SUM(F98:I98)","v":0},{"$f":"IF(Hintergrunddaten!$W$44=1,0,IF(Hintergrunddaten!$W$44=2,10,IF(Hintergrunddaten!$W$44=5,4,20)))","v":0},{"$f":"K98-J98","v":0},{"$f":"IF('MA 51-60'!K87=0,\"0%\",J87/K87)","v":"0%"}]
["Fortbildung 01",null,null,null,null,null,null,null,null,{"$f":"SUM(F88:I88)","v":0}]
["Fortbildung 02",null,null,null,null,null,null,null,null,{"$f":"SUM(F89:I89)","v":0}]
["Fortbildung 03",null,null,null,null,null,null,null,null,0]
["Fortbildung 04",null,null,null,null,null,null,null,null,0]
["Fortbildung 05",null,null,null,null,null,null,null,null,0]
["Fortbildung 06",null,null,null,null,null,null,null,null,0]
["Fortbildung 07",null,null,null,null,null,null,null,null,0]
["Fortbildung 08",null,null,null,null,null,null,null,null,0]
["Fortbildung 09",null,null,null,null,null,null,null,null,0]
["Fortbildung 10",null,null,null,null,null,null,null,null,0]
[null,null,null,null,null,{"$f":"SUM(F87:F97)","v":0},{"$f":"SUM(G87:G97)","v":0},{"$f":"SUM(H87:H97)","v":0},{"$f":"SUM(I87:I97)","v":0},{"$f":"SUM(F98:I98)","v":0},{"$f":"IF(Hintergrunddaten!$W$44=1,0,IF(Hintergrunddaten!$W$44=2,10,IF(Hintergrunddaten!$W$44=5,4,20)))","v":0},{"$f":"K98-J98","v":0},{"$f":"IF('MA 51-60'!K87=0,\"0%\",J87/K87)","v":"0%"}]
[]
["MitarbeiterIn 058",null,null,null,null,{"$f":"IF(Übersicht!D3=0,\"Stunden Jahr 1\",\"Stunden\"&(Übersicht!D3))","v":"Stunden Jahr 1"},{"$f":"IF(Übersicht!D3=0,\"Stunden Jahr 2\",Übersicht!E6)","v":"Stunden Jahr 2"},{"$f":"IF(Übersicht!D3=0,\"Stunden Jahr 3\",Übersicht!F6)","v":"Stunden Jahr 3"},{"$f":"IF(Übersicht!D3=0,\"Stunden Jahr 4\",Übersicht!G6)","v":"Stunden Jahr 4"},"Stunden\nGesamt","Soll-stunden","Differenz","% erreicht"]
[null,"Titel der Fortbildung","Datum von","Datum bis","Inhalte",null,null,null,null,{"$f":"SUM(F112:I112)","v":0},{"$f":"IF(Hintergrunddaten!$W$51=1,0,IF(Hintergrunddaten!$W$51=2,10,IF(Hintergrunddaten!$W$51=5,4,20)))","v":0},{"$f":"K112-J112","v":0},{"$f":"IF('MA 51-60'!K101=0,\"0%\",J101/K101)","v":"0%"}]
["Fortbildung 01",null,null,null,null,null,null,null,null,{"$f":"SUM(F102:I102)","v":0}]
["Fortbildung 02",null,null,null,null,null,null,null,null,{"$f":"SUM(F103:I103)","v":0}]
["Fortbildung 03",null,null,null,null,null,null,null,null,0]
["Fortbildung 04",null,null,null,null,null,null,null,null,0]
["Fortbildung 05",null,null,null,null,null,null,null,null,0]
["Fortbildung 06",null,null,null,null,null,null,null,null,0]
["Fortbildung 07",null,null,null,null,null,null,null,null,0]
["Fortbildung 08",null,null,null,null,null,null,null,null,0]
["Fortbildung 09",null,null,null,null,null,null,null,null,0]
["Fortbildung 10",null,null,null,null,null,null,null,null,0]
[null,null,null,null,null,{"$f":"SUM(F101:F111)","v":0},{"$f":"SUM(G101:G111)","v":0},{"$f":"SUM(H101:H111)","v":0},{"$f":"SUM(I101:I111)","v":0},{"$f":"SUM(F112:I112)","v":0},{"$f":"IF(Hintergrunddaten!$W$51=1,0,IF(Hintergrunddaten!$W$51=2,10,IF(Hintergrunddaten!$W$51=5,4,20)))","v":0},{"$f":"K112-J112","v":0},{"$f":"IF('MA 51-60'!K101=0,\"0%\",J101/K101)","v":"0%"}]
[]
["MitarbeiterIn 059",null,null,null,null,{"$f":"IF(Übersicht!D3=0,\"Stunden Jahr 1\",\"Stunden\"&(Übersicht!D3))","v":"Stunden Jahr 1"},{"$f":"IF(Übersicht!D3=0,\"Stunden Jahr 2\",Übersicht!E6)","v":"Stunden Jahr 2"},{"$f":"IF(Übersicht!D3=0,\"Stunden Jahr 3\",Übersicht!F6)","v":"Stunden Jahr 3"},{"$f":"IF(Übersicht!D3=0,\"Stunden Jahr 4\",Übersicht!G6)","v":"Stunden Jahr 4"},"Stunden\nGesamt","Soll-stunden","Differenz","% erreicht"]
[null,"Titel der Fortbildung","Datum von","Datum bis","Inhalte",null,null,null,null,{"$f":"SUM(F126:I126)","v":0},{"$f":"IF(Hintergrunddaten!$W$58=1,0,IF(Hintergrunddaten!$W$58=2,10,IF(Hintergrunddaten!$W$58=5,4,20)))","v":0},{"$f":"K126-J126","v":0},{"$f":"IF('MA 51-60'!K115=0,\"0%\",J115/K115)","v":"0%"}]
["Fortbildung 01",null,null,null,null,null,null,null,null,{"$f":"SUM(F116:I116)","v":0}]
["Fortbildung 02",null,null,null,null,null,null,null,null,{"$f":"SUM(F117:I117)","v":0}]
["Fortbildung 03",null,null,null,null,null,null,null,null,0]
["Fortbildung 04",null,null,null,null,null,null,null,null,0]
["Fortbildung 05",null,null,null,null,null,null,null,null,0]
["Fortbildung 06",null,null,null,null,null,null,null,null,0]
["Fortbildung 07",null,null,null,null,null,null,null,null,0]
["Fortbildung 08",null,null,null,null,null,null,null,null,0]
["Fortbildung 09",null,null,null,null,null,null,null,null,0]
["Fortbildung 10",null,null,null,null,null,null,null,null,0]
[null,null,null,null,null,{"$f":"SUM(F115:F125)","v":0},{"$f":"SUM(G115:G125)","v":0},{"$f":"SUM(H115:H125)","v":0},{"$f":"SUM(I115:I125)","v":0},{"$f":"SUM(F126:I126)","v":0},{"$f":"IF(Hintergrunddaten!$W$58=1,0,IF(Hintergrunddaten!$W$58=2,10,IF(Hintergrunddaten!$W$58=5,4,20)))","v":0},{"$f":"K126-J126","v":0},{"$f":"IF('MA 51-60'!K115=0,\"0%\",J115/K115)","v":"0%"}]
[]
["MitarbeiterIn 060",null,null,null,null,{"$f":"IF(Übersicht!D3=0,\"Stunden Jahr 1\",\"Stunden\"&(Übersicht!D3))","v":"Stunden Jahr 1"},{"$f":"IF(Übersicht!D3=0,\"Stunden Jahr 2\",Übersicht!E6)","v":"Stunden Jahr 2"},{"$f":"IF(Übersicht!D3=0,\"Stunden Jahr 3\",Übersicht!F6)","v":"Stunden Jahr 3"},{"$f":"IF(Übersicht!D3=0,\"Stunden Jahr 4\",Übersicht!G6)","v":"Stunden Jahr 4"},"Stunden\nGesamt","Soll-stunden","Differenz","% erreicht"]
[null,"Titel der Fortbildung","Datum von","Datum bis","Inhalte",null,null,null,null,{"$f":"SUM(F140:I140)","v":0},{"$f":"IF(Hintergrunddaten!$W$65=1,0,IF(Hintergrunddaten!$W$65=2,10,IF(Hintergrunddaten!$W$65=5,4,20)))","v":0},{"$f":"K140-J140","v":0},{"$f":"IF('MA 51-60'!K129=0,\"0%\",J129/K129)","v":"0%"}]
["Fortbildung 01",null,null,null,null,null,null,null,null,{"$f":"SUM(F130:I130)","v":0}]
["Fortbildung 02",null,null,null,null,null,null,null,null,{"$f":"SUM(F131:I131)","v":0}]
["Fortbildung 03",null,null,null,null,null,null,null,null,0]
["Fortbildung 04",null,null,null,null,null,null,null,null,0]
["Fortbildung 05",null,null,null,null,null,null,null,null,0]
["Fortbildung 06",null,null,null,null,null,null,null,null,0]
["Fortbildung 07",null,null,null,null,null,null,null,null,0]
["Fortbildung 08",null,null,null,null,null,null,null,null,0]
["Fortbildung 09",null,null,null,null,null,null,null,null,0]
["Fortbildung 10",null,null,null,null,null,null,null,null,0]
[null,null,null,null,null,{"$f":"SUM(F129:F139)","v":0},{"$f":"SUM(G129:G139)","v":0},{"$f":"SUM(H129:H139)","v":0},{"$f":"SUM(I129:I139)","v":0},{"$f":"SUM(F140:I140)","v":0},{"$f":"IF(Hintergrunddaten!$W$65=1,0,IF(Hintergrunddaten!$W$65=2,10,IF(Hintergrunddaten!$W$65=5,4,20)))","v":0},{"$f":"K140-J140","v":0},{"$f":"IF('MA 51-60'!K129=0,\"0%\",J129/K129)","v":"0%"}]

{"sheet":"MA 61-70","index":7,"n_rows":140,"n_cols":13,"rows_kept":140,"cut":false,"hidden":false,"merged":[]}
[]
["MitarbeiterIn 061",null,null,null,null,{"$f":"IF(Übersicht!D3=0,\"Stunden Jahr 1\",\"Stunden\"&(Übersicht!D3))","v":"Stunden Jahr 1"},{"$f":"IF(Übersicht!D3=0,\"Stunden Jahr 2\",Übersicht!E6)","v":"Stunden Jahr 2"},{"$f":"IF(Übersicht!D3=0,\"Stunden Jahr 3\",Übersicht!F6)","v":"Stunden Jahr 3"},{"$f":"IF(Übersicht!D3=0,\"Stunden Jahr 4\",Übersicht!G6)","v":"Stunden Jahr 4"},"Stunden\nGesamt","Soll-stunden","Differenz","% erreicht"]
[null,"Titel der Fortbildung","Datum von","Datum bis","Inhalte",null,null,null,null,{"$f":"SUM(F14:I14)","v":0},{"$f":"IF(Hintergrunddaten!$AA$2=1,0,IF(Hintergrunddaten!$AA$2=2,10,IF(Hintergrunddaten!$AA$2=5,4,20)))","v":0},{"$f":"K14-J14","v":0},{"$f":"IF('MA 61-70'!K3=0,\"0%\",J3/K3)","v":"0%"}]
["Fortbildung 01",null,null,null,null,null,null,null,null,{"$f":"SUM(F4:I4)","v":0}]
["Fortbildung 02",null,null,null,null,null,null,null,null,{"$f":"SUM(F5:I5)","v":0}]
["Fortbildung 03",null,null,null,null,null,null,null,null,0]
["Fortbildung 04",null,null,null,null,null,null,null,null,0]
["Fortbildung 05",null,null,null,null,null,null,null,null,0]
["Fortbildung 06",null,null,null,null,null,null,null,null,0]
["Fortbildung 07",null,null,null,null,null,null,null,null,0]
["Fortbildung 08",null,null,null,null,null,null,null,null,0]
["Fortbildung 09",null,null,null,null,null,null,null,null,0]
["Fortbildung 10",null,null,null,null,null,null,null,null,0]
[null,null,null,null,null,{"$f":"SUM(F3:F13)","v":0},{"$f":"SUM(G3:G13)","v":0},{"$f":"SUM(H3:H13)","v":0},{"$f":"SUM(I3:I13)","v":0},{"$f":"SUM(F14:I14)","v":0},{"$f":"IF(Hintergrunddaten!$AA$2=1,0,IF(Hintergrunddaten!$AA$2=2,10,IF(Hintergrunddaten!$AA$2=5,4,20)))","v":0},{"$f":"K14-J14","v":0},{"$f":"IF('MA 61-70'!K3=0,\"0%\",J3/K3)","v":"0%"}]
[]
["MitarbeiterIn 062",null,null,null,null,{"$f":"IF(Übersicht!D3=0,\"Stunden Jahr 1\",\"Stunden\"&(Übersicht!D3))","v":"Stunden Jahr 1"},{"$f":"IF(Übersicht!D3=0,\"Stunden Jahr 2\",Übersicht!E6)","v":"Stunden Jahr 2"},{"$f":"IF(Übersicht!D3=0,\"Stunden Jahr 3\",Übersicht!F6)","v":"Stunden Jahr 3"},{"$f":"IF(Übersicht!D3=0,\"Stunden Jahr 4\",Übersicht!G6)","v":"Stunden Jahr 4"},"Stunden\nGesamt","Soll-stunden","Differenz","% erreicht"]
[null,"Titel der Fortbildung","Datum von","Datum bis","Inhalte",null,null,null,null,{"$f":"SUM(F28:I28)","v":0},{"$f":"IF(Hintergrunddaten!$AA$9=1,0,IF(Hintergrunddaten!$AA$9=2,10,IF(Hintergrunddaten!$AA$9=5,4,20)))","v":0},{"$f":"K28-J28","v":0},{"$f":"IF('MA 61-70'!K17=0,\"0%\",J17/K17)","v":"0%"}]
["Fortbildung 01",null,null,null,null,null,null,null,null,{"$f":"SUM(F18:I18)","v":0}]
["Fortbildung 02",null,null,null,null,null,null,null,null,{"$f":"SUM(F19:I19)","v":0}]
["Fortbildung 03",null,null,null,null,null,null,null,null,0]
["Fortbildung 04",null,null,null,null,null,null,null,null,0]
["Fortbildung 05",null,null,null,null,null,null,null,null,0]
["Fortbildung 06",null,null,null,null,null,null,null,null,0]
["Fortbildung 07",null,null,null,null,null,null,null,null,0]
["Fortbildung 08",null,null,null,null,null,null,null,null,0]
["Fortbildung 09",null,null,null,null,null,null,null,null,0]
["Fortbildung 10",null,null,null,null,null,null,null,null,0]
[null,null,null,null,null,{"$f":"SUM(F17:F27)","v":0},{"$f":"SUM(G17:G27)","v":0},{"$f":"SUM(H17:H27)","v":0},{"$f":"SUM(I17:I27)","v":0},{"$f":"SUM(F28:I28)","v":0},{"$f":"IF(Hintergrunddaten!$AA$9=1,0,IF(Hintergrunddaten!$AA$9=2,10,IF(Hintergrunddaten!$AA$9=5,4,20)))","v":0},{"$f":"K28-J28","v":0},{"$f":"IF('MA 61-70'!K17=0,\"0%\",J17/K17)","v":"0%"}]
[]
["MitarbeiterIn 063",null,null,null,null,{"$f":"IF(Übersicht!D3=0,\"Stunden Jahr 1\",\"Stunden\"&(Übersicht!D3))","v":"Stunden Jahr 1"},{"$f":"IF(Übersicht!D3=0,\"Stunden Jahr 2\",Übersicht!E6)","v":"Stunden Jahr 2"},{"$f":"IF(Übersicht!D3=0,\"Stunden Jahr 3\",Übersicht!F6)","v":"Stunden Jahr 3"},{"$f":"IF(Übersicht!D3=0,\"Stunden Jahr 4\",Übersicht!G6)","v":"Stunden Jahr 4"},"Stunden\nGesamt","Soll-stunden","Differenz","% erreicht"]
[null,"Titel der Fortbildung","Datum von","Datum bis","Inhalte",null,null,null,null,{"$f":"SUM(F42:I42)","v":0},{"$f":"IF(Hintergrunddaten!$AA$16=1,0,IF(Hintergrunddaten!$AA$16=2,10,IF(Hintergrunddaten!$AA$16=5,4,20)))","v":0},{"$f":"K42-J42","v":0},{"$f":"IF('MA 61-70'!K31=0,\"0%\",J31/K31)","v":"0%"}]
["Fortbildung 01",null,null,null,null,null,null,null,null,{"$f":"SUM(F32:I32)","v":0}]
["Fortbildung 02",null,null,null,null,null,null,null,null,{"$f":"SUM(F33:I33)","v":0}]
["Fortbildung 03",null,null,null,null,null,null,null,null,0]
["Fortbildung 04",null,null,null,null,null,null,null,null,0]
["Fortbildung 05",null,null,null,null,null,null,null,null,0]
["Fortbildung 06",null,null,null,null,null,null,null,null,0]
["Fortbildung 07",null,null,null,null,null,null,null,null,0]
["Fortbildung 08",null,null,null,null,null,null,null,null,0]
["Fortbildung 09",null,null,null,null,null,null,null,null,0]
["Fortbildung 10",null,null,null,null,null,null,null,null,0]
[null,null,null,null,null,{"$f":"SUM(F31:F41)","v":0},{"$f":"SUM(G31:G41)","v":0},{"$f":"SUM(H31:H41)","v":0},{"$f":"SUM(I31:I41)","v":0},{"$f":"SUM(F42:I42)","v":0},{"$f":"IF(Hintergrunddaten!$AA$16=1,0,IF(Hintergrunddaten!$AA$16=2,10,IF(Hintergrunddaten!$AA$16=5,4,20)))","v":0},{"$f":"K42-J42","v":0},{"$f":"IF('MA 61-70'!K31=0,\"0%\",J31/K31)","v":"0%"}]
[]
["MitarbeiterIn 064",null,null,null,null,{"$f":"IF(Übersicht!D3=0,\"Stunden Jahr 1\",\"Stunden\"&(Übersicht!D3))","v":"Stunden Jahr 1"},{"$f":"IF(Übersicht!D3=0,\"Stunden Jahr 2\",Übersicht!E6)","v":"Stunden Jahr 2"},{"$f":"IF(Übersicht!D3=0,\"Stunden Jahr 3\",Übersicht!F6)","v":"Stunden Jahr 3"},{"$f":"IF(Übersicht!D3=0,\"Stunden Jahr 4\",Übersicht!G6)","v":"Stunden Jahr 4"},"Stunden\nGesamt","Soll-stunden","Differenz","% erreicht"]
[null,"Titel der Fortbildung","Datum von","Datum bis","Inhalte",null,null,null,null,{"$f":"SUM(F56:I56)","v":0},{"$f":"IF(Hintergrunddaten!$AA$23=1,0,IF(Hintergrunddaten!$AA$23=2,10,IF(Hintergrunddaten!$AA$23=5,4,20)))","v":0},{"$f":"K56-J56","v":0},{"$f":"IF('MA 61-70'!K45=0,\"0%\",J45/K45)","v":"0%"}]
["Fortbildung 01",null,null,null,null,null,null,null,null,{"$f":"SUM(F46:I46)","v":0}]
["Fortbildung 02",null,null,null,null,null,null,null,null,{"$f":"SUM(F47:I47)","v":0}]
["Fortbildung 03",null,null,null,null,null,null,null,null,0]
["Fortbildung 04",null,null,null,null,null,null,null,null,0]
["Fortbildung 05",null,null,null,null,null,null,null,null,0]
["Fortbildung 06",null,null,null,null,null,null,null,null,0]
["Fortbildung 07",null,null,null,null,null,null,null,null,0]
["Fortbildung 08",null,null,null,null,null,null,null,null,0]
["Fortbildung 09",null,null,null,null,null,null,null,null,0]
["Fortbildung 10",null,null,null,null,null,null,null,null,0]
[null,null,null,null,null,{"$f":"SUM(F45:F55)","v":0},{"$f":"SUM(G45:G55)","v":0},{"$f":"SUM(H45:H55)","v":0},{"$f":"SUM(I45:I55)","v":0},{"$f":"SUM(F56:I56)","v":0},{"$f":"IF(Hintergrunddaten!$AA$23=1,0,IF(Hintergrunddaten!$AA$23=2,10,IF(Hintergrunddaten!$AA$23=5,4,20)))","v":0},{"$f":"K56-J56","v":0},{"$f":"IF('MA 61-70'!K45=0,\"0%\",J45/K45)","v":"0%"}]
[]
["MitarbeiterIn 065",null,null,null,null,{"$f":"IF(Übersicht!D3=0,\"Stunden Jahr 1\",\"Stunden\"&(Übersicht!D3))","v":"Stunden Jahr 1"},{"$f":"IF(Übersicht!D3=0,\"Stunden Jahr 2\",Übersicht!E6)","v":"Stunden Jahr 2"},{"$f":"IF(Übersicht!D3=0,\"Stunden Jahr 3\",Übersicht!F6)","v":"Stunden Jahr 3"},{"$f":"IF(Übersicht!D3=0,\"Stunden Jahr 4\",Übersicht!G6)","v":"Stunden Jahr 4"},"Stunden\nGesamt","Soll-stunden","Differenz","% erreicht"]
[null,"Titel der Fortbildung","Datum von","Datum bis","Inhalte",null,null,null,null,{"$f":"SUM(F70:I70)","v":0},{"$f":"IF(Hintergrunddaten!$AA$30=1,0,IF(Hintergrunddaten!$AA$30=2,10,IF(Hintergrunddaten!$AA$30=5,4,20)))","v":0},{"$f":"K70-J70","v":0},{"$f":"IF('MA 61-70'!K59=0,\"0%\",J59/K59)","v":"0%"}]
["Fortbildung 01",null,null,null,null,null,null,null,null,{"$f":"SUM(F60:I60)","v":0}]
["Fortbildung 02",null,null,null,null,null,null,null,null,{"$f":"SUM(F61:I61)","v":0}]
["Fortbildung 03",null,null,null,null,null,null,null,null,0]
["Fortbildung 04",null,null,null,null,null,null,null,null,0]
["Fortbildung 05",null,null,null,null,null,null,null,null,0]
["Fortbildung 06",null,null,null,null,null,null,null,null,0]
["Fortbildung 07",null,null,null,null,null,null,null,null,0]
["Fortbildung 08",null,null,null,null,null,null,null,null,0]
["Fortbildung 09",null,null,null,null,null,null,null,null,0]
["Fortbildung 10",null,null,null,null,null,null,null,null,0]
[null,null,null,null,null,{"$f":"SUM(F59:F69)","v":0},{"$f":"SUM(G59:G69)","v":0},{"$f":"SUM(H59:H69)","v":0},{"$f":"SUM(I59:I69)","v":0},{"$f":"SUM(F70:I70)","v":0},{"$f":"IF(Hintergrunddaten!$AA$30=1,0,IF(Hintergrunddaten!$AA$30=2,10,IF(Hintergrunddaten!$AA$30=5,4,20)))","v":0},{"$f":"K70-J70","v":0},{"$f":"IF('MA 61-70'!K59=0,\"0%\",J59/K59)","v":"0%"}]
[]
["MitarbeiterIn 066",null,null,null,null,{"$f":"IF(Übersicht!D3=0,\"Stunden Jahr 1\",\"Stunden\"&(Übersicht!D3))","v":"Stunden Jahr 1"},{"$f":"IF(Übersicht!D3=0,\"Stunden Jahr 2\",Übersicht!E6)","v":"Stunden Jahr 2"},{"$f":"IF(Übersicht!D3=0,\"Stunden Jahr 3\",Übersicht!F6)","v":"Stunden Jahr 3"},{"$f":"IF(Übersicht!D3=0,\"Stunden Jahr 4\",Übersicht!G6)","v":"Stunden Jahr 4"},"Stunden\nGesamt","Soll-stunden","Differenz","% erreicht"]
[null,"Titel der Fortbildung","Datum von","Datum bis","Inhalte",null,null,null,null,{"$f":"SUM(F84:I84)","v":0},{"$f":"IF(Hintergrunddaten!$AA$37=1,0,IF(Hintergrunddaten!$AA$37=2,10,IF(Hintergrunddaten!$AA$37=5,4,20)))","v":0},{"$f":"K84-J84","v":0},{"$f":"IF('MA 61-70'!K73=0,\"0%\",J73/K73)","v":"0%"}]
["Fortbildung 01",null,null,null,null,null,null,null,null,{"$f":"SUM(F74:I74)","v":0}]
["Fortbildung 02",null,null,null,null,null,null,null,null,{"$f":"SUM(F75:I75)","v":0}]
["Fortbildung 03",null,null,null,null,null,null,null,null,0]
["Fortbildung 04",null,null,null,null,null,null,null,null,0]
["Fortbildung 05",null,null,null,null,null,null,null,null,0]
["Fortbildung 06",null,null,null,null,null,null,null,null,0]
["Fortbildung 07",null,null,null,null,null,null,null,null,0]
["Fortbildung 08",null,null,null,null,null,null,null,null,0]
["Fortbildung 09",null,null,null,null,null,null,null,null,0]
["Fortbildung 10",null,null,null,null,null,null,null,null,0]
[null,null,null,null,null,{"$f":"SUM(F73:F83)","v":0},{"$f":"SUM(G73:G83)","v":0},{"$f":"SUM(H73:H83)","v":0},{"$f":"SUM(I73:I83)","v":0},{"$f":"SUM(F84:I84)","v":0},{"$f":"IF(Hintergrunddaten!$AA$37=1,0,IF(Hintergrunddaten!$AA$37=2,10,IF(Hintergrunddaten!$AA$37=5,4,20)))","v":0},{"$f":"K84-J84","v":0},{"$f":"IF('MA 61-70'!K73=0,\"0%\",J73/K73)","v":"0%"}]
[]
["MitarbeiterIn 067",null,null,null,null,{"$f":"IF(Übersicht!D3=0,\"Stunden Jahr 1\",\"Stunden\"&(Übersicht!D3))","v":"Stunden Jahr 1"},{"$f":"IF(Übersicht!D3=0,\"Stunden Jahr 2\",Übersicht!E6)","v":"Stunden Jahr 2"},{"$f":"IF(Übersicht!D3=0,\"Stunden Jahr 3\",Übersicht!F6)","v":"Stunden Jahr 3"},{"$f":"IF(Übersicht!D3=0,\"Stunden Jahr 4\",Übersicht!G6)","v":"Stunden Jahr 4"},"Stunden\nGesamt","Soll-stunden","Differenz","% erreicht"]
[null,"Titel der Fortbildung","Datum von","Datum bis","Inhalte",null,null,null,null,{"$f":"SUM(F98:I98)","v":0},{"$f":"IF(Hintergrunddaten!$AA$44=1,0,IF(Hintergrunddaten!$AA$44=2,10,IF(Hintergrunddaten!$AA$44=5,4,20)))","v":0},{"$f":"K98-J98","v":0},{"$f":"IF('MA 61-70'!K87=0,\"0%\",J87/K87)","v":"0%"}]
["Fortbildung 01",null,null,null,null,null,null,null,null,{"$f":"SUM(F88:I88)","v":0}]
["Fortbildung 02",null,null,null,null,null,null,null,null,{"$f":"SUM(F89:I89)","v":0}]
["Fortbildung 03",null,null,null,null,null,null,null,null,0]
["Fortbildung 04",null,null,null,null,null,null,null,null,0]
["Fortbildung 05",null,null,null,null,null,null,null,null,0]
["Fortbildung 06",null,null,null,null,null,null,null,null,0]
["Fortbildung 07",null,null,null,null,null,null,null,null,0]
["Fortbildung 08",null,null,null,null,null,null,null,null,0]
["Fortbildung 09",null,null,null,null,null,null,null,null,0]
["Fortbildung 10",null,null,null,null,null,null,null,null,0]
[null,null,null,null,null,{"$f":"SUM(F87:F97)","v":0},{"$f":"SUM(G87:G97)","v":0},{"$f":"SUM(H87:H97)","v":0},{"$f":"SUM(I87:I97)","v":0},{"$f":"SUM(F98:I98)","v":0},{"$f":"IF(Hintergrunddaten!$AA$44=1,0,IF(Hintergrunddaten!$AA$44=2,10,IF(Hintergrunddaten!$AA$44=5,4,20)))","v":0},{"$f":"K98-J98","v":0},{"$f":"IF('MA 61-70'!K87=0,\"0%\",J87/K87)","v":"0%"}]
[]
["MitarbeiterIn 068",null,null,null,null,{"$f":"IF(Übersicht!D3=0,\"Stunden Jahr 1\",\"Stunden\"&(Übersicht!D3))","v":"Stunden Jahr 1"},{"$f":"IF(Übersicht!D3=0,\"Stunden Jahr 2\",Übersicht!E6)","v":"Stunden Jahr 2"},{"$f":"IF(Übersicht!D3=0,\"Stunden Jahr 3\",Übersicht!F6)","v":"Stunden Jahr 3"},{"$f":"IF(Übersicht!D3=0,\"Stunden Jahr 4\",Übersicht!G6)","v":"Stunden Jahr 4"},"Stunden\nGesamt","Soll-stunden","Differenz","% erreicht"]
[null,"Titel der Fortbildung","Datum von","Datum bis","Inhalte",null,null,null,null,{"$f":"SUM(F112:I112)","v":0},{"$f":"IF(Hintergrunddaten!$AA$51=1,0,IF(Hintergrunddaten!$AA$51=2,10,IF(Hintergrunddaten!$AA$51=5,4,20)))","v":0},{"$f":"K112-J112","v":0},{"$f":"IF('MA 61-70'!K101=0,\"0%\",J101/K101)","v":"0%"}]
["Fortbildung 01",null,null,null,null,null,null,null,null,{"$f":"SUM(F102:I102)","v":0}]
["Fortbildung 02",null,null,null,null,null,null,null,null,{"$f":"SUM(F103:I103)","v":0}]
["Fortbildung 03",null,null,null,null,null,null,null,null,0]
["Fortbildung 04",null,null,null,null,null,null,null,null,0]
["Fortbildung 05",null,null,null,null,null,null,null,null,0]
["Fortbildung 06",null,null,null,null,null,null,null,null,0]
["Fortbildung 07",null,null,null,null,null,null,null,null,0]
["Fortbildung 08",null,null,null,null,null,null,null,null,0]
["Fortbildung 09",null,null,null,null,null,null,null,null,0]
["Fortbildung 10",null,null,null,null,null,null,null,null,0]
[null,null,null,null,null,{"$f":"SUM(F101:F111)","v":0},{"$f":"SUM(G101:G111)","v":0},{"$f":"SUM(H101:H111)","v":0},{"$f":"SUM(I101:I111)","v":0},{"$f":"SUM(F112:I112)","v":0},{"$f":"IF(Hintergrunddaten!$AA$51=1,0,IF(Hintergrunddaten!$AA$51=2,10,IF(Hintergrunddaten!$AA$51=5,4,20)))","v":0},{"$f":"K112-J112","v":0},{"$f":"IF('MA 61-70'!K101=0,\"0%\",J101/K101)","v":"0%"}]
[]
["MitarbeiterIn 069",null,null,null,null,{"$f":"IF(Übersicht!D3=0,\"Stunden Jahr 1\",\"Stunden\"&(Übersicht!D3))","v":"Stunden Jahr 1"},{"$f":"IF(Übersicht!D3=0,\"Stunden Jahr 2\",Übersicht!E6)","v":"Stunden Jahr 2"},{"$f":"IF(Übersicht!D3=0,\"Stunden Jahr 3\",Übersicht!F6)","v":"Stunden Jahr 3"},{"$f":"IF(Übersicht!D3=0,\"Stunden Jahr 4\",Übersicht!G6)","v":"Stunden Jahr 4"},"Stunden\nGesamt","Soll-stunden","Differenz","% erreicht"]
[null,"Titel der Fortbildung","Datum von","Datum bis","Inhalte",null,null,null,null,{"$f":"SUM(F126:I126)","v":0},{"$f":"IF(Hintergrunddaten!$AA$58=1,0,IF(Hintergrunddaten!$AA$58=2,10,IF(Hintergrunddaten!$AA$58=5,4,20)))","v":0},{"$f":"K126-J126","v":0},{"$f":"IF('MA 61-70'!K115=0,\"0%\",J115/K115)","v":"0%"}]
["Fortbildung 01",null,null,null,null,null,null,null,null,{"$f":"SUM(F116:I116)","v":0}]
["Fortbildung 02",null,null,null,null,null,null,null,null,{"$f":"SUM(F117:I117)","v":0}]
["Fortbildung 03",null,null,null,null,null,null,null,null,0]
["Fortbildung 04",null,null,null,null,null,null,null,null,0]
["Fortbildung 05",null,null,null,null,null,null,null,null,0]
["Fortbildung 06",null,null,null,null,null,null,null,null,0]
["Fortbildung 07",null,null,null,null,null,null,null,null,0]
["Fortbildung 08",null,null,null,null,null,null,null,null,0]
["Fortbildung 09",null,null,null,null,null,null,null,null,0]
["Fortbildung 10",null,null,null,null,null,null,null,null,0]
[null,null,null,null,null,{"$f":"SUM(F115:F125)","v":0},{"$f":"SUM(G115:G125)","v":0},{"$f":"SUM(H115:H125)","v":0},{"$f":"SUM(I115:I125)","v":0},{"$f":"SUM(F126:I126)","v":0},{"$f":"IF(Hintergrunddaten!$AA$58=1,0,IF(Hintergrunddaten!$AA$58=2,10,IF(Hintergrunddaten!$AA$58=5,4,20)))","v":0},{"$f":"K126-J126","v":0},{"$f":"IF('MA 61-70'!K115=0,\"0%\",J115/K115)","v":"0%"}]
[]
["MitarbeiterIn 070",null,null,null,null,{"$f":"IF(Übersicht!D3=0,\"Stunden Jahr 1\",\"Stunden\"&(Übersicht!D3))","v":"Stunden Jahr 1"},{"$f":"IF(Übersicht!D3=0,\"Stunden Jahr 2\",Übersicht!E6)","v":"Stunden Jahr 2"},{"$f":"IF(Übersicht!D3=0,\"Stunden Jahr 3\",Übersicht!F6)","v":"Stunden Jahr 3"},{"$f":"IF(Übersicht!D3=0,\"Stunden Jahr 4\",Übersicht!G6)","v":"Stunden Jahr 4"},"Stunden\nGesamt","Soll-stunden","Differenz","% erreicht"]
[null,"Titel der Fortbildung","Datum von","Datum bis","Inhalte",null,null,null,null,{"$f":"SUM(F140:I140)","v":0},{"$f":"IF(Hintergrunddaten!$AA$65=1,0,IF(Hintergrunddaten!$AA$65=2,10,IF(Hintergrunddaten!$AA$65=5,4,20)))","v":0},{"$f":"K140-J140","v":0},{"$f":"IF('MA 61-70'!K129=0,\"0%\",J129/K129)","v":"0%"}]
["Fortbildung 01",null,null,null,null,null,null,null,null,{"$f":"SUM(F130:I130)","v":0}]
["Fortbildung 02",null,null,null,null,null,null,null,null,{"$f":"SUM(F131:I131)","v":0}]
["Fortbildung 03",null,null,null,null,null,null,null,null,0]
["Fortbildung 04",null,null,null,null,null,null,null,null,0]
["Fortbildung 05",null,null,null,null,null,null,null,null,0]
["Fortbildung 06",null,null,null,null,null,null,null,null,0]
["Fortbildung 07",null,null,null,null,null,null,null,null,0]
["Fortbildung 08",null,null,null,null,null,null,null,null,0]
["Fortbildung 09",null,null,null,null,null,null,null,null,0]
["Fortbildung 10",null,null,null,null,null,null,null,null,0]
[null,null,null,null,null,{"$f":"SUM(F129:F139)","v":0},{"$f":"SUM(G129:G139)","v":0},{"$f":"SUM(H129:H139)","v":0},{"$f":"SUM(I129:I139)","v":0},{"$f":"SUM(F140:I140)","v":0},{"$f":"IF(Hintergrunddaten!$AA$65=1,0,IF(Hintergrunddaten!$AA$65=2,10,IF(Hintergrunddaten!$AA$65=5,4,20)))","v":0},{"$f":"K140-J140","v":0},{"$f":"IF('MA 61-70'!K129=0,\"0%\",J129/K129)","v":"0%"}]

{"sheet":"MA 71-80","index":8,"n_rows":140,"n_cols":13,"rows_kept":140,"cut":false,"hidden":false,"merged":[]}
[]
["MitarbeiterIn 071",null,null,null,null,{"$f":"IF(Übersicht!D3=0,\"Stunden Jahr 1\",\"Stunden\"&(Übersicht!D3))","v":"Stunden Jahr 1"},{"$f":"IF(Übersicht!D3=0,\"Stunden Jahr 2\",Übersicht!E6)","v":"Stunden Jahr 2"},{"$f":"IF(Übersicht!D3=0,\"Stunden Jahr 3\",Übersicht!F6)","v":"Stunden Jahr 3"},{"$f":"IF(Übersicht!D3=0,\"Stunden Jahr 4\",Übersicht!G6)","v":"Stunden Jahr 4"},"Stunden\nGesamt","Soll-stunden","Differenz","% erreicht"]
[null,"Titel der Fortbildung","Datum von","Datum bis","Inhalte",null,null,null,null,{"$f":"SUM(F14:I14)","v":0},{"$f":"IF(Hintergrunddaten!$AE$2=1,0,IF(Hintergrunddaten!$AE$2=2,10,IF(Hintergrunddaten!$AE$2=5,4,20)))","v":0},{"$f":"K14-J14","v":0},{"$f":"IF('MA 71-80'!K3=0,\"0%\",J3/K3)","v":"0%"}]
["Fortbildung 01",null,null,null,null,null,null,null,null,{"$f":"SUM(F4:I4)","v":0}]
["Fortbildung 02",null,null,null,null,null,null,null,null,{"$f":"SUM(F5:I5)","v":0}]
["Fortbildung 03",null,null,null,null,null,null,null,null,0]
["Fortbildung 04",null,null,null,null,null,null,null,null,0]
["Fortbildung 05",null,null,null,null,null,null,null,null,0]
["Fortbildung 06",null,null,null,null,null,null,null,null,0]
["Fortbildung 07",null,null,null,null,null,null,null,null,0]
["Fortbildung 08",null,null,null,null,null,null,null,null,0]
["Fortbildung 09",null,null,null,null,null,null,null,null,0]
["Fortbildung 10",null,null,null,null,null,null,null,null,0]
[null,null,null,null,null,{"$f":"SUM(F3:F13)","v":0},{"$f":"SUM(G3:G13)","v":0},{"$f":"SUM(H3:H13)","v":0},{"$f":"SUM(I3:I13)","v":0},{"$f":"SUM(F14:I14)","v":0},{"$f":"IF(Hintergrunddaten!$AE$2=1,0,IF(Hintergrunddaten!$AE$2=2,10,IF(Hintergrunddaten!$AE$2=5,4,20)))","v":0},{"$f":"K14-J14","v":0},{"$f":"IF('MA 71-80'!K3=0,\"0%\",J3/K3)","v":"0%"}]
[]
["MitarbeiterIn 072",null,null,null,null,{"$f":"IF(Übersicht!D3=0,\"Stunden Jahr 1\",\"Stunden\"&(Übersicht!D3))","v":"Stunden Jahr 1"},{"$f":"IF(Übersicht!D3=0,\"Stunden Jahr 2\",Übersicht!E6)","v":"Stunden Jahr 2"},{"$f":"IF(Übersicht!D3=0,\"Stunden Jahr 3\",Übersicht!F6)","v":"Stunden Jahr 3"},{"$f":"IF(Übersicht!D3=0,\"Stunden Jahr 4\",Übersicht!G6)","v":"Stunden Jahr 4"},"Stunden\nGesamt","Soll-stunden","Differenz","% erreicht"]
[null,"Titel der Fortbildung","Datum von","Datum bis","Inhalte",null,null,null,null,{"$f":"SUM(F28:I28)","v":0},{"$f":"IF(Hintergrunddaten!$AE$9=1,0,IF(Hintergrunddaten!$AE$9=2,10,IF(Hintergrunddaten!$AE$9=5,4,20)))","v":0},{"$f":"K28-J28","v":0},{"$f":"IF('MA 71-80'!K17=0,\"0%\",J17/K17)","v":"0%"}]
["Fortbildung 01",null,null,null,null,null,null,null,null,{"$f":"SUM(F18:I18)","v":0}]
["Fortbildung 02",null,null,null,null,null,null,null,null,{"$f":"SUM(F19:I19)","v":0}]
["Fortbildung 03",null,null,null,null,null,null,null,null,0]
["Fortbildung 04",null,null,null,null,null,null,null,null,0]
["Fortbildung 05",null,null,null,null,null,null,null,null,0]
["Fortbildung 06",null,null,null,null,null,null,null,null,0]
["Fortbildung 07",null,null,null,null,null,null,null,null,0]
["Fortbildung 08",null,null,null,null,null,null,null,null,0]
["Fortbildung 09",null,null,null,null,null,null,null,null,0]
["Fortbildung 10",null,null,null,null,null,null,null,null,0]
[null,null,null,null,null,{"$f":"SUM(F17:F27)","v":0},{"$f":"SUM(G17:G27)","v":0},{"$f":"SUM(H17:H27)","v":0},{"$f":"SUM(I17:I27)","v":0},{"$f":"SUM(F28:I28)","v":0},{"$f":"IF(Hintergrunddaten!$AE$9=1,0,IF(Hintergrunddaten!$AE$9=2,10,IF(Hintergrunddaten!$AE$9=5,4,20)))","v":0},{"$f":"K28-J28","v":0},{"$f":"IF('MA 71-80'!K17=0,\"0%\",J17/K17)","v":"0%"}]
[]
["MitarbeiterIn 073",null,null,null,null,{"$f":"IF(Übersicht!D3=0,\"Stunden Jahr 1\",\"Stunden\"&(Übersicht!D3))","v":"Stunden Jahr 1"},{"$f":"IF(Übersicht!D3=0,\"Stunden Jahr 2\",Übersicht!E6)","v":"Stunden Jahr 2"},{"$f":"IF(Übersicht!D3=0,\"Stunden Jahr 3\",Übersicht!F6)","v":"Stunden Jahr 3"},{"$f":"IF(Übersicht!D3=0,\"Stunden Jahr 4\",Übersicht!G6)","v":"Stunden Jahr 4"},"Stunden\nGesamt","Soll-stunden","Differenz","% erreicht"]
[null,"Titel der Fortbildung","Datum von","Datum bis","Inhalte",null,null,null,null,{"$f":"SUM(F42:I42)","v":0},{"$f":"IF(Hintergrunddaten!$AE$16=1,0,IF(Hintergrunddaten!$AE$16=2,10,IF(Hintergrunddaten!$AE$16=5,4,20)))","v":0},{"$f":"K42-J42","v":0},{"$f":"IF('MA 71-80'!K31=0,\"0%\",J31/K31)","v":"0%"}]
["Fortbildung 01",null,null,null,null,null,null,null,null,{"$f":"SUM(F32:I32)","v":0}]
["Fortbildung 02",null,null,null,null,null,null,null,null,{"$f":"SUM(F33:I33)","v":0}]
["Fortbildung 03",null,null,null,null,null,null,null,null,0]
["Fortbildung 04",null,null,null,null,null,null,null,null,0]
["Fortbildung 05",null,null,null,null,null,null,null,null,0]
["Fortbildung 06",null,null,null,null,null,null,null,null,0]
["Fortbildung 07",null,null,null,null,null,null,null,null,0]
["Fortbildung 08",null,null,null,null,null,null,null,null,0]
["Fortbildung 09",null,null,null,null,null,null,null,null,0]
["Fortbildung 10",null,null,null,null,null,null,null,null,0]
[null,null,null,null,null,{"$f":"SUM(F31:F41)","v":0},{"$f":"SUM(G31:G41)","v":0},{"$f":"SUM(H31:H41)","v":0},{"$f":"SUM(I31:I41)","v":0},{"$f":"SUM(F42:I42)","v":0},{"$f":"IF(Hintergrunddaten!$AE$16=1,0,IF(Hintergrunddaten!$AE$16=2,10,IF(Hintergrunddaten!$AE$16=5,4,20)))","v":0},{"$f":"K42-J42","v":0},{"$f":"IF('MA 71-80'!K31=0,\"0%\",J31/K31)","v":"0%"}]
[]
["MitarbeiterIn 074",null,null,null,null,{"$f":"IF(Übersicht!D3=0,\"Stunden Jahr 1\",\"Stunden\"&(Übersicht!D3))","v":"Stunden Jahr 1"},{"$f":"IF(Übersicht!D3=0,\"Stunden Jahr 2\",Übersicht!E6)","v":"Stunden Jahr 2"},{"$f":"IF(Übersicht!D3=0,\"Stunden Jahr 3\",Übersicht!F6)","v":"Stunden Jahr 3"},{"$f":"IF(Übersicht!D3=0,\"Stunden Jahr 4\",Übersicht!G6)","v":"Stunden Jahr 4"},"Stunden\nGesamt","Soll-stunden","Differenz","% erreicht"]
[null,"Titel der Fortbildung","Datum von","Datum bis","Inhalte",null,null,null,null,{"$f":"SUM(F56:I56)","v":0},{"$f":"IF(Hintergrunddaten!$AE$23=1,0,IF(Hintergrunddaten!$AE$23=2,10,IF(Hintergrunddaten!$AE$23=5,4,20)))","v":0},{"$f":"K56-J56","v":0},{"$f":"IF('MA 71-80'!K45=0,\"0%\",J45/K45)","v":"0%"}]
["Fortbildung 01",null,null,null,null,null,null,null,null,{"$f":"SUM(F46:I46)","v":0}]
["Fortbildung 02",null,null,null,null,null,null,null,null,{"$f":"SUM(F47:I47)","v":0}]
["Fortbildung 03",null,null,null,null,null,null,null,null,0]
["Fortbildung 04",null,null,null,null,null,null,null,null,0]
["Fortbildung 05",null,null,null,null,null,null,null,null,0]
["Fortbildung 06",null,null,null,null,null,null,null,null,0]
["Fortbildung 07",null,null,null,null,null,null,null,null,0]
["Fortbildung 08",null,null,null,null,null,null,null,null,0]
["Fortbildung 09",null,null,null,null,null,null,null,null,0]
["Fortbildung 10",null,null,null,null,null,null,null,null,0]
[null,null,null,null,null,{"$f":"SUM(F45:F55)","v":0},{"$f":"SUM(G45:G55)","v":0},{"$f":"SUM(H45:H55)","v":0},{"$f":"SUM(I45:I55)","v":0},{"$f":"SUM(F56:I56)","v":0},{"$f":"IF(Hintergrunddaten!$AE$23=1,0,IF(Hintergrunddaten!$AE$23=2,10,IF(Hintergrunddaten!$AE$23=5,4,20)))","v":0},{"$f":"K56-J56","v":0},{"$f":"IF('MA 71-80'!K45=0,\"0%\",J45/K45)","v":"0%"}]
[]
["MitarbeiterIn 075",null,null,null,null,{"$f":"IF(Übersicht!D3=0,\"Stunden Jahr 1\",\"Stunden\"&(Übersicht!D3))","v":"Stunden Jahr 1"},{"$f":"IF(Übersicht!D3=0,\"Stunden Jahr 2\",Übersicht!E6)","v":"Stunden Jahr 2"},{"$f":"IF(Übersicht!D3=0,\"Stunden Jahr 3\",Übersicht!F6)","v":"Stunden Jahr 3"},{"$f":"IF(Übersicht!D3=0,\"Stunden Jahr 4\",Übersicht!G6)","v":"Stunden Jahr 4"},"Stunden\nGesamt","Soll-stunden","Differenz","% erreicht"]
[null,"Titel der Fortbildung","Datum von","Datum bis","Inhalte",null,null,null,null,{"$f":"SUM(F70:I70)","v":0},{"$f":"IF(Hintergrunddaten!$AE$30=1,0,IF(Hintergrunddaten!$AE$30=2,10,IF(Hintergrunddaten!$AE30=5,4,20)))","v":0},{"$f":"K70-J70","v":0},{"$f":"IF('MA 71-80'!K59=0,\"0%\",J59/K59)","v":"0%"}]
["Fortbildung 01",null,null,null,null,null,null,null,null,{"$f":"SUM(F60:I60)","v":0}]
["Fortbildung 02",null,null,null,null,null,null,null,null,{"$f":"SUM(F61:I61)","v":0}]
["Fortbildung 03",null,null,null,null,null,null,null,null,0]
["Fortbildung 04",null,null,null,null,null,null,null,null,0]
["Fortbildung 05",null,null,null,null,null,null,null,null,0]
["Fortbildung 06",null,null,null,null,null,null,null,null,0]
["Fortbildung 07",null,null,null,null,null,null,null,null,0]
["Fortbildung 08",null,null,null,null,null,null,null,null,0]
["Fortbildung 09",null,null,null,null,null,null,null,null,0]
["Fortbildung 10",null,null,null,null,null,null,null,null,0]
[null,null,null,null,null,{"$f":"SUM(F59:F69)","v":0},{"$f":"SUM(G59:G69)","v":0},{"$f":"SUM(H59:H69)","v":0},{"$f":"SUM(I59:I69)","v":0},{"$f":"SUM(F70:I70)","v":0},{"$f":"IF(Hintergrunddaten!$AE$30=1,0,IF(Hintergrunddaten!$AE$30=2,10,IF(Hintergrunddaten!$AE$30=5,4,20)))","v":0},{"$f":"K70-J70","v":0},{"$f":"IF('MA 71-80'!K59=0,\"0%\",J59/K59)","v":"0%"}]
[]
["MitarbeiterIn 076",null,null,null,null,{"$f":"IF(Übersicht!D3=0,\"Stunden Jahr 1\",\"Stunden\"&(Übersicht!D3))","v":"Stunden Jahr 1"},{"$f":"IF(Übersicht!D3=0,\"Stunden Jahr 2\",Übersicht!E6)","v":"Stunden Jahr 2"},{"$f":"IF(Übersicht!D3=0,\"Stunden Jahr 3\",Übersicht!F6)","v":"Stunden Jahr 3"},{"$f":"IF(Übersicht!D3=0,\"Stunden Jahr 4\",Übersicht!G6)","v":"Stunden Jahr 4"},"Stunden\nGesamt","Soll-stunden","Differenz","% erreicht"]
[null,"Titel der Fortbildung","Datum von","Datum bis","Inhalte",null,null,null,null,{"$f":"SUM(F84:I84)","v":0},{"$f":"IF(Hintergrunddaten!$AE$37=1,0,IF(Hintergrunddaten!$AE$37=2,10,IF(Hintergrunddaten!$AE$37=5,4,20)))","v":0},{"$f":"K84-J84","v":0},{"$f":"IF('MA 71-80'!K73=0,\"0%\",J73/K73)","v":"0%"}]
["Fortbildung 01",null,null,null,null,null,null,null,null,{"$f":"SUM(F74:I74)","v":0}]
["Fortbildung 02",null,null,null,null,null,null,null,null,{"$f":"SUM(F75:I75)","v":0}]
["Fortbildung 03",null,null,null,null,null,null,null,null,0]
["Fortbildung 04",null,null,null,null,null,null,null,null,0]
["Fortbildung 05",null,null,null,null,null,null,null,null,0]
["Fortbildung 06",null,null,null,null,null,null,null,null,0]
["Fortbildung 07",null,null,null,null,null,null,null,null,0]
["Fortbildung 08",null,null,null,null,null,null,null,null,0]
["Fortbildung 09",null,null,null,null,null,null,null,null,0]
["Fortbildung 10",null,null,null,null,null,null,null,null,0]
[null,null,null,null,null,{"$f":"SUM(F73:F83)","v":0},{"$f":"SUM(G73:G83)","v":0},{"$f":"SUM(H73:H83)","v":0},{"$f":"SUM(I73:I83)","v":0},{"$f":"SUM(F84:I84)","v":0},{"$f":"IF(Hintergrunddaten!$AE$37=1,0,IF(Hintergrunddaten!$AE$37=2,10,IF(Hintergrunddaten!$AE$37=5,4,20)))","v":0},{"$f":"K84-J84","v":0},{"$f":"IF('MA 71-80'!K73=0,\"0%\",J73/K73)","v":"0%"}]
[]
["MitarbeiterIn 077",null,null,null,null,{"$f":"IF(Übersicht!D3=0,\"Stunden Jahr 1\",\"Stunden\"&(Übersicht!D3))","v":"Stunden Jahr 1"},{"$f":"IF(Übersicht!D3=0,\"Stunden Jahr 2\",Übersicht!E6)","v":"Stunden Jahr 2"},{"$f":"IF(Übersicht!D3=0,\"Stunden Jahr 3\",Übersicht!F6)","v":"Stunden Jahr 3"},{"$f":"IF(Übersicht!D3=0,\"Stunden Jahr 4\",Übersicht!G6)","v":"Stunden Jahr 4"},"Stunden\nGesamt","Soll-stunden","Differenz","% erreicht"]
[null,"Titel der Fortbildung","Datum von","Datum bis","Inhalte",null,null,null,null,{"$f":"SUM(F98:I98)","v":0},{"$f":"IF(Hintergrunddaten!$AE$44=1,0,IF(Hintergrunddaten!$AE$44=2,10,IF(Hintergrunddaten!$AE$44=5,4,20)))","v":0},{"$f":"K98-J98","v":0},{"$f":"IF('MA 71-80'!K87=0,\"0%\",J87/K87)","v":"0%"}]
["Fortbildung 01",null,null,null,null,null,null,null,null,{"$f":"SUM(F88:I88)","v":0}]
["Fortbildung 02",null,null,null,null,null,null,null,null,{"$f":"SUM(F89:I89)","v":0}]
["Fortbildung 03",null,null,null,null,null,null,null,null,0]
["Fortbildung 04",null,null,null,null,null,null,null,null,0]
["Fortbildung 05",null,null,null,null,null,null,null,null,0]
["Fortbildung 06",null,null,null,null,null,null,null,null,0]
["Fortbildung 07",null,null,null,null,null,null,null,null,0]
["Fortbildung 08",null,null,null,null,null,null,null,null,0]
["Fortbildung 09",null,null,null,null,null,null,null,null,0]
["Fortbildung 10",null,null,null,null,null,null,null,null,0]
[null,null,null,null,null,{"$f":"SUM(F87:F97)","v":0},{"$f":"SUM(G87:G97)","v":0},{"$f":"SUM(H87:H97)","v":0},{"$f":"SUM(I87:I97)","v":0},{"$f":"SUM(F98:I98)","v":0},{"$f":"IF(Hintergrunddaten!$AE$44=1,0,IF(Hintergrunddaten!$AE$44=2,10,IF(Hintergrunddaten!$AE$44=5,4,20)))","v":0},{"$f":"K98-J98","v":0},{"$f":"IF('MA 71-80'!K87=0,\"0%\",J87/K87)","v":"0%"}]
[]
["MitarbeiterIn 078",null,null,null,null,{"$f":"IF(Übersicht!D3=0,\"Stunden Jahr 1\",\"Stunden\"&(Übersicht!D3))","v":"Stunden Jahr 1"},{"$f":"IF(Übersicht!D3=0,\"Stunden Jahr 2\",Übersicht!E6)","v":"Stunden Jahr 2"},{"$f":"IF(Übersicht!D3=0,\"Stunden Jahr 3\",Übersicht!F6)","v":"Stunden Jahr 3"},{"$f":"IF(Übersicht!D3=0,\"Stunden Jahr 4\",Übersicht!G6)","v":"Stunden Jahr 4"},"Stunden\nGesamt","Soll-stunden","Differenz","% erreicht"]
[null,"Titel der Fortbildung","Datum von","Datum bis","Inhalte",null,null,null,null,{"$f":"SUM(F112:I112)","v":0},{"$f":"IF(Hintergrunddaten!$AE$51=1,0,IF(Hintergrunddaten!$AE$51=2,10,IF(Hintergrunddaten!$AE$51=5,4,20)))","v":0},{"$f":"K112-J112","v":0},{"$f":"IF('MA 71-80'!K101=0,\"0%\",J101/K101)","v":"0%"}]
["Fortbildung 01",null,null,null,null,null,null,null,null,{"$f":"SUM(F102:I102)","v":0}]
["Fortbildung 02",null,null,null,null,null,null,null,null,{"$f":"SUM(F103:I103)","v":0}]
["Fortbildung 03",null,null,null,null,null,null,null,null,0]
["Fortbildung 04",null,null,null,null,null,null,null,null,0]
["Fortbildung 05",null,null,null,null,null,null,null,null,0]
["Fortbildung 06",null,null,null,null,null,null,null,null,0]
["Fortbildung 07",null,null,null,null,null,null,null,null,0]
["Fortbildung 08",null,null,null,null,null,null,null,null,0]
["Fortbildung 09",null,null,null,null,null,null,null,null,0]
["Fortbildung 10",null,null,null,null,null,null,null,null,0]
[null,null,null,null,null,{"$f":"SUM(F101:F111)","v":0},{"$f":"SUM(G101:G111)","v":0},{"$f":"SUM(H101:H111)","v":0},{"$f":"SUM(I101:I111)","v":0},{"$f":"SUM(F112:I112)","v":0},{"$f":"IF(Hintergrunddaten!$AE$51=1,0,IF(Hintergrunddaten!$AE$51=2,10,IF(Hintergrunddaten!$AE$51=5,4,20)))","v":0},{"$f":"K112-J112","v":0},{"$f":"IF('MA 71-80'!K101=0,\"0%\",J101/K101)","v":"0%"}]
[]
["MitarbeiterIn 079",null,null,null,null,{"$f":"IF(Übersicht!D3=0,\"Stunden Jahr 1\",\"Stunden\"&(Übersicht!D3))","v":"Stunden Jahr 1"},{"$f":"IF(Übersicht!D3=0,\"Stunden Jahr 2\",Übersicht!E6)","v":"Stunden Jahr 2"},{"$f":"IF(Übersicht!D3=0,\"Stunden Jahr 3\",Übersicht!F6)","v":"Stunden Jahr 3"},{"$f":"IF(Übersicht!D3=0,\"Stunden Jahr 4\",Übersicht!G6)","v":"Stunden Jahr 4"},"Stunden\nGesamt","Soll-stunden","Differenz","% erreicht"]
[null,"Titel der Fortbildung","Datum von","Datum bis","Inhalte",null,null,null,null,{"$f":"SUM(F126:I126)","v":0},{"$f":"IF(Hintergrunddaten!$AE$58=1,0,IF(Hintergrunddaten!$AE$58=2,10,IF(Hintergrunddaten!$AE$58=5,4,20)))","v":0},{"$f":"K126-J126","v":0},{"$f":"IF('MA 71-80'!K115=0,\"0%\",J115/K115)","v":"0%"}]
["Fortbildung 01",null,null,null,null,null,null,null,null,{"$f":"SUM(F116:I116)","v":0}]
["Fortbildung 02",null,null,null,null,null,null,null,null,{"$f":"SUM(F117:I117)","v":0}]
["Fortbildung 03",null,null,null,null,null,null,null,null,0]
["Fortbildung 04",null,null,null,null,null,null,null,null,0]
["Fortbildung 05",null,null,null,null,null,null,null,null,0]
["Fortbildung 06",null,null,null,null,null,null,null,null,0]
["Fortbildung 07",null,null,null,null,null,null,null,null,0]
["Fortbildung 08",null,null,null,null,null,null,null,null,0]
["Fortbildung 09",null,null,null,null,null,null,null,null,0]
["Fortbildung 10",null,null,null,null,null,null,null,null,0]
[null,null,null,null,null,{"$f":"SUM(F115:F125)","v":0},{"$f":"SUM(G115:G125)","v":0},{"$f":"SUM(H115:H125)","v":0},{"$f":"SUM(I115:I125)","v":0},{"$f":"SUM(F126:I126)","v":0},{"$f":"IF(Hintergrunddaten!$AE$58=1,0,IF(Hintergrunddaten!$AE$58=2,10,IF(Hintergrunddaten!$AE$58=5,4,20)))","v":0},{"$f":"K126-J126","v":0},{"$f":"IF('MA 71-80'!K115=0,\"0%\",J115/K115)","v":"0%"}]
[]
["MitarbeiterIn 080",null,null,null,null,{"$f":"IF(Übersicht!D3=0,\"Stunden Jahr 1\",\"Stunden\"&(Übersicht!D3))","v":"Stunden Jahr 1"},{"$f":"IF(Übersicht!D3=0,\"Stunden Jahr 2\",Übersicht!E6)","v":"Stunden Jahr 2"},{"$f":"IF(Übersicht!D3=0,\"Stunden Jahr 3\",Übersicht!F6)","v":"Stunden Jahr 3"},{"$f":"IF(Übersicht!D3=0,\"Stunden Jahr 4\",Übersicht!G6)","v":"Stunden Jahr 4"},"Stunden\nGesamt","Soll-stunden","Differenz","% erreicht"]
[null,"Titel der Fortbildung","Datum von","Datum bis","Inhalte",null,null,null,null,{"$f":"SUM(F140:I140)","v":0},{"$f":"IF(Hintergrunddaten!$AE$65=1,0,IF(Hintergrunddaten!$AE$65=2,10,IF(Hintergrunddaten!$AE$65=5,4,20)))","v":0},{"$f":"K140-J140","v":0},{"$f":"IF('MA 71-80'!K129=0,\"0%\",J129/K129)","v":"0%"}]
["Fortbildung 01",null,null,null,null,null,null,null,null,{"$f":"SUM(F130:I130)","v":0}]
["Fortbildung 02",null,null,null,null,null,null,null,null,{"$f":"SUM(F131:I131)","v":0}]
["Fortbildung 03",null,null,null,null,null,null,null,null,0]
["Fortbildung 04",null,null,null,null,null,null,null,null,0]
["Fortbildung 05",null,null,null,null,null,null,null,null,0]
["Fortbildung 06",null,null,null,null,null,null,null,null,0]
["Fortbildung 07",null,null,null,null,null,null,null,null,0]
["Fortbildung 08",null,null,null,null,null,null,null,null,0]
["Fortbildung 09",null,null,null,null,null,null,null,null,0]
["Fortbildung 10",null,null,null,null,null,null,null,null,0]
[null,null,null,null,null,{"$f":"SUM(F129:F139)","v":0},{"$f":"SUM(G129:G139)","v":0},{"$f":"SUM(H129:H139)","v":0},{"$f":"SUM(I129:I139)","v":0},{"$f":"SUM(F140:I140)","v":0},{"$f":"IF(Hintergrunddaten!$AE$65=1,0,IF(Hintergrunddaten!$AE$65=2,10,IF(Hintergrunddaten!$AE$65=5,4,20)))","v":0},{"$f":"K140-J140","v":0},{"$f":"IF('MA 71-80'!K129=0,\"0%\",J129/K129)","v":"0%"}]

{"sheet":"MA 81-90","index":9,"n_rows":140,"n_cols":13,"rows_kept":140,"cut":false,"hidden":false,"merged":[]}
[]
["MitarbeiterIn 081",null,null,null,null,{"$f":"IF(Übersicht!D3=0,\"Stunden Jahr 1\",\"Stunden\"&(Übersicht!D3))","v":"Stunden Jahr 1"},{"$f":"IF(Übersicht!D3=0,\"Stunden Jahr 2\",Übersicht!E6)","v":"Stunden Jahr 2"},{"$f":"IF(Übersicht!D3=0,\"Stunden Jahr 3\",Übersicht!F6)","v":"Stunden Jahr 3"},{"$f":"IF(Übersicht!D3=0,\"Stunden Jahr 4\",Übersicht!G6)","v":"Stunden Jahr 4"},"Stunden\nGesamt","Soll-stunden","Differenz","% erreicht"]
[null,"Titel der Fortbildung","Datum von","Datum bis","Inhalte",null,null,null,null,{"$f":"SUM(F14:I14)","v":0},{"$f":"IF(Hintergrunddaten!$AI$2=1,0,IF(Hintergrunddaten!$AI$2=2,10,IF(Hintergrunddaten!$AI$2=5,4,20)))","v":0},{"$f":"K14-J14","v":0},{"$f":"IF('MA 81-90'!K3=0,\"0%\",J3/K3)","v":"0%"}]
["Fortbildung 01",null,null,null,null,null,null,null,null,{"$f":"SUM(F4:I4)","v":0}]
["Fortbildung 02",null,null,null,null,null,null,null,null,{"$f":"SUM(F5:I5)","v":0}]
["Fortbildung 03",null,null,null,null,null,null,null,null,0]
["Fortbildung 04",null,null,null,null,null,null,null,null,0]
["Fortbildung 05",null,null,null,null,null,null,null,null,0]
["Fortbildung 06",null,null,null,null,null,null,null,null,0]
["Fortbildung 07",null,null,null,null,null,null,null,null,0]
["Fortbildung 08",null,null,null,null,null,null,null,null,0]
["Fortbildung 09",null,null,null,null,null,null,null,null,0]
["Fortbildung 10",null,null,null,null,null,null,null,null,0]
[null,null,null,null,null,{"$f":"SUM(F3:F13)","v":0},{"$f":"SUM(G3:G13)","v":0},{"$f":"SUM(H3:H13)","v":0},{"$f":"SUM(I3:I13)","v":0},{"$f":"SUM(F14:I14)","v":0},{"$f":"IF(Hintergrunddaten!$AI$2=1,0,IF(Hintergrunddaten!$AI$2=2,10,IF(Hintergrunddaten!$AI$2=5,4,20)))","v":0},{"$f":"K14-J14","v":0},{"$f":"IF('MA 81-90'!K3=0,\"0%\",J3/K3)","v":"0%"}]
[]
["MitarbeiterIn 082",null,null,null,null,{"$f":"IF(Übersicht!D3=0,\"Stunden Jahr 1\",\"Stunden\"&(Übersicht!D3))","v":"Stunden Jahr 1"},{"$f":"IF(Übersicht!D3=0,\"Stunden Jahr 2\",Übersicht!E6)","v":"Stunden Jahr 2"},{"$f":"IF(Übersicht!D3=0,\"Stunden Jahr 3\",Übersicht!F6)","v":"Stunden Jahr 3"},{"$f":"IF(Übersicht!D3=0,\"Stunden Jahr 4\",Übersicht!G6)","v":"Stunden Jahr 4"},"Stunden\nGesamt","Soll-stunden","Differenz","% erreicht"]
[null,"Titel der Fortbildung","Datum von","Datum bis","Inhalte",null,null,null,null,{"$f":"SUM(F28:I28)","v":0},{"$f":"IF(Hintergrunddaten!$AI$9=1,0,IF(Hintergrunddaten!$AI$9=2,10,IF(Hintergrunddaten!$AI$9=5,4,20)))","v":0},{"$f":"K28-J28","v":0},{"$f":"IF('MA 81-90'!K17=0,\"0%\",J17/K17)","v":"0%"}]
["Fortbildung 01",null,null,null,null,null,null,null,null,{"$f":"SUM(F18:I18)","v":0}]
["Fortbildung 02",null,null,null,null,null,null,null,null,{"$f":"SUM(F19:I19)","v":0}]
["Fortbildung 03",null,null,null,null,null,null,null,null,0]
["Fortbildung 04",null,null,null,null,null,null,null,null,0]
["Fortbildung 05",null,null,null,null,null,null,null,null,0]
["Fortbildung 06",null,null,null,null,null,null,null,null,0]
["Fortbildung 07",null,null,null,null,null,null,null,null,0]
["Fortbildung 08",null,null,null,null,null,null,null,null,0]
["Fortbildung 09",null,null,null,null,null,null,null,null,0]
["Fortbildung 10",null,null,null,null,null,null,null,null,0]
[null,null,null,null,null,{"$f":"SUM(F17:F27)","v":0},{"$f":"SUM(G17:G27)","v":0},{"$f":"SUM(H17:H27)","v":0},{"$f":"SUM(I17:I27)","v":0},{"$f":"SUM(F28:I28)","v":0},{"$f":"IF(Hintergrunddaten!$AI$9=1,0,IF(Hintergrunddaten!$AI$9=2,10,IF(Hintergrunddaten!$AI$9=5,4,20)))","v":0},{"$f":"K28-J28","v":0},{"$f":"IF('MA 81-90'!K17=0,\"0%\",J17/K17)","v":"0%"}]
[]
["MitarbeiterIn 083",null,null,null,null,{"$f":"IF(Übersicht!D3=0,\"Stunden Jahr 1\",\"Stunden\"&(Übersicht!D3))","v":"Stunden Jahr 1"},{"$f":"IF(Übersicht!D3=0,\"Stunden Jahr 2\",Übersicht!E6)","v":"Stunden Jahr 2"},{"$f":"IF(Übersicht!D3=0,\"Stunden Jahr 3\",Übersicht!F6)","v":"Stunden Jahr 3"},{"$f":"IF(Übersicht!D3=0,\"Stunden Jahr 4\",Übersicht!G6)","v":"Stunden Jahr 4"},"Stunden\nGesamt","Soll-stunden","Differenz","% erreicht"]
[null,"Titel der Fortbildung","Datum von","Datum bis","Inhalte",null,null,null,null,{"$f":"SUM(F42:I42)","v":0},{"$f":"IF(Hintergrunddaten!$AI$16=1,0,IF(Hintergrunddaten!$AI$16=2,10,IF(Hintergrunddaten!$AI$16=5,4,20)))","v":0},{"$f":"K42-J42","v":0},{"$f":"IF('MA 81-90'!K31=0,\"0%\",J31/K31)","v":"0%"}]
["Fortbildung 01",null,null,null,null,null,null,null,null,{"$f":"SUM(F32:I32)","v":0}]
["Fortbildung 02",null,null,null,null,null,null,null,null,{"$f":"SUM(F33:I33)","v":0}]
["Fortbildung 03",null,null,null,null,null,null,null,null,0]
["Fortbildung 04",null,null,null,null,null,null,null,null,0]
["Fortbildung 05",null,null,null,null,null,null,null,null,0]
["Fortbildung 06",null,null,null,null,null,null,null,null,0]
["Fortbildung 07",null,null,null,null,null,null,null,null,0]
["Fortbildung 08",null,null,null,null,null,null,null,null,0]
["Fortbildung 09",null,null,null,null,null,null,null,null,0]
["Fortbildung 10",null,null,null,null,null,null,null,null,0]
[null,null,null,null,null,{"$f":"SUM(F31:F41)","v":0},{"$f":"SUM(G31:G41)","v":0},{"$f":"SUM(H31:H41)","v":0},{"$f":"SUM(I31:I41)","v":0},{"$f":"SUM(F42:I42)","v":0},{"$f":"IF(Hintergrunddaten!$AI$16=1,0,IF(Hintergrunddaten!$AI$16=2,10,IF(Hintergrunddaten!$AI$16=5,4,20)))","v":0},{"$f":"K42-J42","v":0},{"$f":"IF('MA 81-90'!K31=0,\"0%\",J31/K31)","v":"0%"}]
[]
["MitarbeiterIn 084",null,null,null,null,{"$f":"IF(Übersicht!D3=0,\"Stunden Jahr 1\",\"Stunden\"&(Übersicht!D3))","v":"Stunden Jahr 1"},{"$f":"IF(Übersicht!D3=0,\"Stunden Jahr 2\",Übersicht!E6)","v":"Stunden Jahr 2"},{"$f":"IF(Übersicht!D3=0,\"Stunden Jahr 3\",Übersicht!F6)","v":"Stunden Jahr 3"},{"$f":"IF(Übersicht!D3=0,\"Stunden Jahr 4\",Übersicht!G6)","v":"Stunden Jahr 4"},"Stunden\nGesamt","Soll-stunden","Differenz","% erreicht"]
[null,"Titel der Fortbildung","Datum von","Datum bis","Inhalte",null,null,null,null,{"$f":"SUM(F56:I56)","v":0},{"$f":"IF(Hintergrunddaten!$AI$23=1,0,IF(Hintergrunddaten!$AI$23=2,10,IF(Hintergrunddaten!$AI$23=5,4,20)))","v":0},{"$f":"K56-J56","v":0},{"$f":"IF('MA 81-90'!K45=0,\"0%\",J45/K45)","v":"0%"}]
["Fortbildung 01",null,null,null,null,null,null,null,null,{"$f":"SUM(F46:I46)","v":0}]
["Fortbildung 02",null,null,null,null,null,null,null,null,{"$f":"SUM(F47:I47)","v":0}]
["Fortbildung 03",null,null,null,null,null,null,null,null,0]
["Fortbildung 04",null,null,null,null,null,null,null,null,0]
["Fortbildung 05",null,null,null,null,null,null,null,null,0]
["Fortbildung 06",null,null,null,null,null,null,null,null,0]
["Fortbildung 07",null,null,null,null,null,null,null,null,0]
["Fortbildung 08",null,null,null,null,null,null,null,null,0]
["Fortbildung 09",null,null,null,null,null,null,null,null,0]
["Fortbildung 10",null,null,null,null,null,null,null,null,0]
[null,null,null,null,null,{"$f":"SUM(F45:F55)","v":0},{"$f":"SUM(G45:G55)","v":0},{"$f":"SUM(H45:H55)","v":0},{"$f":"SUM(I45:I55)","v":0},{"$f":"SUM(F56:I56)","v":0},{"$f":"IF(Hintergrunddaten!$AI$23=1,0,IF(Hintergrunddaten!$AI$23=2,10,IF(Hintergrunddaten!$AI$23=5,4,20)))","v":0},{"$f":"K56-J56","v":0},{"$f":"IF('MA 81-90'!K45=0,\"0%\",J45/K45)","v":"0%"}]
[]
["MitarbeiterIn 085",null,null,null,null,{"$f":"IF(Übersicht!D3=0,\"Stunden Jahr 1\",\"Stunden\"&(Übersicht!D3))","v":"Stunden Jahr 1"},{"$f":"IF(Übersicht!D3=0,\"Stunden Jahr 2\",Übersicht!E6)","v":"Stunden Jahr 2"},{"$f":"IF(Übersicht!D3=0,\"Stunden Jahr 3\",Übersicht!F6)","v":"Stunden Jahr 3"},{"$f":"IF(Übersicht!D3=0,\"Stunden Jahr 4\",Übersicht!G6)","v":"Stunden Jahr 4"},"Stunden\nGesamt","Soll-stunden","Differenz","% erreicht"]
[null,"Titel der Fortbildung","Datum von","Datum bis","Inhalte",null,null,null,null,{"$f":"SUM(F70:I70)","v":0},{"$f":"IF(Hintergrunddaten!$AI$30=1,0,IF(Hintergrunddaten!$AI$30=2,10,IF(Hintergrunddaten!$AI30=5,4,20)))","v":0},{"$f":"K70-J70","v":0},{"$f":"IF('MA 81-90'!K59=0,\"0%\",J59/K59)","v":"0%"}]
["Fortbildung 01",null,null,null,null,null,null,null,null,{"$f":"SUM(F60:I60)","v":0}]
["Fortbildung 02",null,null,null,null,null,null,null,null,{"$f":"SUM(F61:I61)","v":0}]
["Fortbildung 03",null,null,null,null,null,null,null,null,0]
["Fortbildung 04",null,null,null,null,null,null,null,null,0]
["Fortbildung 05",null,null,null,null,null,null,null,null,0]
["Fortbildung 06",null,null,null,null,null,null,null,null,0]
["Fortbildung 07",null,null,null,null,null,null,null,null,0]
["Fortbildung 08",null,null,null,null,null,null,null,null,0]
["Fortbildung 09",null,null,null,null,null,null,null,null,0]
["Fortbildung 10",null,null,null,null,null,null,null,null,0]
[null,null,null,null,null,{"$f":"SUM(F59:F69)","v":0},{"$f":"SUM(G59:G69)","v":0},{"$f":"SUM(H59:H69)","v":0},{"$f":"SUM(I59:I69)","v":0},{"$f":"SUM(F70:I70)","v":0},{"$f":"IF(Hintergrunddaten!$AI$30=1,0,IF(Hintergrunddaten!$AI$30=2,10,IF(Hintergrunddaten!$AI$30=5,4,20)))","v":0},{"$f":"K70-J70","v":0},{"$f":"IF('MA 81-90'!K59=0,\"0%\",J59/K59)","v":"0%"}]
[]
["MitarbeiterIn 086",null,null,null,null,{"$f":"IF(Übersicht!D3=0,\"Stunden Jahr 1\",\"Stunden\"&(Übersicht!D3))","v":"Stunden Jahr 1"},{"$f":"IF(Übersicht!D3=0,\"Stunden Jahr 2\",Übersicht!E6)","v":"Stunden Jahr 2"},{"$f":"IF(Übersicht!D3=0,\"Stunden Jahr 3\",Übersicht!F6)","v":"Stunden Jahr 3"},{"$f":"IF(Übersicht!D3=0,\"Stunden Jahr 4\",Übersicht!G6)","v":"Stunden Jahr 4"},"Stunden\nGesamt","Soll-stunden","Differenz","% erreicht"]
[null,"Titel der Fortbildung","Datum von","Datum bis","Inhalte",null,null,null,null,{"$f":"SUM(F84:I84)","v":0},{"$f":"IF(Hintergrunddaten!$AI$37=1,0,IF(Hintergrunddaten!$AI$37=2,10,IF(Hintergrunddaten!$AI$37=5,4,20)))","v":0},{"$f":"K84-J84","v":0},{"$f":"IF('MA 81-90'!K73=0,\"0%\",J73/K73)","v":"0%"}]
["Fortbildung 01",null,null,null,null,null,null,null,null,{"$f":"SUM(F74:I74)","v":0}]
["Fortbildung 02",null,null,null,null,null,null,null,null,{"$f":"SUM(F75:I75)","v":0}]
["Fortbildung 03",null,null,null,null,null,null,null,null,0]
["Fortbildung 04",null,null,null,null,null,null,null,null,0]
["Fortbildung 05",null,null,null,null,null,null,null,null,0]
["Fortbildung 06",null,null,null,null,null,null,null,null,0]
["Fortbildung 07",null,null,null,null,null,null,null,null,0]
["Fortbildung 08",null,null,null,null,null,null,null,null,0]
["Fortbildung 09",null,null,null,null,null,null,null,null,0]
["Fortbildung 10",null,null,null,null,null,null,null,null,0]
[null,null,null,null,null,{"$f":"SUM(F73:F83)","v":0},{"$f":"SUM(G73:G83)","v":0},{"$f":"SUM(H73:H83)","v":0},{"$f":"SUM(I73:I83)","v":0},{"$f":"SUM(F84:I84)","v":0},{"$f":"IF(Hintergrunddaten!$AI$37=1,0,IF(Hintergrunddaten!$AI$37=2,10,IF(Hintergrunddaten!$AI$37=5,4,20)))","v":0},{"$f":"K84-J84","v":0},{"$f":"IF('MA 81-90'!K73=0,\"0%\",J73/K73)","v":"0%"}]
[]
["MitarbeiterIn 087",null,null,null,null,{"$f":"IF(Übersicht!D3=0,\"Stunden Jahr 1\",\"Stunden\"&(Übersicht!D3))","v":"Stunden Jahr 1"},{"$f":"IF(Übersicht!D3=0,\"Stunden Jahr 2\",Übersicht!E6)","v":"Stunden Jahr 2"},{"$f":"IF(Übersicht!D3=0,\"Stunden Jahr 3\",Übersicht!F6)","v":"Stunden Jahr 3"},{"$f":"IF(Übersicht!D3=0,\"Stunden Jahr 4\",Übersicht!G6)","v":"Stunden Jahr 4"},"Stunden\nGesamt","Soll-stunden","Differenz","% erreicht"]
[null,"Titel der Fortbildung","Datum von","Datum bis","Inhalte",null,null,null,null,{"$f":"SUM(F98:I98)","v":0},{"$f":"IF(Hintergrunddaten!$AI$44=1,0,IF(Hintergrunddaten!$AI$44=2,10,IF(Hintergrunddaten!$AI$44=5,4,20)))","v":0},{"$f":"K98-J98","v":0},{"$f":"IF('MA 81-90'!K87=0,\"0%\",J87/K87)","v":"0%"}]
["Fortbildung 01",null,null,null,null,null,null,null,null,{"$f":"SUM(F88:I88)","v":0}]
["Fortbildung 02",null,null,null,null,null,null,null,null,{"$f":"SUM(F89:I89)","v":0}]
["Fortbildung 03",null,null,null,null,null,null,null,null,0]
["Fortbildung 04",null,null,null,null,null,null,null,null,0]
["Fortbildung 05",null,null,null,null,null,null,null,null,0]
["Fortbildung 06",null,null,null,null,null,null,null,null,0]
["Fortbildung 07",null,null,null,null,null,null,null,null,0]
["Fortbildung 08",null,null,null,null,null,null,null,null,0]
["Fortbildung 09",null,null,null,null,null,null,null,null,0]
["Fortbildung 10",null,null,null,null,null,null,null,null,0]
[null,null,null,null,null,{"$f":"SUM(F87:F97)","v":0},{"$f":"SUM(G87:G97)","v":0},{"$f":"SUM(H87:H97)","v":0},{"$f":"SUM(I87:I97)","v":0},{"$f":"SUM(F98:I98)","v":0},{"$f":"IF(Hintergrunddaten!$AI$44=1,0,IF(Hintergrunddaten!$AI$44=2,10,IF(Hintergrunddaten!$AI$44=5,4,20)))","v":0},{"$f":"K98-J98","v":0},{"$f":"IF('MA 81-90'!K87=0,\"0%\",J87/K87)","v":"0%"}]
[]
["MitarbeiterIn 088",null,null,null,null,{"$f":"IF(Übersicht!D3=0,\"Stunden Jahr 1\",\"Stunden\"&(Übersicht!D3))","v":"Stunden Jahr 1"},{"$f":"IF(Übersicht!D3=0,\"Stunden Jahr 2\",Übersicht!E6)","v":"Stunden Jahr 2"},{"$f":"IF(Übersicht!D3=0,\"Stunden Jahr 3\",Übersicht!F6)","v":"Stunden Jahr 3"},{"$f":"IF(Übersicht!D3=0,\"Stunden Jahr 4\",Übersicht!G6)","v":"Stunden Jahr 4"},"Stunden\nGesamt","Soll-stunden","Differenz","% erreicht"]
[null,"Titel der Fortbildung","Datum von","Datum bis","Inhalte",null,null,null,null,{"$f":"SUM(F112:I112)","v":0},{"$f":"IF(Hintergrunddaten!$AI$51=1,0,IF(Hintergrunddaten!$AI$51=2,10,IF(Hintergrunddaten!$AI$51=5,4,20)))","v":0},{"$f":"K112-J112","v":0},{"$f":"IF('MA 81-90'!K101=0,\"0%\",J101/K101)","v":"0%"}]
["Fortbildung 01",null,null,null,null,null,null,null,null,{"$f":"SUM(F102:I102)","v":0}]
["Fortbildung 02",null,null,null,null,null,null,null,null,{"$f":"SUM(F103:I103)","v":0}]
["Fortbildung 03",null,null,null,null,null,null,null,null,0]
["Fortbildung 04",null,null,null,null,null,null,null,null,0]
["Fortbildung 05",null,null,null,null,null,null,null,null,0]
["Fortbildung 06",null,null,null,null,null,null,null,null,0]
["Fortbildung 07",null,null,null,null,null,null,null,null,0]
["Fortbildung 08",null,null,null,null,null,null,null,null,0]
["Fortbildung 09",null,null,null,null,null,null,null,null,0]
["Fortbildung 10",null,null,null,null,null,null,null,null,0]
[null,null,null,null,null,{"$f":"SUM(F101:F111)","v":0},{"$f":"SUM(G101:G111)","v":0},{"$f":"SUM(H101:H111)","v":0},{"$f":"SUM(I101:I111)","v":0},{"$f":"SUM(F112:I112)","v":0},{"$f":"IF(Hintergrunddaten!$AI$51=1,0,IF(Hintergrunddaten!$AI$51=2,10,IF(Hintergrunddaten!$AI$51=5,4,20)))","v":0},{"$f":"K112-J112","v":0},{"$f":"IF('MA 81-90'!K101=0,\"0%\",J101/K101)","v":"0%"}]
[]
["MitarbeiterIn 089",null,null,null,null,{"$f":"IF(Übersicht!D3=0,\"Stunden Jahr 1\",\"Stunden\"&(Übersicht!D3))","v":"Stunden Jahr 1"},{"$f":"IF(Übersicht!D3=0,\"Stunden Jahr 2\",Übersicht!E6)","v":"Stunden Jahr 2"},{"$f":"IF(Übersicht!D3=0,\"Stunden Jahr 3\",Übersicht!F6)","v":"Stunden Jahr 3"},{"$f":"IF(Übersicht!D3=0,\"Stunden Jahr 4\",Übersicht!G6)","v":"Stunden Jahr 4"},"Stunden\nGesamt","Soll-stunden","Differenz","% erreicht"]
[null,"Titel der Fortbildung","Datum von","Datum bis","Inhalte",null,null,null,null,{"$f":"SUM(F126:I126)","v":0},{"$f":"IF(Hintergrunddaten!$AI$58=1,0,IF(Hintergrunddaten!$AI$58=2,10,IF(Hintergrunddaten!$AI$58=5,4,20)))","v":0},{"$f":"K126-J126","v":0},{"$f":"IF('MA 81-90'!K115=0,\"0%\",J115/K115)","v":"0%"}]
["Fortbildung 01",null,null,null,null,null,null,null,null,{"$f":"SUM(F116:I116)","v":0}]
["Fortbildung 02",null,null,null,null,null,null,null,null,{"$f":"SUM(F117:I117)","v":0}]
["Fortbildung 03",null,null,null,null,null,null,null,null,0]
["Fortbildung 04",null,null,null,null,null,null,null,null,0]
["Fortbildung 05",null,null,null,null,null,null,null,null,0]
["Fortbildung 06",null,null,null,null,null,null,null,null,0]
["Fortbildung 07",null,null,null,null,null,null,null,null,0]
["Fortbildung 08",null,null,null,null,null,null,null,null,0]
["Fortbildung 09",null,null,null,null,null,null,null,null,0]
["Fortbildung 10",null,null,null,null,null,null,null,null,0]
[null,null,null,null,null,{"$f":"SUM(F115:F125)","v":0},{"$f":"SUM(G115:G125)","v":0},{"$f":"SUM(H115:H125)","v":0},{"$f":"SUM(I115:I125)","v":0},{"$f":"SUM(F126:I126)","v":0},{"$f":"IF(Hintergrunddaten!$AI$58=1,0,IF(Hintergrunddaten!$AI$58=2,10,IF(Hintergrunddaten!$AI$58=5,4,20)))","v":0},{"$f":"K126-J126","v":0},{"$f":"IF('MA 81-90'!K115=0,\"0%\",J115/K115)","v":"0%"}]
[]
["MitarbeiterIn 090",null,null,null,null,{"$f":"IF(Übersicht!D3=0,\"Stunden Jahr 1\",\"Stunden\"&(Übersicht!D3))","v":"Stunden Jahr 1"},{"$f":"IF(Übersicht!D3=0,\"Stunden Jahr 2\",Übersicht!E6)","v":"Stunden Jahr 2"},{"$f":"IF(Übersicht!D3=0,\"Stunden Jahr 3\",Übersicht!F6)","v":"Stunden Jahr 3"},{"$f":"IF(Übersicht!D3=0,\"Stunden Jahr 4\",Übersicht!G6)","v":"Stunden Jahr 4"},"Stunden\nGesamt","Soll-stunden","Differenz","% erreicht"]
[null,"Titel der Fortbildung","Datum von","Datum bis","Inhalte",null,null,null,null,{"$f":"SUM(F140:I140)","v":0},{"$f":"IF(Hintergrunddaten!$AI$65=1,0,IF(Hintergrunddaten!$AI$65=2,10,IF(Hintergrunddaten!$AI65=5,4,20)))","v":0},{"$f":"K140-J140","v":0},{"$f":"IF('MA 81-90'!K129=0,\"0%\",J129/K129)","v":"0%"}]
["Fortbildung 01",null,null,null,null,null,null,null,null,{"$f":"SUM(F130:I130)","v":0}]
["Fortbildung 02",null,null,null,null,null,null,null,null,{"$f":"SUM(F131:I131)","v":0}]
["Fortbildung 03",null,null,null,null,null,null,null,null,0]
["Fortbildung 04",null,null,null,null,null,null,null,null,0]
["Fortbildung 05",null,null,null,null,null,null,null,null,0]
["Fortbildung 06",null,null,null,null,null,null,null,null,0]
["Fortbildung 07",null,null,null,null,null,null,null,null,0]
["Fortbildung 08",null,null,null,null,null,null,null,null,0]
["Fortbildung 09",null,null,null,null,null,null,null,null,0]
["Fortbildung 10",null,null,null,null,null,null,null,null,0]
[null,null,null,null,null,{"$f":"SUM(F129:F139)","v":0},{"$f":"SUM(G129:G139)","v":0},{"$f":"SUM(H129:H139)","v":0},{"$f":"SUM(I129:I139)","v":0},{"$f":"SUM(F140:I140)","v":0},{"$f":"IF(Hintergrunddaten!$AI$65=1,0,IF(Hintergrunddaten!$AI$65=2,10,IF(Hintergrunddaten!$AI$65=5,4,20)))","v":0},{"$f":"K140-J140","v":0},{"$f":"IF('MA 81-90'!K129=0,\"0%\",J129/K129)","v":"0%"}]

{"sheet":"MA 91-100","index":10,"n_rows":140,"n_cols":13,"rows_kept":140,"cut":false,"hidden":false,"merged":[]}
[]
["MitarbeiterIn 091",null,null,null,null,{"$f":"IF(Übersicht!D3=0,\"Stunden Jahr 1\",\"Stunden\"&(Übersicht!D3))","v":"Stunden Jahr 1"},{"$f":"IF(Übersicht!D3=0,\"Stunden Jahr 2\",Übersicht!E6)","v":"Stunden Jahr 2"},{"$f":"IF(Übersicht!D3=0,\"Stunden Jahr 3\",Übersicht!F6)","v":"Stunden Jahr 3"},{"$f":"IF(Übersicht!D3=0,\"Stunden Jahr 4\",Übersicht!G6)","v":"Stunden Jahr 4"},"Stunden\nGesamt","Soll-stunden","Differenz","% erreicht"]
[null,"Titel der Fortbildung","Datum von","Datum bis","Inhalte",null,null,null,null,{"$f":"SUM(F14:I14)","v":0},{"$f":"IF(Hintergrunddaten!$AM$2=1,0,IF(Hintergrunddaten!$AM$2=2,10,IF(Hintergrunddaten!$AM$2=5,4,20)))","v":0},{"$f":"K14-J14","v":0},{"$f":"IF('MA 91-100'!K3=0,\"0%\",J3/K3)","v":"0%"}]
["Fortbildung 01",null,null,null,null,null,null,null,null,{"$f":"SUM(F4:I4)","v":0}]
["Fortbildung 02",null,null,null,null,null,null,null,null,{"$f":"SUM(F5:I5)","v":0}]
["Fortbildung 03",null,null,null,null,null,null,null,null,0]
["Fortbildung 04",null,null,null,null,null,null,null,null,0]
["Fortbildung 05",null,null,null,null,null,null,null,null,0]
["Fortbildung 06",null,null,null,null,null,null,null,null,0]
["Fortbildung 07",null,null,null,null,null,null,null,null,0]
["Fortbildung 08",null,null,null,null,null,null,null,null,0]
["Fortbildung 09",null,null,null,null,null,null,null,null,0]
["Fortbildung 10",null,null,null,null,null,null,null,null,0]
[null,null,null,null,null,{"$f":"SUM(F3:F13)","v":0},{"$f":"SUM(G3:G13)","v":0},{"$f":"SUM(H3:H13)","v":0},{"$f":"SUM(I3:I13)","v":0},{"$f":"SUM(F14:I14)","v":0},{"$f":"IF(Hintergrunddaten!$AM$2=1,0,IF(Hintergrunddaten!$AM$2=2,10,IF(Hintergrunddaten!$AM$2=5,4,20)))","v":0},{"$f":"K14-J14","v":0},{"$f":"IF('MA 91-100'!K3=0,\"0%\",J3/K3)","v":"0%"}]
[]
["MitarbeiterIn 092",null,null,null,null,{"$f":"IF(Übersicht!D3=0,\"Stunden Jahr 1\",\"Stunden\"&(Übersicht!D3))","v":"Stunden Jahr 1"},{"$f":"IF(Übersicht!D3=0,\"Stunden Jahr 2\",Übersicht!E6)","v":"Stunden Jahr 2"},{"$f":"IF(Übersicht!D3=0,\"Stunden Jahr 3\",Übersicht!F6)","v":"Stunden Jahr 3"},{"$f":"IF(Übersicht!D3=0,\"Stunden Jahr 4\",Übersicht!G6)","v":"Stunden Jahr 4"},"Stunden\nGesamt","Soll-stunden","Differenz","% erreicht"]
[null,"Titel der Fortbildung","Datum von","Datum bis","Inhalte",null,null,null,null,{"$f":"SUM(F28:I28)","v":0},{"$f":"IF(Hintergrunddaten!$AM$9=1,0,IF(Hintergrunddaten!$AM$9=2,10,IF(Hintergrunddaten!$AM$9=5,4,20)))","v":0},{"$f":"K28-J28","v":0},{"$f":"IF('MA 91-100'!K17=0,\"0%\",J17/K17)","v":"0%"}]
["Fortbildung 01",null,null,null,null,null,null,null,null,{"$f":"SUM(F18:I18)","v":0}]
["Fortbildung 02",null,null,null,null,null,null,null,null,{"$f":"SUM(F19:I19)","v":0}]
["Fortbildung 03",null,null,null,null,null,null,null,null,0]
["Fortbildung 04",null,null,null,null,null,null,null,null,0]
["Fortbildung 05",null,null,null,null,null,null,null,null,0]
["Fortbildung 06",null,null,null,null,null,null,null,null,0]
["Fortbildung 07",null,null,null,null,null,null,null,null,0]
["Fortbildung 08",null,null,null,null,null,null,null,null,0]
["Fortbildung 09",null,null,null,null,null,null,null,null,0]
["Fortbildung 10",null,null,null,null,null,null,null,null,0]
[null,null,null,null,null,{"$f":"SUM(F17:F27)","v":0},{"$f":"SUM(G17:G27)","v":0},{"$f":"SUM(H17:H27)","v":0},{"$f":"SUM(I17:I27)","v":0},{"$f":"SUM(F28:I28)","v":0},{"$f":"IF(Hintergrunddaten!$AM$9=1,0,IF(Hintergrunddaten!$AM$9=2,10,IF(Hintergrunddaten!$AM$9=5,4,20)))","v":0},{"$f":"K28-J28","v":0},{"$f":"IF('MA 91-100'!K17=0,\"0%\",J17/K17)","v":"0%"}]
[]
["MitarbeiterIn 093",null,null,null,null,{"$f":"IF(Übersicht!D3=0,\"Stunden Jahr 1\",\"Stunden\"&(Übersicht!D3))","v":"Stunden Jahr 1"},{"$f":"IF(Übersicht!D3=0,\"Stunden Jahr 2\",Übersicht!E6)","v":"Stunden Jahr 2"},{"$f":"IF(Übersicht!D3=0,\"Stunden Jahr 3\",Übersicht!F6)","v":"Stunden Jahr 3"},{"$f":"IF(Übersicht!D3=0,\"Stunden Jahr 4\",Übersicht!G6)","v":"Stunden Jahr 4"},"Stunden\nGesamt","Soll-stunden","Differenz","% erreicht"]
[null,"Titel der Fortbildung","Datum von","Datum bis","Inhalte",null,null,null,null,{"$f":"SUM(F42:I42)","v":0},{"$f":"IF(Hintergrunddaten!$AM$16=1,0,IF(Hintergrunddaten!$AM$16=2,10,IF(Hintergrunddaten!$AM$16=5,4,20)))","v":0},{"$f":"K42-J42","v":0},{"$f":"IF('MA 91-100'!K31=0,\"0%\",J31/K31)","v":"0%"}]
["Fortbildung 01",null,null,null,null,null,null,null,null,{"$f":"SUM(F32:I32)","v":0}]
["Fortbildung 02",null,null,null,null,null,null,null,null,{"$f":"SUM(F33:I33)","v":0}]
["Fortbildung 03",null,null,null,null,null,null,null,null,0]
["Fortbildung 04",null,null,null,null,null,null,null,null,0]
["Fortbildung 05",null,null,null,null,null,null,null,null,0]
["Fortbildung 06",null,null,null,null,null,null,null,null,0]
["Fortbildung 07",null,null,null,null,null,null,null,null,0]
["Fortbildung 08",null,null,null,null,null,null,null,null,0]
["Fortbildung 09",null,null,null,null,null,null,null,null,0]
["Fortbildung 10",null,null,null,null,null,null,null,null,0]
[null,null,null,null,null,{"$f":"SUM(F31:F41)","v":0},{"$f":"SUM(G31:G41)","v":0},{"$f":"SUM(H31:H41)","v":0},{"$f":"SUM(I31:I41)","v":0},{"$f":"SUM(F42:I42)","v":0},{"$f":"IF(Hintergrunddaten!$AM$16=1,0,IF(Hintergrunddaten!$AM$16=2,10,IF(Hintergrunddaten!$AM$16=5,4,20)))","v":0},{"$f":"K42-J42","v":0},{"$f":"IF('MA 91-100'!K31=0,\"0%\",J31/K31)","v":"0%"}]
[]
["MitarbeiterIn 094",null,null,null,null,{"$f":"IF(Übersicht!D3=0,\"Stunden Jahr 1\",\"Stunden\"&(Übersicht!D3))","v":"Stunden Jahr 1"},{"$f":"IF(Übersicht!D3=0,\"Stunden Jahr 2\",Übersicht!E6)","v":"Stunden Jahr 2"},{"$f":"IF(Übersicht!D3=0,\"Stunden Jahr 3\",Übersicht!F6)","v":"Stunden Jahr 3"},{"$f":"IF(Übersicht!D3=0,\"Stunden Jahr 4\",Übersicht!G6)","v":"Stunden Jahr 4"},"Stunden\nGesamt","Soll-stunden","Differenz","% erreicht"]
[null,"Titel der Fortbildung","Datum von","Datum bis","Inhalte",null,null,null,null,{"$f":"SUM(F56:I56)","v":0},{"$f":"IF(Hintergrunddaten!$AM$23=1,0,IF(Hintergrunddaten!$AM$23=2,10,IF(Hintergrunddaten!$AM$23=5,4,20)))","v":0},{"$f":"K56-J56","v":0},{"$f":"IF('MA 91-100'!K45=0,\"0%\",J45/K45)","v":"0%"}]
["Fortbildung 01",null,null,null,null,null,null,null,null,{"$f":"SUM(F46:I46)","v":0}]
["Fortbildung 02",null,null,null,null,null,null,null,null,{"$f":"SUM(F47:I47)","v":0}]
["Fortbildung 03",null,null,null,null,null,null,null,null,0]
["Fortbildung 04",null,null,null,null,null,null,null,null,0]
["Fortbildung 05",null,null,null,null,null,null,null,null,0]
["Fortbildung 06",null,null,null,null,null,null,null,null,0]
["Fortbildung 07",null,null,null,null,null,null,null,null,0]
["Fortbildung 08",null,null,null,null,null,null,null,null,0]
["Fortbildung 09",null,null,null,null,null,null,null,null,0]
["Fortbildung 10",null,null,null,null,null,null,null,null,0]
[null,null,null,null,null,{"$f":"SUM(F45:F55)","v":0},{"$f":"SUM(G45:G55)","v":0},{"$f":"SUM(H45:H55)","v":0},{"$f":"SUM(I45:I55)","v":0},{"$f":"SUM(F56:I56)","v":0},{"$f":"IF(Hintergrunddaten!$AM$23=1,0,IF(Hintergrunddaten!$AM$23=2,10,IF(Hintergrunddaten!$AM$23=5,4,20)))","v":0},{"$f":"K56-J56","v":0},{"$f":"IF('MA 91-100'!K45=0,\"0%\",J45/K45)","v":"0%"}]
[]
["MitarbeiterIn 095",null,null,null,null,{"$f":"IF(Übersicht!D3=0,\"Stunden Jahr 1\",\"Stunden\"&(Übersicht!D3))","v":"Stunden Jahr 1"},{"$f":"IF(Übersicht!D3=0,\"Stunden Jahr 2\",Übersicht!E6)","v":"Stunden Jahr 2"},{"$f":"IF(Übersicht!D3=0,\"Stunden Jahr 3\",Übersicht!F6)","v":"Stunden Jahr 3"},{"$f":"IF(Übersicht!D3=0,\"Stunden Jahr 4\",Übersicht!G6)","v":"Stunden Jahr 4"},"Stunden\nGesamt","Soll-stunden","Differenz","% erreicht"]
[null,"Titel der Fortbildung","Datum von","Datum bis","Inhalte",null,null,null,null,{"$f":"SUM(F70:I70)","v":0},{"$f":"IF(Hintergrunddaten!$AM$30=1,0,IF(Hintergrunddaten!$AM$30=2,10,IF(Hintergrunddaten!$AM30=5,4,20)))","v":0},{"$f":"K70-J70","v":0},{"$f":"IF('MA 91-100'!K59=0,\"0%\",J59/K59)","v":"0%"}]
["Fortbildung 01",null,null,null,null,null,null,null,null,{"$f":"SUM(F60:I60)","v":0}]
["Fortbildung 02",null,null,null,null,null,null,null,null,{"$f":"SUM(F61:I61)","v":0}]
["Fortbildung 03",null,null,null,null,null,null,null,null,0]
["Fortbildung 04",null,null,null,null,null,null,null,null,0]
["Fortbildung 05",null,null,null,null,null,null,null,null,0]
["Fortbildung 06",null,null,null,null,null,null,null,null,0]
["Fortbildung 07",null,null,null,null,null,null,null,null,0]
["Fortbildung 08",null,null,null,null,null,null,null,null,0]
["Fortbildung 09",null,null,null,null,null,null,null,null,0]
["Fortbildung 10",null,null,null,null,null,null,null,null,0]
[null,null,null,null,null,{"$f":"SUM(F59:F69)","v":0},{"$f":"SUM(G59:G69)","v":0},{"$f":"SUM(H59:H69)","v":0},{"$f":"SUM(I59:I69)","v":0},{"$f":"SUM(F70:I70)","v":0},{"$f":"IF(Hintergrunddaten!$AM$30=1,0,IF(Hintergrunddaten!$AM$30=2,10,IF(Hintergrunddaten!$AM$30=5,4,20)))","v":0},{"$f":"K70-J70","v":0},{"$f":"IF('MA 91-100'!K59=0,\"0%\",J59/K59)","v":"0%"}]
[]
["MitarbeiterIn 096",null,null,null,null,{"$f":"IF(Übersicht!D3=0,\"Stunden Jahr 1\",\"Stunden\"&(Übersicht!D3))","v":"Stunden Jahr 1"},{"$f":"IF(Übersicht!D3=0,\"Stunden Jahr 2\",Übersicht!E6)","v":"Stunden Jahr 2"},{"$f":"IF(Übersicht!D3=0,\"Stunden Jahr 3\",Übersicht!F6)","v":"Stunden Jahr 3"},{"$f":"IF(Übersicht!D3=0,\"Stunden Jahr 4\",Übersicht!G6)","v":"Stunden Jahr 4"},"Stunden\nGesamt","Soll-stunden","Differenz","% erreicht"]
[null,"Titel der Fortbildung","Datum von","Datum bis","Inhalte",null,null,null,null,{"$f":"SUM(F84:I84)","v":0},{"$f":"IF(Hintergrunddaten!$AM$37=1,0,IF(Hintergrunddaten!$AM$37=2,10,IF(Hintergrunddaten!$AM$37=5,4,20)))","v":0},{"$f":"K84-J84","v":0},{"$f":"IF('MA 91-100'!K73=0,\"0%\",J73/K73)","v":"0%"}]
["Fortbildung 01",null,null,null,null,null,null,null,null,{"$f":"SUM(F74:I74)","v":0}]
["Fortbildung 02",null,null,null,null,null,null,null,null,{"$f":"SUM(F75:I75)","v":0}]
["Fortbildung 03",null,null,null,null,null,null,null,null,0]
["Fortbildung 04",null,null,null,null,null,null,null,null,0]
["Fortbildung 05",null,null,null,null,null,null,null,null,0]
["Fortbildung 06",null,null,null,null,null,null,null,null,0]
["Fortbildung 07",null,null,null,null,null,null,null,null,0]
["Fortbildung 08",null,null,null,null,null,null,null,null,0]
["Fortbildung 09",null,null,null,null,null,null,null,null,0]
["Fortbildung 10",null,null,null,null,null,null,null,null,0]
[null,null,null,null,null,{"$f":"SUM(F73:F83)","v":0},{"$f":"SUM(G73:G83)","v":0},{"$f":"SUM(H73:H83)","v":0},{"$f":"SUM(I73:I83)","v":0},{"$f":"SUM(F84:I84)","v":0},{"$f":"IF(Hintergrunddaten!$AM$37=1,0,IF(Hintergrunddaten!$AM$37=2,10,IF(Hintergrunddaten!$AM$37=5,4,20)))","v":0},{"$f":"K84-J84","v":0},{"$f":"IF('MA 91-100'!K73=0,\"0%\",J73/K73)","v":"0%"}]
[]
["MitarbeiterIn 097",null,null,null,null,{"$f":"IF(Übersicht!D3=0,\"Stunden Jahr 1\",\"Stunden\"&(Übersicht!D3))","v":"Stunden Jahr 1"},{"$f":"IF(Übersicht!D3=0,\"Stunden Jahr 2\",Übersicht!E6)","v":"Stunden Jahr 2"},{"$f":"IF(Übersicht!D3=0,\"Stunden Jahr 3\",Übersicht!F6)","v":"Stunden Jahr 3"},{"$f":"IF(Übersicht!D3=0,\"Stunden Jahr 4\",Übersicht!G6)","v":"Stunden Jahr 4"},"Stunden\nGesamt","Soll-stunden","Differenz","% erreicht"]
[null,"Titel der Fortbildung","Datum von","Datum bis","Inhalte",null,null,null,null,{"$f":"SUM(F98:I98)","v":0},{"$f":"IF(Hintergrunddaten!$AM$44=1,0,IF(Hintergrunddaten!$AM$44=2,10,IF(Hintergrunddaten!$AM$44=5,4,20)))","v":0},{"$f":"K98-J98","v":0},{"$f":"IF('MA 91-100'!K87=0,\"0%\",J87/K87)","v":"0%"}]
["Fortbildung 01",null,null,null,null,null,null,null,null,{"$f":"SUM(F88:I88)","v":0}]
["Fortbildung 02",null,null,null,null,null,null,null,null,{"$f":"SUM(F89:I89)","v":0}]
["Fortbildung 03",null,null,null,null,null,null,null,null,0]
["Fortbildung 04",null,null,null,null,null,null,null,null,0]
["Fortbildung 05",null,null,null,null,null,null,null,null,0]
["Fortbildung 06",null,null,null,null,null,null,null,null,0]
["Fortbildung 07",null,null,null,null,null,null,null,null,0]
["Fortbildung 08",null,null,null,null,null,null,null,null,0]
["Fortbildung 09",null,null,null,null,null,null,null,null,0]
["Fortbildung 10",null,null,null,null,null,null,null,null,0]
[null,null,null,null,null,{"$f":"SUM(F87:F97)","v":0},{"$f":"SUM(G87:G97)","v":0},{"$f":"SUM(H87:H97)","v":0},{"$f":"SUM(I87:I97)","v":0},{"$f":"SUM(F98:I98)","v":0},{"$f":"IF(Hintergrunddaten!$AM$44=1,0,IF(Hintergrunddaten!$AM$44=2,10,IF(Hintergrunddaten!$AM$44=5,4,20)))","v":0},{"$f":"K98-J98","v":0},{"$f":"IF('MA 91-100'!K87=0,\"0%\",J87/K87)","v":"0%"}]
[]
["MitarbeiterIn 098",null,null,null,null,{"$f":"IF(Übersicht!D3=0,\"Stunden Jahr 1\",\"Stunden\"&(Übersicht!D3))","v":"Stunden Jahr 1"},{"$f":"IF(Übersicht!D3=0,\"Stunden Jahr 2\",Übersicht!E6)","v":"Stunden Jahr 2"},{"$f":"IF(Übersicht!D3=0,\"Stunden Jahr 3\",Übersicht!F6)","v":"Stunden Jahr 3"},{"$f":"IF(Übersicht!D3=0,\"Stunden Jahr 4\",Übersicht!G6)","v":"Stunden Jahr 4"},"Stunden\nGesamt","Soll-stunden","Differenz","% erreicht"]
[null,"Titel der Fortbildung","Datum von","Datum bis","Inhalte",null,null,null,null,{"$f":"SUM(F112:I112)","v":0},{"$f":"IF(Hintergrunddaten!$AM$51=1,0,IF(Hintergrunddaten!$AM$51=2,10,IF(Hintergrunddaten!$AM$51=5,4,20)))","v":0},{"$f":"K112-J112","v":0},{"$f":"IF('MA 91-100'!K101=0,\"0%\",J101/K101)","v":"0%"}]
["Fortbildung 01",null,null,null,null,null,null,null,null,{"$f":"SUM(F102:I102)","v":0}]
["Fortbildung 02",null,null,null,null,null,null,null,null,{"$f":"SUM(F103:I103)","v":0}]
["Fortbildung 03",null,null,null,null,null,null,null,null,0]
["Fortbildung 04",null,null,null,null,null,null,null,null,0]
["Fortbildung 05",null,null,null,null,null,null,null,null,0]
["Fortbildung 06",null,null,null,null,null,null,null,null,0]
["Fortbildung 07",null,null,null,null,null,null,null,null,0]
["Fortbildung 08",null,null,null,null,null,null,null,null,0]
["Fortbildung 09",null,null,null,null,null,null,null,null,0]
["Fortbildung 10",null,null,null,null,null,null,null,null,0]
[null,null,null,null,null,{"$f":"SUM(F101:F111)","v":0},{"$f":"SUM(G101:G111)","v":0},{"$f":"SUM(H101:H111)","v":0},{"$f":"SUM(I101:I111)","v":0},{"$f":"SUM(F112:I112)","v":0},{"$f":"IF(Hintergrunddaten!$AM$51=1,0,IF(Hintergrunddaten!$AM$51=2,10,IF(Hintergrunddaten!$AM$51=5,4,20)))","v":0},{"$f":"K112-J112","v":0},{"$f":"IF('MA 91-100'!K101=0,\"0%\",J101/K101)","v":"0%"}]
[]
["MitarbeiterIn 099",null,null,null,null,{"$f":"IF(Übersicht!D3=0,\"Stunden Jahr 1\",\"Stunden\"&(Übersicht!D3))","v":"Stunden Jahr 1"},{"$f":"IF(Übersicht!D3=0,\"Stunden Jahr 2\",Übersicht!E6)","v":"Stunden Jahr 2"},{"$f":"IF(Übersicht!D3=0,\"Stunden Jahr 3\",Übersicht!F6)","v":"Stunden Jahr 3"},{"$f":"IF(Übersicht!D3=0,\"Stunden Jahr 4\",Übersicht!G6)","v":"Stunden Jahr 4"},"Stunden\nGesamt","Soll-stunden","Differenz","% erreicht"]
[null,"Titel der Fortbildung","Datum von","Datum bis","Inhalte",null,null,null,null,{"$f":"SUM(F126:I126)","v":0},{"$f":"IF(Hintergrunddaten!$AM$58=1,0,IF(Hintergrunddaten!$AM$58=2,10,IF(Hintergrunddaten!$AM$58=5,4,20)))","v":0},{"$f":"K126-J126","v":0},{"$f":"IF('MA 91-100'!K115=0,\"0%\",J115/K115)","v":"0%"}]
["Fortbildung 01",null,null,null,null,null,null,null,null,{"$f":"SUM(F116:I116)","v":0}]
["Fortbildung 02",null,null,null,null,null,null,null,null,{"$f":"SUM(F117:I117)","v":0}]
["Fortbildung 03",null,null,null,null,null,null,null,null,0]
["Fortbildung 04",null,null,null,null,null,null,null,null,0]
["Fortbildung 05",null,null,null,null,null,null,null,null,0]
["Fortbildung 06",null,null,null,null,null,null,null,null,0]
["Fortbildung 07",null,null,null,null,null,null,null,null,0]
["Fortbildung 08",null,null,null,null,null,null,null,null,0]
["Fortbildung 09",null,null,null,null,null,null,null,null,0]
["Fortbildung 10",null,null,null,null,null,null,null,null,0]
[null,null,null,null,null,{"$f":"SUM(F115:F125)","v":0},{"$f":"SUM(G115:G125)","v":0},{"$f":"SUM(H115:H125)","v":0},{"$f":"SUM(I115:I125)","v":0},{"$f":"SUM(F126:I126)","v":0},{"$f":"IF(Hintergrunddaten!$AM$58=1,0,IF(Hintergrunddaten!$AM$58=2,10,IF(Hintergrunddaten!$AM$58=5,4,20)))","v":0},{"$f":"K126-J126","v":0},{"$f":"IF('MA 91-100'!K115=0,\"0%\",J115/K115)","v":"0%"}]
[]
["MitarbeiterIn 100",null,null,null,null,{"$f":"IF(Übersicht!D3=0,\"Stunden Jahr 1\",\"Stunden\"&(Übersicht!D3))","v":"Stunden Jahr 1"},{"$f":"IF(Übersicht!D3=0,\"Stunden Jahr 2\",Übersicht!E6)","v":"Stunden Jahr 2"},{"$f":"IF(Übersicht!D3=0,\"Stunden Jahr 3\",Übersicht!F6)","v":"Stunden Jahr 3"},{"$f":"IF(Übersicht!D3=0,\"Stunden Jahr 4\",Übersicht!G6)","v":"Stunden Jahr 4"},"Stunden\nGesamt","Soll-stunden","Differenz","% erreicht"]
[null,"Titel der Fortbildung","Datum von","Datum bis","Inhalte",null,null,null,null,{"$f":"SUM(F140:I140)","v":0},{"$f":"IF(Hintergrunddaten!$AM$65=1,0,IF(Hintergrunddaten!$AM$65=2,10,IF(Hintergrunddaten!$AM$65=5,4,20)))","v":0},{"$f":"K140-J140","v":0},{"$f":"IF('MA 91-100'!K129=0,\"0%\",J129/K129)","v":"0%"}]
["Fortbildung 01",null,null,null,null,null,null,null,null,{"$f":"SUM(F130:I130)","v":0}]
["Fortbildung 02",null,null,null,null,null,null,null,null,{"$f":"SUM(F131:I131)","v":0}]
["Fortbildung 03",null,null,null,null,null,null,null,null,0]
["Fortbildung 04",null,null,null,null,null,null,null,null,0]
["Fortbildung 05",null,null,null,null,null,null,null,null,0]
["Fortbildung 06",null,null,null,null,null,null,null,null,0]
["Fortbildung 07",null,null,null,null,null,null,null,null,0]
["Fortbildung 08",null,null,null,null,null,null,null,null,0]
["Fortbildung 09",null,null,null,null,null,null,null,null,0]
["Fortbildung 10",null,null,null,null,null,null,null,null,0]
[null,null,null,null,null,{"$f":"SUM(F129:F139)","v":0},{"$f":"SUM(G129:G139)","v":0},{"$f":"SUM(H129:H139)","v":0},{"$f":"SUM(I129:I139)","v":0},{"$f":"SUM(F140:I140)","v":0},{"$f":"IF(Hintergrunddaten!$AM$65=1,0,IF(Hintergrunddaten!$AM$65=2,10,IF(Hintergrunddaten!$AM$65=5,4,20)))","v":0},{"$f":"K140-J140","v":0},{"$f":"IF('MA 91-100'!K129=0,\"0%\",J129/K129)","v":"0%"}]

{"sheet":"MA 101-110","index":11,"n_rows":140,"n_cols":13,"rows_kept":140,"cut":false,"hidden":false,"merged":[]}
[]
["MitarbeiterIn 101",null,null,null,null,{"$f":"IF(Übersicht!D3=0,\"Stunden Jahr 1\",\"Stunden\"&(Übersicht!D3))","v":"Stunden Jahr 1"},{"$f":"IF(Übersicht!D3=0,\"Stunden Jahr 2\",Übersicht!E6)","v":"Stunden Jahr 2"},{"$f":"IF(Übersicht!D3=0,\"Stunden Jahr 3\",Übersicht!F6)","v":"Stunden Jahr 3"},{"$f":"IF(Übersicht!D3=0,\"Stunden Jahr 4\",Übersicht!G6)","v":"Stunden Jahr 4"},"Stunden\nGesamt","Soll-stunden","Differenz","% erreicht"]
[null,"Titel der Fortbildung","Datum von","Datum bis","Inhalte",null,null,null,null,{"$f":"SUM(F14:I14)","v":0},{"$f":"IF(Hintergrunddaten!$AQ$2=1,0,IF(Hintergrunddaten!$AQ$2=2,10,IF(Hintergrunddaten!$AQ$2=5,4,20)))","v":0},{"$f":"K14-J14","v":0},{"$f":"IF('MA 101-110'!K3=0,\"0%\",J3/K3)","v":"0%"}]
["Fortbildung 01",null,null,null,null,null,null,null,null,{"$f":"SUM(F4:I4)","v":0}]
["Fortbildung 02",null,null,null,null,null,null,null,null,{"$f":"SUM(F5:I5)","v":0}]
["Fortbildung 03",null,null,null,null,null,null,null,null,0]
["Fortbildung 04",null,null,null,null,null,null,null,null,0]
["Fortbildung 05",null,null,null,null,null,null,null,null,0]
["Fortbildung 06",null,null,null,null,null,null,null,null,0]
["Fortbildung 07",null,null,null,null,null,null,null,null,0]
["Fortbildung 08",null,null,null,null,null,null,null,null,0]
["Fortbildung 09",null,null,null,null,null,null,null,null,0]
["Fortbildung 10",null,null,null,null,null,null,null,null,0]
[null,null,null,null,null,{"$f":"SUM(F3:F13)","v":0},{"$f":"SUM(G3:G13)","v":0},{"$f":"SUM(H3:H13)","v":0},{"$f":"SUM(I3:I13)","v":0},{"$f":"SUM(F14:I14)","v":0},{"$f":"IF(Hintergrunddaten!$AQ$2=1,0,IF(Hintergrunddaten!$AQ$2=2,10,IF(Hintergrunddaten!$AQ$2=5,4,20)))","v":0},{"$f":"K14-J14","v":0},{"$f":"IF('MA 101-110'!K3=0,\"0%\",J3/K3)","v":"0%"}]
[]
["MitarbeiterIn 102",null,null,null,null,{"$f":"IF(Übersicht!D3=0,\"Stunden Jahr 1\",\"Stunden\"&(Übersicht!D3))","v":"Stunden Jahr 1"},{"$f":"IF(Übersicht!D3=0,\"Stunden Jahr 2\",Übersicht!E6)","v":"Stunden Jahr 2"},{"$f":"IF(Übersicht!D3=0,\"Stunden Jahr 3\",Übersicht!F6)","v":"Stunden Jahr 3"},{"$f":"IF(Übersicht!D3=0,\"Stunden Jahr 4\",Übersicht!G6)","v":"Stunden Jahr 4"},"Stunden\nGesamt","Soll-stunden","Differenz","% erreicht"]
[null,"Titel der Fortbildung","Datum von","Datum bis","Inhalte",null,null,null,null,{"$f":"SUM(F28:I28)","v":0},{"$f":"IF(Hintergrunddaten!$AQ$9=1,0,IF(Hintergrunddaten!$AQ$9=2,10,IF(Hintergrunddaten!$AQ$9=5,4,20)))","v":0},{"$f":"K28-J28","v":0},{"$f":"IF('MA 101-110'!K17=0,\"0%\",J17/K17)","v":"0%"}]
["Fortbildung 01",null,null,null,null,null,null,null,null,{"$f":"SUM(F18:I18)","v":0}]
["Fortbildung 02",null,null,null,null,null,null,null,null,{"$f":"SUM(F19:I19)","v":0}]
["Fortbildung 03",null,null,null,null,null,null,null,null,0]
["Fortbildung 04",null,null,null,null,null,null,null,null,0]
["Fortbildung 05",null,null,null,null,null,null,null,null,0]
["Fortbildung 06",null,null,null,null,null,null,null,null,0]
["Fortbildung 07",null,null,null,null,null,null,null,null,0]
["Fortbildung 08",null,null,null,null,null,null,null,null,0]
["Fortbildung 09",null,null,null,null,null,null,null,null,0]
["Fortbildung 10",null,null,null,null,null,null,null,null,0]
[null,null,null,null,null,{"$f":"SUM(F17:F27)","v":0},{"$f":"SUM(G17:G27)","v":0},{"$f":"SUM(H17:H27)","v":0},{"$f":"SUM(I17:I27)","v":0},{"$f":"SUM(F28:I28)","v":0},{"$f":"IF(Hintergrunddaten!$AQ$9=1,0,IF(Hintergrunddaten!$AQ$9=2,10,IF(Hintergrunddaten!$AQ$9=5,4,20)))","v":0},{"$f":"K28-J28","v":0},{"$f":"IF('MA 101-110'!K17=0,\"0%\",J17/K17)","v":"0%"}]
[]
["MitarbeiterIn 103",null,null,null,null,{"$f":"IF(Übersicht!D3=0,\"Stunden Jahr 1\",\"Stunden\"&(Übersicht!D3))","v":"Stunden Jahr 1"},{"$f":"IF(Übersicht!D3=0,\"Stunden Jahr 2\",Übersicht!E6)","v":"Stunden Jahr 2"},{"$f":"IF(Übersicht!D3=0,\"Stunden Jahr 3\",Übersicht!F6)","v":"Stunden Jahr 3"},{"$f":"IF(Übersicht!D3=0,\"Stunden Jahr 4\",Übersicht!G6)","v":"Stunden Jahr 4"},"Stunden\nGesamt","Soll-stunden","Differenz","% erreicht"]
[null,"Titel der Fortbildung","Datum von","Datum bis","Inhalte",null,null,null,null,{"$f":"SUM(F42:I42)","v":0},{"$f":"IF(Hintergrunddaten!$AQ$16=1,0,IF(Hintergrunddaten!$AQ$16=2,10,IF(Hintergrunddaten!$AQ$16=5,4,20)))","v":0},{"$f":"K42-J42","v":0},{"$f":"IF('MA 101-110'!K31=0,\"0%\",J31/K31)","v":"0%"}]
["Fortbildung 01",null,null,null,null,null,null,null,null,{"$f":"SUM(F32:I32)","v":0}]
["Fortbildung 02",null,null,null,null,null,null,null,null,{"$f":"SUM(F33:I33)","v":0}]
["Fortbildung 03",null,null,null,null,null,null,null,null,0]
["Fortbildung 04",null,null,null,null,null,null,null,null,0]
["Fortbildung 05",null,null,null,null,null,null,null,null,0]
["Fortbildung 06",null,null,null,null,null,null,null,null,0]
["Fortbildung 07",null,null,null,null,null,null,null,null,0]
["Fortbildung 08",null,null,null,null,null,null,null,null,0]
["Fortbildung 09",null,null,null,null,null,null,null,null,0]
["Fortbildung 10",null,null,null,null,null,null,null,null,0]
[null,null,null,null,null,{"$f":"SUM(F31:F41)","v":0},{"$f":"SUM(G31:G41)","v":0},{"$f":"SUM(H31:H41)","v":0},{"$f":"SUM(I31:I41)","v":0},{"$f":"SUM(F42:I42)","v":0},{"$f":"IF(Hintergrunddaten!$AQ$16=1,0,IF(Hintergrunddaten!$AQ$16=2,10,IF(Hintergrunddaten!$AQ$16=5,4,20)))","v":0},{"$f":"K42-J42","v":0},{"$f":"IF('MA 101-110'!K31=0,\"0%\",J31/K31)","v":"0%"}]
[]
["MitarbeiterIn 104",null,null,null,null,{"$f":"IF(Übersicht!D3=0,\"Stunden Jahr 1\",\"Stunden\"&(Übersicht!D3))","v":"Stunden Jahr 1"},{"$f":"IF(Übersicht!D3=0,\"Stunden Jahr 2\",Übersicht!E6)","v":"Stunden Jahr 2"},{"$f":"IF(Übersicht!D3=0,\"Stunden Jahr 3\",Übersicht!F6)","v":"Stunden Jahr 3"},{"$f":"IF(Übersicht!D3=0,\"Stunden Jahr 4\",Übersicht!G6)","v":"Stunden Jahr 4"},"Stunden\nGesamt","Soll-stunden","Differenz","% erreicht"]
[null,"Titel der Fortbildung","Datum von","Datum bis","Inhalte",null,null,null,null,{"$f":"SUM(F56:I56)","v":0},{"$f":"IF(Hintergrunddaten!$AQ$23=1,0,IF(Hintergrunddaten!$AQ$23=2,10,IF(Hintergrunddaten!$AQ$23=5,4,20)))","v":0},{"$f":"K56-J56","v":0},{"$f":"IF('MA 101-110'!K45=0,\"0%\",J45/K45)","v":"0%"}]
["Fortbildung 01",null,null,null,null,null,null,null,null,{"$f":"SUM(F46:I46)","v":0}]
["Fortbildung 02",null,null,null,null,null,null,null,null,{"$f":"SUM(F47:I47)","v":0}]
["Fortbildung 03",null,null,null,null,null,null,null,null,0]
["Fortbildung 04",null,null,null,null,null,null,null,null,0]
["Fortbildung 05",null,null,null,null,null,null,null,null,0]
["Fortbildung 06",null,null,null,null,null,null,null,null,0]
["Fortbildung 07",null,null,null,null,null,null,null,null,0]
["Fortbildung 08",null,null,null,null,null,null,null,null,0]
["Fortbildung 09",null,null,null,null,null,null,null,null,0]
["Fortbildung 10",null,null,null,null,null,null,null,null,0]
[null,null,null,null,null,{"$f":"SUM(F45:F55)","v":0},{"$f":"SUM(G45:G55)","v":0},{"$f":"SUM(H45:H55)","v":0},{"$f":"SUM(I45:I55)","v":0},{"$f":"SUM(F56:I56)","v":0},{"$f":"IF(Hintergrunddaten!$AQ$23=1,0,IF(Hintergrunddaten!$AQ$23=2,10,IF(Hintergrunddaten!$AQ$23=5,4,20)))","v":0},{"$f":"K56-J56","v":0},{"$f":"IF('MA 101-110'!K45=0,\"0%\",J45/K45)","v":"0%"}]
[]
["MitarbeiterIn 105",null,null,null,null,{"$f":"IF(Übersicht!D3=0,\"Stunden Jahr 1\",\"Stunden\"&(Übersicht!D3))","v":"Stunden Jahr 1"},{"$f":"IF(Übersicht!D3=0,\"Stunden Jahr 2\",Übersicht!E6)","v":"Stunden Jahr 2"},{"$f":"IF(Übersicht!D3=0,\"Stunden Jahr 3\",Übersicht!F6)","v":"Stunden Jahr 3"},{"$f":"IF(Übersicht!D3=0,\"Stunden Jahr 4\",Übersicht!G6)","v":"Stunden Jahr 4"},"Stunden\nGesamt","Soll-stunden","Differenz","% erreicht"]
[null,"Titel der Fortbildung","Datum von","Datum bis","Inhalte",null,null,null,null,{"$f":"SUM(F70:I70)","v":0},{"$f":"IF(Hintergrunddaten!$AQ$30=1,0,IF(Hintergrunddaten!$AQ$30=2,10,IF(Hintergrunddaten!$AQ$30=5,4,20)))","v":0},{"$f":"K70-J70","v":0},{"$f":"IF('MA 101-110'!K59=0,\"0%\",J59/K59)","v":"0%"}]
["Fortbildung 01",null,null,null,null,null,null,null,null,{"$f":"SUM(F60:I60)","v":0}]
["Fortbildung 02",null,null,null,null,null,null,null,null,{"$f":"SUM(F61:I61)","v":0}]
["Fortbildung 03",null,null,null,null,null,null,null,null,0]
["Fortbildung 04",null,null,null,null,null,null,null,null,0]
["Fortbildung 05",null,null,null,null,null,null,null,null,0]
["Fortbildung 06",null,null,null,null,null,null,null,null,0]
["Fortbildung 07",null,null,null,null,null,null,null,null,0]
["Fortbildung 08",null,null,null,null,null,null,null,null,0]
["Fortbildung 09",null,null,null,null,null,null,null,null,0]
["Fortbildung 10",null,null,null,null,null,null,null,null,0]
[null,null,null,null,null,{"$f":"SUM(F59:F69)","v":0},{"$f":"SUM(G59:G69)","v":0},{"$f":"SUM(H59:H69)","v":0},{"$f":"SUM(I59:I69)","v":0},{"$f":"SUM(F70:I70)","v":0},{"$f":"IF(Hintergrunddaten!$AQ$30=1,0,IF(Hintergrunddaten!$AQ$30=2,10,IF(Hintergrunddaten!$AQ$30=5,4,20)))","v":0},{"$f":"K70-J70","v":0},{"$f":"IF('MA 101-110'!K59=0,\"0%\",J59/K59)","v":"0%"}]
[]
["MitarbeiterIn 106",null,null,null,null,{"$f":"IF(Übersicht!D3=0,\"Stunden Jahr 1\",\"Stunden\"&(Übersicht!D3))","v":"Stunden Jahr 1"},{"$f":"IF(Übersicht!D3=0,\"Stunden Jahr 2\",Übersicht!E6)","v":"Stunden Jahr 2"},{"$f":"IF(Übersicht!D3=0,\"Stunden Jahr 3\",Übersicht!F6)","v":"Stunden Jahr 3"},{"$f":"IF(Übersicht!D3=0,\"Stunden Jahr 4\",Übersicht!G6)","v":"Stunden Jahr 4"},"Stunden\nGesamt","Soll-stunden","Differenz","% erreicht"]
[null,"Titel der Fortbildung","Datum von","Datum bis","Inhalte",null,null,null,null,{"$f":"SUM(F84:I84)","v":0},{"$f":"IF(Hintergrunddaten!$AQ$37=1,0,IF(Hintergrunddaten!$AQ$37=2,10,IF(Hintergrunddaten!$AQ$37=5,4,20)))","v":0},{"$f":"K84-J84","v":0},{"$f":"IF('MA 101-110'!K73=0,\"0%\",J73/K73)","v":"0%"}]
["Fortbildung 01",null,null,null,null,null,null,null,null,{"$f":"SUM(F74:I74)","v":0}]
["Fortbildung 02",null,null,null,null,null,null,null,null,{"$f":"SUM(F75:I75)","v":0}]
["Fortbildung 03",null,null,null,null,null,null,null,null,0]
["Fortbildung 04",null,null,null,null,null,null,null,null,0]
["Fortbildung 05",null,null,null,null,null,null,null,null,0]
["Fortbildung 06",null,null,null,null,null,null,null,null,0]
["Fortbildung 07",null,null,null,null,null,null,null,null,0]
["Fortbildung 08",null,null,null,null,null,null,null,null,0]
["Fortbildung 09",null,null,null,null,null,null,null,null,0]
["Fortbildung 10",null,null,null,null,null,null,null,null,0]
[null,null,null,null,null,{"$f":"SUM(F73:F83)","v":0},{"$f":"SUM(G73:G83)","v":0},{"$f":"SUM(H73:H83)","v":0},{"$f":"SUM(I73:I83)","v":0},{"$f":"SUM(F84:I84)","v":0},{"$f":"IF(Hintergrunddaten!$AQ$37=1,0,IF(Hintergrunddaten!$AQ$37=2,10,IF(Hintergrunddaten!$AQ$37=5,4,20)))","v":0},{"$f":"K84-J84","v":0},{"$f":"IF('MA 101-110'!K73=0,\"0%\",J73/K73)","v":"0%"}]
[]
["MitarbeiterIn 107",null,null,null,null,{"$f":"IF(Übersicht!D3=0,\"Stunden Jahr 1\",\"Stunden\"&(Übersicht!D3))","v":"Stunden Jahr 1"},{"$f":"IF(Übersicht!D3=0,\"Stunden Jahr 2\",Übersicht!E6)","v":"Stunden Jahr 2"},{"$f":"IF(Übersicht!D3=0,\"Stunden Jahr 3\",Übersicht!F6)","v":"Stunden Jahr 3"},{"$f":"IF(Übersicht!D3=0,\"Stunden Jahr 4\",Übersicht!G6)","v":"Stunden Jahr 4"},"Stunden\nGesamt","Soll-stunden","Differenz","% erreicht"]
[null,"Titel der Fortbildung","Datum von","Datum bis","Inhalte",null,null,null,null,{"$f":"SUM(F98:I98)","v":0},{"$f":"IF(Hintergrunddaten!$AQ$44=1,0,IF(Hintergrunddaten!$AQ$44=2,10,IF(Hintergrunddaten!$AQ$44=5,4,20)))","v":0},{"$f":"K98-J98","v":0},{"$f":"IF('MA 101-110'!K87=0,\"0%\",J87/K87)","v":"0%"}]
["Fortbildung 01",null,null,null,null,null,null,null,null,{"$f":"SUM(F88:I88)","v":0}]
["Fortbildung 02",null,null,null,null,null,null,null,null,{"$f":"SUM(F89:I89)","v":0}]
["Fortbildung 03",null,null,null,null,null,null,null,null,0]
["Fortbildung 04",null,null,null,null,null,null,null,null,0]
["Fortbildung 05",null,null,null,null,null,null,null,null,0]
["Fortbildung 06",null,null,null,null,null,null,null,null,0]
["Fortbildung 07",null,null,null,null,null,null,null,null,0]
["Fortbildung 08",null,null,null,null,null,null,null,null,0]
["Fortbildung 09",null,null,null,null,null,null,null,null,0]
["Fortbildung 10",null,null,null,null,null,null,null,null,0]
[null,null,null,null,null,{"$f":"SUM(F87:F97)","v":0},{"$f":"SUM(G87:G97)","v":0},{"$f":"SUM(H87:H97)","v":0},{"$f":"SUM(I87:I97)","v":0},{"$f":"SUM(F98:I98)","v":0},{"$f":"IF(Hintergrunddaten!$AQ$44=1,0,IF(Hintergrunddaten!$AQ$44=2,10,IF(Hintergrunddaten!$AQ$44=5,4,20)))","v":0},{"$f":"K98-J98","v":0},{"$f":"IF('MA 101-110'!K87=0,\"0%\",J87/K87)","v":"0%"}]
[]
["MitarbeiterIn 108",null,null,null,null,{"$f":"IF(Übersicht!D3=0,\"Stunden Jahr 1\",\"Stunden\"&(Übersicht!D3))","v":"Stunden Jahr 1"},{"$f":"IF(Übersicht!D3=0,\"Stunden Jahr 2\",Übersicht!E6)","v":"Stunden Jahr 2"},{"$f":"IF(Übersicht!D3=0,\"Stunden Jahr 3\",Übersicht!F6)","v":"Stunden Jahr 3"},{"$f":"IF(Übersicht!D3=0,\"Stunden Jahr 4\",Übersicht!G6)","v":"Stunden Jahr 4"},"Stunden\nGesamt","Soll-stunden","Differenz","% erreicht"]
[null,"Titel der Fortbildung","Datum von","Datum bis","Inhalte",null,null,null,null,{"$f":"SUM(F112:I112)","v":0},{"$f":"IF(Hintergrunddaten!$AQ$51=1,0,IF(Hintergrunddaten!$AQ$51=2,10,IF(Hintergrunddaten!$AQ$51=5,4,20)))","v":0},{"$f":"K112-J112","v":0},{"$f":"IF('MA 101-110'!K101=0,\"0%\",J101/K101)","v":"0%"}]
["Fortbildung 01",null,null,null,null,null,null,null,null,{"$f":"SUM(F102:I102)","v":0}]
["Fortbildung 02",null,null,null,null,null,null,null,null,{"$f":"SUM(F103:I103)","v":0}]
["Fortbildung 03",null,null,null,null,null,null,null,null,0]
["Fortbildung 04",null,null,null,null,null,null,null,null,0]
["Fortbildung 05",null,null,null,null,null,null,null,null,0]
["Fortbildung 06",null,null,null,null,null,null,null,null,0]
["Fortbildung 07",null,null,null,null,null,null,null,null,0]
["Fortbildung 08",null,null,null,null,null,null,null,null,0]
["Fortbildung 09",null,null,null,null,null,null,null,null,0]
["Fortbildung 10",null,null,null,null,null,null,null,null,0]
[null,null,null,null,null,{"$f":"SUM(F101:F111)","v":0},{"$f":"SUM(G101:G111)","v":0},{"$f":"SUM(H101:H111)","v":0},{"$f":"SUM(I101:I111)","v":0},{"$f":"SUM(F112:I112)","v":0},{"$f":"IF(Hintergrunddaten!$AQ$51=1,0,IF(Hintergrunddaten!$AQ$51=2,10,IF(Hintergrunddaten!$AQ$51=5,4,20)))","v":0},{"$f":"K112-J112","v":0},{"$f":"IF('MA 101-110'!K101=0,\"0%\",J101/K101)","v":"0%"}]
[]
["MitarbeiterIn 109",null,null,null,null,{"$f":"IF(Übersicht!D3=0,\"Stunden Jahr 1\",\"Stunden\"&(Übersicht!D3))","v":"Stunden Jahr 1"},{"$f":"IF(Übersicht!D3=0,\"Stunden Jahr 2\",Übersicht!E6)","v":"Stunden Jahr 2"},{"$f":"IF(Übersicht!D3=0,\"Stunden Jahr 3\",Übersicht!F6)","v":"Stunden Jahr 3"},{"$f":"IF(Übersicht!D3=0,\"Stunden Jahr 4\",Übersicht!G6)","v":"Stunden Jahr 4"},"Stunden\nGesamt","Soll-stunden","Differenz","% erreicht"]
[null,"Titel der Fortbildung","Datum von","Datum bis","Inhalte",null,null,null,null,{"$f":"SUM(F126:I126)","v":0},{"$f":"IF(Hintergrunddaten!$AQ$58=1,0,IF(Hintergrunddaten!$AQ$58=2,10,IF(Hintergrunddaten!$AQ$58=5,4,20)))","v":0},{"$f":"K126-J126","v":0},{"$f":"IF('MA 101-110'!K115=0,\"0%\",J115/K115)","v":"0%"}]
["Fortbildung 01",null,null,null,null,null,null,null,null,{"$f":"SUM(F116:I116)","v":0}]
["Fortbildung 02",null,null,null,null,null,null,null,null,{"$f":"SUM(F117:I117)","v":0}]
["Fortbildung 03",null,null,null,null,null,null,null,null,0]
["Fortbildung 04",null,null,null,null,null,null,null,null,0]
["Fortbildung 05",null,null,null,null,null,null,null,null,0]
["Fortbildung 06",null,null,null,null,null,null,null,null,0]
["Fortbildung 07",null,null,null,null,null,null,null,null,0]
["Fortbildung 08",null,null,null,null,null,null,null,null,0]
["Fortbildung 09",null,null,null,null,null,null,null,null,0]
["Fortbildung 10",null,null,null,null,null,null,null,null,0]
[null,null,null,null,null,{"$f":"SUM(F115:F125)","v":0},{"$f":"SUM(G115:G125)","v":0},{"$f":"SUM(H115:H125)","v":0},{"$f":"SUM(I115:I125)","v":0},{"$f":"SUM(F126:I126)","v":0},{"$f":"IF(Hintergrunddaten!$AQ$58=1,0,IF(Hintergrunddaten!$AQ$58=2,10,IF(Hintergrunddaten!$AQ$58=5,4,20)))","v":0},{"$f":"K126-J126","v":0},{"$f":"IF('MA 101-110'!K115=0,\"0%\",J115/K115)","v":"0%"}]
[]
["MitarbeiterIn 110",null,null,null,null,{"$f":"IF(Übersicht!D3=0,\"Stunden Jahr 1\",\"Stunden\"&(Übersicht!D3))","v":"Stunden Jahr 1"},{"$f":"IF(Übersicht!D3=0,\"Stunden Jahr 2\",Übersicht!E6)","v":"Stunden Jahr 2"},{"$f":"IF(Übersicht!D3=0,\"Stunden Jahr 3\",Übersicht!F6)","v":"Stunden Jahr 3"},{"$f":"IF(Übersicht!D3=0,\"Stunden Jahr 4\",Übersicht!G6)","v":"Stunden Jahr 4"},"Stunden\nGesamt","Soll-stunden","Differenz","% erreicht"]
[null,"Titel der Fortbildung","Datum von","Datum bis","Inhalte",null,null,null,null,{"$f":"SUM(F140:I140)","v":0},{"$f":"IF(Hintergrunddaten!$AQ$65=1,0,IF(Hintergrunddaten!$AQ$65=2,10,IF(Hintergrunddaten!$AQ$65=5,4,20)))","v":0},{"$f":"K140-J140","v":0},{"$f":"IF('MA 101-110'!K129=0,\"0%\",J129/K129)","v":"0%"}]
["Fortbildung 01",null,null,null,null,null,null,null,null,{"$f":"SUM(F130:I130)","v":0}]
["Fortbildung 02",null,null,null,null,null,null,null,null,{"$f":"SUM(F131:I131)","v":0}]
["Fortbildung 03",null,null,null,null,null,null,null,null,0]
["Fortbildung 04",null,null,null,null,null,null,null,null,0]
["Fortbildung 05",null,null,null,null,null,null,null,null,0]
["Fortbildung 06",null,null,null,null,null,null,null,null,0]
["Fortbildung 07",null,null,null,null,null,null,null,null,0]
["Fortbildung 08",null,null,null,null,null,null,null,null,0]
["Fortbildung 09",null,null,null,null,null,null,null,null,0]
["Fortbildung 10",null,null,null,null,null,null,null,null,0]
[null,null,null,null,null,{"$f":"SUM(F129:F139)","v":0},{"$f":"SUM(G129:G139)","v":0},{"$f":"SUM(H129:H139)","v":0},{"$f":"SUM(I129:I139)","v":0},{"$f":"SUM(F140:I140)","v":0},{"$f":"IF(Hintergrunddaten!$AQ$65=1,0,IF(Hintergrunddaten!$AQ$65=2,10,IF(Hintergrunddaten!$AQ$65=5,4,20)))","v":0},{"$f":"K140-J140","v":0},{"$f":"IF('MA 101-110'!K129=0,\"0%\",J129/K129)","v":"0%"}]

{"sheet":"MA 111-120","index":12,"n_rows":140,"n_cols":13,"rows_kept":140,"cut":false,"hidden":false,"merged":[]}
[]
["MitarbeiterIn 111",null,null,null,null,{"$f":"IF(Übersicht!D3=0,\"Stunden Jahr 1\",\"Stunden\"&(Übersicht!D3))","v":"Stunden Jahr 1"},{"$f":"IF(Übersicht!D3=0,\"Stunden Jahr 2\",Übersicht!E6)","v":"Stunden Jahr 2"},{"$f":"IF(Übersicht!D3=0,\"Stunden Jahr 3\",Übersicht!F6)","v":"Stunden Jahr 3"},{"$f":"IF(Übersicht!D3=0,\"Stunden Jahr 4\",Übersicht!G6)","v":"Stunden Jahr 4"},"Stunden\nGesamt","Soll-stunden","Differenz","% erreicht"]
[null,"Titel der Fortbildung","Datum von","Datum bis","Inhalte",null,null,null,null,{"$f":"SUM(F14:I14)","v":0},{"$f":"IF(Hintergrunddaten!$AU$2=1,0,IF(Hintergrunddaten!$AU$2=2,10,IF(Hintergrunddaten!$AU$2=5,4,20)))","v":0},{"$f":"K14-J14","v":0},{"$f":"IF('MA 111-120'!K3=0,\"0%\",J3/K3)","v":"0%"}]
["Fortbildung 01",null,null,null,null,null,null,null,null,{"$f":"SUM(F4:I4)","v":0}]
["Fortbildung 02",null,null,null,null,null,null,null,null,{"$f":"SUM(F5:I5)","v":0}]
["Fortbildung 03",null,null,null,null,null,null,null,null,0]
["Fortbildung 04",null,null,null,null,null,null,null,null,0]
["Fortbildung 05",null,null,null,null,null,null,null,null,0]
["Fortbildung 06",null,null,null,null,null,null,null,null,0]
["Fortbildung 07",null,null,null,null,null,null,null,null,0]
["Fortbildung 08",null,null,null,null,null,null,null,null,0]
["Fortbildung 09",null,null,null,null,null,null,null,null,0]
["Fortbildung 10",null,null,null,null,null,null,null,null,0]
[null,null,null,null,null,{"$f":"SUM(F3:F13)","v":0},{"$f":"SUM(G3:G13)","v":0},{"$f":"SUM(H3:H13)","v":0},{"$f":"SUM(I3:I13)","v":0},{"$f":"SUM(F14:I14)","v":0},{"$f":"IF(Hintergrunddaten!$AU$2=1,0,IF(Hintergrunddaten!$AU$2=2,10,IF(Hintergrunddaten!$AU$2=5,4,20)))","v":0},{"$f":"K14-J14","v":0},{"$f":"IF('MA 111-120'!K3=0,\"0%\",J3/K3)","v":"0%"}]
[]
["MitarbeiterIn 112",null,null,null,null,{"$f":"IF(Übersicht!D3=0,\"Stunden Jahr 1\",\"Stunden\"&(Übersicht!D3))","v":"Stunden Jahr 1"},{"$f":"IF(Übersicht!D3=0,\"Stunden Jahr 2\",Übersicht!E6)","v":"Stunden Jahr 2"},{"$f":"IF(Übersicht!D3=0,\"Stunden Jahr 3\",Übersicht!F6)","v":"Stunden Jahr 3"},{"$f":"IF(Übersicht!D3=0,\"Stunden Jahr 4\",Übersicht!G6)","v":"Stunden Jahr 4"},"Stunden\nGesamt","Soll-stunden","Differenz","% erreicht"]
[null,"Titel der Fortbildung","Datum von","Datum bis","Inhalte",null,null,null,null,{"$f":"SUM(F28:I28)","v":0},{"$f":"IF(Hintergrunddaten!$AU$9=1,0,IF(Hintergrunddaten!$AU$9=2,10,IF(Hintergrunddaten!$AU$9=5,4,20)))","v":0},{"$f":"K28-J28","v":0},{"$f":"IF('MA 111-120'!K17=0,\"0%\",J17/K17)","v":"0%"}]
["Fortbildung 01",null,null,null,null,null,null,null,null,{"$f":"SUM(F18:I18)","v":0}]
["Fortbildung 02",null,null,null,null,null,null,null,null,{"$f":"SUM(F19:I19)","v":0}]
["Fortbildung 03",null,null,null,null,null,null,null,null,0]
["Fortbildung 04",null,null,null,null,null,null,null,null,0]
["Fortbildung 05",null,null,null,null,null,null,null,null,0]
["Fortbildung 06",null,null,null,null,null,null,null,null,0]
["Fortbildung 07",null,null,null,null,null,null,null,null,0]
["Fortbildung 08",null,null,null,null,null,null,null,null,0]
["Fortbildung 09",null,null,null,null,null,null,null,null,0]
["Fortbildung 10",null,null,null,null,null,null,null,null,0]
[null,null,null,null,null,{"$f":"SUM(F17:F27)","v":0},{"$f":"SUM(G17:G27)","v":0},{"$f":"SUM(H17:H27)","v":0},{"$f":"SUM(I17:I27)","v":0},{"$f":"SUM(F28:I28)","v":0},{"$f":"IF(Hintergrunddaten!$AU$9=1,0,IF(Hintergrunddaten!$AU$9=2,10,IF(Hintergrunddaten!$AU$9=5,4,20)))","v":0},{"$f":"K28-J28","v":0},{"$f":"IF('MA 111-120'!K17=0,\"0%\",J17/K17)","v":"0%"}]
[]
["MitarbeiterIn 113",null,null,null,null,{"$f":"IF(Übersicht!D3=0,\"Stunden Jahr 1\",\"Stunden\"&(Übersicht!D3))","v":"Stunden Jahr 1"},{"$f":"IF(Übersicht!D3=0,\"Stunden Jahr 2\",Übersicht!E6)","v":"Stunden Jahr 2"},{"$f":"IF(Übersicht!D3=0,\"Stunden Jahr 3\",Übersicht!F6)","v":"Stunden Jahr 3"},{"$f":"IF(Übersicht!D3=0,\"Stunden Jahr 4\",Übersicht!G6)","v":"Stunden Jahr 4"},"Stunden\nGesamt","Soll-stunden","Differenz","% erreicht"]
[null,"Titel der Fortbildung","Datum von","Datum bis","Inhalte",null,null,null,null,{"$f":"SUM(F42:I42)","v":0},{"$f":"IF(Hintergrunddaten!$AU$16=1,0,IF(Hintergrunddaten!$AU$16=2,10,IF(Hintergrunddaten!$AU$16=5,4,20)))","v":0},{"$f":"K42-J42","v":0},{"$f":"IF('MA 111-120'!K31=0,\"0%\",J31/K31)","v":"0%"}]
["Fortbildung 01",null,null,null,null,null,null,null,null,{"$f":"SUM(F32:I32)","v":0}]
["Fortbildung 02",null,null,null,null,null,null,null,null,{"$f":"SUM(F33:I33)","v":0}]
["Fortbildung 03",null,null,null,null,null,null,null,null,0]
["Fortbildung 04",null,null,null,null,null,null,null,null,0]
["Fortbildung 05",null,null,null,null,null,null,null,null,0]
["Fortbildung 06",null,null,null,null,null,null,null,null,0]
["Fortbildung 07",null,null,null,null,null,null,null,null,0]
["Fortbildung 08",null,null,null,null,null,null,null,null,0]
["Fortbildung 09",null,null,null,null,null,null,null,null,0]
["Fortbildung 10",null,null,null,null,null,null,null,null,0]
[null,null,null,null,null,{"$f":"SUM(F31:F41)","v":0},{"$f":"SUM(G31:G41)","v":0},{"$f":"SUM(H31:H41)","v":0},{"$f":"SUM(I31:I41)","v":0},{"$f":"SUM(F42:I42)","v":0},{"$f":"IF(Hintergrunddaten!$AU$16=1,0,IF(Hintergrunddaten!$AU$16=2,10,IF(Hintergrunddaten!$AU$16=5,4,20)))","v":0},{"$f":"K42-J42","v":0},{"$f":"IF('MA 111-120'!K31=0,\"0%\",J31/K31)","v":"0%"}]
[]
["MitarbeiterIn 114",null,null,null,null,{"$f":"IF(Übersicht!D3=0,\"Stunden Jahr 1\",\"Stunden\"&(Übersicht!D3))","v":"Stunden Jahr 1"},{"$f":"IF(Übersicht!D3=0,\"Stunden Jahr 2\",Übersicht!E6)","v":"Stunden Jahr 2"},{"$f":"IF(Übersicht!D3=0,\"Stunden Jahr 3\",Übersicht!F6)","v":"Stunden Jahr 3"},{"$f":"IF(Übersicht!D3=0,\"Stunden Jahr 4\",Übersicht!G6)","v":"Stunden Jahr 4"},"Stunden\nGesamt","Soll-stunden","Differenz","% erreicht"]
[null,"Titel der Fortbildung","Datum von","Datum bis","Inhalte",null,null,null,null,{"$f":"SUM(F56:I56)","v":0},{"$f":"IF(Hintergrunddaten!$AU$23=1,0,IF(Hintergrunddaten!$AU$23=2,10,IF(Hintergrunddaten!$AU$23=5,4,20)))","v":0},{"$f":"K56-J56","v":0},{"$f":"IF('MA 111-120'!K45=0,\"0%\",J45/K45)","v":"0%"}]
["Fortbildung 01",null,null,null,null,null,null,null,null,{"$f":"SUM(F46:I46)","v":0}]
["Fortbildung 02",null,null,null,null,null,null,null,null,{"$f":"SUM(F47:I47)","v":0}]
["Fortbildung 03",null,null,null,null,null,null,null,null,0]
["Fortbildung 04",null,null,null,null,null,null,null,null,0]
["Fortbildung 05",null,null,null,null,null,null,null,null,0]
["Fortbildung 06",null,null,null,null,null,null,null,null,0]
["Fortbildung 07",null,null,null,null,null,null,null,null,0]
["Fortbildung 08",null,null,null,null,null,null,null,null,0]
["Fortbildung 09",null,null,null,null,null,null,null,null,0]
["Fortbildung 10",null,null,null,null,null,null,null,null,0]
[null,null,null,null,null,{"$f":"SUM(F45:F55)","v":0},{"$f":"SUM(G45:G55)","v":0},{"$f":"SUM(H45:H55)","v":0},{"$f":"SUM(I45:I55)","v":0},{"$f":"SUM(F56:I56)","v":0},{"$f":"IF(Hintergrunddaten!$AU$23=1,0,IF(Hintergrunddaten!$AU$23=2,10,IF(Hintergrunddaten!$AU$23=5,4,20)))","v":0},{"$f":"K56-J56","v":0},{"$f":"IF('MA 111-120'!K45=0,\"0%\",J45/K45)","v":"0%"}]
[]
["MitarbeiterIn 115",null,null,null,null,{"$f":"IF(Übersicht!D3=0,\"Stunden Jahr 1\",\"Stunden\"&(Übersicht!D3))","v":"Stunden Jahr 1"},{"$f":"IF(Übersicht!D3=0,\"Stunden Jahr 2\",Übersicht!E6)","v":"Stunden Jahr 2"},{"$f":"IF(Übersicht!D3=0,\"Stunden Jahr 3\",Übersicht!F6)","v":"Stunden Jahr 3"},{"$f":"IF(Übersicht!D3=0,\"Stunden Jahr 4\",Übersicht!G6)","v":"Stunden Jahr 4"},"Stunden\nGesamt","Soll-stunden","Differenz","% erreicht"]
[null,"Titel der Fortbildung","Datum von","Datum bis","Inhalte",null,null,null,null,{"$f":"SUM(F70:I70)","v":0},{"$f":"IF(Hintergrunddaten!$AU$30=1,0,IF(Hintergrunddaten!$AU$30=2,10,IF(Hintergrunddaten!$AU30=5,4,20)))","v":0},{"$f":"K70-J70","v":0},{"$f":"IF('MA 111-120'!K59=0,\"0%\",J59/K59)","v":"0%"}]
["Fortbildung 01",null,null,null,null,null,null,null,null,{"$f":"SUM(F60:I60)","v":0}]
["Fortbildung 02",null,null,null,null,null,null,null,null,{"$f":"SUM(F61:I61)","v":0}]
["Fortbildung 03",null,null,null,null,null,null,null,null,0]
["Fortbildung 04",null,null,null,null,null,null,null,null,0]
["Fortbildung 05",null,null,null,null,null,null,null,null,0]
["Fortbildung 06",null,null,null,null,null,null,null,null,0]
["Fortbildung 07",null,null,null,null,null,null,null,null,0]
["Fortbildung 08",null,null,null,null,null,null,null,null,0]
["Fortbildung 09",null,null,null,null,null,null,null,null,0]
["Fortbildung 10",null,null,null,null,null,null,null,null,0]
[null,null,null,null,null,{"$f":"SUM(F59:F69)","v":0},{"$f":"SUM(G59:G69)","v":0},{"$f":"SUM(H59:H69)","v":0},{"$f":"SUM(I59:I69)","v":0},{"$f":"SUM(F70:I70)","v":0},{"$f":"IF(Hintergrunddaten!$AU$30=1,0,IF(Hintergrunddaten!$AU$30=2,10,IF(Hintergrunddaten!$AU$30=5,4,20)))","v":0},{"$f":"K70-J70","v":0},{"$f":"IF('MA 111-120'!K59=0,\"0%\",J59/K59)","v":"0%"}]
[]
["MitarbeiterIn 116",null,null,null,null,{"$f":"IF(Übersicht!D3=0,\"Stunden Jahr 1\",\"Stunden\"&(Übersicht!D3))","v":"Stunden Jahr 1"},{"$f":"IF(Übersicht!D3=0,\"Stunden Jahr 2\",Übersicht!E6)","v":"Stunden Jahr 2"},{"$f":"IF(Übersicht!D3=0,\"Stunden Jahr 3\",Übersicht!F6)","v":"Stunden Jahr 3"},{"$f":"IF(Übersicht!D3=0,\"Stunden Jahr 4\",Übersicht!G6)","v":"Stunden Jahr 4"},"Stunden\nGesamt","Soll-stunden","Differenz","% erreicht"]
[null,"Titel der Fortbildung","Datum von","Datum bis","Inhalte",null,null,null,null,{"$f":"SUM(F84:I84)","v":0},{"$f":"IF(Hintergrunddaten!$AU$37=1,0,IF(Hintergrunddaten!$AU$37=2,10,IF(Hintergrunddaten!$AU$37=5,4,20)))","v":0},{"$f":"K84-J84","v":0},{"$f":"IF('MA 111-120'!K73=0,\"0%\",J73/K73)","v":"0%"}]
["Fortbildung 01",null,null,null,null,null,null,null,null,{"$f":"SUM(F74:I74)","v":0}]
["Fortbildung 02",null,null,null,null,null,null,null,null,{"$f":"SUM(F75:I75)","v":0}]
["Fortbildung 03",null,null,null,null,null,null,null,null,0]
["Fortbildung 04",null,null,null,null,null,null,null,null,0]
["Fortbildung 05",null,null,null,null,null,null,null,null,0]
["Fortbildung 06",null,null,null,null,null,null,null,null,0]
["Fortbildung 07",null,null,null,null,null,null,null,null,0]
["Fortbildung 08",null,null,null,null,null,null,null,null,0]
["Fortbildung 09",null,null,null,null,null,null,null,null,0]
["Fortbildung 10",null,null,null,null,null,null,null,null,0]
[null,null,null,null,null,{"$f":"SUM(F73:F83)","v":0},{"$f":"SUM(G73:G83)","v":0},{"$f":"SUM(H73:H83)","v":0},{"$f":"SUM(I73:I83)","v":0},{"$f":"SUM(F84:I84)","v":0},{"$f":"IF(Hintergrunddaten!$AU$37=1,0,IF(Hintergrunddaten!$AU$37=2,10,IF(Hintergrunddaten!$AU$37=5,4,20)))","v":0},{"$f":"K84-J84","v":0},{"$f":"IF('MA 111-120'!K73=0,\"0%\",J73/K73)","v":"0%"}]
[]
["MitarbeiterIn 117",null,null,null,null,{"$f":"IF(Übersicht!D3=0,\"Stunden Jahr 1\",\"Stunden\"&(Übersicht!D3))","v":"Stunden Jahr 1"},{"$f":"IF(Übersicht!D3=0,\"Stunden Jahr 2\",Übersicht!E6)","v":"Stunden Jahr 2"},{"$f":"IF(Übersicht!D3=0,\"Stunden Jahr 3\",Übersicht!F6)","v":"Stunden Jahr 3"},{"$f":"IF(Übersicht!D3=0,\"Stunden Jahr 4\",Übersicht!G6)","v":"Stunden Jahr 4"},"Stunden\nGesamt","Soll-stunden","Differenz","% erreicht"]
[null,"Titel der Fortbildung","Datum von","Datum bis","Inhalte",null,null,null,null,{"$f":"SUM(F98:I98)","v":0},{"$f":"IF(Hintergrunddaten!$AU$44=1,0,IF(Hintergrunddaten!$AU$44=2,10,IF(Hintergrunddaten!$AU$44=5,4,20)))","v":0},{"$f":"K98-J98","v":0},{"$f":"IF('MA 111-120'!K87=0,\"0%\",J87/K87)","v":"0%"}]
["Fortbildung 01",null,null,null,null,null,null,null,null,{"$f":"SUM(F88:I88)","v":0}]
["Fortbildung 02",null,null,null,null,null,null,null,null,{"$f":"SUM(F89:I89)","v":0}]
["Fortbildung 03",null,null,null,null,null,null,null,null,0]
["Fortbildung 04",null,null,null,null,null,null,null,null,0]
["Fortbildung 05",null,null,null,null,null,null,null,null,0]
["Fortbildung 06",null,null,null,null,null,null,null,null,0]
["Fortbildung 07",null,null,null,null,null,null,null,null,0]
["Fortbildung 08",null,null,null,null,null,null,null,null,0]
["Fortbildung 09",null,null,null,null,null,null,null,null,0]
["Fortbildung 10",null,null,null,null,null,null,null,null,0]
[null,null,null,null,null,{"$f":"SUM(F87:F97)","v":0},{"$f":"SUM(G87:G97)","v":0},{"$f":"SUM(H87:H97)","v":0},{"$f":"SUM(I87:I97)","v":0},{"$f":"SUM(F98:I98)","v":0},{"$f":"IF(Hintergrunddaten!$AU$44=1,0,IF(Hintergrunddaten!$AU$44=2,10,IF(Hintergrunddaten!$AU$44=5,4,20)))","v":0},{"$f":"K98-J98","v":0},{"$f":"IF('MA 111-120'!K87=0,\"0%\",J87/K87)","v":"0%"}]
[]
["MitarbeiterIn 118",null,null,null,null,{"$f":"IF(Übersicht!D3=0,\"Stunden Jahr 1\",\"Stunden\"&(Übersicht!D3))","v":"Stunden Jahr 1"},{"$f":"IF(Übersicht!D3=0,\"Stunden Jahr 2\",Übersicht!E6)","v":"Stunden Jahr 2"},{"$f":"IF(Übersicht!D3=0,\"Stunden Jahr 3\",Übersicht!F6)","v":"Stunden Jahr 3"},{"$f":"IF(Übersicht!D3=0,\"Stunden Jahr 4\",Übersicht!G6)","v":"Stunden Jahr 4"},"Stunden\nGesamt","Soll-stunden","Differenz","% erreicht"]
[null,"Titel der Fortbildung","Datum von","Datum bis","Inhalte",null,null,null,null,{"$f":"SUM(F112:I112)","v":0},{"$f":"IF(Hintergrunddaten!$AU$51=1,0,IF(Hintergrunddaten!$AU$51=2,10,IF(Hintergrunddaten!$AU$51=5,4,20)))","v":0},{"$f":"K112-J112","v":0},{"$f":"IF('MA 111-120'!K101=0,\"0%\",J101/K101)","v":"0%"}]
["Fortbildung 01",null,null,null,null,null,null,null,null,{"$f":"SUM(F102:I102)","v":0}]
["Fortbildung 02",null,null,null,null,null,null,null,null,{"$f":"SUM(F103:I103)","v":0}]
["Fortbildung 03",null,null,null,null,null,null,null,null,0]
["Fortbildung 04",null,null,null,null,null,null,null,null,0]
["Fortbildung 05",null,null,null,null,null,null,null,null,0]
["Fortbildung 06",null,null,null,null,null,null,null,null,0]
["Fortbildung 07",null,null,null,null,null,null,null,null,0]
["Fortbildung 08",null,null,null,null,null,null,null,null,0]
["Fortbildung 09",null,null,null,null,null,null,null,null,0]
["Fortbildung 10",null,null,null,null,null,null,null,null,0]
[null,null,null,null,null,{"$f":"SUM(F101:F111)","v":0},{"$f":"SUM(G101:G111)","v":0},{"$f":"SUM(H101:H111)","v":0},{"$f":"SUM(I101:I111)","v":0},{"$f":"SUM(F112:I112)","v":0},{"$f":"IF(Hintergrunddaten!$AU$51=1,0,IF(Hintergrunddaten!$AU$51=2,10,IF(Hintergrunddaten!$AU$51=5,4,20)))","v":0},{"$f":"K112-J112","v":0},{"$f":"IF('MA 111-120'!K101=0,\"0%\",J101/K101)","v":"0%"}]
[]
["MitarbeiterIn 119",null,null,null,null,{"$f":"IF(Übersicht!D3=0,\"Stunden Jahr 1\",\"Stunden\"&(Übersicht!D3))","v":"Stunden Jahr 1"},{"$f":"IF(Übersicht!D3=0,\"Stunden Jahr 2\",Übersicht!E6)","v":"Stunden Jahr 2"},{"$f":"IF(Übersicht!D3=0,\"Stunden Jahr 3\",Übersicht!F6)","v":"Stunden Jahr 3"},{"$f":"IF(Übersicht!D3=0,\"Stunden Jahr 4\",Übersicht!G6)","v":"Stunden Jahr 4"},"Stunden\nGesamt","Soll-stunden","Differenz","% erreicht"]
[null,"Titel der Fortbildung","Datum von","Datum bis","Inhalte",null,null,null,null,{"$f":"SUM(F126:I126)","v":0},{"$f":"IF(Hintergrunddaten!$AU$58=1,0,IF(Hintergrunddaten!$AU$58=2,10,IF(Hintergrunddaten!$AU$58=5,4,20)))","v":0},{"$f":"K126-J126","v":0},{"$f":"IF('MA 111-120'!K115=0,\"0%\",J115/K115)","v":"0%"}]
["Fortbildung 01",null,null,null,null,null,null,null,null,{"$f":"SUM(F116:I116)","v":0}]
["Fortbildung 02",null,null,null,null,null,null,null,null,{"$f":"SUM(F117:I117)","v":0}]
["Fortbildung 03",null,null,null,null,null,null,null,null,0]
["Fortbildung 04",null,null,null,null,null,null,null,null,0]
["Fortbildung 05",null,null,null,null,null,null,null,null,0]
["Fortbildung 06",null,null,null,null,null,null,null,null,0]
["Fortbildung 07",null,null,null,null,null,null,null,null,0]
["Fortbildung 08",null,null,null,null,null,null,null,null,0]
["Fortbildung 09",null,null,null,null,null,null,null,null,0]
["Fortbildung 10",null,null,null,null,null,null,null,null,0]
[null,null,null,null,null,{"$f":"SUM(F115:F125)","v":0},{"$f":"SUM(G115:G125)","v":0},{"$f":"SUM(H115:H125)","v":0},{"$f":"SUM(I115:I125)","v":0},{"$f":"SUM(F126:I126)","v":0},{"$f":"IF(Hintergrunddaten!$AU$58=1,0,IF(Hintergrunddaten!$AU$58=2,10,IF(Hintergrunddaten!$AU$58=5,4,20)))","v":0},{"$f":"K126-J126","v":0},{"$f":"IF('MA 111-120'!K115=0,\"0%\",J115/K115)","v":"0%"}]
[]
["MitarbeiterIn 120",null,null,null,null,{"$f":"IF(Übersicht!D3=0,\"Stunden Jahr 1\",\"Stunden\"&(Übersicht!D3))","v":"Stunden Jahr 1"},{"$f":"IF(Übersicht!D3=0,\"Stunden Jahr 2\",Übersicht!E6)","v":"Stunden Jahr 2"},{"$f":"IF(Übersicht!D3=0,\"Stunden Jahr 3\",Übersicht!F6)","v":"Stunden Jahr 3"},{"$f":"IF(Übersicht!D3=0,\"Stunden Jahr 4\",Übersicht!G6)","v":"Stunden Jahr 4"},"Stunden\nGesamt","Soll-stunden","Differenz","% erreicht"]
[null,"Titel der Fortbildung","Datum von","Datum bis","Inhalte",null,null,null,null,{"$f":"SUM(F140:I140)","v":0},{"$f":"IF(Hintergrunddaten!$AU$65=1,0,IF(Hintergrunddaten!$AU$65=2,10,IF(Hintergrunddaten!$AU$65=5,4,20)))","v":0},{"$f":"K140-J140","v":0},{"$f":"IF('MA 111-120'!K129=0,\"0%\",J129/K129)","v":"0%"}]
["Fortbildung 01",null,null,null,null,null,null,null,null,{"$f":"SUM(F130:I130)","v":0}]
["Fortbildung 02",null,null,null,null,null,null,null,null,{"$f":"SUM(F131:I131)","v":0}]
["Fortbildung 03",null,null,null,null,null,null,null,null,0]
["Fortbildung 04",null,null,null,null,null,null,null,null,0]
["Fortbildung 05",null,null,null,null,null,null,null,null,0]
["Fortbildung 06",null,null,null,null,null,null,null,null,0]
["Fortbildung 07",null,null,null,null,null,null,null,null,0]
["Fortbildung 08",null,null,null,null,null,null,null,null,0]
["Fortbildung 09",null,null,null,null,null,null,null,null,0]
["Fortbildung 10",null,null,null,null,null,null,null,null,0]
[null,null,null,null,null,{"$f":"SUM(F129:F139)","v":0},{"$f":"SUM(G129:G139)","v":0},{"$f":"SUM(H129:H139)","v":0},{"$f":"SUM(I129:I139)","v":0},{"$f":"SUM(F140:I140)","v":0},{"$f":"IF(Hintergrunddaten!$AU$65=1,0,IF(Hintergrunddaten!$AU$65=2,10,IF(Hintergrunddaten!$AU$65=5,4,20)))","v":0},{"$f":"K140-J140","v":0},{"$f":"IF('MA 111-120'!K129=0,\"0%\",J129/K129)","v":"0%"}]

{"sheet":"MA 121-130","index":13,"n_rows":140,"n_cols":13,"rows_kept":140,"cut":false,"hidden":false,"merged":[]}
[]
["MitarbeiterIn 121",null,null,null,null,{"$f":"IF(Übersicht!D3=0,\"Stunden Jahr 1\",\"Stunden\"&(Übersicht!D3))","v":"Stunden Jahr 1"},{"$f":"IF(Übersicht!D3=0,\"Stunden Jahr 2\",Übersicht!E6)","v":"Stunden Jahr 2"},{"$f":"IF(Übersicht!D3=0,\"Stunden Jahr 3\",Übersicht!F6)","v":"Stunden Jahr 3"},{"$f":"IF(Übersicht!D3=0,\"Stunden Jahr 4\",Übersicht!G6)","v":"Stunden Jahr 4"},"Stunden\nGesamt","Soll-stunden","Differenz","% erreicht"]
[null,"Titel der Fortbildung","Datum von","Datum bis","Inhalte",null,null,null,null,{"$f":"SUM(F14:I14)","v":0},{"$f":"IF(Hintergrunddaten!$AY$2=1,0,IF(Hintergrunddaten!$AY$2=2,10,IF(Hintergrunddaten!$AY$2=5,4,20)))","v":0},{"$f":"K14-J14","v":0},{"$f":"IF('MA 121-130'!K3=0,\"0%\",J3/K3)","v":"0%"}]
["Fortbildung 01",null,null,null,null,null,null,null,null,{"$f":"SUM(F4:I4)","v":0}]
["Fortbildung 02",null,null,null,null,null,null,null,null,{"$f":"SUM(F5:I5)","v":0}]
["Fortbildung 03",null,null,null,null,null,null,null,null,0]
["Fortbildung 04",null,null,null,null,null,null,null,null,0]
["Fortbildung 05",null,null,null,null,null,null,null,null,0]
["Fortbildung 06",null,null,null,null,null,null,null,null,0]
["Fortbildung 07",null,null,null,null,null,null,null,null,0]
["Fortbildung 08",null,null,null,null,null,null,null,null,0]
["Fortbildung 09",null,null,null,null,null,null,null,null,0]
["Fortbildung 10",null,null,null,null,null,null,null,null,0]
[null,null,null,null,null,{"$f":"SUM(F3:F13)","v":0},{"$f":"SUM(G3:G13)","v":0},{"$f":"SUM(H3:H13)","v":0},{"$f":"SUM(I3:I13)","v":0},{"$f":"SUM(F14:I14)","v":0},{"$f":"IF(Hintergrunddaten!$AY$2=1,0,IF(Hintergrunddaten!$AY$2=2,10,IF(Hintergrunddaten!$AY$2=5,4,20)))","v":0},{"$f":"K14-J14","v":0},{"$f":"IF('MA 121-130'!K3=0,\"0%\",J3/K3)","v":"0%"}]
[]
["MitarbeiterIn 122",null,null,null,null,{"$f":"IF(Übersicht!D3=0,\"Stunden Jahr 1\",\"Stunden\"&(Übersicht!D3))","v":"Stunden Jahr 1"},{"$f":"IF(Übersicht!D3=0,\"Stunden Jahr 2\",Übersicht!E6)","v":"Stunden Jahr 2"},{"$f":"IF(Übersicht!D3=0,\"Stunden Jahr 3\",Übersicht!F6)","v":"Stunden Jahr 3"},{"$f":"IF(Übersicht!D3=0,\"Stunden Jahr 4\",Übersicht!G6)","v":"Stunden Jahr 4"},"Stunden\nGesamt","Soll-stunden","Differenz","% erreicht"]
[null,"Titel der Fortbildung","Datum von","Datum bis","Inhalte",null,null,null,null,{"$f":"SUM(F28:I28)","v":0},{"$f":"IF(Hintergrunddaten!$AY$9=1,0,IF(Hintergrunddaten!$AY$9=2,10,IF(Hintergrunddaten!$AY$9=5,4,20)))","v":0},{"$f":"K28-J28","v":0},{"$f":"IF('MA 121-130'!K17=0,\"0%\",J17/K17)","v":"0%"}]
["Fortbildung 01",null,null,null,null,null,null,null,null,{"$f":"SUM(F18:I18)","v":0}]
["Fortbildung 02",null,null,null,null,null,null,null,null,{"$f":"SUM(F19:I19)","v":0}]
["Fortbildung 03",null,null,null,null,null,null,null,null,0]
["Fortbildung 04",null,null,null,null,null,null,null,null,0]
["Fortbildung 05",null,null,null,null,null,null,null,null,0]
["Fortbildung 06",null,null,null,null,null,null,null,null,0]
["Fortbildung 07",null,null,null,null,null,null,null,null,0]
["Fortbildung 08",null,null,null,null,null,null,null,null,0]
["Fortbildung 09",null,null,null,null,null,null,null,null,0]
["Fortbildung 10",null,null,null,null,null,null,null,null,0]
[null,null,null,null,null,{"$f":"SUM(F17:F27)","v":0},{"$f":"SUM(G17:G27)","v":0},{"$f":"SUM(H17:H27)","v":0},{"$f":"SUM(I17:I27)","v":0},{"$f":"SUM(F28:I28)","v":0},{"$f":"IF(Hintergrunddaten!$AY$9=1,0,IF(Hintergrunddaten!$AY$9=2,10,IF(Hintergrunddaten!$AY$9=5,4,20)))","v":0},{"$f":"K28-J28","v":0},{"$f":"IF('MA 121-130'!K17=0,\"0%\",J17/K17)","v":"0%"}]
[]
["MitarbeiterIn 123",null,null,null,null,{"$f":"IF(Übersicht!D3=0,\"Stunden Jahr 1\",\"Stunden\"&(Übersicht!D3))","v":"Stunden Jahr 1"},{"$f":"IF(Übersicht!D3=0,\"Stunden Jahr 2\",Übersicht!E6)","v":"Stunden Jahr 2"},{"$f":"IF(Übersicht!D3=0,\"Stunden Jahr 3\",Übersicht!F6)","v":"Stunden Jahr 3"},{"$f":"IF(Übersicht!D3=0,\"Stunden Jahr 4\",Übersicht!G6)","v":"Stunden Jahr 4"},"Stunden\nGesamt","Soll-stunden","Differenz","% erreicht"]
[null,"Titel der Fortbildung","Datum von","Datum bis","Inhalte",null,null,null,null,{"$f":"SUM(F42:I42)","v":0},{"$f":"IF(Hintergrunddaten!$AY$16=1,0,IF(Hintergrunddaten!$AY$16=2,10,IF(Hintergrunddaten!$AY$16=5,4,20)))","v":0},{"$f":"K42-J42","v":0},{"$f":"IF('MA 121-130'!K31=0,\"0%\",J31/K31)","v":"0%"}]
["Fortbildung 01",null,null,null,null,null,null,null,null,{"$f":"SUM(F32:I32)","v":0}]
["Fortbildung 02",null,null,null,null,null,null,null,null,{"$f":"SUM(F33:I33)","v":0}]
["Fortbildung 03",null,null,null,null,null,null,null,null,0]
["Fortbildung 04",null,null,null,null,null,null,null,null,0]
["Fortbildung 05",null,null,null,null,null,null,null,null,0]
["Fortbildung 06",null,null,null,null,null,null,null,null,0]
["Fortbildung 07",null,null,null,null,null,null,null,null,0]
["Fortbildung 08",null,null,null,null,null,null,null,null,0]
["Fortbildung 09",null,null,null,null,null,null,null,null,0]
["Fortbildung 10",null,null,null,null,null,null,null,null,0]
[null,null,null,null,null,{"$f":"SUM(F31:F41)","v":0},{"$f":"SUM(G31:G41)","v":0},{"$f":"SUM(H31:H41)","v":0},{"$f":"SUM(I31:I41)","v":0},{"$f":"SUM(F42:I42)","v":0},{"$f":"IF(Hintergrunddaten!$AY$16=1,0,IF(Hintergrunddaten!$AY$16=2,10,IF(Hintergrunddaten!$AY$16=5,4,20)))","v":0},{"$f":"K42-J42","v":0},{"$f":"IF('MA 121-130'!K31=0,\"0%\",J31/K31)","v":"0%"}]
[]
["MitarbeiterIn 124",null,null,null,null,{"$f":"IF(Übersicht!D3=0,\"Stunden Jahr 1\",\"Stunden\"&(Übersicht!D3))","v":"Stunden Jahr 1"},{"$f":"IF(Übersicht!D3=0,\"Stunden Jahr 2\",Übersicht!E6)","v":"Stunden Jahr 2"},{"$f":"IF(Übersicht!D3=0,\"Stunden Jahr 3\",Übersicht!F6)","v":"Stunden Jahr 3"},{"$f":"IF(Übersicht!D3=0,\"Stunden Jahr 4\",Übersicht!G6)","v":"Stunden Jahr 4"},"Stunden\nGesamt","Soll-stunden","Differenz","% erreicht"]
[null,"Titel der Fortbildung","Datum von","Datum bis","Inhalte",null,null,null,null,{"$f":"SUM(F56:I56)","v":0},{"$f":"IF(Hintergrunddaten!$AY$23=1,0,IF(Hintergrunddaten!$AY$23=2,10,IF(Hintergrunddaten!$AY$23=5,4,20)))","v":0},{"$f":"K56-J56","v":0},{"$f":"IF('MA 121-130'!K45=0,\"0%\",J45/K45)","v":"0%"}]
["Fortbildung 01",null,null,null,null,null,null,null,null,{"$f":"SUM(F46:I46)","v":0}]
["Fortbildung 02",null,null,null,null,null,null,null,null,{"$f":"SUM(F47:I47)","v":0}]
["Fortbildung 03",null,null,null,null,null,null,null,null,0]
["Fortbildung 04",null,null,null,null,null,null,null,null,0]
["Fortbildung 05",null,null,null,null,null,null,null,null,0]
["Fortbildung 06",null,null,null,null,null,null,null,null,0]
["Fortbildung 07",null,null,null,null,null,null,null,null,0]
["Fortbildung 08",null,null,null,null,null,null,null,null,0]
["Fortbildung 09",null,null,null,null,null,null,null,null,0]
["Fortbildung 10",null,null,null,null,null,null,null,null,0]
[null,null,null,null,null,{"$f":"SUM(F45:F55)","v":0},{"$f":"SUM(G45:G55)","v":0},{"$f":"SUM(H45:H55)","v":0},{"$f":"SUM(I45:I55)","v":0},{"$f":"SUM(F56:I56)","v":0},{"$f":"IF(Hintergrunddaten!$AY$23=1,0,IF(Hintergrunddaten!$AY$23=2,10,IF(Hintergrunddaten!$AY$23=5,4,20)))","v":0},{"$f":"K56-J56","v":0},{"$f":"IF('MA 121-130'!K45=0,\"0%\",J45/K45)","v":"0%"}]
[]
["MitarbeiterIn 125",null,null,null,null,{"$f":"IF(Übersicht!D3=0,\"Stunden Jahr 1\",\"Stunden\"&(Übersicht!D3))","v":"Stunden Jahr 1"},{"$f":"IF(Übersicht!D3=0,\"Stunden Jahr 2\",Übersicht!E6)","v":"Stunden Jahr 2"},{"$f":"IF(Übersicht!D3=0,\"Stunden Jahr 3\",Übersicht!F6)","v":"Stunden Jahr 3"},{"$f":"IF(Übersicht!D3=0,\"Stunden Jahr 4\",Übersicht!G6)","v":"Stunden Jahr 4"},"Stunden\nGesamt","Soll-stunden","Differenz","% erreicht"]
[null,"Titel der Fortbildung","Datum von","Datum bis","Inhalte",null,null,null,null,{"$f":"SUM(F70:I70)","v":0},{"$f":"IF(Hintergrunddaten!$AY$30=1,0,IF(Hintergrunddaten!$AY$30=2,10,IF(Hintergrunddaten!$AY30=5,4,20)))","v":0},{"$f":"K70-J70","v":0},{"$f":"IF('MA 121-130'!K59=0,\"0%\",J59/K59)","v":"0%"}]
["Fortbildung 01",null,null,null,null,null,null,null,null,{"$f":"SUM(F60:I60)","v":0}]
["Fortbildung 02",null,null,null,null,null,null,null,null,{"$f":"SUM(F61:I61)","v":0}]
["Fortbildung 03",null,null,null,null,null,null,null,null,0]
["Fortbildung 04",null,null,null,null,null,null,null,null,0]
["Fortbildung 05",null,null,null,null,null,null,null,null,0]
["Fortbildung 06",null,null,null,null,null,null,null,null,0]
["Fortbildung 07",null,null,null,null,null,null,null,null,0]
["Fortbildung 08",null,null,null,null,null,null,null,null,0]
["Fortbildung 09",null,null,null,null,null,null,null,null,0]
["Fortbildung 10",null,null,null,null,null,null,null,null,0]
[null,null,null,null,null,{"$f":"SUM(F59:F69)","v":0},{"$f":"SUM(G59:G69)","v":0},{"$f":"SUM(H59:H69)","v":0},{"$f":"SUM(I59:I69)","v":0},{"$f":"SUM(F70:I70)","v":0},{"$f":"IF(Hintergrunddaten!$AY$30=1,0,IF(Hintergrunddaten!$AY$30=2,10,IF(Hintergrunddaten!$AY$30=5,4,20)))","v":0},{"$f":"K70-J70","v":0},{"$f":"IF('MA 121-130'!K59=0,\"0%\",J59/K59)","v":"0%"}]
[]
["MitarbeiterIn 126",null,null,null,null,{"$f":"IF(Übersicht!D3=0,\"Stunden Jahr 1\",\"Stunden\"&(Übersicht!D3))","v":"Stunden Jahr 1"},{"$f":"IF(Übersicht!D3=0,\"Stunden Jahr 2\",Übersicht!E6)","v":"Stunden Jahr 2"},{"$f":"IF(Übersicht!D3=0,\"Stunden Jahr 3\",Übersicht!F6)","v":"Stunden Jahr 3"},{"$f":"IF(Übersicht!D3=0,\"Stunden Jahr 4\",Übersicht!G6)","v":"Stunden Jahr 4"},"Stunden\nGesamt","Soll-stunden","Differenz","% erreicht"]
[null,"Titel der Fortbildung","Datum von","Datum bis","Inhalte",null,null,null,null,{"$f":"SUM(F84:I84)","v":0},{"$f":"IF(Hintergrunddaten!$AY$37=1,0,IF(Hintergrunddaten!$AY$37=2,10,IF(Hintergrunddaten!$AY$37=5,4,20)))","v":0},{"$f":"K84-J84","v":0},{"$f":"IF('MA 121-130'!K73=0,\"0%\",J73/K73)","v":"0%"}]
["Fortbildung 01",null,null,null,null,null,null,null,null,{"$f":"SUM(F74:I74)","v":0}]
["Fortbildung 02",null,null,null,null,null,null,null,null,{"$f":"SUM(F75:I75)","v":0}]
["Fortbildung 03",null,null,null,null,null,null,null,null,0]
["Fortbildung 04",null,null,null,null,null,null,null,null,0]
["Fortbildung 05",null,null,null,null,null,null,null,null,0]
["Fortbildung 06",null,null,null,null,null,null,null,null,0]
["Fortbildung 07",null,null,null,null,null,null,null,null,0]
["Fortbildung 08",null,null,null,null,null,null,null,null,0]
["Fortbildung 09",null,null,null,null,null,null,null,null,0]
["Fortbildung 10",null,null,null,null,null,null,null,null,0]
[null,null,null,null,null,{"$f":"SUM(F73:F83)","v":0},{"$f":"SUM(G73:G83)","v":0},{"$f":"SUM(H73:H83)","v":0},{"$f":"SUM(I73:I83)","v":0},{"$f":"SUM(F84:I84)","v":0},{"$f":"IF(Hintergrunddaten!$AY$37=1,0,IF(Hintergrunddaten!$AY$37=2,10,IF(Hintergrunddaten!$AY$37=5,4,20)))","v":0},{"$f":"K84-J84","v":0},{"$f":"IF('MA 121-130'!K73=0,\"0%\",J73/K73)","v":"0%"}]
[]
["MitarbeiterIn 127",null,null,null,null,{"$f":"IF(Übersicht!D3=0,\"Stunden Jahr 1\",\"Stunden\"&(Übersicht!D3))","v":"Stunden Jahr 1"},{"$f":"IF(Übersicht!D3=0,\"Stunden Jahr 2\",Übersicht!E6)","v":"Stunden Jahr 2"},{"$f":"IF(Übersicht!D3=0,\"Stunden Jahr 3\",Übersicht!F6)","v":"Stunden Jahr 3"},{"$f":"IF(Übersicht!D3=0,\"Stunden Jahr 4\",Übersicht!G6)","v":"Stunden Jahr 4"},"Stunden\nGesamt","Soll-stunden","Differenz","% erreicht"]
[null,"Titel der Fortbildung","Datum von","Datum bis","Inhalte",null,null,null,null,{"$f":"SUM(F98:I98)","v":0},{"$f":"IF(Hintergrunddaten!$AY$44=1,0,IF(Hintergrunddaten!$AY$44=2,10,IF(Hintergrunddaten!$AY$44=5,4,20)))","v":0},{"$f":"K98-J98","v":0},{"$f":"IF('MA 121-130'!K87=0,\"0%\",J87/K87)","v":"0%"}]
["Fortbildung 01",null,null,null,null,null,null,null,null,{"$f":"SUM(F88:I88)","v":0}]
["Fortbildung 02",null,null,null,null,null,null,null,null,{"$f":"SUM(F89:I89)","v":0}]
["Fortbildung 03",null,null,null,null,null,null,null,null,0]
["Fortbildung 04",null,null,null,null,null,null,null,null,0]
["Fortbildung 05",null,null,null,null,null,null,null,null,0]
["Fortbildung 06",null,null,null,null,null,null,null,null,0]
["Fortbildung 07",null,null,null,null,null,null,null,null,0]
["Fortbildung 08",null,null,null,null,null,null,null,null,0]
["Fortbildung 09",null,null,null,null,null,null,null,null,0]
["Fortbildung 10",null,null,null,null,null,null,null,null,0]
[null,null,null,null,null,{"$f":"SUM(F87:F97)","v":0},{"$f":"SUM(G87:G97)","v":0},{"$f":"SUM(H87:H97)","v":0},{"$f":"SUM(I87:I97)","v":0},{"$f":"SUM(F98:I98)","v":0},{"$f":"IF(Hintergrunddaten!$AY$44=1,0,IF(Hintergrunddaten!$AY$44=2,10,IF(Hintergrunddaten!$AY$44=5,4,20)))","v":0},{"$f":"K98-J98","v":0},{"$f":"IF('MA 121-130'!K87=0,\"0%\",J87/K87)","v":"0%"}]
[]
["MitarbeiterIn 128",null,null,null,null,{"$f":"IF(Übersicht!D3=0,\"Stunden Jahr 1\",\"Stunden\"&(Übersicht!D3))","v":"Stunden Jahr 1"},{"$f":"IF(Übersicht!D3=0,\"Stunden Jahr 2\",Übersicht!E6)","v":"Stunden Jahr 2"},{"$f":"IF(Übersicht!D3=0,\"Stunden Jahr 3\",Übersicht!F6)","v":"Stunden Jahr 3"},{"$f":"IF(Übersicht!D3=0,\"Stunden Jahr 4\",Übersicht!G6)","v":"Stunden Jahr 4"},"Stunden\nGesamt","Soll-stunden","Differenz","% erreicht"]
[null,"Titel der Fortbildung","Datum von","Datum bis","Inhalte",null,null,null,null,{"$f":"SUM(F112:I112)","v":0},{"$f":"IF(Hintergrunddaten!$AY$51=1,0,IF(Hintergrunddaten!$AY$51=2,10,IF(Hintergrunddaten!$AY$51=5,4,20)))","v":0},{"$f":"K112-J112","v":0},{"$f":"IF('MA 121-130'!K101=0,\"0%\",J101/K101)","v":"0%"}]
["Fortbildung 01",null,null,null,null,null,null,null,null,{"$f":"SUM(F102:I102)","v":0}]
["Fortbildung 02",null,null,null,null,null,null,null,null,{"$f":"SUM(F103:I103)","v":0}]
["Fortbildung 03",null,null,null,null,null,null,null,null,0]
["Fortbildung 04",null,null,null,null,null,null,null,null,0]
["Fortbildung 05",null,null,null,null,null,null,null,null,0]
["Fortbildung 06",null,null,null,null,null,null,null,null,0]
["Fortbildung 07",null,null,null,null,null,null,null,null,0]
["Fortbildung 08",null,null,null,null,null,null,null,null,0]
["Fortbildung 09",null,null,null,null,null,null,null,null,0]
["Fortbildung 10",null,null,null,null,null,null,null,null,0]
[null,null,null,null,null,{"$f":"SUM(F101:F111)","v":0},{"$f":"SUM(G101:G111)","v":0},{"$f":"SUM(H101:H111)","v":0},{"$f":"SUM(I101:I111)","v":0},{"$f":"SUM(F112:I112)","v":0},{"$f":"IF(Hintergrunddaten!$AY$51=1,0,IF(Hintergrunddaten!$AY$51=2,10,IF(Hintergrunddaten!$AY$51=5,4,20)))","v":0},{"$f":"K112-J112","v":0},{"$f":"IF('MA 121-130'!K101=0,\"0%\",J101/K101)","v":"0%"}]
[]
["MitarbeiterIn 129",null,null,null,null,{"$f":"IF(Übersicht!D3=0,\"Stunden Jahr 1\",\"Stunden\"&(Übersicht!D3))","v":"Stunden Jahr 1"},{"$f":"IF(Übersicht!D3=0,\"Stunden Jahr 2\",Übersicht!E6)","v":"Stunden Jahr 2"},{"$f":"IF(Übersicht!D3=0,\"Stunden Jahr 3\",Übersicht!F6)","v":"Stunden Jahr 3"},{"$f":"IF(Übersicht!D3=0,\"Stunden Jahr 4\",Übersicht!G6)","v":"Stunden Jahr 4"},"Stunden\nGesamt","Soll-stunden","Differenz","% erreicht"]
[null,"Titel der Fortbildung","Datum von","Datum bis","Inhalte",null,null,null,null,{"$f":"SUM(F126:I126)","v":0},{"$f":"IF(Hintergrunddaten!$AY$58=1,0,IF(Hintergrunddaten!$AY$58=2,10,IF(Hintergrunddaten!$AY$58=5,4,20)))","v":0},{"$f":"K126-J126","v":0},{"$f":"IF('MA 121-130'!K115=0,\"0%\",J115/K115)","v":"0%"}]
["Fortbildung 01",null,null,null,null,null,null,null,null,{"$f":"SUM(F116:I116)","v":0}]
["Fortbildung 02",null,null,null,null,null,null,null,null,{"$f":"SUM(F117:I117)","v":0}]
["Fortbildung 03",null,null,null,null,null,null,null,null,0]
["Fortbildung 04",null,null,null,null,null,null,null,null,0]
["Fortbildung 05",null,null,null,null,null,null,null,null,0]
["Fortbildung 06",null,null,null,null,null,null,null,null,0]
["Fortbildung 07",null,null,null,null,null,null,null,null,0]
["Fortbildung 08",null,null,null,null,null,null,null,null,0]
["Fortbildung 09",null,null,null,null,null,null,null,null,0]
["Fortbildung 10",null,null,null,null,null,null,null,null,0]
[null,null,null,null,null,{"$f":"SUM(F115:F125)","v":0},{"$f":"SUM(G115:G125)","v":0},{"$f":"SUM(H115:H125)","v":0},{"$f":"SUM(I115:I125)","v":0},{"$f":"SUM(F126:I126)","v":0},{"$f":"IF(Hintergrunddaten!$AM$58=1,0,IF(Hintergrunddaten!$AM$58=2,10,IF(Hintergrunddaten!$AM$58=5,4,20)))","v":0},{"$f":"K126-J126","v":0},{"$f":"IF('MA 121-130'!K115=0,\"0%\",J115/K115)","v":"0%"}]
[]
["MitarbeiterIn 130",null,null,null,null,{"$f":"IF(Übersicht!D3=0,\"Stunden Jahr 1\",\"Stunden\"&(Übersicht!D3))","v":"Stunden Jahr 1"},{"$f":"IF(Übersicht!D3=0,\"Stunden Jahr 2\",Übersicht!E6)","v":"Stunden Jahr 2"},{"$f":"IF(Übersicht!D3=0,\"Stunden Jahr 3\",Übersicht!F6)","v":"Stunden Jahr 3"},{"$f":"IF(Übersicht!D3=0,\"Stunden Jahr 4\",Übersicht!G6)","v":"Stunden Jahr 4"},"Stunden\nGesamt","Soll-stunden","Differenz","% erreicht"]
[null,"Titel der Fortbildung","Datum von","Datum bis","Inhalte",null,null,null,null,{"$f":"SUM(F140:I140)","v":0},{"$f":"IF(Hintergrunddaten!$AY$65=1,0,IF(Hintergrunddaten!$AY$65=2,10,IF(Hintergrunddaten!$AY$65=5,4,20)))","v":0},{"$f":"K140-J140","v":0},{"$f":"IF('MA 121-130'!K129=0,\"0%\",J129/K129)","v":"0%"}]
["Fortbildung 01",null,null,null,null,null,null,null,null,{"$f":"SUM(F130:I130)","v":0}]
["Fortbildung 02",null,null,null,null,null,null,null,null,{"$f":"SUM(F131:I131)","v":0}]
["Fortbildung 03",null,null,null,null,null,null,null,null,0]
["Fortbildung 04",null,null,null,null,null,null,null,null,0]
["Fortbildung 05",null,null,null,null,null,null,null,null,0]
["Fortbildung 06",null,null,null,null,null,null,null,null,0]
["Fortbildung 07",null,null,null,null,null,null,null,null,0]
["Fortbildung 08",null,null,null,null,null,null,null,null,0]
["Fortbildung 09",null,null,null,null,null,null,null,null,0]
["Fortbildung 10",null,null,null,null,null,null,null,null,0]
[null,null,null,null,null,{"$f":"SUM(F129:F139)","v":0},{"$f":"SUM(G129:G139)","v":0},{"$f":"SUM(H129:H139)","v":0},{"$f":"SUM(I129:I139)","v":0},{"$f":"SUM(F140:I140)","v":0},{"$f":"IF(Hintergrunddaten!$AY$65=1,0,IF(Hintergrunddaten!$AY$65=2,10,IF(Hintergrunddaten!$AY$65=5,4,20)))","v":0},{"$f":"K140-J140","v":0},{"$f":"IF('MA 121-130'!K129=0,\"0%\",J129/K129)","v":"0%"}]

{"sheet":"MA 131-140","index":14,"n_rows":140,"n_cols":13,"rows_kept":140,"cut":false,"hidden":false,"merged":[]}
[]
["MitarbeiterIn 131",null,null,null,null,{"$f":"IF(Übersicht!D3=0,\"Stunden Jahr 1\",\"Stunden\"&(Übersicht!D3))","v":"Stunden Jahr 1"},{"$f":"IF(Übersicht!D3=0,\"Stunden Jahr 2\",Übersicht!E6)","v":"Stunden Jahr 2"},{"$f":"IF(Übersicht!D3=0,\"Stunden Jahr 3\",Übersicht!F6)","v":"Stunden Jahr 3"},{"$f":"IF(Übersicht!D3=0,\"Stunden Jahr 4\",Übersicht!G6)","v":"Stunden Jahr 4"},"Stunden\nGesamt","Soll-stunden","Differenz","% erreicht"]
[null,"Titel der Fortbildung","Datum von","Datum bis","Inhalte",null,null,null,null,{"$f":"SUM(F14:I14)","v":0},{"$f":"IF(Hintergrunddaten!$BC$2=1,0,IF(Hintergrunddaten!$BC$2=2,10,IF(Hintergrunddaten!$BC$2=5,4,20)))","v":0},{"$f":"K14-J14","v":0},{"$f":"IF('MA 131-140'!K3=0,\"0%\",J3/K3)","v":"0%"}]
["Fortbildung 01",null,null,null,null,null,null,null,null,{"$f":"SUM(F4:I4)","v":0}]
["Fortbildung 02",null,null,null,null,null,null,null,null,{"$f":"SUM(F5:I5)","v":0}]
["Fortbildung 03",null,null,null,null,null,null,null,null,0]
["Fortbildung 04",null,null,null,null,null,null,null,null,0]
["Fortbildung 05",null,null,null,null,null,null,null,null,0]
["Fortbildung 06",null,null,null,null,null,null,null,null,0]
["Fortbildung 07",null,null,null,null,null,null,null,null,0]
["Fortbildung 08",null,null,null,null,null,null,null,null,0]
["Fortbildung 09",null,null,null,null,null,null,null,null,0]
["Fortbildung 10",null,null,null,null,null,null,null,null,0]
[null,null,null,null,null,{"$f":"SUM(F3:F13)","v":0},{"$f":"SUM(G3:G13)","v":0},{"$f":"SUM(H3:H13)","v":0},{"$f":"SUM(I3:I13)","v":0},{"$f":"SUM(F14:I14)","v":0},{"$f":"IF(Hintergrunddaten!$BC$2=1,0,IF(Hintergrunddaten!$BC$2=2,10,IF(Hintergrunddaten!$BC$2=5,4,20)))","v":0},{"$f":"K14-J14","v":0},{"$f":"IF('MA 131-140'!K3=0,\"0%\",J3/K3)","v":"0%"}]
[]
["MitarbeiterIn 132",null,null,null,null,{"$f":"IF(Übersicht!D3=0,\"Stunden Jahr 1\",\"Stunden\"&(Übersicht!D3))","v":"Stunden Jahr 1"},{"$f":"IF(Übersicht!D3=0,\"Stunden Jahr 2\",Übersicht!E6)","v":"Stunden Jahr 2"},{"$f":"IF(Übersicht!D3=0,\"Stunden Jahr 3\",Übersicht!F6)","v":"Stunden Jahr 3"},{"$f":"IF(Übersicht!D3=0,\"Stunden Jahr 4\",Übersicht!G6)","v":"Stunden Jahr 4"},"Stunden\nGesamt","Soll-stunden","Differenz","% erreicht"]
[null,"Titel der Fortbildung","Datum von","Datum bis","Inhalte",null,null,null,null,{"$f":"SUM(F28:I28)","v":0},{"$f":"IF(Hintergrunddaten!$BC$9=1,0,IF(Hintergrunddaten!$BC$9=2,10,IF(Hintergrunddaten!$BC$9=5,4,20)))","v":0},{"$f":"K28-J28","v":0},{"$f":"IF('MA 131-140'!K17=0,\"0%\",J17/K17)","v":"0%"}]
["Fortbildung 01",null,null,null,null,null,null,null,null,{"$f":"SUM(F18:I18)","v":0}]
["Fortbildung 02",null,null,null,null,null,null,null,null,{"$f":"SUM(F19:I19)","v":0}]
["Fortbildung 03",null,null,null,null,null,null,null,null,0]
["Fortbildung 04",null,null,null,null,null,null,null,null,0]
["Fortbildung 05",null,null,null,null,null,null,null,null,0]
["Fortbildung 06",null,null,null,null,null,null,null,null,0]
["Fortbildung 07",null,null,null,null,null,null,null,null,0]
["Fortbildung 08",null,null,null,null,null,null,null,null,0]
["Fortbildung 09",null,null,null,null,null,null,null,null,0]
["Fortbildung 10",null,null,null,null,null,null,null,null,0]
[null,null,null,null,null,{"$f":"SUM(F17:F27)","v":0},{"$f":"SUM(G17:G27)","v":0},{"$f":"SUM(H17:H27)","v":0},{"$f":"SUM(I17:I27)","v":0},{"$f":"SUM(F28:I28)","v":0},{"$f":"IF(Hintergrunddaten!$BC$9=1,0,IF(Hintergrunddaten!$BC$9=2,10,IF(Hintergrunddaten!$BC$9=5,4,20)))","v":0},{"$f":"K28-J28","v":0},{"$f":"IF('MA 131-140'!K17=0,\"0%\",J17/K17)","v":"0%"}]
[]
["MitarbeiterIn 133",null,null,null,null,{"$f":"IF(Übersicht!D3=0,\"Stunden Jahr 1\",\"Stunden\"&(Übersicht!D3))","v":"Stunden Jahr 1"},{"$f":"IF(Übersicht!D3=0,\"Stunden Jahr 2\",Übersicht!E6)","v":"Stunden Jahr 2"},{"$f":"IF(Übersicht!D3=0,\"Stunden Jahr 3\",Übersicht!F6)","v":"Stunden Jahr 3"},{"$f":"IF(Übersicht!D3=0,\"Stunden Jahr 4\",Übersicht!G6)","v":"Stunden Jahr 4"},"Stunden\nGesamt","Soll-stunden","Differenz","% erreicht"]
[null,"Titel der Fortbildung","Datum von","Datum bis","Inhalte",null,null,null,null,{"$f":"SUM(F42:I42)","v":0},{"$f":"IF(Hintergrunddaten!$BC$16=1,0,IF(Hintergrunddaten!$BC$16=2,10,IF(Hintergrunddaten!$BC$16=5,4,20)))","v":0},{"$f":"K42-J42","v":0},{"$f":"IF('MA 131-140'!K31=0,\"0%\",J31/K31)","v":"0%"}]
["Fortbildung 01",null,null,null,null,null,null,null,null,{"$f":"SUM(F32:I32)","v":0}]
["Fortbildung 02",null,null,null,null,null,null,null,null,{"$f":"SUM(F33:I33)","v":0}]
["Fortbildung 03",null,null,null,null,null,null,null,null,0]
["Fortbildung 04",null,null,null,null,null,null,null,null,0]
["Fortbildung 05",null,null,null,null,null,null,null,null,0]
["Fortbildung 06",null,null,null,null,null,null,null,null,0]
["Fortbildung 07",null,null,null,null,null,null,null,null,0]
["Fortbildung 08",null,null,null,null,null,null,null,null,0]
["Fortbildung 09",null,null,null,null,null,null,null,null,0]
["Fortbildung 10",null,null,null,null,null,null,null,null,0]
[null,null,null,null,null,{"$f":"SUM(F31:F41)","v":0},{"$f":"SUM(G31:G41)","v":0},{"$f":"SUM(H31:H41)","v":0},{"$f":"SUM(I31:I41)","v":0},{"$f":"SUM(F42:I42)","v":0},{"$f":"IF(Hintergrunddaten!$BC$16=1,0,IF(Hintergrunddaten!$BC$16=2,10,IF(Hintergrunddaten!$BC$16=5,4,20)))","v":0},{"$f":"K42-J42","v":0},{"$f":"IF('MA 131-140'!K31=0,\"0%\",J31/K31)","v":"0%"}]
[]
["MitarbeiterIn 134",null,null,null,null,{"$f":"IF(Übersicht!D3=0,\"Stunden Jahr 1\",\"Stunden\"&(Übersicht!D3))","v":"Stunden Jahr 1"},{"$f":"IF(Übersicht!D3=0,\"Stunden Jahr 2\",Übersicht!E6)","v":"Stunden Jahr 2"},{"$f":"IF(Übersicht!D3=0,\"Stunden Jahr 3\",Übersicht!F6)","v":"Stunden Jahr 3"},{"$f":"IF(Übersicht!D3=0,\"Stunden Jahr 4\",Übersicht!G6)","v":"Stunden Jahr 4"},"Stunden\nGesamt","Soll-stunden","Differenz","% erreicht"]
[null,"Titel der Fortbildung","Datum von","Datum bis","Inhalte",null,null,null,null,{"$f":"SUM(F56:I56)","v":0},{"$f":"IF(Hintergrunddaten!$BC$23=1,0,IF(Hintergrunddaten!$BC$23=2,10,IF(Hintergrunddaten!$BC$23=5,4,20)))","v":0},{"$f":"K56-J56","v":0},{"$f":"IF('MA 131-140'!K45=0,\"0%\",J45/K45)","v":"0%"}]
["Fortbildung 01",null,null,null,null,null,null,null,null,{"$f":"SUM(F46:I46)","v":0}]
["Fortbildung 02",null,null,null,null,null,null,null,null,{"$f":"SUM(F47:I47)","v":0}]
["Fortbildung 03",null,null,null,null,null,null,null,null,0]
["Fortbildung 04",null,null,null,null,null,null,null,null,0]
["Fortbildung 05",null,null,null,null,null,null,null,null,0]
["Fortbildung 06",null,null,null,null,null,null,null,null,0]
["Fortbildung 07",null,null,null,null,null,null,null,null,0]
["Fortbildung 08",null,null,null,null,null,null,null,null,0]
["Fortbildung 09",null,null,null,null,null,null,null,null,0]
["Fortbildung 10",null,null,null,null,null,null,null,null,0]
[null,null,null,null,null,{"$f":"SUM(F45:F55)","v":0},{"$f":"SUM(G45:G55)","v":0},{"$f":"SUM(H45:H55)","v":0},{"$f":"SUM(I45:I55)","v":0},{"$f":"SUM(F56:I56)","v":0},{"$f":"IF(Hintergrunddaten!$BC$23=1,0,IF(Hintergrunddaten!$BC$23=2,10,IF(Hintergrunddaten!$BC$23=5,4,20)))","v":0},{"$f":"K56-J56","v":0},{"$f":"IF('MA 131-140'!K45=0,\"0%\",J45/K45)","v":"0%"}]
[]
["MitarbeiterIn 135",null,null,null,null,{"$f":"IF(Übersicht!D3=0,\"Stunden Jahr 1\",\"Stunden\"&(Übersicht!D3))","v":"Stunden Jahr 1"},{"$f":"IF(Übersicht!D3=0,\"Stunden Jahr 2\",Übersicht!E6)","v":"Stunden Jahr 2"},{"$f":"IF(Übersicht!D3=0,\"Stunden Jahr 3\",Übersicht!F6)","v":"Stunden Jahr 3"},{"$f":"IF(Übersicht!D3=0,\"Stunden Jahr 4\",Übersicht!G6)","v":"Stunden Jahr 4"},"Stunden\nGesamt","Soll-stunden","Differenz","% erreicht"]
[null,"Titel der Fortbildung","Datum von","Datum bis","Inhalte",null,null,null,null,{"$f":"SUM(F70:I70)","v":0},{"$f":"IF(Hintergrunddaten!$BC$30=1,0,IF(Hintergrunddaten!$BC$30=2,10,IF(Hintergrunddaten!$AM30=5,4,20)))","v":0},{"$f":"K70-J70","v":0},{"$f":"IF('MA 131-140'!K59=0,\"0%\",J59/K59)","v":"0%"}]
["Fortbildung 01",null,null,null,null,null,null,null,null,{"$f":"SUM(F60:I60)","v":0}]
["Fortbildung 02",null,null,null,null,null,null,null,null,{"$f":"SUM(F61:I61)","v":0}]
["Fortbildung 03",null,null,null,null,null,null,null,null,0]
["Fortbildung 04",null,null,null,null,null,null,null,null,0]
["Fortbildung 05",null,null,null,null,null,null,null,null,0]
["Fortbildung 06",null,null,null,null,null,null,null,null,0]
["Fortbildung 07",null,null,null,null,null,null,null,null,0]
["Fortbildung 08",null,null,null,null,null,null,null,null,0]
["Fortbildung 09",null,null,null,null,null,null,null,null,0]
["Fortbildung 10",null,null,null,null,null,null,null,null,0]
[null,null,null,null,null,{"$f":"SUM(F59:F69)","v":0},{"$f":"SUM(G59:G69)","v":0},{"$f":"SUM(H59:H69)","v":0},{"$f":"SUM(I59:I69)","v":0},{"$f":"SUM(F70:I70)","v":0},{"$f":"IF(Hintergrunddaten!$BC$30=1,0,IF(Hintergrunddaten!$BC$30=2,10,IF(Hintergrunddaten!$BC$30=5,4,20)))","v":0},{"$f":"K70-J70","v":0},{"$f":"IF('MA 131-140'!K59=0,\"0%\",J59/K59)","v":"0%"}]
[]
["MitarbeiterIn 136",null,null,null,null,{"$f":"IF(Übersicht!D3=0,\"Stunden Jahr 1\",\"Stunden\"&(Übersicht!D3))","v":"Stunden Jahr 1"},{"$f":"IF(Übersicht!D3=0,\"Stunden Jahr 2\",Übersicht!E6)","v":"Stunden Jahr 2"},{"$f":"IF(Übersicht!D3=0,\"Stunden Jahr 3\",Übersicht!F6)","v":"Stunden Jahr 3"},{"$f":"IF(Übersicht!D3=0,\"Stunden Jahr 4\",Übersicht!G6)","v":"Stunden Jahr 4"},"Stunden\nGesamt","Soll-stunden","Differenz","% erreicht"]
[null,"Titel der Fortbildung","Datum von","Datum bis","Inhalte",null,null,null,null,{"$f":"SUM(F84:I84)","v":0},{"$f":"IF(Hintergrunddaten!$BC$37=1,0,IF(Hintergrunddaten!$BC$37=2,10,IF(Hintergrunddaten!$BC$37=5,4,20)))","v":0},{"$f":"K84-J84","v":0},{"$f":"IF('MA 131-140'!K73=0,\"0%\",J73/K73)","v":"0%"}]
["Fortbildung 01",null,null,null,null,null,null,null,null,{"$f":"SUM(F74:I74)","v":0}]
["Fortbildung 02",null,null,null,null,null,null,null,null,{"$f":"SUM(F75:I75)","v":0}]
["Fortbildung 03",null,null,null,null,null,null,null,null,0]
["Fortbildung 04",null,null,null,null,null,null,null,null,0]
["Fortbildung 05",null,null,null,null,null,null,null,null,0]
["Fortbildung 06",null,null,null,null,null,null,null,null,0]
["Fortbildung 07",null,null,null,null,null,null,null,null,0]
["Fortbildung 08",null,null,null,null,null,null,null,null,0]
["Fortbildung 09",null,null,null,null,null,null,null,null,0]
["Fortbildung 10",null,null,null,null,null,null,null,null,0]
[null,null,null,null,null,{"$f":"SUM(F73:F83)","v":0},{"$f":"SUM(G73:G83)","v":0},{"$f":"SUM(H73:H83)","v":0},{"$f":"SUM(I73:I83)","v":0},{"$f":"SUM(F84:I84)","v":0},{"$f":"IF(Hintergrunddaten!$BC$37=1,0,IF(Hintergrunddaten!$BC$37=2,10,IF(Hintergrunddaten!$BC$37=5,4,20)))","v":0},{"$f":"K84-J84","v":0},{"$f":"IF('MA 131-140'!K73=0,\"0%\",J73/K73)","v":"0%"}]
[]
["MitarbeiterIn 137",null,null,null,null,{"$f":"IF(Übersicht!D3=0,\"Stunden Jahr 1\",\"Stunden\"&(Übersicht!D3))","v":"Stunden Jahr 1"},{"$f":"IF(Übersicht!D3=0,\"Stunden Jahr 2\",Übersicht!E6)","v":"Stunden Jahr 2"},{"$f":"IF(Übersicht!D3=0,\"Stunden Jahr 3\",Übersicht!F6)","v":"Stunden Jahr 3"},{"$f":"IF(Übersicht!D3=0,\"Stunden Jahr 4\",Übersicht!G6)","v":"Stunden Jahr 4"},"Stunden\nGesamt","Soll-stunden","Differenz","% erreicht"]
[null,"Titel der Fortbildung","Datum von","Datum bis","Inhalte",null,null,null,null,{"$f":"SUM(F98:I98)","v":0},{"$f":"IF(Hintergrunddaten!$BC$44=1,0,IF(Hintergrunddaten!$BC$44=2,10,IF(Hintergrunddaten!$BC$44=5,4,20)))","v":0},{"$f":"K98-J98","v":0},{"$f":"IF('MA 131-140'!K87=0,\"0%\",J87/K87)","v":"0%"}]
["Fortbildung 01",null,null,null,null,null,null,null,null,{"$f":"SUM(F88:I88)","v":0}]
["Fortbildung 02",null,null,null,null,null,null,null,null,{"$f":"SUM(F89:I89)","v":0}]
["Fortbildung 03",null,null,null,null,null,null,null,null,0]
["Fortbildung 04",null,null,null,null,null,null,null,null,0]
["Fortbildung 05",null,null,null,null,null,null,null,null,0]
["Fortbildung 06",null,null,null,null,null,null,null,null,0]
["Fortbildung 07",null,null,null,null,null,null,null,null,0]
["Fortbildung 08",null,null,null,null,null,null,null,null,0]
["Fortbildung 09",null,null,null,null,null,null,null,null,0]
["Fortbildung 10",null,null,null,null,null,null,null,null,0]
[null,null,null,null,null,{"$f":"SUM(F87:F97)","v":0},{"$f":"SUM(G87:G97)","v":0},{"$f":"SUM(H87:H97)","v":0},{"$f":"SUM(I87:I97)","v":0},{"$f":"SUM(F98:I98)","v":0},{"$f":"IF(Hintergrunddaten!$BC$44=1,0,IF(Hintergrunddaten!$BC$44=2,10,IF(Hintergrunddaten!$BC$44=5,4,20)))","v":0},{"$f":"K98-J98","v":0},{"$f":"IF('MA 131-140'!K87=0,\"0%\",J87/K87)","v":"0%"}]
[]
["MitarbeiterIn 138",null,null,null,null,{"$f":"IF(Übersicht!D3=0,\"Stunden Jahr 1\",\"Stunden\"&(Übersicht!D3))","v":"Stunden Jahr 1"},{"$f":"IF(Übersicht!D3=0,\"Stunden Jahr 2\",Übersicht!E6)","v":"Stunden Jahr 2"},{"$f":"IF(Übersicht!D3=0,\"Stunden Jahr 3\",Übersicht!F6)","v":"Stunden Jahr 3"},{"$f":"IF(Übersicht!D3=0,\"Stunden Jahr 4\",Übersicht!G6)","v":"Stunden Jahr 4"},"Stunden\nGesamt","Soll-stunden","Differenz","% erreicht"]
[null,"Titel der Fortbildung","Datum von","Datum bis","Inhalte",null,null,null,null,{"$f":"SUM(F112:I112)","v":0},{"$f":"IF(Hintergrunddaten!$BC$51=1,0,IF(Hintergrunddaten!$BC$51=2,10,IF(Hintergrunddaten!$BC$51=5,4,20)))","v":0},{"$f":"K112-J112","v":0},{"$f":"IF('MA 131-140'!K101=0,\"0%\",J101/K101)","v":"0%"}]
["Fortbildung 01",null,null,null,null,null,null,null,null,{"$f":"SUM(F102:I102)","v":0}]
["Fortbildung 02",null,null,null,null,null,null,null,null,{"$f":"SUM(F103:I103)","v":0}]
["Fortbildung 03",null,null,null,null,null,null,null,null,0]
["Fortbildung 04",null,null,null,null,null,null,null,null,0]
["Fortbildung 05",null,null,null,null,null,null,null,null,0]
["Fortbildung 06",null,null,null,null,null,null,null,null,0]
["Fortbildung 07",null,null,null,null,null,null,null,null,0]
["Fortbildung 08",null,null,null,null,null,null,null,null,0]
["Fortbildung 09",null,null,null,null,null,null,null,null,0]
["Fortbildung 10",null,null,null,null,null,null,null,null,0]
[null,null,null,null,null,{"$f":"SUM(F101:F111)","v":0},{"$f":"SUM(G101:G111)","v":0},{"$f":"SUM(H101:H111)","v":0},{"$f":"SUM(I101:I111)","v":0},{"$f":"SUM(F112:I112)","v":0},{"$f":"IF(Hintergrunddaten!$BC$51=1,0,IF(Hintergrunddaten!$BC$51=2,10,IF(Hintergrunddaten!$BC$51=5,4,20)))","v":0},{"$f":"K112-J112","v":0},{"$f":"IF('MA 131-140'!K101=0,\"0%\",J101/K101)","v":"0%"}]
[]
["MitarbeiterIn 139",null,null,null,null,{"$f":"IF(Übersicht!D3=0,\"Stunden Jahr 1\",\"Stunden\"&(Übersicht!D3))","v":"Stunden Jahr 1"},{"$f":"IF(Übersicht!D3=0,\"Stunden Jahr 2\",Übersicht!E6)","v":"Stunden Jahr 2"},{"$f":"IF(Übersicht!D3=0,\"Stunden Jahr 3\",Übersicht!F6)","v":"Stunden Jahr 3"},{"$f":"IF(Übersicht!D3=0,\"Stunden Jahr 4\",Übersicht!G6)","v":"Stunden Jahr 4"},"Stunden\nGesamt","Soll-stunden","Differenz","% erreicht"]
[null,"Titel der Fortbildung","Datum von","Datum bis","Inhalte",null,null,null,null,{"$f":"SUM(F126:I126)","v":0},{"$f":"IF(Hintergrunddaten!$BC$58=1,0,IF(Hintergrunddaten!$BC$58=2,10,IF(Hintergrunddaten!$BC$58=5,4,20)))","v":0},{"$f":"K126-J126","v":0},{"$f":"IF('MA 131-140'!K115=0,\"0%\",J115/K115)","v":"0%"}]
["Fortbildung 01",null,null,null,null,null,null,null,null,{"$f":"SUM(F116:I116)","v":0}]
["Fortbildung 02",null,null,null,null,null,null,null,null,{"$f":"SUM(F117:I117)","v":0}]
["Fortbildung 03",null,null,null,null,null,null,null,null,0]
["Fortbildung 04",null,null,null,null,null,null,null,null,0]
["Fortbildung 05",null,null,null,null,null,null,null,null,0]
["Fortbildung 06",null,null,null,null,null,null,null,null,0]
["Fortbildung 07",null,null,null,null,null,null,null,null,0]
["Fortbildung 08",null,null,null,null,null,null,null,null,0]
["Fortbildung 09",null,null,null,null,null,null,null,null,0]
["Fortbildung 10",null,null,null,null,null,null,null,null,0]
[null,null,null,null,null,{"$f":"SUM(F115:F125)","v":0},{"$f":"SUM(G115:G125)","v":0},{"$f":"SUM(H115:H125)","v":0},{"$f":"SUM(I115:I125)","v":0},{"$f":"SUM(F126:I126)","v":0},{"$f":"IF(Hintergrunddaten!$BC$58=1,0,IF(Hintergrunddaten!$BC$58=2,10,IF(Hintergrunddaten!$BC$58=5,4,20)))","v":0},{"$f":"K126-J126","v":0},{"$f":"IF('MA 131-140'!K115=0,\"0%\",J115/K115)","v":"0%"}]
[]
["MitarbeiterIn 140",null,null,null,null,{"$f":"IF(Übersicht!D3=0,\"Stunden Jahr 1\",\"Stunden\"&(Übersicht!D3))","v":"Stunden Jahr 1"},{"$f":"IF(Übersicht!D3=0,\"Stunden Jahr 2\",Übersicht!E6)","v":"Stunden Jahr 2"},{"$f":"IF(Übersicht!D3=0,\"Stunden Jahr 3\",Übersicht!F6)","v":"Stunden Jahr 3"},{"$f":"IF(Übersicht!D3=0,\"Stunden Jahr 4\",Übersicht!G6)","v":"Stunden Jahr 4"},"Stunden\nGesamt","Soll-stunden","Differenz","% erreicht"]
[null,"Titel der Fortbildung","Datum von","Datum bis","Inhalte",null,null,null,null,{"$f":"SUM(F140:I140)","v":0},{"$f":"IF(Hintergrunddaten!$BC$65=1,0,IF(Hintergrunddaten!$BC$65=2,10,IF(Hintergrunddaten!$BC$65=5,4,20)))","v":0},{"$f":"K140-J140","v":0},{"$f":"IF('MA 131-140'!K129=0,\"0%\",J129/K129)","v":"0%"}]
["Fortbildung 01",null,null,null,null,null,null,null,null,{"$f":"SUM(F130:I130)","v":0}]
["Fortbildung 02",null,null,null,null,null,null,null,null,{"$f":"SUM(F131:I131)","v":0}]
["Fortbildung 03",null,null,null,null,null,null,null,null,0]
["Fortbildung 04",null,null,null,null,null,null,null,null,0]
["Fortbildung 05",null,null,null,null,null,null,null,null,0]
["Fortbildung 06",null,null,null,null,null,null,null,null,0]
["Fortbildung 07",null,null,null,null,null,null,null,null,0]
["Fortbildung 08",null,null,null,null,null,null,null,null,0]
["Fortbildung 09",null,null,null,null,null,null,null,null,0]
["Fortbildung 10",null,null,null,null,null,null,null,null,0]
[null,null,null,null,null,{"$f":"SUM(F129:F139)","v":0},{"$f":"SUM(G129:G139)","v":0},{"$f":"SUM(H129:H139)","v":0},{"$f":"SUM(I129:I139)","v":0},{"$f":"SUM(F140:I140)","v":0},{"$f":"IF(Hintergrunddaten!$BC$65=1,0,IF(Hintergrunddaten!$BC$65=2,10,IF(Hintergrunddaten!$BC$65=5,4,20)))","v":0},{"$f":"K140-J140","v":0},{"$f":"IF('MA 131-140'!K129=0,\"0%\",J129/K129)","v":"0%"}]

{"sheet":"MA 141-150","index":15,"n_rows":140,"n_cols":13,"rows_kept":140,"cut":false,"hidden":false,"merged":[]}
[]
["MitarbeiterIn 141",null,null,null,null,{"$f":"IF(Übersicht!D3=0,\"Stunden Jahr 1\",\"Stunden\"&(Übersicht!D3))","v":"Stunden Jahr 1"},{"$f":"IF(Übersicht!D3=0,\"Stunden Jahr 2\",Übersicht!E6)","v":"Stunden Jahr 2"},{"$f":"IF(Übersicht!D3=0,\"Stunden Jahr 3\",Übersicht!F6)","v":"Stunden Jahr 3"},{"$f":"IF(Übersicht!D3=0,\"Stunden Jahr 4\",Übersicht!G6)","v":"Stunden Jahr 4"},"Stunden\nGesamt","Soll-stunden","Differenz","% erreicht"]
[null,"Titel der Fortbildung","Datum von","Datum bis","Inhalte",null,null,null,null,{"$f":"SUM(F14:I14)","v":0},{"$f":"IF(Hintergrunddaten!$BG$2=1,0,IF(Hintergrunddaten!$BG$2=2,10,IF(Hintergrunddaten!$BG$2=5,4,20)))","v":0},{"$f":"K14-J14","v":0},{"$f":"IF('MA 141-150'!K3=0,\"0%\",J3/K3)","v":"0%"}]
["Fortbildung 01",null,null,null,null,null,null,null,null,{"$f":"SUM(F4:I4)","v":0}]
["Fortbildung 02",null,null,null,null,null,null,null,null,{"$f":"SUM(F5:I5)","v":0}]
["Fortbildung 03",null,null,null,null,null,null,null,null,0]
["Fortbildung 04",null,null,null,null,null,null,null,null,0]
["Fortbildung 05",null,null,null,null,null,null,null,null,0]
["Fortbildung 06",null,null,null,null,null,null,null,null,0]
["Fortbildung 07",null,null,null,null,null,null,null,null,0]
["Fortbildung 08",null,null,null,null,null,null,null,null,0]
["Fortbildung 09",null,null,null,null,null,null,null,null,0]
["Fortbildung 10",null,null,null,null,null,null,null,null,0]
[null,null,null,null,null,{"$f":"SUM(F3:F13)","v":0},{"$f":"SUM(G3:G13)","v":0},{"$f":"SUM(H3:H13)","v":0},{"$f":"SUM(I3:I13)","v":0},{"$f":"SUM(F14:I14)","v":0},{"$f":"IF(Hintergrunddaten!$BG$2=1,0,IF(Hintergrunddaten!$BG$2=2,10,IF(Hintergrunddaten!$BG$2=5,4,20)))","v":0},{"$f":"K14-J14","v":0},{"$f":"IF('MA 141-150'!K3=0,\"0%\",J3/K3)","v":"0%"}]
[]
["MitarbeiterIn 142",null,null,null,null,{"$f":"IF(Übersicht!D3=0,\"Stunden Jahr 1\",\"Stunden\"&(Übersicht!D3))","v":"Stunden Jahr 1"},{"$f":"IF(Übersicht!D3=0,\"Stunden Jahr 2\",Übersicht!E6)","v":"Stunden Jahr 2"},{"$f":"IF(Übersicht!D3=0,\"Stunden Jahr 3\",Übersicht!F6)","v":"Stunden Jahr 3"},{"$f":"IF(Übersicht!D3=0,\"Stunden Jahr 4\",Übersicht!G6)","v":"Stunden Jahr 4"},"Stunden\nGesamt","Soll-stunden","Differenz","% erreicht"]
[null,"Titel der Fortbildung","Datum von","Datum bis","Inhalte",null,null,null,null,{"$f":"SUM(F28:I28)","v":0},{"$f":"IF(Hintergrunddaten!$BG$9=1,0,IF(Hintergrunddaten!$BG$9=2,10,IF(Hintergrunddaten!$BG$9=5,4,20)))","v":0},{"$f":"K28-J28","v":0},{"$f":"IF('MA 141-150'!K17=0,\"0%\",J17/K17)","v":"0%"}]
["Fortbildung 01",null,null,null,null,null,null,null,null,{"$f":"SUM(F18:I18)","v":0}]
["Fortbildung 02",null,null,null,null,null,null,null,null,{"$f":"SUM(F19:I19)","v":0}]
["Fortbildung 03",null,null,null,null,null,null,null,null,0]
["Fortbildung 04",null,null,null,null,null,null,null,null,0]
["Fortbildung 05",null,null,null,null,null,null,null,null,0]
["Fortbildung 06",null,null,null,null,null,null,null,null,0]
["Fortbildung 07",null,null,null,null,null,null,null,null,0]
["Fortbildung 08",null,null,null,null,null,null,null,null,0]
["Fortbildung 09",null,null,null,null,null,null,null,null,0]
["Fortbildung 10",null,null,null,null,null,null,null,null,0]
[null,null,null,null,null,{"$f":"SUM(F17:F27)","v":0},{"$f":"SUM(G17:G27)","v":0},{"$f":"SUM(H17:H27)","v":0},{"$f":"SUM(I17:I27)","v":0},{"$f":"SUM(F28:I28)","v":0},{"$f":"IF(Hintergrunddaten!$BG$9=1,0,IF(Hintergrunddaten!$BG$9=2,10,IF(Hintergrunddaten!$BG$9=5,4,20)))","v":0},{"$f":"K28-J28","v":0},{"$f":"IF('MA 141-150'!K17=0,\"0%\",J17/K17)","v":"0%"}]
[]
["MitarbeiterIn 143",null,null,null,null,{"$f":"IF(Übersicht!D3=0,\"Stunden Jahr 1\",\"Stunden\"&(Übersicht!D3))","v":"Stunden Jahr 1"},{"$f":"IF(Übersicht!D3=0,\"Stunden Jahr 2\",Übersicht!E6)","v":"Stunden Jahr 2"},{"$f":"IF(Übersicht!D3=0,\"Stunden Jahr 3\",Übersicht!F6)","v":"Stunden Jahr 3"},{"$f":"IF(Übersicht!D3=0,\"Stunden Jahr 4\",Übersicht!G6)","v":"Stunden Jahr 4"},"Stunden\nGesamt","Soll-stunden","Differenz","% erreicht"]
[null,"Titel der Fortbildung","Datum von","Datum bis","Inhalte",null,null,null,null,{"$f":"SUM(F42:I42)","v":0},{"$f":"IF(Hintergrunddaten!$BG$16=1,0,IF(Hintergrunddaten!$BG$16=2,10,IF(Hintergrunddaten!$BG$16=5,4,20)))","v":0},{"$f":"K42-J42","v":0},{"$f":"IF('MA 141-150'!K31=0,\"0%\",J31/K31)","v":"0%"}]
["Fortbildung 01",null,null,null,null,null,null,null,null,{"$f":"SUM(F32:I32)","v":0}]
["Fortbildung 02",null,null,null,null,null,null,null,null,{"$f":"SUM(F33:I33)","v":0}]
["Fortbildung 03",null,null,null,null,null,null,null,null,0]
["Fortbildung 04",null,null,null,null,null,null,null,null,0]
["Fortbildung 05",null,null,null,null,null,null,null,null,0]
["Fortbildung 06",null,null,null,null,null,null,null,null,0]
["Fortbildung 07",null,null,null,null,null,null,null,null,0]
["Fortbildung 08",null,null,null,null,null,null,null,null,0]
["Fortbildung 09",null,null,null,null,null,null,null,null,0]
["Fortbildung 10",null,null,null,null,null,null,null,null,0]
[null,null,null,null,null,{"$f":"SUM(F31:F41)","v":0},{"$f":"SUM(G31:G41)","v":0},{"$f":"SUM(H31:H41)","v":0},{"$f":"SUM(I31:I41)","v":0},{"$f":"SUM(F42:I42)","v":0},{"$f":"IF(Hintergrunddaten!$BG$16=1,0,IF(Hintergrunddaten!$BG$16=2,10,IF(Hintergrunddaten!$BG$16=5,4,20)))","v":0},{"$f":"K42-J42","v":0},{"$f":"IF('MA 141-150'!K31=0,\"0%\",J31/K31)","v":"0%"}]
[]
["MitarbeiterIn 144",null,null,null,null,{"$f":"IF(Übersicht!D3=0,\"Stunden Jahr 1\",\"Stunden\"&(Übersicht!D3))","v":"Stunden Jahr 1"},{"$f":"IF(Übersicht!D3=0,\"Stunden Jahr 2\",Übersicht!E6)","v":"Stunden Jahr 2"},{"$f":"IF(Übersicht!D3=0,\"Stunden Jahr 3\",Übersicht!F6)","v":"Stunden Jahr 3"},{"$f":"IF(Übersicht!D3=0,\"Stunden Jahr 4\",Übersicht!G6)","v":"Stunden Jahr 4"},"Stunden\nGesamt","Soll-stunden","Differenz","% erreicht"]
[null,"Titel der Fortbildung","Datum von","Datum bis","Inhalte",null,null,null,null,{"$f":"SUM(F56:I56)","v":0},{"$f":"IF(Hintergrunddaten!$BG$23=1,0,IF(Hintergrunddaten!$BG$23=2,10,IF(Hintergrunddaten!$BG$23=5,4,20)))","v":0},{"$f":"K56-J56","v":0},{"$f":"IF('MA 141-150'!K45=0,\"0%\",J45/K45)","v":"0%"}]
["Fortbildung 01",null,null,null,null,null,null,null,null,{"$f":"SUM(F46:I46)","v":0}]
["Fortbildung 02",null,null,null,null,null,null,null,null,{"$f":"SUM(F47:I47)","v":0}]
["Fortbildung 03",null,null,null,null,null,null,null,null,0]
["Fortbildung 04",null,null,null,null,null,null,null,null,0]
["Fortbildung 05",null,null,null,null,null,null,null,null,0]
["Fortbildung 06",null,null,null,null,null,null,null,null,0]
["Fortbildung 07",null,null,null,null,null,null,null,null,0]
["Fortbildung 08",null,null,null,null,null,null,null,null,0]
["Fortbildung 09",null,null,null,null,null,null,null,null,0]
["Fortbildung 10",null,null,null,null,null,null,null,null,0]
[null,null,null,null,null,{"$f":"SUM(F45:F55)","v":0},{"$f":"SUM(G45:G55)","v":0},{"$f":"SUM(H45:H55)","v":0},{"$f":"SUM(I45:I55)","v":0},{"$f":"SUM(F56:I56)","v":0},{"$f":"IF(Hintergrunddaten!$BG$23=1,0,IF(Hintergrunddaten!$BG$23=2,10,IF(Hintergrunddaten!$BG$23=5,4,20)))","v":0},{"$f":"K56-J56","v":0},{"$f":"IF('MA 141-150'!K45=0,\"0%\",J45/K45)","v":"0%"}]
[]
["MitarbeiterIn 145",null,null,null,null,{"$f":"IF(Übersicht!D3=0,\"Stunden Jahr 1\",\"Stunden\"&(Übersicht!D3))","v":"Stunden Jahr 1"},{"$f":"IF(Übersicht!D3=0,\"Stunden Jahr 2\",Übersicht!E6)","v":"Stunden Jahr 2"},{"$f":"IF(Übersicht!D3=0,\"Stunden Jahr 3\",Übersicht!F6)","v":"Stunden Jahr 3"},{"$f":"IF(Übersicht!D3=0,\"Stunden Jahr 4\",Übersicht!G6)","v":"Stunden Jahr 4"},"Stunden\nGesamt","Soll-stunden","Differenz","% erreicht"]
[null,"Titel der Fortbildung","Datum von","Datum bis","Inhalte",null,null,null,null,{"$f":"SUM(F70:I70)","v":0},{"$f":"IF(Hintergrunddaten!$BG$30=1,0,IF(Hintergrunddaten!$BG$30=2,10,IF(Hintergrunddaten!$AM30=5,4,20)))","v":0},{"$f":"K70-J70","v":0},{"$f":"IF('MA 141-150'!K59=0,\"0%\",J59/K59)","v":"0%"}]
["Fortbildung 01",null,null,null,null,null,null,null,null,{"$f":"SUM(F60:I60)","v":0}]
["Fortbildung 02",null,null,null,null,null,null,null,null,{"$f":"SUM(F61:I61)","v":0}]
["Fortbildung 03",null,null,null,null,null,null,null,null,0]
["Fortbildung 04",null,null,null,null,null,null,null,null,0]
["Fortbildung 05",null,null,null,null,null,null,null,null,0]
["Fortbildung 06",null,null,null,null,null,null,null,null,0]
["Fortbildung 07",null,null,null,null,null,null,null,null,0]
["Fortbildung 08",null,null,null,null,null,null,null,null,0]
["Fortbildung 09",null,null,null,null,null,null,null,null,0]
["Fortbildung 10",null,null,null,null,null,null,null,null,0]
[null,null,null,null,null,{"$f":"SUM(F59:F69)","v":0},{"$f":"SUM(G59:G69)","v":0},{"$f":"SUM(H59:H69)","v":0},{"$f":"SUM(I59:I69)","v":0},{"$f":"SUM(F70:I70)","v":0},{"$f":"IF(Hintergrunddaten!$BG$30=1,0,IF(Hintergrunddaten!$BG$30=2,10,IF(Hintergrunddaten!$BG$30=5,4,20)))","v":0},{"$f":"K70-J70","v":0},{"$f":"IF('MA 141-150'!K59=0,\"0%\",J59/K59)","v":"0%"}]
[]
["MitarbeiterIn 146",null,null,null,null,{"$f":"IF(Übersicht!D3=0,\"Stunden Jahr 1\",\"Stunden\"&(Übersicht!D3))","v":"Stunden Jahr 1"},{"$f":"IF(Übersicht!D3=0,\"Stunden Jahr 2\",Übersicht!E6)","v":"Stunden Jahr 2"},{"$f":"IF(Übersicht!D3=0,\"Stunden Jahr 3\",Übersicht!F6)","v":"Stunden Jahr 3"},{"$f":"IF(Übersicht!D3=0,\"Stunden Jahr 4\",Übersicht!G6)","v":"Stunden Jahr 4"},"Stunden\nGesamt","Soll-stunden","Differenz","% erreicht"]
[null,"Titel der Fortbildung","Datum von","Datum bis","Inhalte",null,null,null,null,{"$f":"SUM(F84:I84)","v":0},{"$f":"IF(Hintergrunddaten!$BG$37=1,0,IF(Hintergrunddaten!$BG$37=2,10,IF(Hintergrunddaten!$BG$37=5,4,20)))","v":0},{"$f":"K84-J84","v":0},{"$f":"IF('MA 141-150'!K73=0,\"0%\",J73/K73)","v":"0%"}]
["Fortbildung 01",null,null,null,null,null,null,null,null,{"$f":"SUM(F74:I74)","v":0}]
["Fortbildung 02",null,null,null,null,null,null,null,null,{"$f":"SUM(F75:I75)","v":0}]
["Fortbildung 03",null,null,null,null,null,null,null,null,0]
["Fortbildung 04",null,null,null,null,null,null,null,null,0]
["Fortbildung 05",null,null,null,null,null,null,null,null,0]
["Fortbildung 06",null,null,null,null,null,null,null,null,0]
["Fortbildung 07",null,null,null,null,null,null,null,null,0]
["Fortbildung 08",null,null,null,null,null,null,null,null,0]
["Fortbildung 09",null,null,null,null,null,null,null,null,0]
["Fortbildung 10",null,null,null,null,null,null,null,null,0]
[null,null,null,null,null,{"$f":"SUM(F73:F83)","v":0},{"$f":"SUM(G73:G83)","v":0},{"$f":"SUM(H73:H83)","v":0},{"$f":"SUM(I73:I83)","v":0},{"$f":"SUM(F84:I84)","v":0},{"$f":"IF(Hintergrunddaten!$BG$37=1,0,IF(Hintergrunddaten!$BG$37=2,10,IF(Hintergrunddaten!$BG$37=5,4,20)))","v":0},{"$f":"K84-J84","v":0},{"$f":"IF('MA 141-150'!K73=0,\"0%\",J73/K73)","v":"0%"}]
[]
["MitarbeiterIn 147",null,null,null,null,{"$f":"IF(Übersicht!D3=0,\"Stunden Jahr 1\",\"Stunden\"&(Übersicht!D3))","v":"Stunden Jahr 1"},{"$f":"IF(Übersicht!D3=0,\"Stunden Jahr 2\",Übersicht!E6)","v":"Stunden Jahr 2"},{"$f":"IF(Übersicht!D3=0,\"Stunden Jahr 3\",Übersicht!F6)","v":"Stunden Jahr 3"},{"$f":"IF(Übersicht!D3=0,\"Stunden Jahr 4\",Übersicht!G6)","v":"Stunden Jahr 4"},"Stunden\nGesamt","Soll-stunden","Differenz","% erreicht"]
[null,"Titel der Fortbildung","Datum von","Datum bis","Inhalte",null,null,null,null,{"$f":"SUM(F98:I98)","v":0},{"$f":"IF(Hintergrunddaten!$BG$44=1,0,IF(Hintergrunddaten!$BG$44=2,10,IF(Hintergrunddaten!$BG$44=5,4,20)))","v":0},{"$f":"K98-J98","v":0},{"$f":"IF('MA 141-150'!K87=0,\"0%\",J87/K87)","v":"0%"}]
["Fortbildung 01",null,null,null,null,null,null,null,null,{"$f":"SUM(F88:I88)","v":0}]
["Fortbildung 02",null,null,null,null,null,null,null,null,{"$f":"SUM(F89:I89)","v":0}]
["Fortbildung 03",null,null,null,null,null,null,null,null,0]
["Fortbildung 04",null,null,null,null,null,null,null,null,0]
["Fortbildung 05",null,null,null,null,null,null,null,null,0]
["Fortbildung 06",null,null,null,null,null,null,null,null,0]
["Fortbildung 07",null,null,null,null,null,null,null,null,0]
["Fortbildung 08",null,null,null,null,null,null,null,null,0]
["Fortbildung 09",null,null,null,null,null,null,null,null,0]
["Fortbildung 10",null,null,null,null,null,null,null,null,0]
[null,null,null,null,null,{"$f":"SUM(F87:F97)","v":0},{"$f":"SUM(G87:G97)","v":0},{"$f":"SUM(H87:H97)","v":0},{"$f":"SUM(I87:I97)","v":0},{"$f":"SUM(F98:I98)","v":0},{"$f":"IF(Hintergrunddaten!$BG$44=1,0,IF(Hintergrunddaten!$BG$44=2,10,IF(Hintergrunddaten!$BG$44=5,4,20)))","v":0},{"$f":"K98-J98","v":0},{"$f":"IF('MA 141-150'!K87=0,\"0%\",J87/K87)","v":"0%"}]
[]
["MitarbeiterIn 148",null,null,null,null,{"$f":"IF(Übersicht!D3=0,\"Stunden Jahr 1\",\"Stunden\"&(Übersicht!D3))","v":"Stunden Jahr 1"},{"$f":"IF(Übersicht!D3=0,\"Stunden Jahr 2\",Übersicht!E6)","v":"Stunden Jahr 2"},{"$f":"IF(Übersicht!D3=0,\"Stunden Jahr 3\",Übersicht!F6)","v":"Stunden Jahr 3"},{"$f":"IF(Übersicht!D3=0,\"Stunden Jahr 4\",Übersicht!G6)","v":"Stunden Jahr 4"},"Stunden\nGesamt","Soll-stunden","Differenz","% erreicht"]
[null,"Titel der Fortbildung","Datum von","Datum bis","Inhalte",null,null,null,null,{"$f":"SUM(F112:I112)","v":0},{"$f":"IF(Hintergrunddaten!$BG$51=1,0,IF(Hintergrunddaten!$BG$51=2,10,IF(Hintergrunddaten!$BG$51=5,4,20)))","v":0},{"$f":"K112-J112","v":0},{"$f":"IF('MA 141-150'!K101=0,\"0%\",J101/K101)","v":"0%"}]
["Fortbildung 01",null,null,null,null,null,null,null,null,{"$f":"SUM(F102:I102)","v":0}]
["Fortbildung 02",null,null,null,null,null,null,null,null,{"$f":"SUM(F103:I103)","v":0}]
["Fortbildung 03",null,null,null,null,null,null,null,null,0]
["Fortbildung 04",null,null,null,null,null,null,null,null,0]
["Fortbildung 05",null,null,null,null,null,null,null,null,0]
["Fortbildung 06",null,null,null,null,null,null,null,null,0]
["Fortbildung 07",null,null,null,null,null,null,null,null,0]
["Fortbildung 08",null,null,null,null,null,null,null,null,0]
["Fortbildung 09",null,null,null,null,null,null,null,null,0]
["Fortbildung 10",null,null,null,null,null,null,null,null,0]
[null,null,null,null,null,{"$f":"SUM(F101:F111)","v":0},{"$f":"SUM(G101:G111)","v":0},{"$f":"SUM(H101:H111)","v":0},{"$f":"SUM(I101:I111)","v":0},{"$f":"SUM(F112:I112)","v":0},{"$f":"IF(Hintergrunddaten!$BG$51=1,0,IF(Hintergrunddaten!$BG$51=2,10,IF(Hintergrunddaten!$BG$51=5,4,20)))","v":0},{"$f":"K112-J112","v":0},{"$f":"IF('MA 141-150'!K101=0,\"0%\",J101/K101)","v":"0%"}]
[]
["MitarbeiterIn 149",null,null,null,null,{"$f":"IF(Übersicht!D3=0,\"Stunden Jahr 1\",\"Stunden\"&(Übersicht!D3))","v":"Stunden Jahr 1"},{"$f":"IF(Übersicht!D3=0,\"Stunden Jahr 2\",Übersicht!E6)","v":"Stunden Jahr 2"},{"$f":"IF(Übersicht!D3=0,\"Stunden Jahr 3\",Übersicht!F6)","v":"Stunden Jahr 3"},{"$f":"IF(Übersicht!D3=0,\"Stunden Jahr 4\",Übersicht!G6)","v":"Stunden Jahr 4"},"Stunden\nGesamt","Soll-stunden","Differenz","% erreicht"]
[null,"Titel der Fortbildung","Datum von","Datum bis","Inhalte",null,null,null,null,{"$f":"SUM(F126:I126)","v":0},{"$f":"IF(Hintergrunddaten!$BG$58=1,0,IF(Hintergrunddaten!$BG$58=2,10,IF(Hintergrunddaten!$BG$58=5,4,20)))","v":0},{"$f":"K126-J126","v":0},{"$f":"IF('MA 141-150'!K115=0,\"0%\",J115/K115)","v":"0%"}]
["Fortbildung 01",null,null,null,null,null,null,null,null,{"$f":"SUM(F116:I116)","v":0}]
["Fortbildung 02",null,null,null,null,null,null,null,null,{"$f":"SUM(F117:I117)","v":0}]
["Fortbildung 03",null,null,null,null,null,null,null,null,0]
["Fortbildung 04",null,null,null,null,null,null,null,null,0]
["Fortbildung 05",null,null,null,null,null,null,null,null,0]
["Fortbildung 06",null,null,null,null,null,null,null,null,0]
["Fortbildung 07",null,null,null,null,null,null,null,null,0]
["Fortbildung 08",null,null,null,null,null,null,null,null,0]
["Fortbildung 09",null,null,null,null,null,null,null,null,0]
["Fortbildung 10",null,null,null,null,null,null,null,null,0]
[null,null,null,null,null,{"$f":"SUM(F115:F125)","v":0},{"$f":"SUM(G115:G125)","v":0},{"$f":"SUM(H115:H125)","v":0},{"$f":"SUM(I115:I125)","v":0},{"$f":"SUM(F126:I126)","v":0},{"$f":"IF(Hintergrunddaten!$BG$58=1,0,IF(Hintergrunddaten!$BG$58=2,10,IF(Hintergrunddaten!$BG$58=5,4,20)))","v":0},{"$f":"K126-J126","v":0},{"$f":"IF('MA 141-150'!K115=0,\"0%\",J115/K115)","v":"0%"}]
[]
["MitarbeiterIn 150",null,null,null,null,{"$f":"IF(Übersicht!D3=0,\"Stunden Jahr 1\",\"Stunden\"&(Übersicht!D3))","v":"Stunden Jahr 1"},{"$f":"IF(Übersicht!D3=0,\"Stunden Jahr 2\",Übersicht!E6)","v":"Stunden Jahr 2"},{"$f":"IF(Übersicht!D3=0,\"Stunden Jahr 3\",Übersicht!F6)","v":"Stunden Jahr 3"},{"$f":"IF(Übersicht!D3=0,\"Stunden Jahr 4\",Übersicht!G6)","v":"Stunden Jahr 4"},"Stunden\nGesamt","Soll-stunden","Differenz","% erreicht"]
[null,"Titel der Fortbildung","Datum von","Datum bis","Inhalte",null,null,null,null,{"$f":"SUM(F140:I140)","v":0},{"$f":"IF(Hintergrunddaten!$BG$65=1,0,IF(Hintergrunddaten!$BG$65=2,10,IF(Hintergrunddaten!$BG$65=5,4,20)))","v":0},{"$f":"K140-J140","v":0},{"$f":"IF('MA 141-150'!K129=0,\"0%\",J129/K129)","v":"0%"}]
["Fortbildung 01",null,null,null,null,null,null,null,null,{"$f":"SUM(F130:I130)","v":0}]
["Fortbildung 02",null,null,null,null,null,null,null,null,{"$f":"SUM(F131:I131)","v":0}]
["Fortbildung 03",null,null,null,null,null,null,null,null,0]
["Fortbildung 04",null,null,null,null,null,null,null,null,0]
["Fortbildung 05",null,null,null,null,null,null,null,null,0]
["Fortbildung 06",null,null,null,null,null,null,null,null,0]
["Fortbildung 07",null,null,null,null,null,null,null,null,0]
["Fortbildung 08",null,null,null,null,null,null,null,null,0]
["Fortbildung 09",null,null,null,null,null,null,null,null,0]
["Fortbildung 10",null,null,null,null,null,null,null,null,0]
[null,null,null,null,null,{"$f":"SUM(F129:F139)","v":0},{"$f":"SUM(G129:G139)","v":0},{"$f":"SUM(H129:H139)","v":0},{"$f":"SUM(I129:I139)","v":0},{"$f":"SUM(F140:I140)","v":0},{"$f":"IF(Hintergrunddaten!$BG$65=1,0,IF(Hintergrunddaten!$BG$65=2,10,IF(Hintergrunddaten!$BG$65=5,4,20)))","v":0},{"$f":"K140-J140","v":0},{"$f":"IF('MA 141-150'!K129=0,\"0%\",J129/K129)","v":"0%"}]

{"sheet":"Hintergrunddaten","index":16,"n_rows":69,"n_cols":59,"rows_kept":69,"cut":false,"hidden":true,"merged":[]}
["MA 001","Listenfeld Auswahl","Zahl Auswahl",null,"MA 011","Listenfeld Auswahl","Zahl Auswahl",null,"MA 021","Listenfeld Auswahl","Zahl Auswahl",null,"MA 031","Listenfeld Auswahl","Zahl Auswahl",null,"MA 041","Listenfeld Auswahl","Zahl Auswahl",null,"MA 051","Listenfeld Auswahl","Zahl Auswahl",null,"MA 061","Listenfeld Auswahl","Zahl Auswahl",null,"MA 071","Listenfeld Auswahl","Zahl Auswahl",null,"MA 081","Listenfeld Auswahl","Zahl Auswahl",null,"MA 091","Listenfeld Auswahl","Zahl Auswahl",null,"MA 101","Listenfeld Auswahl","Zahl Auswahl",null,"MA 111","Listenfeld Auswahl","Zahl Auswahl",null,"MA 121","Listenfeld Auswahl","Zahl Auswahl",null,"MA 131","Listenfeld Auswahl","Zahl Auswahl",null,"MA 141","Listenfeld Auswahl","Zahl Auswahl"]
[1,null,1,null,1,null,1,null,1,null,1,null,1,null,1,null,1,null,1,null,1,null,1,null,1,null,1,null,1,null,1,null,1,null,1,null,1,null,1,null,1,null,1,null,1,null,1,null,1,null,1,null,1,null,1,null,1,null,1]
[2,"Medizin",null,null,2,"Medizin",null,null,2,"Medizin",null,null,2,"Medizin",null,null,2,"Medizin",null,null,2,"Medizin",null,null,2,"Medizin",null,null,2,"Medizin",null,null,2,"Medizin",null,null,2,"Medizin",null,null,2,"Medizin",null,null,2,"Medizin",null,null,2,"Medizin",null,null,2,"Medizin",null,null,2,"Medizin"]
[3,"Pflege",null,null,3,"Pflege",null,null,3,"Pflege",null,null,3,"Pflege",null,null,3,"Pflege",null,null,3,"Pflege",null,null,3,"Pflege",null,null,3,"Pflege",null,null,3,"Pflege",null,null,3,"Pflege",null,null,3,"Pflege",null,null,3,"Pflege",null,null,3,"Pflege",null,null,3,"Pflege",null,null,3,"Pflege"]
[4,"Hebammen",null,null,4,"Hebammen",null,null,4,"Hebammen",null,null,4,"Hebammen",null,null,4,"Hebammen",null,null,4,"Hebammen",null,null,4,"Hebammen",null,null,4,"Hebammen",null,null,4,"Hebammen",null,null,4,"Hebammen",null,null,4,"Hebammen",null,null,4,"Hebammen",null,null,4,"Hebammen",null,null,4,"Hebammen",null,null,4,"Hebammen"]
[5,"nicht klinisches Personal",null,null,5,"nicht klinisches Personal",null,null,5,"nicht klinisches Personal",null,null,5,"nicht klinisches Personal",null,null,5,"nicht klinisches Personal",null,null,5,"nicht klinisches Personal",null,null,5,"nicht klinisches Personal",null,null,5,"nicht klinisches Personal",null,null,5,"nicht klinisches Personal",null,null,5,"nicht klinisches Personal",null,null,5,"nicht klinisches Personal",null,null,5,"nicht klinisches Personal",null,null,5,"nicht klinisches Personal",null,null,5,"nicht klinisches Personal",null,null,5,"nicht klinisches Personal"]
[]
["MA 002","Listenfeld Auswahl","Zahl Auswahl",null,"MA 012","Listenfeld Auswahl","Zahl Auswahl",null,"MA 022","Listenfeld Auswahl","Zahl Auswahl",null,"MA 032","Listenfeld Auswahl","Zahl Auswahl",null,"MA 042","Listenfeld Auswahl","Zahl Auswahl",null,"MA 052","Listenfeld Auswahl","Zahl Auswahl",null,"MA 062","Listenfeld Auswahl","Zahl Auswahl",null,"MA 072","Listenfeld Auswahl","Zahl Auswahl",null,"MA 082","Listenfeld Auswahl","Zahl Auswahl",null,"MA 092","Listenfeld Auswahl","Zahl Auswahl",null,"MA 102","Listenfeld Auswahl","Zahl Auswahl",null,"MA 112","Listenfeld Auswahl","Zahl Auswahl",null,"MA 122","Listenfeld Auswahl","Zahl Auswahl",null,"MA 132","Listenfeld Auswahl","Zahl Auswahl",null,"MA 142","Listenfeld Auswahl","Zahl Auswahl"]
[1,null,1,null,1,null,1,null,1,null,1,null,1,null,1,null,1,null,1,null,1,null,1,null,1,null,1,null,1,null,1,null,1,null,1,null,1,null,1,null,1,null,1,null,1,null,1,null,1,null,1,null,1,null,1,null,1,null,1]
[2,"Medizin",null,null,2,"Medizin",null,null,2,"Medizin",null,null,2,"Medizin",null,null,2,"Medizin",null,null,2,"Medizin",null,null,2,"Medizin",null,null,2,"Medizin",null,null,2,"Medizin",null,null,2,"Medizin",null,null,2,"Medizin",null,null,2,"Medizin",null,null,2,"Medizin",null,null,2,"Medizin",null,null,2,"Medizin"]
[3,"Pflege",null,null,3,"Pflege",null,null,3,"Pflege",null,null,3,"Pflege",null,null,3,"Pflege",null,null,3,"Pflege",null,null,3,"Pflege",null,null,3,"Pflege",null,null,3,"Pflege",null,null,3,"Pflege",null,null,3,"Pflege",null,null,3,"Pflege",null,null,3,"Pflege",null,null,3,"Pflege",null,null,3,"Pflege"]
[4,"Hebammen",null,null,4,"Hebammen",null,null,4,"Hebammen",null,null,4,"Hebammen",null,null,4,"Hebammen",null,null,4,"Hebammen",null,null,4,"Hebammen",null,null,4,"Hebammen",null,null,4,"Hebammen",null,null,4,"Hebammen",null,null,4,"Hebammen",null,null,4,"Hebammen",null,null,4,"Hebammen",null,null,4,"Hebammen",null,null,4,"Hebammen"]
[5,"nicht klinisches Personal",null,null,5,"nicht klinisches Personal",null,null,5,"nicht klinisches Personal",null,null,5,"nicht klinisches Personal",null,null,5,"nicht klinisches Personal",null,null,5,"nicht klinisches Personal",null,null,5,"nicht klinisches Personal",null,null,5,"nicht klinisches Personal",null,null,5,"nicht klinisches Personal",null,null,5,"nicht klinisches Personal",null,null,5,"nicht klinisches Personal",null,null,5,"nicht klinisches Personal",null,null,5,"nicht klinisches Personal",null,null,5,"nicht klinisches Personal",null,null,5,"nicht klinisches Personal"]
[]
["MA 003","Listenfeld Auswahl","Zahl Auswahl",null,"MA 013","Listenfeld Auswahl","Zahl Auswahl",null,"MA 023","Listenfeld Auswahl","Zahl Auswahl",null,"MA 033","Listenfeld Auswahl","Zahl Auswahl",null,"MA 043","Listenfeld Auswahl","Zahl Auswahl",null,"MA 053","Listenfeld Auswahl","Zahl Auswahl",null,"MA 063","Listenfeld Auswahl","Zahl Auswahl",null,"MA 073","Listenfeld Auswahl","Zahl Auswahl",null,"MA 083","Listenfeld Auswahl","Zahl Auswahl",null,"MA 093","Listenfeld Auswahl","Zahl Auswahl",null,"MA 103","Listenfeld Auswahl","Zahl Auswahl",null,"MA 113","Listenfeld Auswahl","Zahl Auswahl",null,"MA 123","Listenfeld Auswahl","Zahl Auswahl",null,"MA 133","Listenfeld Auswahl","Zahl Auswahl",null,"MA 143","Listenfeld Auswahl","Zahl Auswahl"]
[1,null,1,null,1,null,1,null,1,null,1,null,1,null,1,null,1,null,1,null,1,null,1,null,1,null,1,null,1,null,1,null,1,null,1,null,1,null,1,null,1,null,1,null,1,null,1,null,1,null,1,null,1,null,1,null,1,null,1]
[2,"Medizin",null,null,2,"Medizin",null,null,2,"Medizin",null,null,2,"Medizin",null,null,2,"Medizin",null,null,2,"Medizin",null,null,2,"Medizin",null,null,2,"Medizin",null,null,2,"Medizin",null,null,2,"Medizin",null,null,2,"Medizin",null,null,2,"Medizin",null,null,2,"Medizin",null,null,2,"Medizin",null,null,2,"Medizin"]
[3,"Pflege",null,null,3,"Pflege",null,null,3,"Pflege",null,null,3,"Pflege",null,null,3,"Pflege",null,null,3,"Pflege",null,null,3,"Pflege",null,null,3,"Pflege",null,null,3,"Pflege",null,null,3,"Pflege",null,null,3,"Pflege",null,null,3,"Pflege",null,null,3,"Pflege",null,null,3,"Pflege",null,null,3,"Pflege"]
[4,"Hebammen",null,null,4,"Hebammen",null,null,4,"Hebammen",null,null,4,"Hebammen",null,null,4,"Hebammen",null,null,4,"Hebammen",null,null,4,"Hebammen",null,null,4,"Hebammen",null,null,4,"Hebammen",null,null,4,"Hebammen",null,null,4,"Hebammen",null,null,4,"Hebammen",null,null,4,"Hebammen",null,null,4,"Hebammen",null,null,4,"Hebammen"]
[5,"nicht klinisches Personal",null,null,5,"nicht klinisches Personal",null,null,5,"nicht klinisches Personal",null,null,5,"nicht klinisches Personal",null,null,5,"nicht klinisches Personal",null,null,5,"nicht klinisches Personal",null,null,5,"nicht klinisches Personal",null,null,5,"nicht klinisches Personal",null,null,5,"nicht klinisches Personal",null,null,5,"nicht klinisches Personal",null,null,5,"nicht klinisches Personal",null,null,5,"nicht klinisches Personal",null,null,5,"nicht klinisches Personal",null,null,5,"nicht klinisches Personal",null,null,5,"nicht klinisches Personal"]
[]
["MA 004","Listenfeld Auswahl","Zahl Auswahl",null,"MA 014","Listenfeld Auswahl","Zahl Auswahl",null,"MA 024","Listenfeld Auswahl","Zahl Auswahl",null,"MA 034","Listenfeld Auswahl","Zahl Auswahl",null,"MA 044","Listenfeld Auswahl","Zahl Auswahl",null,"MA 054","Listenfeld Auswahl","Zahl Auswahl",null,"MA 064","Listenfeld Auswahl","Zahl Auswahl",null,"MA 074","Listenfeld Auswahl","Zahl Auswahl",null,"MA 084","Listenfeld Auswahl","Zahl Auswahl",null,"MA 094","Listenfeld Auswahl","Zahl Auswahl",null,"MA 104","Listenfeld Auswahl","Zahl Auswahl",null,"MA 114","Listenfeld Auswahl","Zahl Auswahl",null,"MA 124","Listenfeld Auswahl","Zahl Auswahl",null,"MA 134","Listenfeld Auswahl","Zahl Auswahl",null,"MA 144","Listenfeld Auswahl","Zahl Auswahl"]
[1,null,1,null,1,null,1,null,1,null,1,null,1,null,1,null,1,null,1,null,1,null,1,null,1,null,1,null,1,null,1,null,1,null,1,null,1,null,1,null,1,null,1,null,1,null,1,null,1,null,1,null,1,null,1,null,1,null,1]
[2,"Medizin",null,null,2,"Medizin",null,null,2,"Medizin",null,null,2,"Medizin",null,null,2,"Medizin",null,null,2,"Medizin",1,null,2,"Medizin",null,null,2,"Medizin",null,null,2,"Medizin",null,null,2,"Medizin",null,null,2,"Medizin",null,null,2,"Medizin",null,null,2,"Medizin",null,null,2,"Medizin",null,null,2,"Medizin"]
[3,"Pflege",null,null,3,"Pflege",null,null,3,"Pflege",null,null,3,"Pflege",null,null,3,"Pflege",null,null,3,"Pflege",null,null,3,"Pflege",null,null,3,"Pflege",null,null,3,"Pflege",null,null,3,"Pflege",null,null,3,"Pflege",null,null,3,"Pflege",null,null,3,"Pflege",null,null,3,"Pflege",null,null,3,"Pflege"]
[4,"Hebammen",null,null,4,"Hebammen",null,null,4,"Hebammen",null,null,4,"Hebammen",null,null,4,"Hebammen",null,null,4,"Hebammen",null,null,4,"Hebammen",null,null,4,"Hebammen",null,null,4,"Hebammen",null,null,4,"Hebammen",null,null,4,"Hebammen",null,null,4,"Hebammen",null,null,4,"Hebammen",null,null,4,"Hebammen",null,null,4,"Hebammen"]
[5,"nicht klinisches Personal",null,null,5,"nicht klinisches Personal",null,null,5,"nicht klinisches Personal",null,null,5,"nicht klinisches Personal",null,null,5,"nicht klinisches Personal",null,null,5,"nicht klinisches Personal",null,null,5,"nicht klinisches Personal",null,null,5,"nicht klinisches Personal",null,null,5,"nicht klinisches Personal",null,null,5,"nicht klinisches Personal",null,null,5,"nicht klinisches Personal",null,null,5,"nicht klinisches Personal",null,null,5,"nicht klinisches Personal",null,null,5,"nicht klinisches Personal",null,null,5,"nicht klinisches Personal"]
[]
["MA 005","Listenfeld Auswahl","Zahl Auswahl",null,"MA 015","Listenfeld Auswahl","Zahl Auswahl",null,"MA 025","Listenfeld Auswahl","Zahl Auswahl",null,"MA 035","Listenfeld Auswahl","Zahl Auswahl",null,"MA 045","Listenfeld Auswahl","Zahl Auswahl",null,"MA 055","Listenfeld Auswahl","Zahl Auswahl",null,"MA 065","Listenfeld Auswahl","Zahl Auswahl",null,"MA 075","Listenfeld Auswahl","Zahl Auswahl",null,"MA 085","Listenfeld Auswahl","Zahl Auswahl",null,"MA 095","Listenfeld Auswahl","Zahl Auswahl",null,"MA 105","Listenfeld Auswahl","Zahl Auswahl",null,"MA 115","Listenfeld Auswahl","Zahl Auswahl",null,"MA 125","Listenfeld Auswahl","Zahl Auswahl",null,"MA 135","Listenfeld Auswahl","Zahl Auswahl",null,"MA 145","Listenfeld Auswahl","Zahl Auswahl"]
[1,null,1,null,1,null,1,null,1,null,1,null,1,null,1,null,1,null,1,null,1,null,1,null,1,null,1,null,1,null,1,null,1,null,1,null,1,null,1,null,1,null,1,null,1,null,1,null,1,null,1,null,1,null,1,null,1,null,1]
[2,"Medizin",null,null,2,"Medizin",null,null,2,"Medizin",null,null,2,"Medizin",null,null,2,"Medizin",null,null,2,"Medizin",null,null,2,"Medizin",null,null,2,"Medizin",null,null,2,"Medizin",null,null,2,"Medizin",null,null,2,"Medizin",null,null,2,"Medizin",null,null,2,"Medizin",null,null,2,"Medizin",null,null,2,"Medizin"]
[3,"Pflege",null,null,3,"Pflege",null,null,3,"Pflege",null,null,3,"Pflege",null,null,3,"Pflege",null,null,3,"Pflege",null,null,3,"Pflege",null,null,3,"Pflege",null,null,3,"Pflege",null,null,3,"Pflege",null,null,3,"Pflege",null,null,3,"Pflege",null,null,3,"Pflege",null,null,3,"Pflege",null,null,3,"Pflege"]
[4,"Hebammen",null,null,4,"Hebammen",null,null,4,"Hebammen",null,null,4,"Hebammen",null,null,4,"Hebammen",null,null,4,"Hebammen",null,null,4,"Hebammen",null,null,4,"Hebammen",null,null,4,"Hebammen",null,null,4,"Hebammen",null,null,4,"Hebammen",null,null,4,"Hebammen",null,null,4,"Hebammen",null,null,4,"Hebammen",null,null,4,"Hebammen"]
[5,"nicht klinisches Personal",null,null,5,"nicht klinisches Personal",null,null,5,"nicht klinisches Personal",null,null,5,"nicht klinisches Personal",null,null,5,"nicht klinisches Personal",null,null,5,"nicht klinisches Personal",null,null,5,"nicht klinisches Personal",null,null,5,"nicht klinisches Personal",null,null,5,"nicht klinisches Personal",null,null,5,"nicht klinisches Personal",null,null,5,"nicht klinisches Personal",null,null,5,"nicht klinisches Personal",null,null,5,"nicht klinisches Personal",null,null,5,"nicht klinisches Personal",null,null,5,"nicht klinisches Personal"]
[]
["MA 006","Listenfeld Auswahl","Zahl Auswahl",null,"MA 016","Listenfeld Auswahl","Zahl Auswahl",null,"MA 026","Listenfeld Auswahl","Zahl Auswahl",null,"MA 036","Listenfeld Auswahl","Zahl Auswahl",null,"MA 046","Listenfeld Auswahl","Zahl Auswahl",null,"MA 056","Listenfeld Auswahl","Zahl Auswahl",null,"MA 066","Listenfeld Auswahl","Zahl Auswahl",null,"MA 076","Listenfeld Auswahl","Zahl Auswahl",null,"MA 086","Listenfeld Auswahl","Zahl Auswahl",null,"MA 096","Listenfeld Auswahl","Zahl Auswahl",null,"MA 106","Listenfeld Auswahl","Zahl Auswahl",null,"MA 116","Listenfeld Auswahl","Zahl Auswahl",null,"MA 126","Listenfeld Auswahl","Zahl Auswahl",null,"MA 136","Listenfeld Auswahl","Zahl Auswahl",null,"MA 146","Listenfeld Auswahl","Zahl Auswahl"]
[1,null,1,null,1,null,1,null,1,null,1,null,1,null,1,null,1,null,1,null,1,null,1,null,1,null,1,null,1,null,1,null,1,null,1,null,1,null,1,null,1,null,1,null,1,null,1,null,1,null,1,null,1,null,1,null,1,null,1]
[2,"Medizin",null,null,2,"Medizin",null,null,2,"Medizin",null,null,2,"Medizin",null,null,2,"Medizin",null,null,2,"Medizin",null,null,2,"Medizin",null,null,2,"Medizin",null,null,2,"Medizin",null,null,2,"Medizin",null,null,2,"Medizin",null,null,2,"Medizin",null,null,2,"Medizin",null,null,2,"Medizin",null,null,2,"Medizin"]
[3,"Pflege",null,null,3,"Pflege",null,null,3,"Pflege",null,null,3,"Pflege",null,null,3,"Pflege",null,null,3,"Pflege",null,null,3,"Pflege",null,null,3,"Pflege",null,null,3,"Pflege",null,null,3,"Pflege",null,null,3,"Pflege",null,null,3,"Pflege",null,null,3,"Pflege",null,null,3,"Pflege",null,null,3,"Pflege"]
[4,"Hebammen",null,null,4,"Hebammen",null,null,4,"Hebammen",null,null,4,"Hebammen",null,null,4,"Hebammen",null,null,4,"Hebammen",null,null,4,"Hebammen",null,null,4,"Hebammen",null,null,4,"Hebammen",null,null,4,"Hebammen",null,null,4,"Hebammen",null,null,4,"Hebammen",null,null,4,"Hebammen",null,null,4,"Hebammen",null,null,4,"Hebammen"]
[5,"nicht klinisches Personal",null,null,5,"nicht klinisches Personal",null,null,5,"nicht klinisches Personal",null,null,5,"nicht klinisches Personal",null,null,5,"nicht klinisches Personal",null,null,5,"nicht klinisches Personal",null,null,5,"nicht klinisches Personal",null,null,5,"nicht klinisches Personal",null,null,5,"nicht klinisches Personal",null,null,5,"nicht klinisches Personal",null,null,5,"nicht klinisches Personal",null,null,5,"nicht klinisches Personal",null,null,5,"nicht klinisches Personal",null,null,5,"nicht klinisches Personal",null,null,5,"nicht klinisches Personal"]
[]
["MA 007","Listenfeld Auswahl","Zahl Auswahl",null,"MA 017","Listenfeld Auswahl","Zahl Auswahl",null,"MA 027","Listenfeld Auswahl","Zahl Auswahl",null,"MA 037","Listenfeld Auswahl","Zahl Auswahl",null,"MA 047","Listenfeld Auswahl","Zahl Auswahl",null,"MA 057","Listenfeld Auswahl","Zahl Auswahl",null,"MA 067","Listenfeld Auswahl","Zahl Auswahl",null,"MA 077","Listenfeld Auswahl","Zahl Auswahl",null,"MA 087","Listenfeld Auswahl","Zahl Auswahl",null,"MA 097","Listenfeld Auswahl","Zahl Auswahl",null,"MA 107","Listenfeld Auswahl","Zahl Auswahl",null,"MA 117","Listenfeld Auswahl","Zahl Auswahl",null,"MA 127","Listenfeld Auswahl","Zahl Auswahl",null,"MA 137","Listenfeld Auswahl","Zahl Auswahl",null,"MA 147","Listenfeld Auswahl","Zahl Auswahl"]
[1,null,1,null,1,null,1,null,1,null,1,null,1,null,1,null,1,null,1,null,1,null,1,null,1,null,1,null,1,null,1,null,1,null,1,null,1,null,1,null,1,null,1,null,1,null,1,null,1,null,1,null,1,null,1,null,1,null,1]
[2,"Medizin",null,null,2,"Medizin",null,null,2,"Medizin",null,null,2,"Medizin",null,null,2,"Medizin",null,null,2,"Medizin",null,null,2,"Medizin",null,null,2,"Medizin",null,null,2,"Medizin",null,null,2,"Medizin",null,null,2,"Medizin",null,null,2,"Medizin",null,null,2,"Medizin",null,null,2,"Medizin",null,null,2,"Medizin"]
[3,"Pflege",null,null,3,"Pflege",null,null,3,"Pflege",null,null,3,"Pflege",null,null,3,"Pflege",null,null,3,"Pflege",null,null,3,"Pflege",null,null,3,"Pflege",null,null,3,"Pflege",null,null,3,"Pflege",null,null,3,"Pflege",null,null,3,"Pflege",null,null,3,"Pflege",null,null,3,"Pflege",null,null,3,"Pflege"]
[4,"Hebammen",null,null,4,"Hebammen",null,null,4,"Hebammen",null,null,4,"Hebammen",null,null,4,"Hebammen",null,null,4,"Hebammen",null,null,4,"Hebammen",null,null,4,"Hebammen",null,null,4,"Hebammen",null,null,4,"Hebammen",null,null,4,"Hebammen",null,null,4,"Hebammen",null,null,4,"Hebammen",null,null,4,"Hebammen",null,null,4,"Hebammen"]
[5,"nicht klinisches Personal",null,null,5,"nicht klinisches Personal",null,null,5,"nicht klinisches Personal",null,null,5,"nicht klinisches Personal",null,null,5,"nicht klinisches Personal",null,null,5,"nicht klinisches Personal",null,null,5,"nicht klinisches Personal",null,null,5,"nicht klinisches Personal",null,null,5,"nicht klinisches Personal",null,null,5,"nicht klinisches Personal",null,null,5,"nicht klinisches Personal",null,null,5,"nicht klinisches Personal",null,null,5,"nicht klinisches Personal",null,null,5,"nicht klinisches Personal",null,null,5,"nicht klinisches Personal"]
[]
["MA 008","Listenfeld Auswahl","Zahl Auswahl",null,"MA 018","Listenfeld Auswahl","Zahl Auswahl",null,"MA 028","Listenfeld Auswahl","Zahl Auswahl",null,"MA 038","Listenfeld Auswahl","Zahl Auswahl",null,"MA 048","Listenfeld Auswahl","Zahl Auswahl",null,"MA 058","Listenfeld Auswahl","Zahl Auswahl",null,"MA 068","Listenfeld Auswahl","Zahl Auswahl",null,"MA 078","Listenfeld Auswahl","Zahl Auswahl",null,"MA 088","Listenfeld Auswahl","Zahl Auswahl",null,"MA 098","Listenfeld Auswahl","Zahl Auswahl",null,"MA 108","Listenfeld Auswahl","Zahl Auswahl",null,"MA 118","Listenfeld Auswahl","Zahl Auswahl",null,"MA 128","Listenfeld Auswahl","Zahl Auswahl",null,"MA 138","Listenfeld Auswahl","Zahl Auswahl",null,"MA 148","Listenfeld Auswahl","Zahl Auswahl"]
[1,null,1,null,1,null,1,null,1,null,1,null,1,null,1,null,1,null,1,null,1,null,1,null,1,null,1,null,1,null,1,null,1,null,1,null,1,null,1,null,1,null,1,null,1,null,1,null,1,null,1,null,1,null,1,null,1,null,1]
[2,"Medizin",null,null,2,"Medizin",null,null,2,"Medizin",null,null,2,"Medizin",null,null,2,"Medizin",null,null,2,"Medizin",null,null,2,"Medizin",null,null,2,"Medizin",null,null,2,"Medizin",null,null,2,"Medizin",null,null,2,"Medizin",null,null,2,"Medizin",null,null,2,"Medizin",null,null,2,"Medizin",null,null,2,"Medizin"]
[3,"Pflege",null,null,3,"Pflege",null,null,3,"Pflege",null,null,3,"Pflege",null,null,3,"Pflege",null,null,3,"Pflege",null,null,3,"Pflege",null,null,3,"Pflege",null,null,3,"Pflege",null,null,3,"Pflege",null,null,3,"Pflege",null,null,3,"Pflege",null,null,3,"Pflege",null,null,3,"Pflege",null,null,3,"Pflege"]
[4,"Hebammen",null,null,4,"Hebammen",null,null,4,"Hebammen",null,null,4,"Hebammen",null,null,4,"Hebammen",null,null,4,"Hebammen",null,null,4,"Hebammen",null,null,4,"Hebammen",null,null,4,"Hebammen",null,null,4,"Hebammen",null,null,4,"Hebammen",null,null,4,"Hebammen",null,null,4,"Hebammen",null,null,4,"Hebammen",null,null,4,"Hebammen"]
[5,"nicht klinisches Personal",null,null,5,"nicht klinisches Personal",null,null,5,"nicht klinisches Personal",null,null,5,"nicht klinisches Personal",null,null,5,"nicht klinisches Personal",null,null,5,"nicht klinisches Personal",null,null,5,"nicht klinisches Personal",null,null,5,"nicht klinisches Personal",null,null,5,"nicht klinisches Personal",null,null,5,"nicht klinisches Personal",null,null,5,"nicht klinisches Personal",null,null,5,"nicht klinisches Personal",null,null,5,"nicht klinisches Personal",null,null,5,"nicht klinisches Personal",null,null,5,"nicht klinisches Personal"]
[]
["MA 009","Listenfeld Auswahl","Zahl Auswahl",null,"MA 019","Listenfeld Auswahl","Zahl Auswahl",null,"MA 029","Listenfeld Auswahl","Zahl Auswahl",null,"MA 039","Listenfeld Auswahl","Zahl Auswahl",null,"MA 049","Listenfeld Auswahl","Zahl Auswahl",null,"MA 059","Listenfeld Auswahl","Zahl Auswahl",null,"MA 069","Listenfeld Auswahl","Zahl Auswahl",null,"MA 079","Listenfeld Auswahl","Zahl Auswahl",null,"MA 089","Listenfeld Auswahl","Zahl Auswahl",null,"MA 099","Listenfeld Auswahl","Zahl Auswahl",null,"MA 109","Listenfeld Auswahl","Zahl Auswahl",null,"MA 119","Listenfeld Auswahl","Zahl Auswahl",null,"MA 129","Listenfeld Auswahl","Zahl Auswahl",null,"MA 139","Listenfeld Auswahl","Zahl Auswahl",null,"MA 149","Listenfeld Auswahl","Zahl Auswahl"]
[1,null,1,null,1,null,1,null,1,null,1,null,1,null,1,null,1,null,1,null,1,null,1,null,1,null,1,null,1,null,1,null,1,null,1,null,1,null,1,null,1,null,1,null,1,null,1,null,1,null,1,null,1,null,1,null,1,null,1]
[2,"Medizin",null,null,2,"Medizin",null,null,2,"Medizin",null,null,2,"Medizin",null,null,2,"Medizin",null,null,2,"Medizin",null,null,2,"Medizin",null,null,2,"Medizin",null,null,2,"Medizin",null,null,2,"Medizin",null,null,2,"Medizin",null,null,2,"Medizin",null,null,2,"Medizin",null,null,2,"Medizin",null,null,2,"Medizin"]
[3,"Pflege",null,null,3,"Pflege",null,null,3,"Pflege",null,null,3,"Pflege",null,null,3,"Pflege",null,null,3,"Pflege",null,null,3,"Pflege",null,null,3,"Pflege",null,null,3,"Pflege",null,null,3,"Pflege",null,null,3,"Pflege",null,null,3,"Pflege",null,null,3,"Pflege",null,null,3,"Pflege",null,null,3,"Pflege"]
[4,"Hebammen",null,null,4,"Hebammen",null,null,4,"Hebammen",null,null,4,"Hebammen",null,null,4,"Hebammen",null,null,4,"Hebammen",null,null,4,"Hebammen",null,null,4,"Hebammen",null,null,4,"Hebammen",null,null,4,"Hebammen",null,null,4,"Hebammen",null,null,4,"Hebammen",null,null,4,"Hebammen",null,null,4,"Hebammen",null,null,4,"Hebammen"]
[5,"nicht klinisches Personal",null,null,5,"nicht klinisches Personal",null,null,5,"nicht klinisches Personal",null,null,5,"nicht klinisches Personal",null,null,5,"nicht klinisches Personal",null,null,5,"nicht klinisches Personal",null,null,5,"nicht klinisches Personal",null,null,5,"nicht klinisches Personal",null,null,5,"nicht klinisches Personal",null,null,5,"nicht klinisches Personal",null,null,5,"nicht klinisches Personal",null,null,5,"nicht klinisches Personal",null,null,5,"nicht klinisches Personal",null,null,5,"nicht klinisches Personal",null,null,5,"nicht klinisches Personal"]
[]
["MA 010","Listenfeld Auswahl","Zahl Auswahl",null,"MA 020","Listenfeld Auswahl","Zahl Auswahl",null,"MA 030","Listenfeld Auswahl","Zahl Auswahl",null,"MA 040","Listenfeld Auswahl","Zahl Auswahl",null,"MA 050","Listenfeld Auswahl","Zahl Auswahl",null,"MA 060","Listenfeld Auswahl","Zahl Auswahl",null,"MA 070","Listenfeld Auswahl","Zahl Auswahl",null,"MA 080","Listenfeld Auswahl","Zahl Auswahl",null,"MA 090","Listenfeld Auswahl","Zahl Auswahl",null,"MA 100","Listenfeld Auswahl","Zahl Auswahl",null,"MA 110","Listenfeld Auswahl","Zahl Auswahl",null,"MA 120","Listenfeld Auswahl","Zahl Auswahl",null,"MA 130","Listenfeld Auswahl","Zahl Auswahl",null,"MA 140","Listenfeld Auswahl","Zahl Auswahl",null,"MA 050","Listenfeld Auswahl","Zahl Auswahl"]
[1,null,1,null,1,null,1,null,1,null,1,null,1,null,1,null,1,null,1,null,1,null,1,null,1,null,1,null,1,null,1,null,1,null,1,null,1,null,1,null,1,null,1,null,1,null,1,null,1,null,1,null,1,null,1,null,1,null,1]
[2,"Medizin",null,null,2,"Medizin",null,null,2,"Medizin",null,null,2,"Medizin",null,null,2,"Medizin",null,null,2,"Medizin",null,null,2,"Medizin",null,null,2,"Medizin",null,null,2,"Medizin",null,null,2,"Medizin",null,null,2,"Medizin",null,null,2,"Medizin",null,null,2,"Medizin",null,null,2,"Medizin",null,null,2,"Medizin"]
[3,"Pflege",null,null,3,"Pflege",null,null,3,"Pflege",null,null,3,"Pflege",null,null,3,"Pflege",null,null,3,"Pflege",null,null,3,"Pflege",null,null,3,"Pflege",null,null,3,"Pflege",null,null,3,"Pflege",null,null,3,"Pflege",null,null,3,"Pflege",null,null,3,"Pflege",null,null,3,"Pflege",null,null,3,"Pflege"]
[4,"Hebammen",null,null,4,"Hebammen",null,null,4,"Hebammen",null,null,4,"Hebammen",null,null,4,"Hebammen",null,null,4,"Hebammen",null,null,4,"Hebammen",null,null,4,"Hebammen",null,null,4,"Hebammen",null,null,4,"Hebammen",null,null,4,"Hebammen",null,null,4,"Hebammen",null,null,4,"Hebammen",null,null,4,"Hebammen",null,null,4,"Hebammen"]
[5,"nicht klinisches Personal",null,null,5,"nicht klinisches Personal",null,null,5,"nicht klinisches Personal",null,null,5,"nicht klinisches Personal",null,null,5,"nicht klinisches Personal",null,null,5,"nicht klinisches Personal",null,null,5,"nicht klinisches Personal",null,null,5,"nicht klinisches Personal",null,null,5,"nicht klinisches Personal",null,null,5,"nicht klinisches Personal",null,null,5,"nicht klinisches Personal",null,null,5,"nicht klinisches Personal",null,null,5,"nicht klinisches Personal",null,null,5,"nicht klinisches Personal",null,null,5,"nicht klinisches Personal"]